Workbook

Sheet Data

Sheet Sheet3
EL1: Sit | EM1: 5v5
A3: Row Labels | B3: G | C3: A1 | D3: A2 | E3: P | H3: Row Labels | I3: TOI/Gm | J3: PSh% | K3: Average of OSh% | N3: TOI/Gm | O3: PSh% | P3: OSh% | Q3: P60 | S3: Row Labels | T3: TOI/Gm | U3: CF% | V3: HSCF% | Y3: TOI/Gm | Z3: CF% | AA3: HSCF% | AB3: P60 | AD3: Row Labels | AE3: HSCF | AF3: iHSC | AG3: HSCF%Rel | AH3: G60 | AJ3: HSCF | AK3: iHSC | AL3: HSCF%Rel | AM3: G60 | AO3: Row Labels | AP3: iHSC | AQ3: iSC | AR3: SCF%Rel | AS3: P60 | AU3: iHSC | AV3: iSC | AW3: SCF%Rel | AX3: P60 | AZ3: Row Labels | BA3: OSh% | BB3: OSv% | BF3: OSh% | BG3: OSv% | BH3: SCF%Rel | BI3: P60 | BK3: Row Labels | BL3: CF | BM3: SF | BN3: MS | BO3: BK | BQ3: CF | BR3: SF | BS3: MS | BT3: BK | BV3: Row Labels | BW3: HSCF60 | BX3: SCF60 | BY3: CF60 | BZ3: SF60 | CA3: TOI/Gm | CC3: HSCF60 | CD3: SCF60 | CE3: CF60 | CF3: SF60 | CG3: TOI/Gm | CI3: Row Labels | CJ3: G60 | CK3: P60 | CL3: A160 | CM3: A260 | CO3: G60 | CP3: P60 | CQ3: A160 | CR3: A260 | CT3: Row Labels | CU3: HSCF% | CV3: HSCF%off | CW3: SCF% | CX3: SCF%off | CZ3: HSCF% | DA3: HSCF%off | DB3: SCF% | DC3: SCF%off | DE3: Row Labels | DF3: HSCF% | DG3: HSCF%off | DH3: SCF% | DI3: SCF%off | DK3: HSCF% | DL3: HSCF%off | DM3: SCF% | DN3: SCF%off | DP3: Row Labels | DQ3: TOI/Gm | DR3: CF | DS3: iCF | DT3: iSC | DV3: TOI/Gm | DW3: CF | DX3: iCF | DY3: iSC | EA3: Row Labels | EB3: TOI/Gm | EC3: OSh% | ED3: SF60 | EE3: GF60 | EG3: TOI/Gm | EH3: OSh% | EI3: SF60 | EJ3: GF60 | EL3: Row Labels | EM3: Average of TOI/Gm | EN3: PSh% | EO3: Average of OSh% | EP3: Average of TOI% | ER3: TOI/Gm | ES3: PSh% | ET3: OSh% | EU3: P60 | EW3: Row Labels | EX3: TOI/Gm | EY3: HSCF%Rel | EZ3: SCF%Rel | FA3: CF%Rel | FC3: =EX3 -> TOI/Gm | FD3: =EY3 -> HSCF%Rel | FE3: SCF%Rel | FF3: CF%Rel
A4: 2014-10-08 | B4: 0 | C4: 0 | D4: 0 | E4: 0 | H4: 2014-10-08 | I4: 13.1 | J4: 0 | K4: 0 | S4: 2014-10-08 | T4: 13.1 | U4: 56.3 | V4: 0 | AD4: 2014-10-08 | AE4: 0 | AF4: 0 | AG4: -48.4 | AH4: 0 | AO4: 2014-10-08 | AP4: 0 | AQ4: 0 | AR4: -19 | AS4: 0 | AZ4: 2014-10-08 | BA4: 0 | BB4: 100 | BK4: 2014-10-08 | BL4: 13.2 | BM4: 6.9 | BN4: 0 | BO4: 1 | BV4: 2014-10-08 | BW4: 0 | BX4: 21 | BY4: 60.5 | BZ4: 31.7 | CA4: 13.1 | CI4: 2014-10-08 | CJ4: 0 | CK4: 0 | CL4: 0 | CM4: 0 | CT4: 2014-10-08 | CU4: 0 | CV4: 48.4 | CW4: 46.4 | CX4: 65.5 | DE4: 2014-10-08 | DF4: 0 | DG4: 48.4 | DH4: 46.4 | DI4: 65.5 | DP4: 2014-10-08 | DQ4: 13.1 | DR4: 13.2 | DS4: 1 | DT4: 0 | EA4: 2014-10-08 | EB4: 13.1 | EC4: 0 | ED4: 31.7 | EE4: 0 | EL4: Drew.Doughty | EM4: 20.67771739 | EN4: 508.2 | EO4: 7.011413043 | EP4: 42.87826087 | EW4: 2014-10-08 | EX4: 13.1 | EY4: -48.4 | EZ4: -19 | FA4: -5.3
A5: 2014-10-09 | B5: 0 | C5: 0 | D5: 0 | E5: 0 | H5: 2014-10-09 | I5: 12.4 | J5: 0 | K5: 0 | S5: 2014-10-09 | T5: 12.4 | U5: 19.2 | V5: 0 | AD5: 2014-10-09 | AE5: 0 | AF5: 0 | AG5: -38.4 | AH5: 0 | AO5: 2014-10-09 | AP5: 0 | AQ5: 0 | AR5: -32.6 | AS5: 0 | AZ5: 2014-10-09 | BA5: 0 | BB5: 80.6 | BK5: 2014-10-09 | BL5: 2.2 | BM5: 1 | BN5: 0 | BO5: 0 | BV5: 2014-10-09 | BW5: 0 | BX5: 0 | BY5: 10.5 | BZ5: 4.6 | CA5: 12.4 | CI5: 2014-10-09 | CJ5: 0 | CK5: 0 | CL5: 0 | CM5: 0 | CT5: 2014-10-09 | CU5: 0 | CV5: 38.4 | CW5: 0 | CX5: 32.6 | DE5: 2014-10-09 | DF5: 0 | DG5: 38.4 | DH5: 0 | DI5: 32.6 | DP5: 2014-10-09 | DQ5: 12.4 | DR5: 2.2 | DS5: 0 | DT5: 0 | EA5: 2014-10-09 | EB5: 12.4 | EC5: 0 | ED5: 4.6 | EE5: 0 | EL5: Erik.Karlsson | EM5: 20.6398773 | EN5: 919.7 | EO5: 9.143558282 | EP5: 43.32453988 | EW5: 2014-10-09 | EX5: 12.4 | EY5: -38.4 | EZ5: -32.6 | FA5: -9.3
A6: 2014-10-11 | B6: 0 | C6: 0 | D6: 0 | E6: 0 | H6: 2014-10-11 | I6: 11 | J6: 0 | K6: 0 | S6: 2014-10-11 | T6: 11 | U6: 47.3 | V6: 48.8 | AD6: 2014-10-11 | AE6: 0.9 | AF6: 1 | AG6: -3.3 | AH6: 0 | AO6: 2014-10-11 | AP6: 1 | AQ6: 1 | AR6: -18.4 | AS6: 0 | AZ6: 2014-10-11 | BA6: 0 | BB6: 100 | BK6: 2014-10-11 | BL6: 5.4 | BM6: 3.5 | BN6: 0 | BO6: 0 | BV6: 2014-10-11 | BW6: 5.1 | BX6: 19.5 | BY6: 29.6 | BZ6: 19.4 | CA6: 11 | CI6: 2014-10-11 | CJ6: 0 | CK6: 0 | CL6: 0 | CM6: 0 | CT6: 2014-10-11 | CU6: 48.8 | CV6: 52.1 | CW6: 44.9 | CX6: 63.3 | DE6: 2014-10-11 | DF6: 48.8 | DG6: 52.1 | DH6: 44.9 | DI6: 63.3 | DP6: 2014-10-11 | DQ6: 11 | DR6: 5.4 | DS6: 1 | DT6: 1 | EA6: 2014-10-11 | EB6: 11 | EC6: 0 | ED6: 19.4 | EE6: 0 | EL6: T.J..Brodie | EM6: 19.20466667 | EN6: 550 | EO6: 9.045333333 | EP6: 39.39333333 | EW6: 2014-10-11 | EX6: 11 | EY6: -3.3 | EZ6: -18.4 | FA6: -10.8
A7: 2014-10-13 | B7: 0 | C7: 0 | D7: 0 | E7: 0 | H7: 2014-10-13 | I7: 13.5 | J7: 0 | K7: 0 | S7: 2014-10-13 | T7: 13.5 | U7: 45.9 | V7: 34.4 | AD7: 2014-10-13 | AE7: 1 | AF7: 0 | AG7: -19.2 | AH7: 0 | AO7: 2014-10-13 | AP7: 0 | AQ7: 1 | AR7: -26.4 | AS7: 0 | AZ7: 2014-10-13 | BA7: 0 | BB7: 100 | BK7: 2014-10-13 | BL7: 7.7 | BM7: 6.7 | BN7: 0 | BO7: 0 | BV7: 2014-10-13 | BW7: 4.4 | BX7: 12.8 | BY7: 34.3 | BZ7: 29.6 | CA7: 13.5 | CI7: 2014-10-13 | CJ7: 0 | CK7: 0 | CL7: 0 | CM7: 0 | CT7: 2014-10-13 | CU7: 34.4 | CV7: 53.6 | CW7: 29.6 | CX7: 55.9 | DE7: 2014-10-13 | DF7: 34.4 | DG7: 53.6 | DH7: 29.6 | DI7: 55.9 | DP7: 2014-10-13 | DQ7: 13.5 | DR7: 7.7 | DS7: 2 | DT7: 1 | EA7: 2014-10-13 | EB7: 13.5 | EC7: 0 | ED7: 29.6 | EE7: 0 | EL7: Roman.Josi | EM7: 19.15690608 | EN7: 666.5 | EO7: 7.376111111 | EP7: 39.83093923 | EW7: 2014-10-13 | EX7: 13.5 | EY7: -19.2 | EZ7: -26.4 | FA7: -10.3
A8: 2014-10-15 | B8: 0 | C8: 0 | D8: 0 | E8: 0 | H8: 2014-10-15 | I8: 14.7 | J8: 0 | K8: 0 | S8: 2014-10-15 | T8: 14.7 | U8: 51.7 | V8: 45.4 | AD8: 2014-10-15 | AE8: 3.3 | AF8: 1 | AG8: -48.5 | AH8: 0 | AO8: 2014-10-15 | AP8: 1 | AQ8: 2 | AR8: -15.9 | AS8: 0 | AZ8: 2014-10-15 | BA8: 0 | BB8: 100 | BK8: 2014-10-15 | BL8: 8.9 | BM8: 5.3 | BN8: 0 | BO8: 0 | BV8: 2014-10-15 | BW8: 13.5 | BX8: 26.7 | BY8: 36.2 | BZ8: 21.7 | CA8: 14.7 | CI8: 2014-10-15 | CJ8: 0 | CK8: 0 | CL8: 0 | CM8: 0 | CT8: 2014-10-15 | CU8: 45.4 | CV8: 93.9 | CW8: 52.5 | CX8: 68.5 | DE8: 2014-10-15 | DF8: 45.4 | DG8: 93.9 | DH8: 52.5 | DI8: 68.5 | DP8: 2014-10-15 | DQ8: 14.7 | DR8: 8.9 | DS8: 2 | DT8: 2 | EA8: 2014-10-15 | EB8: 14.7 | EC8: 0 | ED8: 21.7 | EE8: 0 | EL8: Shea.Weber | EM8: 18.92611465 | EN8: 449.8 | EO8: 7.137179487 | EP8: 39.40955414 | EW8: 2014-10-15 | EX8: 14.7 | EY8: -48.5 | EZ8: -15.9 | FA8: -16.5
A9: 2014-10-16 | B9: 0 | C9: 1 | D9: 0 | E9: 1 | H9: 2014-10-16 | I9: 13.3 | J9: 0 | K9: 15 | S9: 2014-10-16 | T9: 13.3 | U9: 63.7 | V9: 63.4 | AD9: 2014-10-16 | AE9: 3.2 | AF9: 1 | AG9: 6.6 | AH9: 0 | AO9: 2014-10-16 | AP9: 1 | AQ9: 2 | AR9: 13.2 | AS9: 4.5 | AZ9: 2014-10-16 | BA9: 15 | BB9: 66.3 | BK9: 2014-10-16 | BL9: 15.4 | BM9: 6.7 | BN9: 0 | BO9: 2 | BV9: 2014-10-16 | BW9: 14.3 | BX9: 31.5 | BY9: 69.5 | BZ9: 30.2 | CA9: 13.3 | CI9: 2014-10-16 | CJ9: 0 | CK9: 4.5 | CL9: 4.511278195 | CM9: 0 | CT9: 2014-10-16 | CU9: 63.4 | CV9: 56.8 | CW9: 58 | CX9: 44.8 | DE9: 2014-10-16 | DF9: 63.4 | DG9: 56.8 | DH9: 58 | DI9: 44.8 | DP9: 2014-10-16 | DQ9: 13.3 | DR9: 15.4 | DS9: 5 | DT9: 2 | EA9: 2014-10-16 | EB9: 13.3 | EC9: 15 | ED9: 30.2 | EE9: 4.5 | EL9: Alex.Pietrangelo | EM9: 18.79632353 | EN9: 369.4 | EO9: 6.828676471 | EP9: 39.03823529 | EW9: 2014-10-16 | EX9: 13.3 | EY9: 6.6 | EZ9: 13.2 | FA9: 17.9
A10: 2014-10-18 | B10: 0 | C10: 1 | D10: 0 | E10: 1 | H10: 2014-10-18 | I10: 13.7 | J10: 0 | K10: 11.4 | S10: 2014-10-18 | T10: 13.7 | U10: 72.6 | V10: 85.1 | AD10: 2014-10-18 | AE10: 5.3 | AF10: 1 | AG10: 32.5 | AH10: 0 | AO10: 2014-10-18 | AP10: 1 | AQ10: 2 | AR10: 22 | AS10: 0 | AZ10: 2014-10-18 | BA10: 11.4 | BB10: 100 | BK10: 2014-10-18 | BL10: 21.8 | BM10: 8.8 | BN10: 1 | BO10: 1 | BV10: 2014-10-18 | BW10: 23.3 | BX10: 53 | BY10: 95.3 | BZ10: 38.5 | CA10: 13.7 | CI10: 2014-10-18 | CJ10: 0 | CK10: 0 | CL10: 0 | CM10: 0 | CT10: 2014-10-18 | CU10: 85.1 | CV10: 52.6 | CW10: 82.4 | CX10: 60.4 | DE10: 2014-10-18 | DF10: 85.1 | DG10: 52.6 | DH10: 82.4 | DI10: 60.4 | DP10: 2014-10-18 | DQ10: 13.7 | DR10: 21.8 | DS10: 4 | DT10: 2 | EA10: 2014-10-18 | EB10: 13.7 | EC10: 11.4 | ED10: 38.5 | EE10: 4.4 | EL10: Jonas.Brodin | EM10: 18.74964029 | EN10: 158.3 | EO10: 7.626618705 | EP10: 38.6352518 | EW10: 2014-10-18 | EX10: 13.7 | EY10: 32.5 | EZ10: 22 | FA10: 11.6
A11: 2014-10-21 | B11: 0 | C11: 2 | D11: 0 | E11: 2 | H11: 2014-10-21 | I11: 14.3 | J11: 0 | K11: 10 | S11: 2014-10-21 | T11: 14.3 | U11: 64.5 | V11: 65.9 | AD11: 2014-10-21 | AE11: 3.6 | AF11: 0 | AG11: 14.5 | AH11: 0 | AO11: 2014-10-21 | AP11: 0 | AQ11: 0 | AR11: 0 | AS11: 4.2 | AZ11: 2014-10-21 | BA11: 10 | BB11: 100 | BK11: 2014-10-21 | BL11: 19.8 | BM11: 10 | BN11: 0 | BO11: 0 | BV11: 2014-10-21 | BW11: 15.3 | BX11: 30.8 | BY11: 83.2 | BZ11: 42.1 | CA11: 14.3 | CI11: 2014-10-21 | CJ11: 0 | CK11: 4.2 | CL11: 4.195804196 | CM11: 0 | CT11: 2014-10-21 | CU11: 65.9 | CV11: 51.4 | CW11: 53.4 | CX11: 53.3 | DE11: 2014-10-21 | DF11: 65.9 | DG11: 51.4 | DH11: 53.4 | DI11: 53.3 | DP11: 2014-10-21 | DQ11: 14.3 | DR11: 19.8 | DS11: 0 | DT11: 0 | EA11: 2014-10-21 | EB11: 14.3 | EC11: 10 | ED11: 42.1 | EE11: 4.2 | EL11: Kris.Russell | EM11: 18.7035461 | EN11: 333.3 | EO11: 10.59432624 | EP11: 38.20141844 | EW11: 2014-10-21 | EX11: 14.3 | EY11: 14.5 | EZ11: 0 | FA11: 15.2
A12: 2014-10-23 | B12: 1 | C12: 2 | D12: 0 | E12: 3 | H12: 2014-10-23 | I12: 15.8 | J12: 100 | K12: 14.4 | S12: 2014-10-23 | T12: 15.8 | U12: 55.6 | V12: 28.3 | AD12: 2014-10-23 | AE12: 1.8 | AF12: 1 | AG12: -13.2 | AH12: 3.8 | AO12: 2014-10-23 | AP12: 1 | AQ12: 2 | AR12: -2.2 | AS12: 3.8 | AZ12: 2014-10-23 | BA12: 14.4 | BB12: 100 | BK12: 2014-10-23 | BL12: 16.6 | BM12: 6.9 | BN12: 0 | BO12: 1 | BV12: 2014-10-23 | BW12: 6.8 | BX12: 33.3 | BY12: 63 | BZ12: 26.3 | CA12: 15.8 | CI12: 2014-10-23 | CJ12: 3.8 | CK12: 3.8 | CL12: 0 | CM12: 0 | CT12: 2014-10-23 | CU12: 28.3 | CV12: 41.4 | CW12: 53.6 | CX12: 55.8 | DE12: 2014-10-23 | DF12: 28.3 | DG12: 41.4 | DH12: 53.6 | DI12: 55.8 | DP12: 2014-10-23 | DQ12: 15.8 | DR12: 16.6 | DS12: 2 | DT12: 2 | EA12: 2014-10-23 | EB12: 15.8 | EC12: 14.4 | ED12: 26.3 | EE12: 3.8 | EL12: Travis.Hamonic | EM12: 18.67724138 | EN12: 311.7 | EO12: 7.67862069 | EP12: 38.00413793 | EW12: 2014-10-23 | EX12: 15.8 | EY12: -13.2 | EZ12: -2.2 | FA12: 10
A13: 2014-10-25 | B13: 1 | C13: 2 | D13: 0 | E13: 3 | H13: 2014-10-25 | I13: 11.3 | J13: 0 | K13: 12 | S13: 2014-10-25 | T13: 11.3 | U13: 57.7 | V13: 67.1 | AD13: 2014-10-25 | AE13: 5 | AF13: 0 | AG13: -0.4 | AH13: 0 | AO13: 2014-10-25 | AP13: 0 | AQ13: 0 | AR13: -8.8 | AS13: 0 | AZ13: 2014-10-25 | BA13: 12 | BB13: 100 | BK13: 2014-10-25 | BL13: 15.4 | BM13: 8.3 | BN13: 0 | BO13: 1 | BV13: 2014-10-25 | BW13: 26.6 | BX13: 36.9 | BY13: 81.5 | BZ13: 44.3 | CA13: 11.3 | CI13: 2014-10-25 | CJ13: 0 | CK13: 0 | CL13: 0 | CM13: 0 | CT13: 2014-10-25 | CU13: 67.1 | CV13: 67.5 | CW13: 51.2 | CX13: 59.9 | DE13: 2014-10-25 | DF13: 67.1 | DG13: 67.5 | DH13: 51.2 | DI13: 59.9 | DP13: 2014-10-25 | DQ13: 11.3 | DR13: 15.4 | DS13: 1 | DT13: 0 | EA13: 2014-10-25 | EB13: 11.3 | EC13: 12 | ED13: 44.3 | EE13: 5.3 | EL13: Duncan.Keith | EM13: 18.37744361 | EN13: 578.2 | EO13: 7.070676692 | EP13: 37.61503759 | EW13: 2014-10-25 | EX13: 11.3 | EY13: -0.4 | EZ13: -8.8 | FA13: -4.6
A14: 2014-10-28 | B14: 1 | C14: 2 | D14: 1 | E14: 4 | H14: 2014-10-28 | I14: 13.7 | J14: 0 | K14: 25.8 | S14: 2014-10-28 | T14: 13.7 | U14: 46.3 | V14: 53.8 | AD14: 2014-10-28 | AE14: 4.6 | AF14: 1 | AG14: 18.5 | AH14: 0 | AO14: 2014-10-28 | AP14: 1 | AQ14: 3 | AR14: 12.4 | AS14: 4.4 | AZ14: 2014-10-28 | BA14: 25.8 | BB14: 81.5 | BK14: 2014-10-28 | BL14: 17.6 | BM14: 7.7 | BN14: 3 | BO14: 0 | BV14: 2014-10-28 | BW14: 20.3 | BX14: 41.1 | BY14: 77.1 | BZ14: 33.9 | CA14: 13.7 | CI14: 2014-10-28 | CJ14: 0 | CK14: 4.4 | CL14: 0 | CM14: 26.27737226 | CT14: 2014-10-28 | CU14: 53.8 | CV14: 35.3 | CW14: 49.5 | CX14: 37.1 | DE14: 2014-10-28 | DF14: 53.8 | DG14: 35.3 | DH14: 49.5 | DI14: 37.1 | DP14: 2014-10-28 | DQ14: 13.7 | DR14: 17.6 | DS14: 4 | DT14: 3 | EA14: 2014-10-28 | EB14: 13.7 | EC14: 25.8 | ED14: 33.9 | EE14: 8.8 | EL14: Zach.Bogosian | EM14: 18.3672 | EN14: 433.3 | EO14: 8.4528 | EP14: 38.328 | EW14: 2014-10-28 | EX14: 13.7 | EY14: 18.5 | EZ14: 12.4 | FA14: 10.6
A15: 2014-10-30 | B15: 1 | C15: 2 | D15: 1 | E15: 4 | H15: 2014-10-30 | I15: 14.8 | J15: 0 | K15: 0 | S15: 2014-10-30 | T15: 14.8 | U15: 61.7 | V15: 62 | AD15: 2014-10-30 | AE15: 3.1 | AF15: 1 | AG15: -13.5 | AH15: 0 | AO15: 2014-10-30 | AP15: 1 | AQ15: 2 | AR15: -11.7 | AS15: 0 | AZ15: 2014-10-30 | BA15: 0 | BB15: 68.1 | BK15: 2014-10-30 | BL15: 16 | BM15: 5.8 | BN15: 1 | BO15: 1 | BV15: 2014-10-30 | BW15: 12.6 | BX15: 24 | BY15: 65.1 | BZ15: 23.6 | CA15: 14.8 | CI15: 2014-10-30 | CJ15: 0 | CK15: 0 | CL15: 0 | CM15: 0 | CT15: 2014-10-30 | CU15: 62 | CV15: 75.5 | CW15: 66.3 | CX15: 78 | DE15: 2014-10-30 | DF15: 62 | DG15: 75.5 | DH15: 66.3 | DI15: 78 | DP15: 2014-10-30 | DQ15: 14.8 | DR15: 16 | DS15: 3 | DT15: 2 | EA15: 2014-10-30 | EB15: 14.8 | EC15: 0 | ED15: 23.6 | EE15: 0 | EL15: Brent.Burns | EM15: 18.33028169 | EN15: 846.6 | EO15: 7.604225352 | EP15: 37.75070423 | EW15: 2014-10-30 | EX15: 14.8 | EY15: -13.5 | EZ15: -11.7 | FA15: -9.4
A16: 2014-11-01 | B16: 1 | C16: 2 | D16: 1 | E16: 4 | H16: 2014-11-01 | I16: 15.8 | J16: 0 | K16: 0 | S16: 2014-11-01 | T16: 15.8 | U16: 57.8 | V16: 82 | AD16: 2014-11-01 | AE16: 4.5 | AF16: 3 | AG16: 30.5 | AH16: 0 | AO16: 2014-11-01 | AP16: 3 | AQ16: 4 | AR16: 26 | AS16: 0 | AZ16: 2014-11-01 | BA16: 0 | BB16: 88 | BK16: 2014-11-01 | BL16: 18.2 | BM16: 6.6 | BN16: 1 | BO16: 0 | BV16: 2014-11-01 | BW16: 17.3 | BX16: 39.8 | BY16: 69.4 | BZ16: 25 | CA16: 15.8 | CI16: 2014-11-01 | CJ16: 0 | CK16: 0 | CL16: 0 | CM16: 0 | CT16: 2014-11-01 | CU16: 82 | CV16: 51.5 | CW16: 78.8 | CX16: 52.8 | DE16: 2014-11-01 | DF16: 82 | DG16: 51.5 | DH16: 78.8 | DI16: 52.8 | DP16: 2014-11-01 | DQ16: 15.8 | DR16: 18.2 | DS16: 5 | DT16: 4 | EA16: 2014-11-01 | EB16: 15.8 | EC16: 0 | ED16: 25 | EE16: 0 | EL16: Mark.Giordano | EM16: 18.32727273 | EN16: 566.6 | EO16: 8.258677686 | EP16: 37.6214876 | EW16: 2014-11-01 | EX16: 15.8 | EY16: 30.5 | EZ16: 26 | FA16: -5.8
A17: 2014-11-04 | B17: 1 | C17: 2 | D17: 1 | E17: 4 | H17: 2014-11-04 | I17: 17.4 | J17: 0 | K17: 0 | S17: 2014-11-04 | T17: 17.4 | U17: 50.9 | V17: 0 | AD17: 2014-11-04 | AE17: 0 | AF17: 0 | AG17: -43.8 | AH17: 0 | AO17: 2014-11-04 | AP17: 0 | AQ17: 2 | AR17: -30.1 | AS17: 0 | AZ17: 2014-11-04 | BA17: 0 | BB17: 100 | BK17: 2014-11-04 | BL17: 14.7 | BM17: 3.7 | BN17: 3 | BO17: 1 | BV17: 2014-11-04 | BW17: 0 | BX17: 6.6 | BY17: 50.8 | BZ17: 12.8 | CA17: 17.4 | CI17: 2014-11-04 | CJ17: 0 | CK17: 0 | CL17: 0 | CM17: 0 | CT17: 2014-11-04 | CU17: 0 | CV17: 43.8 | CW17: 28.5 | CX17: 58.6 | DE17: 2014-11-04 | DF17: 0 | DG17: 43.8 | DH17: 28.5 | DI17: 58.6 | DP17: 2014-11-04 | DQ17: 17.4 | DR17: 14.7 | DS17: 4 | DT17: 2 | EA17: 2014-11-04 | EB17: 17.4 | EC17: 0 | ED17: 12.8 | EE17: 0 | EL17: Niklas.Hjalmarsson | EM17: 18.24969697 | EN17: 333.3 | EO17: 6.297575758 | EP17: 37.46242424 | EW17: 2014-11-04 | EX17: 17.4 | EY17: -43.8 | EZ17: -30.1 | FA17: -5.4
A18: 2014-11-06 | B18: 1 | C18: 2 | D18: 1 | E18: 4 | H18: 2014-11-06 | I18: 10.5 | J18: 0 | K18: 0 | S18: 2014-11-06 | T18: 10.5 | U18: 42.9 | V18: 49.6 | AD18: 2014-11-06 | AE18: 2.7 | AF18: 0 | AG18: -23.1 | AH18: 0 | AO18: 2014-11-06 | AP18: 0 | AQ18: 0 | AR18: -9.3 | AS18: 0 | AZ18: 2014-11-06 | BA18: 0 | BB18: 100 | BK18: 2014-11-06 | BL18: 10.6 | BM18: 5.5 | BN18: 1 | BO18: 0 | BV18: 2014-11-06 | BW18: 15.6 | BX18: 25.8 | BY18: 60.5 | BZ18: 31.4 | CA18: 10.5 | CI18: 2014-11-06 | CJ18: 0 | CK18: 0 | CL18: 0 | CM18: 0 | CT18: 2014-11-06 | CU18: 49.6 | CV18: 72.7 | CW18: 37.5 | CX18: 46.8 | DE18: 2014-11-06 | DF18: 49.6 | DG18: 72.7 | DH18: 37.5 | DI18: 46.8 | DP18: 2014-11-06 | DQ18: 10.5 | DR18: 10.6 | DS18: 1 | DT18: 0 | EA18: 2014-11-06 | EB18: 10.5 | EC18: 0 | ED18: 31.4 | EE18: 0 | EL18: P.K..Subban | EM18: 18.20939597 | EN18: 628.3 | EO18: 9.191946309 | EP18: 38.02416107 | EW18: 2014-11-06 | EX18: 10.5 | EY18: -23.1 | EZ18: -9.3 | FA18: -4.3
A19: 2014-11-10 | B19: 1 | C19: 2 | D19: 1 | E19: 4 | H19: 2014-11-10 | I19: 10.6 | J19: 0 | K19: 25.1 | S19: 2014-11-10 | T19: 10.6 | U19: 32.7 | V19: 52 | AD19: 2014-11-10 | AE19: 1 | AF19: 0 | AG19: 16.6 | AH19: 0 | AO19: 2014-11-10 | AP19: 0 | AQ19: 0 | AR19: -8.2 | AS19: 0 | AZ19: 2014-11-10 | BA19: 25.1 | BB19: 100 | BK19: 2014-11-10 | BL19: 6.5 | BM19: 4 | BN19: 0 | BO19: 0 | BV19: 2014-11-10 | BW19: 5.7 | BX19: 10.9 | BY19: 36.6 | BZ19: 22.5 | CA19: 10.6 | CI19: 2014-11-10 | CJ19: 0 | CK19: 0 | CL19: 0 | CM19: 0 | CT19: 2014-11-10 | CU19: 52 | CV19: 35.4 | CW19: 34.5 | CX19: 42.8 | DE19: 2014-11-10 | DF19: 52 | DG19: 35.4 | DH19: 34.5 | DI19: 42.8 | DP19: 2014-11-10 | DQ19: 10.6 | DR19: 6.5 | DS19: 0 | DT19: 0 | EA19: 2014-11-10 | EB19: 10.6 | EC19: 25.1 | ED19: 22.5 | EE19: 5.7 | EL19: Marc.Methot | EM19: 18.18849558 | EN19: 236.6 | EO19: 9.130088496 | EP19: 37.82831858 | EW19: 2014-11-10 | EX19: 10.6 | EY19: 16.6 | EZ19: -8.2 | FA19: -19.5
A20: 2014-11-12 | B20: 1 | C20: 3 | D20: 1 | E20: 5 | H20: 2014-11-12 | I20: 12.5 | J20: 0 | K20: 15.4 | S20: 2014-11-12 | T20: 12.5 | U20: 69.7 | V20: 64.1 | AD20: 2014-11-12 | AE20: 3.5 | AF20: 0 | AG20: -6 | AH20: 0 | AO20: 2014-11-12 | AP20: 0 | AQ20: 1 | AR20: 13 | AS20: 4.8 | AZ20: 2014-11-12 | BA20: 15.4 | BB20: 83.5 | BK20: 2014-11-12 | BL20: 20 | BM20: 6.5 | BN20: 0 | BO20: 1 | BV20: 2014-11-12 | BW20: 16.6 | BX20: 35.3 | BY20: 96.2 | BZ20: 31.2 | CA20: 12.5 | CI20: 2014-11-12 | CJ20: 0 | CK20: 4.8 | CL20: 4.8 | CM20: 0 | CT20: 2014-11-12 | CU20: 64.1 | CV20: 70.1 | CW20: 66.6 | CX20: 53.6 | DE20: 2014-11-12 | DF20: 64.1 | DG20: 70.1 | DH20: 66.6 | DI20: 53.6 | DP20: 2014-11-12 | DQ20: 12.5 | DR20: 20 | DS20: 2 | DT20: 1 | EA20: 2014-11-12 | EB20: 12.5 | EC20: 15.4 | ED20: 31.2 | EE20: 4.8 | EL20: Francois.Beauchemin | EM20: 18.02896552 | EN20: 853.3 | EO20: 7.595138889 | EP20: 37.64965517 | EW20: 2014-11-12 | EX20: 12.5 | EY20: -6 | EZ20: 13 | FA20: 24.9
A21: 2014-11-13 | B21: 1 | C21: 3 | D21: 1 | E21: 5 | H21: 2014-11-13 | I21: 13.2 | J21: 0 | K21: 0 | S21: 2014-11-13 | T21: 13.2 | U21: 52.9 | V21: 59.6 | AD21: 2014-11-13 | AE21: 2.7 | AF21: 0 | AG21: 30.6 | AH21: 0 | AO21: 2014-11-13 | AP21: 0 | AQ21: 0 | AR21: 4.1 | AS21: 0 | AZ21: 2014-11-13 | BA21: 0 | BB21: 100 | BK21: 2014-11-13 | BL21: 10.8 | BM21: 6.8 | BN21: 0 | BO21: 0 | BV21: 2014-11-13 | BW21: 12.2 | BX21: 20.8 | BY21: 49.2 | BZ21: 31 | CA21: 13.2 | CI21: 2014-11-13 | CJ21: 0 | CK21: 0 | CL21: 0 | CM21: 0 | CT21: 2014-11-13 | CU21: 59.6 | CV21: 29.1 | CW21: 49.1 | CX21: 45.1 | DE21: 2014-11-13 | DF21: 59.6 | DG21: 29.1 | DH21: 49.1 | DI21: 45.1 | DP21: 2014-11-13 | DQ21: 13.2 | DR21: 10.8 | DS21: 0 | DT21: 0 | EA21: 2014-11-13 | EB21: 13.2 | EC21: 0 | ED21: 31 | EE21: 0 | EL21: Oscar.Klefbom | EM21: 17.94444444 | EN21: 299.9 | EO21: 8.27 | EP21: 36.13 | EW21: 2014-11-13 | EX21: 13.2 | EY21: 30.6 | EZ21: 4.1 | FA21: 5.6
A22: 2014-11-15 | B22: 1 | C22: 3 | D22: 1 | E22: 5 | H22: 2014-11-15 | I22: 18.7 | J22: 0 | K22: 11 | S22: 2014-11-15 | T22: 18.7 | U22: 53.5 | V22: 100 | AD22: 2014-11-15 | AE22: 3.9 | AF22: 1 | AG22: 76.1 | AH22: 0 | AO22: 2014-11-15 | AP22: 1 | AQ22: 3 | AR22: 13.9 | AS22: 0 | AZ22: 2014-11-15 | BA22: 11 | BB22: 100 | BK22: 2014-11-15 | BL22: 17.6 | BM22: 9.1 | BN22: 1 | BO22: 3 | BV22: 2014-11-15 | BW22: 12.6 | BX22: 28.9 | BY22: 56.4 | BZ22: 29 | CA22: 18.7 | CI22: 2014-11-15 | CJ22: 0 | CK22: 0 | CL22: 0 | CM22: 0 | CT22: 2014-11-15 | CU22: 100 | CV22: 23.9 | CW22: 69.8 | CX22: 55.9 | DE22: 2014-11-15 | DF22: 100 | DG22: 23.9 | DH22: 69.8 | DI22: 55.9 | DP22: 2014-11-15 | DQ22: 18.7 | DR22: 17.6 | DS22: 6 | DT22: 3 | EA22: 2014-11-15 | EB22: 18.7 | EC22: 11 | ED22: 29 | EE22: 3.2 | EL22: Ron.Hainsey | EM22: 17.93263889 | EN22: 350 | EO22: 6.720138889 | EP22: 36.43333333 | EW22: 2014-11-15 | EX22: 18.7 | EY22: 76.1 | EZ22: 13.9 | FA22: 9
A23: 2014-11-18 | B23: 1 | C23: 3 | D23: 1 | E23: 5 | H23: 2014-11-18 | I23: 14.1 | J23: 0 | K23: 0 | N23: =AVERAGE(I4:I23) -> 13.72 | O23: =AVERAGE(J4:J23) -> 5 | P23: 7.005 | Q23: =AVERAGE(L5:L24) ->  | S23: 2014-11-18 | T23: 14.1 | U23: 55.2 | V23: 48.3 | Y23: =AVERAGE(T4:T23) -> 13.72 | Z23: =AVERAGE(U4:U23) -> 52.905 | AA23: =AVERAGE(V4:V23) -> 50.49 | AB23: =AVERAGE(W5:W24) ->  | AD23: 2014-11-18 | AE23: 2.9 | AF23: 1 | AG23: -12.9 | AH23: 0 | AJ23: =AVERAGE(AE4:AE23) -> 2.65 | AK23: =AVERAGE(AF4:AF23) -> 0.6 | AL23: =AVERAGE(AG4:AG23) -> -2.24 | AM23: =AVERAGE(AH5:AH24) -> 0.19 | AO23: 2014-11-18 | AP23: 1 | AQ23: 1 | AR23: 13.2 | AS23: 0 | AU23: =AVERAGE(AP4:AP23) -> 0.6 | AV23: =AVERAGE(AQ4:AQ23) -> 1.3 | AW23: =AVERAGE(AR4:AR23) -> -3.24 | AX23: =AVERAGE(AS5:AS24) -> 1.085 | AZ23: 2014-11-18 | BA23: 0 | BB23: 100 | BF23: =AVERAGE(BA4:BA23) -> 7.005 | BG23: =AVERAGE(BB4:BB23) -> 93.4 | BH23: =AVERAGE(BC4:BC23) ->  | BI23: =AVERAGE(BD5:BD24) ->  | BK23: 2014-11-18 | BL23: 14.1 | BM23: 3 | BN23: 2 | BO23: 0 | BQ23: =AVERAGE(BL4:BL23) -> 13.625 | BR23: =AVERAGE(BM4:BM23) -> 6.14 | BS23: =AVERAGE(BN4:BN23) -> 0.65 | BT23: =AVERAGE(BO5:BO24) -> 0.6 | BV23: 2014-11-18 | BW23: 12.3 | BX23: 29.3 | BY23: 60.2 | BZ23: 13 | CA23: 14.1 | CC23: =AVERAGE(BW4:BW23) -> 11.725 | CD23: =AVERAGE(BX4:BX23) -> 26.4 | CE23: =AVERAGE(BY4:BY23) -> 59.255 | CF23: =AVERAGE(BZ5:BZ24) -> 26.97 | CG23: 13.76 | CI23: 2014-11-18 | CJ23: 0 | CK23: 0 | CL23: 0 | CM23: 0 | CO23: =AVERAGE(CJ4:CJ23) -> 0.19 | CP23: =AVERAGE(CK4:CK23) -> 1.085 | CQ23: =AVERAGE(CL4:CL23) -> 0.6753541196 | CR23: 1.313868613 | CT23: 2014-11-18 | CU23: 48.3 | CV23: 61.2 | CW23: 53.3 | CX23: 40.1 | CZ23: =AVERAGE(CU4:CU23) -> 50.49 | DA23: =AVERAGE(CV4:CV23) -> 52.73 | DB23: 50.295 | DC23: 53.54 | DE23: 2014-11-18 | DF23: 48.3 | DG23: 61.2 | DH23: 53.3 | DI23: 40.1 | DK23: =AVERAGE(DF4:DF23) -> 50.49 | DL23: =AVERAGE(DG4:DG23) -> 52.73 | DM23: =AVERAGE(DH4:DH23) -> 50.295 | DN23: =AVERAGE(DI4:DI23) -> 53.54 | DP23: 2014-11-18 | DQ23: 14.1 | DR23: 14.1 | DS23: 3 | DT23: 1 | DV23: =AVERAGE(DQ4:DQ23) -> 13.72 | DW23: =AVERAGE(DR4:DR23) -> 13.625 | DX23: =AVERAGE(DS4:DS23) -> 2.3 | DY23: =AVERAGE(DT4:DT23) -> 1.3 | EA23: 2014-11-18 | EB23: 14.1 | EC23: 0 | ED23: 13 | EE23: 0 | EG23: =AVERAGE(EB4:EB23) -> 13.72 | EH23: =AVERAGE(EC4:EC23) -> 7.005 | EI23: =AVERAGE(ED4:ED23) -> 27.09 | EJ23: =AVERAGE(EE4:EE23) -> 2.235 | EL23: Andrew.Greene | EM23: 17.88344828 | EN23: 350 | EO23: 7.126206897 | EP23: 37.33517241 | ER23: =AVERAGE(EM4:EM23) -> 18.66856585 | ES23: =AVERAGE(EN4:EN23) -> 487.15 | ET23: =AVERAGE(EO4:EO23) -> 7.907965616 | EU23: =AVERAGE(EP5:EP24) -> 38.27512088 | EW23: 2014-11-18 | EX23: 14.1 | EY23: -12.9 | EZ23: 13.2 | FA23: 13.2 | FC23: =AVERAGE(EX4:EX23) -> 13.72 | FD23: =AVERAGE(EY4:EY23) -> -2.24 | FE23: =AVERAGE(EZ4:EZ23) -> -3.24 | FF23: =AVERAGE(FA4:FA23) -> 0.84
A24: 2014-11-21 | B24: 1 | C24: 3 | D24: 1 | E24: 5 | H24: 2014-11-21 | I24: 13.9 | J24: 0 | K24: 14.7 | N24: =AVERAGE(I5:I24) -> 13.76 | O24: =AVERAGE(J5:J24) -> 5 | P24: =AVERAGE(K5:K24) -> 7.74 | S24: 2014-11-21 | T24: 13.9 | U24: 52.8 | V24: 0 | Y24: =AVERAGE(T5:T24) -> 13.76 | Z24: 52.73 | AA24: 50.49 | AD24: 2014-11-21 | AE24: 0 | AF24: 0 | AG24: -42.3 | AH24: 0 | AJ24: =AVERAGE(AE5:AE24) -> 2.65 | AK24: 0.6 | AL24: -1.935 | AM24: 0.19 | AO24: 2014-11-21 | AP24: 0 | AQ24: 4 | AR24: 14.6 | AS24: 0 | AU24: =AVERAGE(AP5:AP24) -> 0.6 | AV24: 1.5 | AW24: -1.56 | AX24: 1.085 | AZ24: 2014-11-21 | BA24: 14.7 | BB24: 90.2 | BF24: =AVERAGE(BA5:BA24) -> 7.74 | BG24: 92.91 | BK24: 2014-11-21 | BL24: 13.9 | BM24: 6.8 | BN24: 0 | BO24: 1 | BQ24: =AVERAGE(BL5:BL24) -> 13.66 | BR24: 6.135 | BS24: 0.65 | BT24: 0.65 | BV24: 2014-11-21 | BW24: 0 | BX24: 41.3 | BY24: 60.2 | BZ24: 29.3 | CA24: 13.9 | CC24: =AVERAGE(BW5:BW24) -> 11.725 | CD24: 27.415 | CE24: 59.24 | CF24: 29.16 | CG24: 13.84 | CI24: 2014-11-21 | CJ24: 0 | CK24: 0 | CL24: 0 | CM24: 0 | CO24: =AVERAGE(CJ5:CJ24) -> 0.19 | CP24: 1.085 | CQ24: 0.6753541196 | CR24: 1.313868613 | CT24: 2014-11-21 | CU24: 0 | CV24: 42.3 | CW24: 65.7 | CX24: 51.1 | CZ24: =AVERAGE(CU5:CU24) -> 50.49 | DA24: 52.425 | DB24: 51.26 | DC24: 52.82 | DE24: 2014-11-21 | DF24: 0 | DG24: 42.3 | DH24: 65.7 | DI24: 51.1 | DK24: =AVERAGE(DF5:DF24) -> 50.49 | DL24: 52.425 | DM24: 51.26 | DN24: 52.82 | DP24: 2014-11-21 | DQ24: 13.9 | DR24: 13.9 | DS24: 4 | DT24: 4 | DV24: =AVERAGE(DQ5:DQ24) -> 13.76 | DW24: 13.66 | DX24: 2.45 | DY24: 1.5 | EA24: 2014-11-21 | EB24: 13.9 | EC24: 14.7 | ED24: 29.3 | EE24: 4.3 | EG24: =AVERAGE(EB5:EB24) -> 13.76 | EH24: 7.74 | EI24: 26.97 | EJ24: 2.45 | EL24: Alex.Goligoski | EM24: 17.88181818 | EN24: 458.3 | EO24: 9.117482517 | EP24: 37.48671329 | ER24: =AVERAGE(EM5:EM24) -> 18.52877089 | ES24: 484.655 | ET24: 8.01326909 | EU24: 37.95509388 | EW24: 2014-11-21 | EX24: 13.9 | EY24: -42.3 | EZ24: 14.6 | FA24: -0.8 | FC24: =AVERAGE(EX5:EX24) -> 13.76 | FD24: -1.935 | FE24: -1.56 | FF24: 1.065
A25: 2014-11-22 | B25: 1 | C25: 3 | D25: 1 | E25: 5 | H25: 2014-11-22 | I25: 14 | J25: 0 | K25: 0 | N25: 13.84 | O25: 5 | P25: 7.74 | S25: 2014-11-22 | T25: 14 | U25: 74.2 | V25: 56.2 | Y25: 13.84 | Z25: 55.48 | AA25: 53.3 | AD25: 2014-11-22 | AE25: 2.7 | AF25: 1 | AG25: -5.2 | AH25: 0 | AJ25: 2.785 | AK25: 0.65 | AL25: -0.275 | AM25: 0.36 | AO25: 2014-11-22 | AP25: 1 | AQ25: 2 | AR25: 5.2 | AS25: 0 | AU25: 0.65 | AV25: 1.6 | AW25: 0.33 | AX25: 1.255 | AZ25: 2014-11-22 | BA25: 0 | BB25: 84.6 | BF25: 7.74 | BG25: 93.11 | BK25: 2014-11-22 | BL25: 18.6 | BM25: 11.3 | BN25: 0 | BO25: 1 | BQ25: 14.48 | BR25: 6.65 | BS25: 0.65 | BT25: 0.65 | BV25: 2014-11-22 | BW25: 11.4 | BX25: 22.1 | BY25: 79.7 | BZ25: 48.4 | CA25: 14 | CC25: 12.295 | CD25: 28.52 | CE25: 62.7 | CF25: 29.56 | CG25: 14.18 | CI25: 2014-11-22 | CJ25: 0 | CK25: 0 | CL25: 0 | CM25: 0 | CO25: 0.19 | CP25: 1.085 | CQ25: 0.6753541196 | CR25: 1.313868613 | CT25: 2014-11-22 | CU25: 56.2 | CV25: 61.3 | CW25: 50 | CX25: 44.8 | CZ25: 53.3 | DA25: 53.57 | DB25: 53.76 | DC25: 53.43 | DE25: 2014-11-22 | DF25: 56.2 | DG25: 61.3 | DH25: 50 | DI25: 44.8 | DK25: 53.3 | DL25: 53.57 | DM25: 53.76 | DN25: 53.43 | DP25: 2014-11-22 | DQ25: 14 | DR25: 18.6 | DS25: 3 | DT25: 2 | DV25: 13.84 | DW25: 14.48 | DX25: 2.6 | DY25: 1.6 | EA25: 2014-11-22 | EB25: 14 | EC25: 0 | ED25: 48.4 | EE25: 0 | EG25: 13.84 | EH25: 7.74 | EI25: 29.16 | EJ25: 2.45 | EL25: Jared.Spurgeon | EM25: 17.8616 | EN25: 591.6 | EO25: 7.8264 | EP25: 36.924 | ER25: 18.38985703 | ES25: 468.25 | ET25: 7.947411176 | EU25: 37.8137489 | EW25: 2014-11-22 | EX25: 14 | EY25: -5.2 | EZ25: 5.2 | FA25: 29.4 | FC25: 13.84 | FD25: -0.275 | FE25: 0.33 | FF25: 3
A26: 2014-11-24 | B26: 2 | C26: 3 | D26: 1 | E26: 6 | H26: 2014-11-24 | I26: 17.8 | J26: 33.3 | K26: 12.3 | N26: 14.18 | O26: 6.665 | P26: 8.355 | S26: 2014-11-24 | T26: 17.8 | U26: 52.3 | V26: 72.2 | Y26: 14.18 | Z26: 55.73 | AA26: 54.47 | AD26: 2014-11-24 | AE26: 5.3 | AF26: 3 | AG26: 24.2 | AH26: 3.4 | AJ26: 3.005 | AK26: 0.75 | AL26: 1.1 | AM26: 0.575 | AO26: 2014-11-24 | AP26: 3 | AQ26: 4 | AR26: 23 | AS26: 3.4 | AU26: 0.75 | AV26: 1.75 | AW26: 2.4 | AX26: 1.47 | AZ26: 2014-11-24 | BA26: 12.3 | BB26: 100 | BF26: 8.355 | BG26: 93.11 | BK26: 2014-11-24 | BL26: 16.2 | BM26: 8.1 | BN26: 2 | BO26: 0 | BQ26: 15.02 | BR26: 6.88 | BS26: 0.75 | BT26: 0.65 | BV26: 2014-11-24 | BW26: 17.9 | BX26: 36.5 | BY26: 54.5 | BZ26: 27.4 | CA26: 17.8 | CC26: 12.935 | CD26: 29.37 | CE26: 63.945 | CF26: 29.865 | CG26: 14.21 | CI26: 2014-11-24 | CJ26: 3.4 | CK26: 3.4 | CL26: 0 | CM26: 0 | CO26: 0.36 | CP26: 1.255 | CQ26: 0.6753541196 | CR26: 1.313868613 | CT26: 2014-11-24 | CU26: 72.2 | CV26: 48 | CW26: 63.8 | CX26: 40.9 | CZ26: 54.47 | DA26: 53.365 | DB26: 54.705 | DC26: 52.31 | DE26: 2014-11-24 | DF26: 72.2 | DG26: 48 | DH26: 63.8 | DI26: 40.9 | DK26: 54.47 | DL26: 53.365 | DM26: 54.705 | DN26: 52.31 | DP26: 2014-11-24 | DQ26: 17.8 | DR26: 16.2 | DS26: 5 | DT26: 4 | DV26: 14.18 | DW26: 15.02 | DX26: 2.8 | DY26: 1.75 | EA26: 2014-11-24 | EB26: 17.8 | EC26: 12.3 | ED26: 27.4 | EE26: 3.4 | EG26: 14.18 | EH26: 8.355 | EI26: 29.56 | EJ26: 2.62 | EL26: Dennis.Seidenberg | EM26: 17.81188811 | EN26: 225 | EO26: 7.703496503 | EP26: 36.56643357 | ER26: 18.3202181 | ES26: 452 | ET26: 7.880319335 | EU26: 37.68100475 | EW26: 2014-11-24 | EX26: 17.8 | EY26: 24.2 | EZ26: 23 | FA26: 10.3 | FC26: 14.18 | FD26: 1.1 | FE26: 2.4 | FF26: 4.055
A27: 2014-11-28 | B27: 3 | C27: 3 | D27: 1 | E27: 7 | H27: 2014-11-28 | I27: 14.1 | J27: 33.3 | K27: 11.9 | N27: 14.21 | O27: 8.33 | P27: 8.95 | S27: 2014-11-28 | T27: 14.1 | U27: 42.7 | V27: 57.6 | Y27: 14.21 | Z27: 55.57 | AA27: 55.63 | AD27: 2014-11-28 | AE27: 2.8 | AF27: 1 | AG27: -11.3 | AH27: 4.3 | AJ27: 3.095 | AK27: 0.8 | AL27: 1.495 | AM27: 0.575 | AO27: 2014-11-28 | AP27: 1 | AQ27: 2 | AR27: -7.3 | AS27: 4.3 | AU27: 0.8 | AV27: 1.8 | AW27: 3.355 | AX27: 1.47 | AZ27: 2014-11-28 | BA27: 11.9 | BB27: 100 | BF27: 8.95 | BG27: 93.11 | BK27: 2014-11-28 | BL27: 9.2 | BM27: 8.4 | BN27: 0 | BO27: 0 | BQ27: 15.095 | BR27: 6.965 | BS27: 0.75 | BT27: 0.75 | BV27: 2014-11-28 | BW27: 12 | BX27: 16.2 | BY27: 39.2 | BZ27: 35.7 | CA27: 14.1 | CC27: 13.315 | CD27: 29.54 | CE27: 64.19 | CF27: 29.485 | CG27: 14.285 | CI27: 2014-11-28 | CJ27: 4.3 | CK27: 4.3 | CL27: 0 | CM27: 0 | CO27: 0.575 | CP27: 1.47 | CQ27: 0.6753541196 | CR27: 1.313868613 | CT27: 2014-11-28 | CU27: 57.6 | CV27: 68.9 | CW27: 43 | CX27: 50.3 | CZ27: 55.63 | DA27: 54.13 | DB27: 55.375 | DC27: 52.03 | DE27: 2014-11-28 | DF27: 57.6 | DG27: 68.9 | DH27: 43 | DI27: 50.3 | DK27: 55.63 | DL27: 54.13 | DM27: 55.375 | DN27: 52.03 | DP27: 2014-11-28 | DQ27: 14.1 | DR27: 9.2 | DS27: 3 | DT27: 2 | DV27: 14.21 | DW27: 15.095 | DX27: 2.85 | DY27: 1.8 | EA27: 2014-11-28 | EB27: 14.1 | EC27: 11.9 | ED27: 35.7 | EE27: 4.3 | EG27: 14.21 | EH27: 8.95 | EI27: 29.865 | EJ27: 2.835 | EL27: Matt.Niskanen | EM27: 17.80140845 | EN27: 167.6 | EO27: 8.204929577 | EP27: 37.17605634 | ER27: 18.25244322 | ES27: 427.055 | ET27: 7.921760258 | EU27: 37.54731026 | EW27: 2014-11-28 | EX27: 14.1 | EY27: -11.3 | EZ27: -7.3 | FA27: -1.8 | FC27: 14.21 | FD27: 1.495 | FE27: 3.355 | FF27: 4.48
A28: 2014-12-01 | B28: 3 | C28: 3 | D28: 1 | E28: 7 | H28: 2014-12-01 | I28: 16.2 | J28: 0 | K28: 26.3 | N28: 14.285 | O28: 8.33 | P28: 10.265 | S28: 2014-12-01 | T28: 16.2 | U28: 47.6 | V28: 29.5 | Y28: 14.285 | Z28: 55.365 | AA28: 54.835 | AD28: 2014-12-01 | AE28: 4.3 | AF28: 1 | AG28: -38.1 | AH28: 0 | AJ28: 3.145 | AK28: 0.8 | AL28: 2.015 | AM28: 0.575 | AO28: 2014-12-01 | AP28: 1 | AQ28: 2 | AR28: -11.5 | AS28: 0 | AU28: 0.8 | AV28: 1.8 | AW28: 3.575 | AX28: 1.245 | AZ28: 2014-12-01 | BA28: 26.3 | BB28: 85.8 | BF28: 10.265 | BG28: 92.4 | BK28: 2014-12-01 | BL28: 18.8 | BM28: 3.8 | BN28: 2 | BO28: 2 | BQ28: 15.59 | BR28: 6.89 | BS28: 0.85 | BT28: 0.65 | BV28: 2014-12-01 | BW28: 15.8 | BX28: 31 | BY28: 69.6 | BZ28: 14.1 | CA28: 16.2 | CC28: 13.43 | CD28: 29.755 | CE28: 65.86 | CF28: 29.655 | CG28: 14.395 | CI28: 2014-12-01 | CJ28: 0 | CK28: 0 | CL28: 0 | CM28: 0 | CO28: 0.575 | CP28: 1.47 | CQ28: 0.6753541196 | CR28: 1.313868613 | CT28: 2014-12-01 | CU28: 29.5 | CV28: 67.6 | CW28: 37.3 | CX28: 48.8 | CZ28: 54.835 | DA28: 52.815 | DB28: 54.615 | DC28: 51.045 | DE28: 2014-12-01 | DF28: 29.5 | DG28: 67.6 | DH28: 37.3 | DI28: 48.8 | DK28: 54.835 | DL28: 52.815 | DM28: 54.615 | DN28: 51.045 | DP28: 2014-12-01 | DQ28: 16.2 | DR28: 18.8 | DS28: 5 | DT28: 2 | DV28: 14.285 | DW28: 15.59 | DX28: 3 | DY28: 1.8 | EA28: 2014-12-01 | EB28: 16.2 | EC28: 26.3 | ED28: 14.1 | EE28: 3.7 | EG28: 14.285 | EH28: 10.265 | EI28: 29.485 | EJ28: 3.02 | EL28: Zdeno.Chara | EM28: 17.77482517 | EN28: 336.6 | EO28: 6.966901408 | EP28: 36.73566434 | ER28: 18.19487874 | ES28: 421.395 | ET28: 7.913246354 | EU28: 37.42797811 | EW28: 2014-12-01 | EX28: 16.2 | EY28: -38.1 | EZ28: -11.5 | FA28: -5.9 | FC28: 14.285 | FD28: 2.015 | FE28: 3.575 | FF28: 5.01
A29: 2014-12-02 | B29: 3 | C29: 3 | D29: 1 | E29: 7 | H29: 2014-12-02 | I29: 15.5 | J29: 0 | K29: 0 | N29: 14.395 | O29: 8.33 | P29: 9.515 | S29: 2014-12-02 | T29: 15.5 | U29: 60.5 | V29: 46.9 | Y29: 14.395 | Z29: 55.205 | AA29: 54.01 | AD29: 2014-12-02 | AE29: 0.9 | AF29: 1 | AG29: -5.8 | AH29: 0 | AJ29: 3.03 | AK29: 0.8 | AL29: 1.395 | AM29: 0.575 | AO29: 2014-12-02 | AP29: 1 | AQ29: 2 | AR29: 10.6 | AS29: 0 | AU29: 0.8 | AV29: 1.8 | AW29: 3.445 | AX29: 1.46 | AZ29: 2014-12-02 | BA29: 0 | BB29: 100 | BF29: 9.515 | BG29: 94.085 | BK29: 2014-12-02 | BL29: 15.3 | BM29: 8.7 | BN29: 3 | BO29: 0 | BQ29: 15.585 | BR29: 6.99 | BS29: 1 | BT29: 0.6 | BV29: 2014-12-02 | BW29: 3.4 | BX29: 21.4 | BY29: 59.3 | BZ29: 33.6 | CA29: 15.5 | CC29: 12.885 | CD29: 29.25 | CE29: 65.35 | CF29: 28.375 | CG29: 14.41 | CI29: 2014-12-02 | CJ29: 0 | CK29: 0 | CL29: 0 | CM29: 0 | CO29: 0.575 | CP29: 1.245 | CQ29: 0.4497902098 | CR29: 1.313868613 | CT29: 2014-12-02 | CU29: 46.9 | CV29: 52.7 | CW29: 58.5 | CX29: 47.9 | CZ29: 54.01 | DA29: 52.61 | DB29: 54.64 | DC29: 51.2 | DE29: 2014-12-02 | DF29: 46.9 | DG29: 52.7 | DH29: 58.5 | DI29: 47.9 | DK29: 54.01 | DL29: 52.61 | DM29: 54.64 | DN29: 51.2 | DP29: 2014-12-02 | DQ29: 15.5 | DR29: 15.3 | DS29: 3 | DT29: 2 | DV29: 14.395 | DW29: 15.585 | DX29: 2.9 | DY29: 1.8 | EA29: 2014-12-02 | EB29: 15.5 | EC29: 0 | ED29: 33.6 | EE29: 0 | EG29: 14.395 | EH29: 9.515 | EI29: 29.655 | EJ29: 2.795 | EL29: Jake.Muzzin | EM29: 17.69745223 | EN29: 574.9 | EO29: 6.397452229 | EP29: 36.65159236 | ER29: 18.13993518 | ES29: 431.67 | ET29: 7.891685142 | EU29: 37.29644453 | EW29: 2014-12-02 | EX29: 15.5 | EY29: -5.8 | EZ29: 10.6 | FA29: 12.6 | FC29: 14.395 | FD29: 1.395 | FE29: 3.445 | FF29: 4.745
A30: 2014-12-04 | B30: 3 | C30: 3 | D30: 2 | E30: 8 | H30: 2014-12-04 | I30: 14 | J30: 0 | K30: 33.4 | N30: 14.41 | O30: 8.33 | P30: 10.615 | S30: 2014-12-04 | T30: 14 | U30: 23.8 | V30: 11.4 | Y30: 14.41 | Z30: 52.765 | AA30: 50.325 | AD30: 2014-12-04 | AE30: 1 | AF30: 0 | AG30: -14.3 | AH30: 0 | AJ30: 2.815 | AK30: 0.75 | AL30: -0.945 | AM30: 0.575 | AO30: 2014-12-04 | AP30: 0 | AQ30: 0 | AR30: -45.6 | AS30: 4.3 | AU30: 0.75 | AV30: 1.7 | AW30: 0.065 | AX30: 1.25 | AZ30: 2014-12-04 | BA30: 33.4 | BB30: 100 | BF30: 10.615 | BG30: 94.085 | BK30: 2014-12-04 | BL30: 6.6 | BM30: 3 | BN30: 0 | BO30: 0 | BQ30: 14.825 | BR30: 6.7 | BS30: 0.95 | BT30: 0.6 | BV30: 2014-12-04 | BW30: 4.3 | BX30: 8.7 | BY30: 28.2 | BZ30: 12.9 | CA30: 14 | CC30: 11.935 | CD30: 27.035 | CE30: 61.995 | CF30: 27.335 | CG30: 14.33 | CI30: 2014-12-04 | CJ30: 0 | CK30: 4.3 | CL30: 0 | CM30: 25.71428571 | CO30: 0.575 | CP30: 1.46 | CQ30: 0.4497902098 | CR30: 2.599582899 | CT30: 2014-12-04 | CU30: 11.4 | CV30: 25.7 | CW30: 12.7 | CX30: 58.3 | CZ30: 50.325 | DA30: 51.265 | DB30: 51.155 | DC30: 51.095 | DE30: 2014-12-04 | DF30: 11.4 | DG30: 25.7 | DH30: 12.7 | DI30: 58.3 | DK30: 50.325 | DL30: 51.265 | DM30: 51.155 | DN30: 51.095 | DP30: 2014-12-04 | DQ30: 14 | DR30: 6.6 | DS30: 1 | DT30: 0 | DV30: 14.41 | DW30: 14.825 | DX30: 2.75 | DY30: 1.7 | EA30: 2014-12-04 | EB30: 14 | EC30: 33.4 | ED30: 12.9 | EE30: 4.3 | EG30: 14.41 | EH30: 10.615 | EI30: 28.375 | EJ30: 2.79 | EL30: Dennis.Wideman | EM30: 17.68549618 | EN30: 375 | EO30: 9.699236641 | EP30: 36.00458015 | ER30: 18.08672797 | ES30: 442.505 | ET30: 7.995316039 | EU30: 37.21399599 | EW30: 2014-12-04 | EX30: 14 | EY30: -14.3 | EZ30: -45.6 | FA30: -23.4 | FC30: 14.41 | FD30: -0.945 | FE30: 0.065 | FF30: 2.995
A31: 2014-12-06 | B31: 3 | C31: 3 | D31: 2 | E31: 8 | H31: 2014-12-06 | I31: 12.7 | J31: 0 | K31: 22.2 | N31: 14.33 | O31: 8.33 | P31: 11.225 | S31: 2014-12-06 | T31: 12.7 | U31: 48.4 | V31: 51.5 | Y31: 14.33 | Z31: 51.96 | AA31: 49.605 | AD31: 2014-12-06 | AE31: 2 | AF31: 1 | AG31: -12.4 | AH31: 0 | AJ31: 2.735 | AK31: 0.8 | AL31: -2.29 | AM31: 0.385 | AO31: 2014-12-06 | AP31: 1 | AQ31: 1 | AR31: -22.3 | AS31: 0 | AU31: 0.8 | AV31: 1.75 | AW31: -1.05 | AX31: 1.23 | AZ31: 2014-12-06 | BA31: 22.2 | BB31: 100 | BF31: 11.225 | BG31: 94.085 | BK31: 2014-12-06 | BL31: 11.1 | BM31: 4.5 | BN31: 1 | BO31: 0 | BQ31: 14.39 | BR31: 6.425 | BS31: 1 | BT31: 0.55 | BV31: 2014-12-06 | BW31: 9.4 | BX31: 19.4 | BY31: 52.4 | BZ31: 21.3 | CA31: 12.7 | CC31: 11.64 | CD31: 26.465 | CE31: 60.455 | CF31: 27.18 | CG31: 14.435 | CI31: 2014-12-06 | CJ31: 0 | CK31: 0 | CL31: 0 | CM31: 0 | CO31: 0.575 | CP31: 1.25 | CQ31: 0.24 | CR31: 2.599582899 | CT31: 2014-12-06 | CU31: 51.5 | CV31: 64 | CW31: 36.3 | CX31: 58.6 | CZ31: 49.605 | DA31: 51.895 | DB31: 50.3 | DC31: 51.36 | DE31: 2014-12-06 | DF31: 51.5 | DG31: 64 | DH31: 36.3 | DI31: 58.6 | DK31: 49.605 | DL31: 51.895 | DM31: 50.3 | DN31: 51.36 | DP31: 2014-12-06 | DQ31: 12.7 | DR31: 11.1 | DS31: 2 | DT31: 1 | DV31: 14.33 | DW31: 14.39 | DX31: 2.85 | DY31: 1.75 | EA31: 2014-12-06 | EB31: 12.7 | EC31: 22.2 | ED31: 21.3 | EE31: 4.7 | EG31: 14.33 | EH31: 11.225 | EI31: 27.335 | EJ31: 2.815 | EL31: Jay.Bouwmeester | EM31: 17.64615385 | EN31: 208.3 | EO31: 6.753846154 | EP31: 36.55244755 | ER31: 18.03385836 | ES31: 436.255 | ET31: 7.803292034 | EU31: 37.14659931 | EW31: 2014-12-06 | EX31: 12.7 | EY31: -12.4 | EZ31: -22.3 | FA31: -6.9 | FC31: 14.33 | FD31: -2.29 | FE31: -1.05 | FF31: 1.89
A32: 2014-12-11 | B32: 3 | C32: 4 | D32: 2 | E32: 9 | H32: 2014-12-11 | I32: 17.9 | J32: 0 | K32: 14.4 | N32: 14.435 | O32: 3.33 | P32: 11.225 | S32: 2014-12-11 | T32: 17.9 | U32: 38.3 | V32: 32.1 | Y32: 14.435 | Z32: 51.095 | AA32: 49.795 | AD32: 2014-12-11 | AE32: 3.4 | AF32: 1 | AG32: -33.8 | AH32: 0 | AJ32: 2.815 | AK32: 0.8 | AL32: -3.32 | AM32: 0.385 | AO32: 2014-12-11 | AP32: 1 | AQ32: 2 | AR32: -33.6 | AS32: 3.4 | AU32: 0.8 | AV32: 1.75 | AW32: -2.62 | AX32: 1.23 | AZ32: 2014-12-11 | BA32: 14.4 | BB32: 89.3 | BF32: 11.225 | BG32: 93.55 | BK32: 2014-12-11 | BL32: 12.4 | BM32: 6.9 | BN32: 1 | BO32: 0 | BQ32: 14.18 | BR32: 6.425 | BS32: 1.05 | BT32: 0.5 | BV32: 2014-12-11 | BW32: 11.5 | BX32: 20.6 | BY32: 41.4 | BZ32: 23.2 | CA32: 17.9 | CC32: 11.875 | CD32: 25.83 | CE32: 59.375 | CF32: 25.97 | CG32: 14.585 | CI32: 2014-12-11 | CJ32: 0 | CK32: 3.4 | CL32: 3.351955307 | CM32: 0 | CO32: 0.385 | CP32: 1.23 | CQ32: 0.4075977654 | CR32: 2.599582899 | CT32: 2014-12-11 | CU32: 32.1 | CV32: 65.8 | CW32: 29.3 | CX32: 62.9 | CZ32: 49.795 | DA32: 53.115 | DB32: 49.085 | DC32: 51.715 | DE32: 2014-12-11 | DF32: 32.1 | DG32: 65.8 | DH32: 29.3 | DI32: 62.9 | DK32: 49.795 | DL32: 53.115 | DM32: 49.085 | DN32: 51.715 | DP32: 2014-12-11 | DQ32: 17.9 | DR32: 12.4 | DS32: 3 | DT32: 2 | DV32: 14.435 | DW32: 14.18 | DX32: 2.9 | DY32: 1.75 | EA32: 2014-12-11 | EB32: 17.9 | EC32: 14.4 | ED32: 23.2 | EE32: 3.3 | EG32: 14.435 | EH32: 11.225 | EI32: 27.18 | EJ32: 2.79 | EL32: Marco.Scandella | EM32: 17.64014599 | EN32: 633.3 | EO32: 8.529927007 | EP32: 36.65620438 | ER32: 17.98200359 | ES32: 452.335 | ET32: 7.84585735 | EU32: 37.141771 | EW32: 2014-12-11 | EX32: 17.9 | EY32: -33.8 | EZ32: -33.6 | FA32: -25.6 | FC32: 14.435 | FD32: -3.32 | FE32: -2.62 | FF32: 0.11
A33: 2014-12-13 | B33: 3 | C33: 4 | D33: 2 | E33: 9 | H33: 2014-12-13 | I33: 14.3 | J33: 0 | K33: 0 | N33: 14.585 | O33: 3.33 | P33: 10.625 | S33: 2014-12-13 | T33: 14.3 | U33: 45.3 | V33: 100 | Y33: 14.585 | Z33: 50.475 | AA33: 51.44 | AD33: 2014-12-13 | AE33: 3.9 | AF33: 1 | AG33: 34.8 | AH33: 0 | AJ33: 2.76 | AK33: 0.85 | AL33: -1.56 | AM33: 0.64 | AO33: 2014-12-13 | AP33: 1 | AQ33: 1 | AR33: -10.4 | AS33: 0 | AU33: 0.85 | AV33: 1.8 | AW33: -2.7 | AX33: 1.265 | AZ33: 2014-12-13 | BA33: 0 | BB33: 100 | BF33: 10.625 | BG33: 93.55 | BK33: 2014-12-13 | BL33: 12.2 | BM33: 4.8 | BN33: 2 | BO33: 0 | BQ33: 14.02 | BR33: 6.25 | BS33: 1.15 | BT33: 0.5 | BV33: 2014-12-13 | BW33: 16.4 | BX33: 24 | BY33: 51.3 | BZ33: 20.1 | CA33: 14.3 | CC33: 11.365 | CD33: 25.185 | CE33: 57.865 | CF33: 26.055 | CG33: 14.485 | CI33: 2014-12-13 | CJ33: 0 | CK33: 0 | CL33: 0 | CM33: 0 | CO33: 0.385 | CP33: 1.23 | CQ33: 0.4075977654 | CR33: 2.599582899 | CT33: 2014-12-13 | CU33: 100 | CV33: 65.2 | CW33: 49.9 | CX33: 60.3 | CZ33: 51.44 | DA33: 53 | DB33: 49.02 | DC33: 51.735 | DE33: 2014-12-13 | DF33: 100 | DG33: 65.2 | DH33: 49.9 | DI33: 60.3 | DK33: 51.44 | DL33: 53 | DM33: 49.02 | DN33: 51.735 | DP33: 2014-12-13 | DQ33: 14.3 | DR33: 12.2 | DS33: 3 | DT33: 1 | DV33: 14.585 | DW33: 14.02 | DX33: 3 | DY33: 1.8 | EA33: 2014-12-13 | EB33: 14.3 | EC33: 0 | ED33: 20.1 | EE33: 0 | EG33: 14.585 | EH33: 10.625 | EI33: 25.97 | EJ33: 2.525 | EL33: Oliver.Ekman-Larsson | EM33: 17.64012739 | EN33: 958.7 | EO33: 8.599358974 | EP33: 37.51847134 | ER33: 17.94513778 | ES33: 471.36 | ET33: 7.922291464 | EU33: 37.067871 | EW33: 2014-12-13 | EX33: 14.3 | EY33: 34.8 | EZ33: -10.4 | FA33: -9.9 | FC33: 14.585 | FD33: -1.56 | FE33: -2.7 | FF33: -0.155
A34: 2014-12-16 | B34: 4 | C34: 4 | D34: 2 | E34: 10 | H34: 2014-12-16 | I34: 11.7 | J34: 33.3 | K34: 14.4 | N34: 14.485 | O34: 4.995 | P34: 10.055 | S34: 2014-12-16 | T34: 11.7 | U34: 41.5 | V34: 62.5 | Y34: 14.485 | Z34: 50.235 | AA34: 51.875 | AD34: 2014-12-16 | AE34: 3.2 | AF34: 2 | AG34: -1 | AH34: 5.1 | AJ34: 2.69 | AK34: 0.9 | AL34: -2.535 | AM34: 0.64 | AO34: 2014-12-16 | AP34: 2 | AQ34: 3 | AR34: 2.2 | AS34: 5.1 | AU34: 0.9 | AV34: 1.8 | AW34: -3.21 | AX34: 1.265 | AZ34: 2014-12-16 | BA34: 14.4 | BB34: 88.2 | BF34: 10.055 | BG34: 93.885 | BK34: 2014-12-16 | BL34: 10.1 | BM34: 7 | BN34: 0 | BO34: 0 | BQ34: 13.645 | BR34: 6.215 | BS34: 1 | BT34: 0.55 | BV34: 2014-12-16 | BW34: 16.3 | BX34: 31.4 | BY34: 51.7 | BZ34: 35.6 | CA34: 11.7 | CC34: 11.165 | CD34: 24.7 | CE34: 56.595 | CF34: 25.85 | CG34: 14.545 | CI34: 2014-12-16 | CJ34: 5.1 | CK34: 5.1 | CL34: 0 | CM34: 0 | CO34: 0.64 | CP34: 1.265 | CQ34: 0.4075977654 | CR34: 1.285714286 | CT34: 2014-12-16 | CU34: 62.5 | CV34: 63.5 | CW34: 61 | CX34: 58.8 | CZ34: 51.875 | DA34: 54.41 | DB34: 49.595 | DC34: 52.82 | DE34: 2014-12-16 | DF34: 62.5 | DG34: 63.5 | DH34: 61 | DI34: 58.8 | DK34: 51.875 | DL34: 54.41 | DM34: 49.595 | DN34: 52.82 | DP34: 2014-12-16 | DQ34: 11.7 | DR34: 10.1 | DS34: 3 | DT34: 3 | DV34: 14.485 | DW34: 13.645 | DX34: 2.95 | DY34: 1.8 | EA34: 2014-12-16 | EB34: 11.7 | EC34: 14.4 | ED34: 35.6 | EE34: 5.1 | EG34: 14.485 | EH34: 10.055 | EI34: 26.055 | EJ34: 2.34 | EL34: Brooks.Orpik | EM34: 17.61122449 | EN34: 233.3 | EO34: 10.07040816 | EP34: 36.85 | ER34: 17.90733901 | ES34: 461.36 | ET34: 8.003171873 | EU34: 37.01116381 | EW34: 2014-12-16 | EX34: 11.7 | EY34: -1 | EZ34: 2.2 | FA34: -4.6 | FC34: 14.485 | FD34: -2.535 | FE34: -3.21 | FF34: -0.915
A35: 2014-12-17 | B35: 4 | C35: 4 | D35: 2 | E35: 10 | H35: 2014-12-17 | I35: 16 | J35: 0 | K35: 0 | N35: 14.545 | O35: 4.995 | P35: 10.055 | S35: 2014-12-17 | T35: 16 | U35: 31.2 | V35: 33.5 | Y35: 14.545 | Z35: 48.71 | AA35: 50.45 | AD35: 2014-12-17 | AE35: 3.4 | AF35: 1 | AG35: -11.8 | AH35: 0 | AJ35: 2.705 | AK35: 0.9 | AL35: -2.45 | AM35: 0.64 | AO35: 2014-12-17 | AP35: 1 | AQ35: 3 | AR35: -11 | AS35: 0 | AU35: 0.9 | AV35: 1.85 | AW35: -3.175 | AX35: 1.265 | AZ35: 2014-12-17 | BA35: 0 | BB35: 92.3 | BF35: 10.055 | BG35: 95.095 | BK35: 2014-12-17 | BL35: 9.3 | BM35: 5.2 | BN35: 0 | BO35: 2 | BQ35: 13.31 | BR35: 6.185 | BS35: 0.95 | BT35: 0.6 | BV35: 2014-12-17 | BW35: 12.7 | BX35: 31.1 | BY35: 34.8 | BZ35: 19.5 | CA35: 16 | CC35: 11.17 | CD35: 25.055 | CE35: 55.08 | CF35: 26.195 | CG35: 14.455 | CI35: 2014-12-17 | CJ35: 0 | CK35: 0 | CL35: 0 | CM35: 0 | CO35: 0.64 | CP35: 1.265 | CQ35: 0.4075977654 | CR35: 1.285714286 | CT35: 2014-12-17 | CU35: 33.5 | CV35: 45.3 | CW35: 38.7 | CX35: 49.7 | CZ35: 50.45 | DA35: 52.9 | DB35: 48.215 | DC35: 51.405 | DE35: 2014-12-17 | DF35: 33.5 | DG35: 45.3 | DH35: 38.7 | DI35: 49.7 | DK35: 50.45 | DL35: 52.9 | DM35: 48.215 | DN35: 51.405 | DP35: 2014-12-17 | DQ35: 16 | DR35: 9.3 | DS35: 4 | DT35: 3 | DV35: 14.545 | DW35: 13.31 | DX35: 3 | DY35: 1.85 | EA35: 2014-12-17 | EB35: 16 | EC35: 0 | ED35: 19.5 | EE35: 0 | EG35: 14.545 | EH35: 10.055 | EI35: 25.85 | EJ35: 2.34 | EL35: Tyson.Barrie | EM35: 17.54904459 | EN35: 864.9 | EO35: 10.36878981 | EP35: 36.61656051 | ER35: 17.86827715 | ES35: 462.275 | ET35: 8.141400095 | EU35: 36.97843476 | EW35: 2014-12-17 | EX35: 16 | EY35: -11.8 | EZ35: -11 | FA35: -12 | FC35: 14.545 | FD35: -2.45 | FE35: -3.175 | FF35: -1.045
A36: 2014-12-19 | B36: 4 | C36: 4 | D36: 2 | E36: 10 | H36: 2014-12-19 | I36: 14 | J36: 0 | K36: 0 | N36: 14.455 | O36: 4.995 | P36: 10.055 | S36: 2014-12-19 | T36: 14 | U36: 40.5 | V36: 65.6 | Y36: 14.455 | Z36: 47.845 | AA36: 49.63 | AD36: 2014-12-19 | AE36: 1.9 | AF36: 0 | AG36: -1.1 | AH36: 0 | AJ36: 2.575 | AK36: 0.75 | AL36: -4.03 | AM36: 0.64 | AO36: 2014-12-19 | AP36: 0 | AQ36: 0 | AR36: 5.3 | AS36: 0 | AU36: 0.75 | AV36: 1.65 | AW36: -4.21 | AX36: 1.265 | AZ36: 2014-12-19 | BA36: 0 | BB36: 87.3 | BF36: 10.055 | BG36: 95.06 | BK36: 2014-12-19 | BL36: 11.7 | BM36: 7.4 | BN36: 0 | BO36: 1 | BQ36: 12.985 | BR36: 6.225 | BS36: 0.9 | BT36: 0.6 | BV36: 2014-12-19 | BW36: 8.2 | BX36: 24.2 | BY36: 50.4 | BZ36: 31.9 | CA36: 14 | CC36: 10.715 | CD36: 24.275 | CE36: 54.13 | CF36: 27.075 | CG36: 14.39 | CI36: 2014-12-19 | CJ36: 0 | CK36: 0 | CL36: 0 | CM36: 0 | CO36: 0.64 | CP36: 1.265 | CQ36: 0.4075977654 | CR36: 1.285714286 | CT36: 2014-12-19 | CU36: 65.6 | CV36: 66.7 | CW36: 48.5 | CX36: 43.2 | CZ36: 49.63 | DA36: 53.66 | DB36: 46.7 | DC36: 50.925 | DE36: 2014-12-19 | DF36: 65.6 | DG36: 66.7 | DH36: 48.5 | DI36: 43.2 | DK36: 49.63 | DL36: 53.66 | DM36: 46.7 | DN36: 50.925 | DP36: 2014-12-19 | DQ36: 14 | DR36: 11.7 | DS36: 1 | DT36: 0 | DV36: 14.455 | DW36: 12.985 | DX36: 2.8 | DY36: 1.65 | EA36: 2014-12-19 | EB36: 14 | EC36: 0 | ED36: 31.9 | EE36: 0 | EG36: 14.455 | EH36: 10.055 | EI36: 26.195 | EJ36: 2.34 | EL36: Jack.Johnson | EM36: 17.52877698 | EN36: 375 | EO36: 7.929496403 | EP36: 36.96690647 | ER36: 17.82835236 | ES36: 452.695 | ET36: 8.124941031 | EU36: 36.95223662 | EW36: 2014-12-19 | EX36: 14 | EY36: -1.1 | EZ36: 5.3 | FA36: -16.9 | FC36: 14.455 | FD36: -4.03 | FE36: -4.21 | FF36: -1.6
A37: 2014-12-21 | B37: 4 | C37: 4 | D37: 2 | E37: 10 | H37: 2014-12-21 | I37: 16.1 | J37: 0 | K37: 0 | N37: 14.39 | O37: 4.995 | P37: 10.055 | S37: 2014-12-21 | T37: 16.1 | U37: 56.5 | V37: 0 | Y37: 14.39 | Z37: 48.125 | AA37: 49.63 | AD37: 2014-12-21 | AE37: 0 | AF37: 0 | AG37: -71.2 | AH37: 0 | AJ37: 2.575 | AK37: 0.75 | AL37: -5.4 | AM37: 0.64 | AO37: 2014-12-21 | AP37: 0 | AQ37: 1 | AR37: -37.5 | AS37: 0 | AU37: 0.75 | AV37: 1.6 | AW37: -4.58 | AX37: 1.265 | AZ37: 2014-12-21 | BA37: 0 | BB37: 90.8 | BF37: 10.055 | BG37: 94.6 | BK37: 2014-12-21 | BL37: 15.5 | BM37: 8.2 | BN37: 0 | BO37: 1 | BQ37: 13.025 | BR37: 6.45 | BS37: 0.75 | BT37: 0.6 | BV37: 2014-12-21 | BW37: 0 | BX37: 16.1 | BY37: 57.9 | BZ37: 30.4 | CA37: 16.1 | CC37: 10.715 | CD37: 24.75 | CE37: 54.485 | CF37: 25.68 | CG37: 14.68 | CI37: 2014-12-21 | CJ37: 0 | CK37: 0 | CL37: 0 | CM37: 0 | CO37: 0.64 | CP37: 1.265 | CQ37: 0.4075977654 | CR37: 1.285714286 | CT37: 2014-12-21 | CU37: 0 | CV37: 71.2 | CW37: 29.5 | CX37: 67.1 | CZ37: 49.63 | DA37: 55.03 | DB37: 46.75 | DC37: 51.35 | DE37: 2014-12-21 | DF37: 0 | DG37: 71.2 | DH37: 29.5 | DI37: 67.1 | DK37: 49.63 | DL37: 55.03 | DM37: 46.75 | DN37: 51.35 | DP37: 2014-12-21 | DQ37: 16.1 | DR37: 15.5 | DS37: 3 | DT37: 1 | DV37: 14.39 | DW37: 13.025 | DX37: 2.75 | DY37: 1.6 | EA37: 2014-12-21 | EB37: 16.1 | EC37: 0 | ED37: 30.4 | EE37: 0 | EG37: 14.39 | EH37: 10.055 | EI37: 27.075 | EJ37: 2.34 | EL37: Tyler.Myers | EM37: 17.51748252 | EN37: 833.2 | EO37: 8.479020979 | EP37: 36.93846154 | ER37: 17.79174164 | ES37: 477.69 | ET37: 8.234013292 | EU37: 36.85784675 | EW37: 2014-12-21 | EX37: 16.1 | EY37: -71.2 | EZ37: -37.5 | FA37: -13.2 | FC37: 14.39 | FD37: -5.4 | FE37: -4.58 | FF37: -1.99
A38: 2014-12-23 | B38: 4 | C38: 4 | D38: 2 | E38: 10 | H38: 2014-12-23 | I38: 16.3 | J38: 0 | K38: 0 | N38: 14.68 | O38: 4.995 | P38: 10.055 | S38: 2014-12-23 | T38: 16.3 | U38: 26.8 | V38: 100 | Y38: 14.68 | Z38: 47.32 | AA38: 52.15 | AD38: 2014-12-23 | AE38: 1 | AF38: 0 | AG38: 70.8 | AH38: 0 | AJ38: 2.49 | AK38: 0.75 | AL38: -0.705 | AM38: 0.64 | AO38: 2014-12-23 | AP38: 0 | AQ38: 1 | AR38: -10.7 | AS38: 0 | AU38: 0.75 | AV38: 1.65 | AW38: -4.65 | AX38: 1.265 | AZ38: 2014-12-23 | BA38: 0 | BB38: 100 | BF38: 10.055 | BG38: 94.6 | BK38: 2014-12-23 | BL38: 4 | BM38: 0.9 | BN38: 2 | BO38: 0 | BQ38: 12.695 | BR38: 6.22 | BS38: 0.8 | BT38: 0.6 | BV38: 2014-12-23 | BW38: 3.5 | BX38: 7 | BY38: 14.8 | BZ38: 3.5 | CA38: 16.3 | CC38: 10.11 | CD38: 23.81 | CE38: 52.2 | CF38: 26.545 | CG38: 14.73 | CI38: 2014-12-23 | CJ38: 0 | CK38: 0 | CL38: 0 | CM38: 0 | CO38: 0.64 | CP38: 1.265 | CQ38: 0.4075977654 | CR38: 1.285714286 | CT38: 2014-12-23 | CU38: 100 | CV38: 29.2 | CW38: 33.7 | CX38: 44.4 | CZ38: 52.15 | DA38: 52.855 | DB38: 46.56 | DC38: 51.23 | DE38: 2014-12-23 | DF38: 100 | DG38: 29.2 | DH38: 33.7 | DI38: 44.4 | DK38: 52.15 | DL38: 52.855 | DM38: 46.56 | DN38: 51.23 | DP38: 2014-12-23 | DQ38: 16.3 | DR38: 4 | DS38: 2 | DT38: 1 | DV38: 14.68 | DW38: 12.695 | DX38: 2.8 | DY38: 1.65 | EA38: 2014-12-23 | EB38: 16.3 | EC38: 0 | ED38: 3.5 | EE38: 0 | EG38: 14.68 | EH38: 10.055 | EI38: 25.68 | EJ38: 2.34 | EL38: Darnell.Nurse | EM38: 17.50727273 | EN38: 200 | EO38: 9.003636364 | EP38: 36.13636364 | ER38: 17.75663548 | ES38: 456.275 | ET38: 8.224597795 | EU38: 36.80944806 | EW38: 2014-12-23 | EX38: 16.3 | EY38: 70.8 | EZ38: -10.7 | FA38: -29.9 | FC38: 14.68 | FD38: -0.705 | FE38: -4.65 | FF38: -3.27
A39: 2014-12-27 | B39: 4 | C39: 4 | D39: 2 | E39: 10 | H39: 2014-12-27 | I39: 11.6 | J39: 0 | K39: 0 | N39: 14.73 | O39: 4.995 | P39: 8.8 | Q39: =AVERAGE(L21:L40) ->  | S39: 2014-12-27 | T39: 11.6 | U39: 60.7 | V39: 52.6 | Y39: 14.73 | Z39: 48.72 | AA39: 52.18 | AD39: 2014-12-27 | AE39: 2.1 | AF39: 2 | AG39: 14.3 | AH39: 0 | AJ39: 2.545 | AK39: 0.85 | AL39: -0.82 | AM39: 0.64 | AO39: 2014-12-27 | AP39: 2 | AQ39: 2 | AR39: -13.4 | AS39: 0 | AU39: 0.85 | AV39: 1.75 | AW39: -4.91 | AX39: 1.2 | AZ39: 2014-12-27 | BA39: 0 | BB39: 87.9 | BF39: 8.8 | BG39: 93.995 | BK39: 2014-12-27 | BL39: 12.8 | BM39: 7.7 | BN39: 0 | BO39: 0 | BQ39: 13.01 | BR39: 6.405 | BS39: 0.8 | BT39: 0.55 | BV39: 2014-12-27 | BW39: 10.9 | BX39: 32.2 | BY39: 66.4 | BZ39: 39.8 | CA39: 11.6 | CC39: 10.37 | CD39: 24.875 | CE39: 53.69 | CF39: 26.35 | CG39: 14.95 | CI39: 2014-12-27 | CJ39: 0 | CK39: 0 | CL39: 0 | CM39: 0 | CO39: 0.64 | CP39: 1.265 | CQ39: 0.4075977654 | CR39: 1.285714286 | CT39: 2014-12-27 | CU39: 52.6 | CV39: 38.3 | CW39: 47.5 | CX39: 60.9 | CZ39: 52.18 | DA39: 53 | DB39: 47.21 | DC39: 52.135 | DE39: 2014-12-27 | DF39: 52.6 | DG39: 38.3 | DH39: 47.5 | DI39: 60.9 | DK39: 52.18 | DL39: 53 | DM39: 47.21 | DN39: 52.135 | DP39: 2014-12-27 | DQ39: 11.6 | DR39: 12.8 | DS39: 3 | DT39: 2 | DV39: 14.73 | DW39: 13.01 | DX39: 2.95 | DY39: 1.75 | EA39: 2014-12-27 | EB39: 11.6 | EC39: 0 | ED39: 39.8 | EE39: 0 | EG39: 14.73 | EH39: 8.8 | EI39: 26.545 | EJ39: 2.055 | EL39: Michael.Del.Zotto | EM39: 17.50603448 | EN39: 414.9 | EO39: 6.127586207 | EP39: 36.86034483 | ER39: 17.72251242 | ES39: 465.19 | ET39: 8.074472681 | EU39: 36.73789123 | EW39: 2014-12-27 | EX39: 11.6 | EY39: 14.3 | EZ39: -13.4 | FA39: 7.5 | FC39: 14.73 | FD39: -0.82 | FE39: -4.91 | FF39: -1.92
A40: 2014-12-31 | B40: 4 | C40: 5 | D40: 2 | E40: 11 | H40: 2014-12-31 | I40: 16.9 | J40: 0 | K40: 26 | N40: 14.95 | O40: 4.995 | P40: 9.33 | S40: 2014-12-31 | T40: 16.9 | U40: 55.2 | V40: 54.4 | Y40: 14.95 | Z40: 47.995 | AA40: 51.695 | AD40: 2014-12-31 | AE40: 3.7 | AF40: 1 | AG40: -0.8 | AH40: 0 | AJ40: 2.555 | AK40: 0.9 | AL40: -0.56 | AM40: 0.64 | AO40: 2014-12-31 | AP40: 1 | AQ40: 2 | AR40: -9.9 | AS40: 3.5 | AU40: 0.9 | AV40: 1.8 | AW40: -6.055 | AX40: 1.2 | AZ40: 2014-12-31 | BA40: 26 | BB40: 85.8 | BF40: 9.33 | BG40: 94.11 | BK40: 2014-12-31 | BL40: 18.4 | BM40: 7.7 | BN40: 3 | BO40: 0 | BQ40: 12.93 | BR40: 6.465 | BS40: 0.95 | BT40: 0.6 | BV40: 2014-12-31 | BW40: 13.1 | BX40: 23.5 | BY40: 65.2 | BZ40: 27.3 | CA40: 16.9 | CC40: 10.195 | CD40: 24.285 | CE40: 52.14 | CF40: 25.845 | CG40: 14.955 | CI40: 2014-12-31 | CJ40: 0 | CK40: 3.5 | CL40: 3.550295858 | CM40: 0 | CO40: 0.64 | CP40: 1.2 | CQ40: 0.3451125583 | CR40: 1.285714286 | CT40: 2014-12-31 | CU40: 54.4 | CV40: 55.2 | CW40: 41.5 | CX40: 51.4 | CZ40: 51.695 | DA40: 52.255 | DB40: 45.955 | DC40: 52.025 | DE40: 2014-12-31 | DF40: 54.4 | DG40: 55.2 | DH40: 41.5 | DI40: 51.4 | DK40: 51.695 | DL40: 52.255 | DM40: 45.955 | DN40: 52.025 | DP40: 2014-12-31 | DQ40: 16.9 | DR40: 18.4 | DS40: 4 | DT40: 2 | DV40: 14.95 | DW40: 12.93 | DX40: 3.05 | DY40: 1.8 | EA40: 2014-12-31 | EB40: 16.9 | EC40: 26 | ED40: 27.3 | EE40: 7.1 | EG40: 14.95 | EH40: 9.33 | EI40: 26.35 | EJ40: 2.17 | EL40: Jan.Hejda | EM40: 17.45802469 | EN40: 100 | EO40: 6.513580247 | EP40: 36.21851852 | ER40: 17.69396538 | ES40: 427.525 | ET40: 8.020394748 | EU40: 36.71253877 | EW40: 2014-12-31 | EX40: 16.9 | EY40: -0.8 | EZ40: -9.9 | FA40: 3.8 | FC40: 14.95 | FD40: -0.56 | FE40: -6.055 | FF40: -2.975
A41: 2015-01-03 | B41: 4 | C41: 5 | D41: 2 | E41: 11 | H41: 2015-01-03 | I41: 13.3 | J41: 0 | K41: 0 | N41: 14.955 | O41: 4.995 | P41: 9.33 | S41: 2015-01-03 | T41: 13.3 | U41: 41.2 | V41: 0 | Y41: 14.955 | Z41: 47.41 | AA41: 48.715 | AD41: 2015-01-03 | AE41: 0 | AF41: 0 | AG41: -61.1 | AH41: 0 | AJ41: 2.42 | AK41: 0.9 | AL41: -5.145 | AM41: 0.64 | AO41: 2015-01-03 | AP41: 0 | AQ41: 0 | AR41: -28.4 | AS41: 0 | AU41: 0.9 | AV41: 1.8 | AW41: -7.68 | AX41: 1.2 | AZ41: 2015-01-03 | BA41: 0 | BB41: 100 | BF41: 9.33 | BG41: 94.11 | BK41: 2015-01-03 | BL41: 7.6 | BM41: 4.6 | BN41: 0 | BO41: 1 | BQ41: 12.77 | BR41: 6.355 | BS41: 0.95 | BT41: 0.55 | BV41: 2015-01-03 | BW41: 0 | BX41: 8.6 | BY41: 34.4 | BZ41: 20.9 | CA41: 13.3 | CC41: 9.585 | CD41: 23.675 | CE41: 51.4 | CF41: 25.605 | CG41: 14.85 | CI41: 2015-01-03 | CJ41: 0 | CK41: 0 | CL41: 0 | CM41: 0 | CO41: 0.64 | CP41: 1.2 | CQ41: 0.3451125583 | CR41: 1.285714286 | CT41: 2015-01-03 | CU41: 0 | CV41: 61.1 | CW41: 33.4 | CX41: 61.8 | CZ41: 48.715 | DA41: 53.855 | DB41: 45.17 | DC41: 52.86 | DE41: 2015-01-03 | DF41: 0 | DG41: 61.1 | DH41: 33.4 | DI41: 61.8 | DK41: 48.715 | DL41: 53.855 | DM41: 45.17 | DN41: 52.86 | DP41: 2015-01-03 | DQ41: 13.3 | DR41: 7.6 | DS41: 2 | DT41: 0 | DV41: 14.955 | DW41: 12.77 | DX41: 3.15 | DY41: 1.8 | EA41: 2015-01-03 | EB41: 13.3 | EC41: 0 | ED41: 20.9 | EE41: 0 | EG41: 14.955 | EH41: 9.33 | EI41: 25.845 | EJ41: 2.17 | EL41: Josh.Gorges | EM41: 17.40655738 | EN41: 200 | EO41: 7.263114754 | EP41: 35.62295082 | ER41: 17.66707103 | ES41: 422.53 | ET41: 7.970050486 | EU41: 36.72120824 | EW41: 2015-01-03 | EX41: 13.3 | EY41: -61.1 | EZ41: -28.4 | FA41: -20 | FC41: 14.955 | FD41: -5.145 | FE41: -7.68 | FF41: -4.255
A42: 2015-01-04 | B42: 4 | C42: 5 | D42: 2 | E42: 11 | H42: 2015-01-04 | I42: 16.6 | J42: 0 | K42: 0 | N42: 14.85 | O42: 4.995 | P42: 8.78 | S42: 2015-01-04 | T42: 16.6 | U42: 50.4 | V42: 48.5 | Y42: 14.85 | Z42: 47.255 | AA42: 46.14 | AD42: 2015-01-04 | AE42: 4.1 | AF42: 0 | AG42: 5.5 | AH42: 0 | AJ42: 2.43 | AK42: 0.85 | AL42: -8.675 | AM42: 0.64 | AO42: 2015-01-04 | AP42: 0 | AQ42: 2 | AR42: 5.2 | AS42: 0 | AU42: 0.85 | AV42: 1.75 | AW42: -8.115 | AX42: 1.36 | AZ42: 2015-01-04 | BA42: 0 | BB42: 85.2 | BF42: 8.78 | BG42: 93.37 | BK42: 2015-01-04 | BL42: 14.4 | BM42: 6.7 | BN42: 0 | BO42: 2 | BQ42: 12.61 | BR42: 6.235 | BS42: 0.9 | BT42: 0.6 | BV42: 2015-01-04 | BW42: 14.9 | BX42: 28.7 | BY42: 52 | BZ42: 24.2 | CA42: 16.6 | CC42: 9.7 | CD42: 23.665 | CE42: 51.18 | CF42: 26.235 | CG42: 15.085 | CI42: 2015-01-04 | CJ42: 0 | CK42: 0 | CL42: 0 | CM42: 0 | CO42: 0.64 | CP42: 1.2 | CQ42: 0.3451125583 | CR42: 1.285714286 | CT42: 2015-01-04 | CU42: 48.5 | CV42: 43.1 | CW42: 49 | CX42: 43.8 | CZ42: 46.14 | DA42: 54.815 | DB42: 44.13 | DC42: 52.255 | DE42: 2015-01-04 | DF42: 48.5 | DG42: 43.1 | DH42: 49 | DI42: 43.8 | DK42: 46.14 | DL42: 54.815 | DM42: 44.13 | DN42: 52.255 | DP42: 2015-01-04 | DQ42: 16.6 | DR42: 14.4 | DS42: 5 | DT42: 2 | DV42: 14.85 | DW42: 12.61 | DX42: 3.1 | DY42: 1.75 | EA42: 2015-01-04 | EB42: 16.6 | EC42: 0 | ED42: 24.2 | EE42: 0 | EG42: 14.85 | EH42: 8.78 | EI42: 25.605 | EJ42: 2.01 | EL42: Erik.Johnson | EM42: 17.39579832 | EN42: 824.9 | EO42: 6.572268908 | EP42: 36.60672269 | ER42: 17.640229 | ES42: 446.275 | ET42: 7.962656987 | EU42: 36.71384559 | EW42: 2015-01-04 | EX42: 16.6 | EY42: 5.5 | EZ42: 5.2 | FA42: 9.9 | FC42: 14.85 | FD42: -8.675 | FE42: -8.115 | FF42: -4.21
A43: 2015-01-07 | B43: 4 | C43: 5 | D43: 3 | E43: 12 | H43: 2015-01-07 | I43: 18.8 | J43: 0 | K43: 24.9 | N43: 15.085 | O43: 4.995 | P43: 10.025 | S43: 2015-01-07 | T43: 18.8 | U43: 50.2 | V43: 65.2 | Y43: 15.085 | Z43: 47.005 | AA43: 46.985 | AD43: 2015-01-07 | AE43: 5.7 | AF43: 2 | AG43: 40.2 | AH43: 0 | AJ43: 2.57 | AK43: 0.9 | AL43: -6.02 | AM43: 0.64 | AO43: 2015-01-07 | AP43: 2 | AQ43: 2 | AR43: 9.9 | AS43: 3.2 | AU43: 0.9 | AV43: 1.8 | AW43: -8.28 | AX43: 1.36 | AZ43: 2015-01-07 | BA43: 24.9 | BB43: 100 | BF43: 10.025 | BG43: 93.37 | BK43: 2015-01-07 | BL43: 18.4 | BM43: 8 | BN43: 2 | BO43: 1 | BQ43: 12.825 | BR43: 6.485 | BS43: 0.9 | BT43: 0.55 | BV43: 2015-01-07 | BW43: 18.2 | BX43: 34.7 | BY43: 58.6 | BZ43: 25.6 | CA43: 18.8 | CC43: 9.995 | CD43: 23.935 | CE43: 51.1 | CF43: 26.685 | CG43: 15.04 | CI43: 2015-01-07 | CJ43: 0 | CK43: 3.2 | CL43: 0 | CM43: 19.14893617 | CO43: 0.64 | CP43: 1.36 | CQ43: 0.3451125583 | CR43: 2.243161094 | CT43: 2015-01-07 | CU43: 65.2 | CV43: 25 | CW43: 52.6 | CX43: 42.7 | CZ43: 46.985 | DA43: 53.005 | DB43: 44.095 | DC43: 52.385 | DE43: 2015-01-07 | DF43: 65.2 | DG43: 25 | DH43: 52.6 | DI43: 42.7 | DK43: 46.985 | DL43: 53.005 | DM43: 44.095 | DN43: 52.385 | DP43: 2015-01-07 | DQ43: 18.8 | DR43: 18.4 | DS43: 4 | DT43: 2 | DV43: 15.085 | DW43: 12.825 | DX43: 3.15 | DY43: 1.8 | EA43: 2015-01-07 | EB43: 18.8 | EC43: 24.9 | ED43: 25.6 | EE43: 6.4 | EG43: 15.085 | EH43: 10.025 | EI43: 26.235 | EJ43: 2.33 | EL43: Dustin.Byfuglien | EM43: 17.39060403 | EN43: 1294.9 | EO43: 8.510067114 | EP43: 37.18791946 | ER43: 17.61558679 | ES43: 493.52 | ET43: 8.031849998 | EU43: 36.62545883 | EW43: 2015-01-07 | EX43: 18.8 | EY43: 40.2 | EZ43: 9.9 | FA43: 13.3 | FC43: 15.085 | FD43: -6.02 | FE43: -8.28 | FF43: -4.205
A44: 2015-01-08 | B44: 4 | C44: 5 | D44: 3 | E44: 12 | H44: 2015-01-08 | I44: 13 | J44: 0 | K44: 0 | N44: 15.04 | O44: 4.995 | P44: 9.29 | S44: 2015-01-08 | T44: 13 | U44: 62.9 | V44: 70 | Y44: 15.04 | Z44: 47.51 | AA44: 50.485 | AD44: 2015-01-08 | AE44: 4.6 | AF44: 0 | AG44: -5.8 | AH44: 0 | AJ44: 2.8 | AK44: 0.9 | AL44: -4.195 | AM44: 0.64 | AO44: 2015-01-08 | AP44: 0 | AQ44: 0 | AR44: -22.5 | AS44: 0 | AU44: 0.9 | AV44: 1.6 | AW44: -10.135 | AX44: 1.36 | AZ44: 2015-01-08 | BA44: 0 | BB44: 100 | BF44: 9.29 | BG44: 93.86 | BK44: 2015-01-08 | BL44: 15.8 | BM44: 8.3 | BN44: 0 | BO44: 0 | BQ44: 12.92 | BR44: 6.56 | BS44: 0.9 | BT44: 0.5 | BV44: 2015-01-08 | BW44: 21.4 | BX44: 34.5 | BY44: 72.9 | BZ44: 38.3 | CA44: 13 | CC44: 11.065 | CD44: 23.595 | CE44: 51.735 | CF44: 25.145 | CG44: 15.08 | CI44: 2015-01-08 | CJ44: 0 | CK44: 0 | CL44: 0 | CM44: 0 | CO44: 0.64 | CP44: 1.36 | CQ44: 0.3451125583 | CR44: 2.243161094 | CT44: 2015-01-08 | CU44: 70 | CV44: 75.8 | CW44: 49.9 | CX44: 72.3 | CZ44: 50.485 | DA44: 54.68 | DB44: 43.305 | DC44: 53.445 | DE44: 2015-01-08 | DF44: 70 | DG44: 75.8 | DH44: 49.9 | DI44: 72.3 | DK44: 50.485 | DL44: 54.68 | DM44: 43.305 | DN44: 53.445 | DP44: 2015-01-08 | DQ44: 13 | DR44: 15.8 | DS44: 0 | DT44: 0 | DV44: 15.04 | DW44: 12.92 | DX44: 2.95 | DY44: 1.6 | EA44: 2015-01-08 | EB44: 13 | EC44: 0 | ED44: 38.3 | EE44: 0 | EG44: 15.04 | EH44: 9.29 | EI44: 26.685 | EJ44: 2.115 | EL44: Marc-Edouard.Vlasic | EM44: 17.3729927 | EN44: 658.3 | EO44: 9.456934307 | EP44: 35.7189781 | ER44: 17.59014551 | ES44: 503.52 | ET44: 8.048822587 | EU44: 36.55667262 | EW44: 2015-01-08 | EX44: 13 | EY44: -5.8 | EZ44: -22.5 | FA44: -6.2 | FC44: 15.04 | FD44: -4.195 | FE44: -10.135 | FF44: -4.475
A45: 2015-01-10 | B45: 4 | C45: 5 | D45: 3 | E45: 12 | H45: 2015-01-10 | I45: 14.8 | J45: 0 | K45: 0 | N45: 15.08 | O45: 4.995 | P45: 9.29 | S45: 2015-01-10 | T45: 14.8 | U45: 36.6 | Y45: 15.08 | Z45: 45.63 | AA45: 50.18421053 | AD45: 2015-01-10 | AE45: 0 | AF45: 0 | AH45: 0 | AJ45: 2.665 | AK45: 0.85 | AL45: -4.142105263 | AM45: 0.71 | AO45: 2015-01-10 | AP45: 0 | AQ45: 0 | AR45: -64.5 | AS45: 0 | AU45: 0.85 | AV45: 1.5 | AW45: -13.62 | AX45: 1.67 | AZ45: 2015-01-10 | BA45: 0 | BB45: 100 | BF45: 9.29 | BG45: 94.63 | BK45: 2015-01-10 | BL45: 7.1 | BM45: 4.4 | BN45: 0 | BO45: 0 | BQ45: 12.345 | BR45: 6.215 | BS45: 0.9 | BT45: 0.55 | BV45: 2015-01-10 | BW45: 0 | BX45: 0 | BY45: 28.6 | BZ45: 17.6 | CA45: 14.8 | CC45: 10.495 | CD45: 22.49 | CE45: 49.18 | CF45: 27.31 | CG45: 14.815 | CI45: 2015-01-10 | CJ45: 0 | CK45: 0 | CL45: 0 | CM45: 0 | CO45: 0.64 | CP45: 1.36 | CQ45: 0.3451125583 | CR45: 2.243161094 | CT45: 2015-01-10 | CV45: 53.2 | CW45: 0 | CX45: 64.5 | CZ45: 50.18421053 | DA45: 54.275 | DB45: 40.805 | DC45: 54.43 | DE45: 2015-01-10 | DG45: 53.2 | DH45: 0 | DI45: 64.5 | DK45: 50.18421053 | DL45: 54.275 | DM45: 40.805 | DN45: 54.43 | DP45: 2015-01-10 | DQ45: 14.8 | DR45: 7.1 | DS45: 2 | DT45: 0 | DV45: 15.08 | DW45: 12.345 | DX45: 2.9 | DY45: 1.5 | EA45: 2015-01-10 | EB45: 14.8 | EC45: 0 | ED45: 17.6 | EE45: 0 | EG45: 15.08 | EH45: 9.29 | EI45: 25.145 | EJ45: 2.115 | EL45: Brent.Seabrook | EM45: 17.36413793 | EN45: 528.3 | EO45: 6.748965517 | EP45: 35.54827586 | ER45: 17.56527241 | ES45: 500.355 | ET45: 7.994950863 | EU45: 36.53303348 | EW45: 2015-01-10 | EX45: 14.8 | EZ45: -64.5 | FA45: -14 | FC45: 15.08 | FD45: -4.142105263 | FE45: -13.62 | FF45: -6.645
A46: 2015-01-13 | B46: 5 | C46: 6 | D46: 3 | E46: 14 | H46: 2015-01-13 | I46: 12.5 | J46: 33.3 | K46: 20.3 | N46: 14.815 | O46: 4.995 | P46: 9.69 | S46: 2015-01-13 | T46: 12.5 | U46: 76.9 | V46: 78.9 | Y46: 14.815 | Z46: 46.86 | AA46: 50.53684211 | AD46: 2015-01-13 | AE46: 3.8 | AF46: 2 | AG46: 17.2 | AH46: 4.8 | AJ46: 2.59 | AK46: 0.8 | AL46: -4.510526316 | AM46: 0.495 | AO46: 2015-01-13 | AP46: 2 | AQ46: 4 | AR46: 18.1 | AS46: 9.6 | AU46: 0.8 | AV46: 1.5 | AW46: -13.865 | AX46: 1.455 | AZ46: 2015-01-13 | BA46: 20.3 | BB46: 82.3 | BF46: 9.69 | BG46: 93.745 | BK46: 2015-01-13 | BL46: 25.2 | BM46: 14.8 | BN46: 1 | BO46: 1 | BQ46: 12.795 | BR46: 6.55 | BS46: 0.85 | BT46: 0.65 | BV46: 2015-01-13 | BW46: 18.4 | BX46: 56.4 | BY46: 120.4 | BZ46: 70.7 | CA46: 12.5 | CC46: 10.52 | CD46: 23.485 | CE46: 52.475 | CF46: 27.705 | CG46: 14.815 | CI46: 2015-01-13 | CJ46: 4.8 | CK46: 9.6 | CL46: 4.8 | CM46: 0 | CO46: 0.71 | CP46: 1.67 | CQ46: 0.5851125583 | CR46: 2.243161094 | CT46: 2015-01-13 | CU46: 78.9 | CV46: 61.7 | CW46: 67.1 | CX46: 49.1 | CZ46: 50.53684211 | DA46: 54.96 | DB46: 40.97 | DC46: 54.84 | DE46: 2015-01-13 | DF46: 78.9 | DG46: 61.7 | DH46: 67.1 | DI46: 49.1 | DK46: 50.53684211 | DL46: 54.96 | DM46: 40.97 | DN46: 54.84 | DP46: 2015-01-13 | DQ46: 12.5 | DR46: 25.2 | DS46: 5 | DT46: 4 | DV46: 14.815 | DW46: 12.795 | DX46: 2.9 | DY46: 1.5 | EA46: 2015-01-13 | EB46: 12.5 | EC46: 20.3 | ED46: 70.7 | EE46: 14.4 | EG46: 14.815 | EH46: 9.69 | EI46: 27.31 | EJ46: 2.665 | EL46: Alexander.Edler | EM46: 17.34920635 | EN46: 300 | EO46: 7.115079365 | EP46: 36.09365079 | ER46: 17.54213832 | ES46: 504.105 | ET46: 7.965530006 | EU46: 36.45884605 | EW46: 2015-01-13 | EX46: 12.5 | EY46: 17.2 | EZ46: 18.1 | FA46: 20.4 | FC46: 14.815 | FD46: -4.510526316 | FE46: -13.865 | FF46: -6.14
A47: 2015-01-15 | B47: 5 | C47: 6 | D47: 3 | E47: 14 | H47: 2015-01-15 | I47: 14.1 | J47: 0 | K47: 9.7 | N47: 14.815 | O47: 3.33 | P47: 9.58 | S47: 2015-01-15 | T47: 14.1 | U47: 62.4 | V47: 100 | Y47: 14.815 | Z47: 47.845 | AA47: 52.76842105 | AD47: 2015-01-15 | AE47: 4 | AF47: 1 | AG47: 40.5 | AH47: 0 | AJ47: 2.65 | AK47: 0.8 | AL47: -1.784210526 | AM47: 0.495 | AO47: 2015-01-15 | AP47: 1 | AQ47: 2 | AR47: 29.2 | AS47: 0 | AU47: 0.8 | AV47: 1.5 | AW47: -12.04 | AX47: 1.455 | AZ47: 2015-01-15 | BA47: 9.7 | BB47: 100 | BF47: 9.58 | BG47: 93.745 | BK47: 2015-01-15 | BL47: 17 | BM47: 10.3 | BN47: 0 | BO47: 2 | BQ47: 13.185 | BR47: 6.645 | BS47: 0.85 | BT47: 0.55 | BV47: 2015-01-15 | BW47: 16.9 | BX47: 33.3 | BY47: 72.1 | BZ47: 43.6 | CA47: 14.1 | CC47: 10.765 | CD47: 24.34 | CE47: 54.12 | CF47: 28.885 | CG47: 14.675 | CI47: 2015-01-15 | CJ47: 0 | CK47: 0 | CL47: 0 | CM47: 0 | CO47: 0.495 | CP47: 1.455 | CQ47: 0.5851125583 | CR47: 2.243161094 | CT47: 2015-01-15 | CU47: 100 | CV47: 59.5 | CW47: 81 | CX47: 51.8 | CZ47: 52.76842105 | DA47: 54.49 | DB47: 42.87 | DC47: 54.915 | DE47: 2015-01-15 | DF47: 100 | DG47: 59.5 | DH47: 81 | DI47: 51.8 | DK47: 52.76842105 | DL47: 54.49 | DM47: 42.87 | DN47: 54.915 | DP47: 2015-01-15 | DQ47: 14.1 | DR47: 17 | DS47: 5 | DT47: 2 | DV47: 14.815 | DW47: 13.185 | DX47: 3 | DY47: 1.5 | EA47: 2015-01-15 | EB47: 14.1 | EC47: 9.7 | ED47: 43.6 | EE47: 4.2 | EG47: 14.815 | EH47: 9.58 | EI47: 27.705 | EJ47: 2.66 | EL47: Marc.Staal | EM47: 17.34615385 | EN47: 550 | EO47: 8.423717949 | EP47: 35.69230769 | ER47: 17.51937559 | ES47: 523.225 | ET47: 7.976469425 | EU47: 36.38590067 | EW47: 2015-01-15 | EX47: 14.1 | EY47: 40.5 | EZ47: 29.2 | FA47: 3.7 | FC47: 14.815 | FD47: -1.784210526 | FE47: -12.04 | FF47: -5.865
A48: 2015-01-17 | B48: 5 | C48: 6 | D48: 3 | E48: 14 | H48: 2015-01-17 | I48: 13.4 | J48: 0 | K48: 0 | N48: 14.675 | O48: 3.33 | P48: 8.265 | S48: 2015-01-17 | T48: 13.4 | U48: 50.1 | V48: 38.3 | Y48: 14.675 | Z48: 47.97 | AA48: 53.23157895 | AD48: 2015-01-17 | AE48: 3.8 | AF48: 1 | AG48: -8.4 | AH48: 0 | AJ48: 2.625 | AK48: 0.8 | AL48: -0.2210526316 | AM48: 0.495 | AO48: 2015-01-17 | AP48: 1 | AQ48: 3 | AR48: -23.4 | AS48: 0 | AU48: 0.8 | AV48: 1.55 | AW48: -12.635 | AX48: 1.455 | AZ48: 2015-01-17 | BA48: 0 | BB48: 88.9 | BF48: 8.265 | BG48: 93.9 | BK48: 2015-01-17 | BL48: 14.4 | BM48: 8.4 | BN48: 1 | BO48: 0 | BQ48: 12.965 | BR48: 6.875 | BS48: 0.8 | BT48: 0.55 | BV48: 2015-01-17 | BW48: 17 | BX48: 25.9 | BY48: 64.7 | BZ48: 37.7 | CA48: 13.4 | CC48: 10.825 | CD48: 24.085 | CE48: 53.875 | CF48: 28.94 | CG48: 14.56 | CI48: 2015-01-17 | CJ48: 0 | CK48: 0 | CL48: 0 | CM48: 0 | CO48: 0.495 | CP48: 1.455 | CQ48: 0.5851125583 | CR48: 2.243161094 | CT48: 2015-01-17 | CU48: 38.3 | CV48: 46.7 | CW48: 32.1 | CX48: 55.6 | CZ48: 53.23157895 | DA48: 53.445 | DB48: 42.61 | DC48: 55.255 | DE48: 2015-01-17 | DF48: 38.3 | DG48: 46.7 | DH48: 32.1 | DI48: 55.6 | DK48: 53.23157895 | DL48: 53.445 | DM48: 42.61 | DN48: 55.255 | DP48: 2015-01-17 | DQ48: 13.4 | DR48: 14.4 | DS48: 5 | DT48: 3 | DV48: 14.675 | DW48: 12.965 | DX48: 3 | DY48: 1.55 | EA48: 2015-01-17 | EB48: 13.4 | EC48: 0 | ED48: 37.7 | EE48: 0 | EG48: 14.675 | EH48: 8.265 | EI48: 28.885 | EJ48: 2.475 | EL48: Nick.Leddy | EM48: 17.34540541 | EN48: 486.5 | EO48: 7.719459459 | EP48: 35.27675676 | ER48: 17.4979046 | ES48: 530.72 | ET48: 8.014097328 | EU48: 36.37698772 | EW48: 2015-01-17 | EX48: 13.4 | EY48: -8.4 | EZ48: -23.4 | FA48: -7.3 | FC48: 14.675 | FD48: -0.2210526316 | FE48: -12.635 | FF48: -5.935
A49: 2015-01-20 | B49: 5 | C49: 6 | D49: 3 | E49: 14 | H49: 2015-01-20 | I49: 13.2 | J49: 0 | K49: 0 | N49: 14.56 | O49: 3.33 | P49: 8.265 | S49: 2015-01-20 | T49: 13.2 | U49: 52.4 | V49: 38 | Y49: 14.56 | Z49: 47.565 | AA49: 52.76315789 | AD49: 2015-01-20 | AE49: 2 | AF49: 0 | AG49: -16.3 | AH49: 0 | AJ49: 2.68 | AK49: 0.75 | AL49: -0.7736842105 | AM49: 0.495 | AO49: 2015-01-20 | AP49: 0 | AQ49: 1 | AR49: -3.3 | AS49: 0 | AU49: 0.75 | AV49: 1.5 | AW49: -13.33 | AX49: 1.47 | AZ49: 2015-01-20 | BA49: 0 | BB49: 100 | BF49: 8.265 | BG49: 93.9 | BK49: 2015-01-20 | BL49: 12.8 | BM49: 7.6 | BN49: 1 | BO49: 0 | BQ49: 12.84 | BR49: 6.82 | BS49: 0.7 | BT49: 0.55 | BV49: 2015-01-20 | BW49: 9 | BX49: 20.7 | BY49: 58.3 | BZ49: 34.7 | CA49: 13.2 | CC49: 11.105 | CD49: 24.05 | CE49: 53.825 | CF49: 29.95 | CG49: 14.505 | CI49: 2015-01-20 | CJ49: 0 | CK49: 0 | CL49: 0 | CM49: 0 | CO49: 0.495 | CP49: 1.455 | CQ49: 0.5851125583 | CR49: 2.243161094 | CT49: 2015-01-20 | CU49: 38 | CV49: 54.3 | CW49: 37.5 | CX49: 40.8 | CZ49: 52.76315789 | DA49: 53.525 | DB49: 41.56 | DC49: 54.9 | DE49: 2015-01-20 | DF49: 38 | DG49: 54.3 | DH49: 37.5 | DI49: 40.8 | DK49: 52.76315789 | DL49: 53.525 | DM49: 41.56 | DN49: 54.9 | DP49: 2015-01-20 | DQ49: 13.2 | DR49: 12.8 | DS49: 2 | DT49: 1 | DV49: 14.56 | DW49: 12.84 | DX49: 2.95 | DY49: 1.5 | EA49: 2015-01-20 | EB49: 13.2 | EC49: 0 | ED49: 34.7 | EE49: 0 | EG49: 14.56 | EH49: 8.265 | EI49: 28.94 | EJ49: 2.475 | EL49: David.Savard | EM49: 17.30666667 | EN49: 516.6 | EO49: 9.151515152 | EP49: 36.47333333 | ER49: 17.47836532 | ES49: 527.805 | ET49: 8.151800474 | EU49: 36.37329281 | EW49: 2015-01-20 | EX49: 13.2 | EY49: -16.3 | EZ49: -3.3 | FA49: 7.2 | FC49: 14.56 | FD49: -0.7736842105 | FE49: -13.33 | FF49: -6.205
A50: 2015-01-21 | B50: 5 | C50: 7 | D50: 3 | E50: 15 | H50: 2015-01-21 | I50: 12.9 | J50: 0 | K50: 14 | N50: 14.505 | O50: 3.33 | P50: 7.295 | S50: 2015-01-21 | T50: 12.9 | U50: 61.1 | V50: 78.1 | Y50: 14.505 | Z50: 49.43 | AA50: 56.27368421 | AD50: 2015-01-21 | AE50: 3 | AF50: 1 | AG50: 34.4 | AH50: 0 | AJ50: 2.78 | AK50: 0.8 | AL50: 1.789473684 | AM50: 0.495 | AO50: 2015-01-21 | AP50: 1 | AQ50: 1 | AR50: 22.3 | AS50: 4.6 | AU50: 0.8 | AV50: 1.55 | AW50: -9.935 | AX50: 1.865 | AZ50: 2015-01-21 | BA50: 14 | BB50: 100 | BF50: 7.295 | BG50: 93.9 | BK50: 2015-01-21 | BL50: 19.4 | BM50: 7.1 | BN50: 2 | BO50: 0 | BQ50: 13.48 | BR50: 7.025 | BS50: 0.8 | BT50: 0.65 | BV50: 2015-01-21 | BW50: 13.9 | BX50: 39.5 | BY50: 89.9 | BZ50: 33.1 | CA50: 12.9 | CC50: 11.585 | CD50: 25.59 | CE50: 56.91 | CF50: 30.27 | CG50: 14.63 | CI50: 2015-01-21 | CJ50: 0 | CK50: 4.6 | CL50: 4.651162791 | CM50: 0 | CO50: 0.495 | CP50: 1.47 | CQ50: 0.8176706978 | CR50: 0.9574468085 | CT50: 2015-01-21 | CU50: 78.1 | CV50: 43.7 | CW50: 66.1 | CX50: 43.8 | CZ50: 56.27368421 | DA50: 54.425 | DB50: 44.23 | DC50: 54.175 | DE50: 2015-01-21 | DF50: 78.1 | DG50: 43.7 | DH50: 66.1 | DI50: 43.8 | DK50: 56.27368421 | DL50: 54.425 | DM50: 44.23 | DN50: 54.175 | DP50: 2015-01-21 | DQ50: 12.9 | DR50: 19.4 | DS50: 5 | DT50: 1 | DV50: 14.505 | DW50: 13.48 | DX50: 3.15 | DY50: 1.55 | EA50: 2015-01-21 | EB50: 12.9 | EC50: 14 | ED50: 33.1 | EE50: 4.6 | EG50: 14.505 | EH50: 7.295 | EI50: 29.95 | EJ50: 2.49 | EL50: Johnny.Oduya | EM50: 17.26363636 | EN50: 400 | EO50: 6.090340909 | EP50: 35.93068182 | ER50: 17.45727233 | ES50: 529.055 | ET50: 7.971355687 | EU50: 36.30985282 | EW50: 2015-01-21 | EX50: 12.9 | EY50: 34.4 | EZ50: 22.3 | FA50: 12.1 | FC50: 14.505 | FD50: 1.789473684 | FE50: -9.935 | FF50: -4.43
A51: 2015-01-29 | B51: 5 | C51: 8 | D51: 4 | E51: 17 | H51: 2015-01-29 | I51: 15.2 | J51: 0 | K51: 28.6 | N51: 14.63 | O51: 3.33 | P51: 7.615 | S51: 2015-01-29 | T51: 15.2 | U51: 42.7 | V51: 57.4 | Y51: 14.63 | Z51: 49.145 | AA51: 56.58421053 | AD51: 2015-01-29 | AE51: 3 | AF51: 0 | AG51: 27.8 | AH51: 0 | AJ51: 2.83 | AK51: 0.75 | AL51: 3.905263158 | AM51: 0.495 | AO51: 2015-01-29 | AP51: 0 | AQ51: 0 | AR51: -10.9 | AS51: 7.9 | AU51: 0.75 | AV51: 1.5 | AW51: -9.365 | AX51: 1.695 | AZ51: 2015-01-29 | BA51: 28.6 | BB51: 100 | BF51: 7.615 | BG51: 93.9 | BK51: 2015-01-29 | BL51: 14.1 | BM51: 7 | BN51: 1 | BO51: 2 | BQ51: 13.63 | BR51: 7.15 | BS51: 0.8 | BT51: 0.65 | BV51: 2015-01-29 | BW51: 11.7 | BX51: 23.7 | BY51: 55.8 | BZ51: 27.7 | CA51: 15.2 | CC51: 11.7 | CD51: 25.805 | CE51: 57.08 | CF51: 30.03 | CG51: 14.69 | CI51: 2015-01-29 | CJ51: 0 | CK51: 7.9 | CL51: 3.947368421 | CM51: 23.68421053 | CO51: 0.495 | CP51: 1.865 | CQ51: 1.015039119 | CR51: 2.141657335 | CT51: 2015-01-29 | CU51: 57.4 | CV51: 29.6 | CW51: 35 | CX51: 45.9 | CZ51: 56.58421053 | DA51: 52.705 | DB51: 44.165 | DC51: 53.54 | DE51: 2015-01-29 | DF51: 57.4 | DG51: 29.6 | DH51: 35 | DI51: 45.9 | DK51: 56.58421053 | DL51: 52.705 | DM51: 44.165 | DN51: 53.54 | DP51: 2015-01-29 | DQ51: 15.2 | DR51: 14.1 | DS51: 4 | DT51: 0 | DV51: 14.63 | DW51: 13.63 | DX51: 3.25 | DY51: 1.5 | EA51: 2015-01-29 | EB51: 15.2 | EC51: 28.6 | ED51: 27.7 | EE51: 7.9 | EG51: 14.63 | EH51: 7.615 | EI51: 30.27 | EJ51: 2.65 | EL51: Rasmus.Ristolainen | EM51: 17.24528302 | EN51: 258.3 | EO51: 6.098101266 | EP51: 35.2836478 | ER51: 17.43722879 | ES51: 531.555 | ET51: 7.938568443 | EU51: 36.2834387 | EW51: 2015-01-29 | EX51: 15.2 | EY51: 27.8 | EZ51: -10.9 | FA51: -10.1 | FC51: 14.63 | FD51: 3.905263158 | FE51: -9.365 | FF51: -4.59
A52: 2015-01-31 | B52: 5 | C52: 8 | D52: 4 | E52: 17 | H52: 2015-01-31 | I52: 19.1 | J52: 0 | K52: 0 | N52: 14.69 | O52: 3.33 | P52: 6.895 | S52: 2015-01-31 | T52: 19.1 | U52: 32.3 | V52: 0 | Y52: 14.69 | Z52: 48.845 | AA52: 54.89473684 | AD52: 2015-01-31 | AE52: 0 | AF52: 0 | AG52: -42.2 | AH52: 0 | AJ52: 2.66 | AK52: 0.7 | AL52: 3.463157895 | AM52: 0.71 | AO52: 2015-01-31 | AP52: 0 | AQ52: 0 | AR52: -43.8 | AS52: 0 | AU52: 0.7 | AV52: 1.4 | AW52: -9.875 | AX52: 1.91 | AZ52: 2015-01-31 | BA52: 0 | BB52: 100 | BF52: 6.895 | BG52: 94.435 | BK52: 2015-01-31 | BL52: 9.1 | BM52: 5.9 | BN52: 0 | BO52: 0 | BQ52: 13.465 | BR52: 7.1 | BS52: 0.75 | BT52: 0.65 | BV52: 2015-01-31 | BW52: 0 | BX52: 3.4 | BY52: 28.6 | BZ52: 18.4 | CA52: 19.1 | CC52: 11.125 | CD52: 24.945 | CE52: 56.44 | CF52: 30.085 | CG52: 14.67 | CI52: 2015-01-31 | CJ52: 0 | CK52: 0 | CL52: 0 | CM52: 0 | CO52: 0.495 | CP52: 1.695 | CQ52: 0.8474413535 | CR52: 2.141657335 | CT52: 2015-01-31 | CU52: 0 | CV52: 42.2 | CW52: 9.4 | CX52: 53.2 | CZ52: 54.89473684 | DA52: 51.525 | DB52: 43.17 | DC52: 53.055 | DE52: 2015-01-31 | DF52: 0 | DG52: 42.2 | DH52: 9.4 | DI52: 53.2 | DK52: 54.89473684 | DL52: 51.525 | DM52: 43.17 | DN52: 53.055 | DP52: 2015-01-31 | DQ52: 19.1 | DR52: 9.1 | DS52: 1 | DT52: 0 | DV52: 14.69 | DW52: 13.465 | DX52: 3.15 | DY52: 1.4 | EA52: 2015-01-31 | EB52: 19.1 | EC52: 0 | ED52: 18.4 | EE52: 0 | EG52: 14.69 | EH52: 6.895 | EI52: 30.03 | EJ52: 2.485 | EL52: Paul.Martin | EM52: 17.24350649 | EN52: 266.6 | EO52: 7.805194805 | EP52: 36.12792208 | ER52: 17.41739682 | ES52: 513.22 | ET52: 7.902331833 | EU52: 36.17395958 | EW52: 2015-01-31 | EX52: 19.1 | EY52: -42.2 | EZ52: -43.8 | FA52: -20.1 | FC52: 14.69 | FD52: 3.463157895 | FE52: -9.875 | FF52: -4.315
A53: 2015-02-04 | B53: 6 | C53: 8 | D53: 4 | E53: 18 | H53: 2015-02-04 | I53: 13.9 | J53: 50 | K53: 20.3 | N53: 14.67 | O53: 5.83 | P53: 7.91 | S53: 2015-02-04 | T53: 13.9 | U53: 57 | V53: 67.2 | Y53: 14.67 | Z53: 49.43 | AA53: 53.16842105 | AD53: 2015-02-04 | AE53: 2.1 | AF53: 0 | AG53: 30.1 | AH53: 4.3 | AJ53: 2.57 | AK53: 0.65 | AL53: 3.215789474 | AM53: 0.455 | AO53: 2015-02-04 | AP53: 0 | AQ53: 1 | AR53: 17.6 | AS53: 4.3 | AU53: 0.65 | AV53: 1.4 | AW53: -8.475 | AX53: 1.655 | AZ53: 2015-02-04 | BA53: 20.3 | BB53: 67.6 | BF53: 7.91 | BG53: 92.815 | BK53: 2015-02-04 | BL53: 11.8 | BM53: 4.9 | BN53: 1 | BO53: 0 | BQ53: 13.445 | BR53: 7.105 | BS53: 0.7 | BT53: 0.65 | BV53: 2015-02-04 | BW53: 8.9 | BX53: 17.3 | BY53: 50.9 | BZ53: 21.2 | CA53: 13.9 | CC53: 10.75 | CD53: 24.61 | CE53: 56.42 | CF53: 28.905 | CG53: 14.795 | CI53: 2015-02-04 | CJ53: 4.3 | CK53: 4.3 | CL53: 0 | CM53: 0 | CO53: 0.71 | CP53: 1.91 | CQ53: 0.8474413535 | CR53: 2.141657335 | CT53: 2015-02-04 | CU53: 67.2 | CV53: 37 | CW53: 39.5 | CX53: 21.9 | CZ53: 53.16842105 | DA53: 50.115 | DB53: 42.65 | DC53: 51.135 | DE53: 2015-02-04 | DF53: 67.2 | DG53: 37 | DH53: 39.5 | DI53: 21.9 | DK53: 53.16842105 | DL53: 50.115 | DM53: 42.65 | DN53: 51.135 | DP53: 2015-02-04 | DQ53: 13.9 | DR53: 11.8 | DS53: 3 | DT53: 1 | DV53: 14.67 | DW53: 13.445 | DX53: 3.15 | DY53: 1.4 | EA53: 2015-02-04 | EB53: 13.9 | EC53: 20.3 | ED53: 21.2 | EE53: 4.3 | EG53: 14.67 | EH53: 7.91 | EI53: 30.085 | EJ53: 2.7 | EL53: Andrej.Sekera | EM53: 17.24296296 | EN53: 300 | EO53: 7.241044776 | EP53: 35.32888889 | ER53: 17.3975386 | ES53: 480.285 | ET53: 7.834416123 | EU53: 36.13188212 | EW53: 2015-02-04 | EX53: 13.9 | EY53: 30.1 | EZ53: 17.6 | FA53: 21.4 | FC53: 14.67 | FD53: 3.215789474 | FE53: -8.475 | FF53: -2.75
A54: 2015-02-07 | B54: 6 | C54: 8 | D54: 4 | E54: 18 | H54: 2015-02-07 | I54: 14.2 | J54: 0 | K54: 0 | N54: 14.795 | O54: 4.165 | P54: 7.19 | S54: 2015-02-07 | T54: 14.2 | U54: 30.8 | V54: 12.9 | Y54: 14.795 | Z54: 48.895 | AA54: 50.55789474 | AD54: 2015-02-07 | AE54: 0.8 | AF54: 0 | AG54: -50.9 | AH54: 0 | AJ54: 2.45 | AK54: 0.55 | AL54: 0.5894736842 | AM54: 0.455 | AO54: 2015-02-07 | AP54: 0 | AQ54: 2 | AR54: -15.4 | AS54: 0 | AU54: 0.55 | AV54: 1.35 | AW54: -9.355 | AX54: 1.85 | AZ54: 2015-02-07 | BA54: 0 | BB54: 100 | BF54: 7.19 | BG54: 93.405 | BK54: 2015-02-07 | BL54: 6.8 | BM54: 2.8 | BN54: 1 | BO54: 0 | BQ54: 13.28 | BR54: 6.895 | BS54: 0.75 | BT54: 0.6 | BV54: 2015-02-07 | BW54: 3.5 | BX54: 24.1 | BY54: 28.7 | BZ54: 12 | CA54: 14.2 | CC54: 10.11 | CD54: 24.245 | CE54: 55.27 | CF54: 29.645 | CG54: 14.765 | CI54: 2015-02-07 | CJ54: 0 | CK54: 0 | CL54: 0 | CM54: 0 | CO54: 0.455 | CP54: 1.655 | CQ54: 0.8474413535 | CR54: 2.141657335 | CT54: 2015-02-07 | CU54: 12.9 | CV54: 63.8 | CW54: 40.2 | CX54: 55.6 | CZ54: 50.55789474 | DA54: 50.13 | DB54: 41.61 | DC54: 50.975 | DE54: 2015-02-07 | DF54: 12.9 | DG54: 63.8 | DH54: 40.2 | DI54: 55.6 | DK54: 50.55789474 | DL54: 50.13 | DM54: 41.61 | DN54: 50.975 | DP54: 2015-02-07 | DQ54: 14.2 | DR54: 6.8 | DS54: 2 | DT54: 2 | DV54: 14.795 | DW54: 13.28 | DX54: 3.1 | DY54: 1.35 | EA54: 2015-02-07 | EB54: 14.2 | EC54: 0 | ED54: 12 | EE54: 0 | EG54: 14.795 | EH54: 7.19 | EI54: 28.905 | EJ54: 2.445 | EL54: Brian.Campbell | EM54: 17.24295775 | EN54: 283.3 | EO54: 8.23028169 | EP54: 36.0084507 | ER54: 17.37912526 | ES54: 482.785 | ET54: 7.742409799 | EU54: 36.12404322 | EW54: 2015-02-07 | EX54: 14.2 | EY54: -50.9 | EZ54: -15.4 | FA54: -20.4 | FC54: 14.795 | FD54: 0.5894736842 | FE54: -9.355 | FF54: -3.54
A55: 2015-02-08 | B55: 6 | C55: 9 | D55: 4 | E55: 19 | H55: 2015-02-08 | I55: 15.4 | J55: 0 | K55: 11.3 | N55: 14.765 | O55: 4.165 | P55: 7.755 | S55: 2015-02-08 | T55: 15.4 | U55: 56.6 | V55: 56.6 | Y55: 14.765 | Z55: 50.165 | AA55: 51.77368421 | AD55: 2015-02-08 | AE55: 2.7 | AF55: 1 | AG55: 6.7 | AH55: 0 | AJ55: 2.415 | AK55: 0.55 | AL55: 1.563157895 | AM55: 0.455 | AO55: 2015-02-08 | AP55: 1 | AQ55: 2 | AR55: -1.1 | AS55: 3.9 | AU55: 0.55 | AV55: 1.3 | AW55: -8.86 | AX55: 2.065 | AZ55: 2015-02-08 | BA55: 11.3 | BB55: 100 | BF55: 7.755 | BG55: 93.79 | BK55: 2015-02-08 | BL55: 20.1 | BM55: 8.8 | BN55: 1 | BO55: 1 | BQ55: 13.82 | BR55: 7.075 | BS55: 0.8 | BT55: 0.55 | BV55: 2015-02-08 | BW55: 10.6 | BX55: 35 | BY55: 77.9 | BZ55: 34.3 | CA55: 15.4 | CC55: 10.005 | CD55: 24.44 | CE55: 57.425 | CF55: 29.2 | CG55: 14.755 | CI55: 2015-02-08 | CJ55: 0 | CK55: 3.9 | CL55: 3.896103896 | CM55: 0 | CO55: 0.455 | CP55: 1.85 | CQ55: 1.042246548 | CR55: 2.141657335 | CT55: 2015-02-08 | CU55: 56.6 | CV55: 49.9 | CW55: 53.7 | CX55: 54.8 | CZ55: 51.77368421 | DA55: 50.36 | DB55: 42.36 | DC55: 51.23 | DE55: 2015-02-08 | DF55: 56.6 | DG55: 49.9 | DH55: 53.7 | DI55: 54.8 | DK55: 51.77368421 | DL55: 50.36 | DM55: 42.36 | DN55: 51.23 | DP55: 2015-02-08 | DQ55: 15.4 | DR55: 20.1 | DS55: 3 | DT55: 2 | DV55: 14.765 | DW55: 13.82 | DX55: 3.05 | DY55: 1.3 | EA55: 2015-02-08 | EB55: 15.4 | EC55: 11.3 | ED55: 34.3 | EE55: 3.9 | EG55: 14.765 | EH55: 7.755 | EI55: 29.645 | EJ55: 2.64 | EL55: Morgan.Rielly | EM55: 17.20434783 | EN55: 458.2 | EO55: 6.601086957 | EP55: 36.45978261 | ER55: 17.36189042 | ES55: 462.45 | ET55: 7.554024656 | EU55: 36.04100093 | EW55: 2015-02-08 | EX55: 15.4 | EY55: 6.7 | EZ55: -1.1 | FA55: 3.6 | FC55: 14.765 | FD55: 1.563157895 | FE55: -8.86 | FF55: -2.76
A56: 2015-02-10 | B56: 6 | C56: 9 | D56: 5 | E56: 20 | H56: 2015-02-10 | I56: 13.8 | J56: 0 | K56: 18.9 | N56: 14.755 | O56: 4.165 | P56: 8.7 | S56: 2015-02-10 | T56: 13.8 | U56: 47.2 | V56: 29.8 | Y56: 14.755 | Z56: 50.5 | AA56: 49.88947368 | AD56: 2015-02-10 | AE56: 1 | AF56: 0 | AG56: -30.5 | AH56: 0 | AJ56: 2.37 | AK56: 0.55 | AL56: 0.01578947368 | AM56: 0.455 | AO56: 2015-02-10 | AP56: 0 | AQ56: 1 | AR56: 4.8 | AS56: 4.3 | AU56: 0.55 | AV56: 1.35 | AW56: -8.885 | AX56: 2.065 | AZ56: 2015-02-10 | BA56: 18.9 | BB56: 100 | BF56: 8.7 | BG56: 94.425 | BK56: 2015-02-10 | BL56: 10.7 | BM56: 5.3 | BN56: 0 | BO56: 0 | BQ56: 13.77 | BR56: 6.97 | BS56: 0.8 | BT56: 0.5 | BV56: 2015-02-10 | BW56: 4.3 | BX56: 19.2 | BY56: 46.3 | BZ56: 23 | CA56: 13.8 | CC56: 9.81 | CD56: 24.19 | CE56: 57.22 | CF56: 28.41 | CG56: 14.535 | CI56: 2015-02-10 | CJ56: 0 | CK56: 4.3 | CL56: 0 | CM56: 26.08695652 | CO56: 0.455 | CP56: 2.065 | CQ56: 1.042246548 | CR56: 3.446005161 | CT56: 2015-02-10 | CU56: 29.8 | CV56: 60.3 | CW56: 50.3 | CX56: 45.5 | CZ56: 49.88947368 | DA56: 50.04 | DB56: 42.45 | DC56: 51.345 | DE56: 2015-02-10 | DF56: 29.8 | DG56: 60.3 | DH56: 50.3 | DI56: 45.5 | DK56: 49.88947368 | DL56: 50.04 | DM56: 42.45 | DN56: 51.345 | DP56: 2015-02-10 | DQ56: 13.8 | DR56: 10.7 | DS56: 1 | DT56: 1 | DV56: 14.755 | DW56: 13.77 | DX56: 3.05 | DY56: 1.35 | EA56: 2015-02-10 | EB56: 13.8 | EC56: 18.9 | ED56: 23 | EE56: 4.3 | EG56: 14.755 | EH56: 8.7 | EI56: 29.2 | EJ56: 2.855 | EL56: Keith.Yandle | EM56: 17.19636364 | EN56: 308.3 | EO56: 7.568484848 | EP56: 35.30606061 | ER56: 17.34526975 | ES56: 459.115 | ET56: 7.535974079 | EU56: 35.97233366 | EW56: 2015-02-10 | EX56: 13.8 | EY56: -30.5 | EZ56: 4.8 | FA56: -2.7 | FC56: 14.755 | FD56: 0.01578947368 | FE56: -8.885 | FF56: -2.05
A57: 2015-02-13 | B57: 6 | C57: 9 | D57: 5 | E57: 20 | H57: 2015-02-13 | I57: 11.7 | J57: 0 | K57: 0 | N57: 14.535 | O57: 4.165 | P57: 8.7 | S57: 2015-02-13 | T57: 11.7 | U57: 48.6 | V57: 33 | Y57: 14.535 | Z57: 50.105 | AA57: 51.62631579 | AD57: 2015-02-13 | AE57: 0.9 | AF57: 0 | AG57: -29.6 | AH57: 0 | AJ57: 2.415 | AK57: 0.55 | AL57: 2.205263158 | AM57: 0.455 | AO57: 2015-02-13 | AP57: 0 | AQ57: 0 | AR57: -35.6 | AS57: 0 | AU57: 0.55 | AV57: 1.3 | AW57: -8.79 | AX57: 2.065 | AZ57: 2015-02-13 | BA57: 0 | BB57: 53.4 | BF57: 8.7 | BG57: 92.555 | BK57: 2015-02-13 | BL57: 10.3 | BM57: 2.9 | BN57: 1 | BO57: 0 | BQ57: 13.51 | BR57: 6.705 | BS57: 0.85 | BT57: 0.55 | BV57: 2015-02-13 | BW57: 4.8 | BX57: 13.9 | BY57: 52.9 | BZ57: 14.6 | CA57: 11.7 | CC57: 10.05 | CD57: 24.08 | CE57: 56.97 | CF57: 30.36 | CG57: 14.52 | CI57: 2015-02-13 | CJ57: 0 | CK57: 0 | CL57: 0 | CM57: 0 | CO57: 0.455 | CP57: 2.065 | CQ57: 1.042246548 | CR57: 3.446005161 | CT57: 2015-02-13 | CU57: 33 | CV57: 62.6 | CW57: 25.1 | CX57: 60.7 | CZ57: 51.62631579 | DA57: 49.61 | DB57: 42.23 | DC57: 51.025 | DE57: 2015-02-13 | DF57: 33 | DG57: 62.6 | DH57: 25.1 | DI57: 60.7 | DK57: 51.62631579 | DL57: 49.61 | DM57: 42.23 | DN57: 51.025 | DP57: 2015-02-13 | DQ57: 11.7 | DR57: 10.3 | DS57: 2 | DT57: 0 | DV57: 14.535 | DW57: 13.51 | DX57: 3 | DY57: 1.3 | EA57: 2015-02-13 | EB57: 11.7 | EC57: 0 | ED57: 14.6 | EE57: 0 | EG57: 14.535 | EH57: 8.7 | EI57: 28.41 | EJ57: 2.855 | EL57: Jeff.Petry | EM57: 17.17984496 | EN57: 666.7 | EO57: 6.491472868 | EP57: 35.56511628 | ER57: 17.32838788 | ES57: 450.79 | ET57: 7.436596673 | EU57: 35.94764147 | EW57: 2015-02-13 | EX57: 11.7 | EY57: -29.6 | EZ57: -35.6 | FA57: -1.8 | FC57: 14.535 | FD57: 2.205263158 | FE57: -8.79 | FF57: -1.48
A58: 2015-02-16 | B58: 6 | C58: 9 | D58: 5 | E58: 20 | H58: 2015-02-16 | I58: 16 | J58: 0 | K58: 8.8 | N58: 14.52 | O58: 4.165 | P58: 9.14 | S58: 2015-02-16 | T58: 16 | U58: 69 | V58: 53 | Y58: 14.52 | Z58: 52.215 | AA58: 49.15263158 | AD58: 2015-02-16 | AE58: 3.3 | AF58: 1 | AG58: -0.2 | AH58: 0 | AJ58: 2.53 | AK58: 0.6 | AL58: -1.531578947 | AM58: 0.455 | AO58: 2015-02-16 | AP58: 1 | AQ58: 2 | AR58: 8.1 | AS58: 0 | AU58: 0.6 | AV58: 1.35 | AW58: -7.85 | AX58: 2.065 | AZ58: 2015-02-16 | BA58: 8.8 | BB58: 100 | BF58: 9.14 | BG58: 92.555 | BK58: 2015-02-16 | BL58: 20.8 | BM58: 11.4 | BN58: 1 | BO58: 1 | BQ58: 14.35 | BR58: 7.23 | BS58: 0.8 | BT58: 0.6 | BV58: 2015-02-16 | BW58: 12.5 | BX58: 39.3 | BY58: 77.8 | BZ58: 42.5 | CA58: 16 | CC58: 10.5 | CD58: 25.695 | CE58: 60.12 | CF58: 29.485 | CG58: 14.745 | CI58: 2015-02-16 | CJ58: 0 | CK58: 0 | CL58: 0 | CM58: 0 | CO58: 0.455 | CP58: 2.065 | CQ58: 1.042246548 | CR58: 3.446005161 | CT58: 2015-02-16 | CU58: 53 | CV58: 53.2 | CW58: 61.3 | CX58: 53.1 | CZ58: 49.15263158 | DA58: 50.81 | DB58: 43.61 | DC58: 51.46 | DE58: 2015-02-16 | DF58: 53 | DG58: 53.2 | DH58: 61.3 | DI58: 53.1 | DK58: 49.15263158 | DL58: 50.81 | DM58: 43.61 | DN58: 51.46 | DP58: 2015-02-16 | DQ58: 16 | DR58: 20.8 | DS58: 5 | DT58: 2 | DV58: 14.52 | DW58: 14.35 | DX58: 3.15 | DY58: 1.35 | EA58: 2015-02-16 | EB58: 16 | EC58: 8.8 | ED58: 42.5 | EE58: 3.7 | EG58: 14.52 | EH58: 9.14 | EI58: 30.36 | EJ58: 3.04 | EL58: Adam.Larsson | EM58: 17.11653543 | EN58: 325 | EO58: 7.503149606 | EP58: 35.64251969 | ER58: 17.30885101 | ES58: 457.04 | ET58: 7.361572335 | EU58: 35.91311584 | EW58: 2015-02-16 | EX58: 16 | EY58: -0.2 | EZ58: 8.1 | FA58: 17.4 | FC58: 14.52 | FD58: -1.531578947 | FE58: -7.85 | FF58: 0.885
A59: 2015-02-18 | B59: 6 | C59: 9 | D59: 5 | E59: 20 | H59: 2015-02-18 | I59: 16.1 | J59: 0 | K59: 16.7 | N59: 14.745 | O59: 4.165 | P59: 9.975 | S59: 2015-02-18 | T59: 16.1 | U59: 42.4 | V59: 32.5 | Y59: 14.745 | Z59: 51.3 | AA59: 48.09473684 | AD59: 2015-02-18 | AE59: 2 | AF59: 1 | AG59: -51.1 | AH59: 0 | AJ59: 2.525 | AK59: 0.55 | AL59: -4.973684211 | AM59: 0.455 | AO59: 2015-02-18 | AP59: 1 | AQ59: 3 | AR59: -35.6 | AS59: 0 | AU59: 0.55 | AV59: 1.4 | AW59: -8.96 | AX59: 1.89 | AZ59: 2015-02-18 | BA59: 16.7 | BB59: 90.9 | BF59: 9.975 | BG59: 92.705 | BK59: 2015-02-18 | BL59: 13 | BM59: 6 | BN59: 2 | BO59: 1 | BQ59: 14.36 | BR59: 7.145 | BS59: 0.9 | BT59: 0.6 | BV59: 2015-02-18 | BW59: 7.4 | BX59: 29.8 | BY59: 48.3 | BZ59: 22.3 | CA59: 16.1 | CC59: 10.325 | CD59: 25.575 | CE59: 59.215 | CF59: 29.345 | CG59: 14.51 | CI59: 2015-02-18 | CJ59: 0 | CK59: 0 | CL59: 0 | CM59: 0 | CO59: 0.455 | CP59: 2.065 | CQ59: 1.042246548 | CR59: 3.446005161 | CT59: 2015-02-18 | CU59: 32.5 | CV59: 83.6 | CW59: 43.9 | CX59: 79.5 | CZ59: 48.09473684 | DA59: 53.075 | DB59: 43.43 | DC59: 52.39 | DE59: 2015-02-18 | DF59: 32.5 | DG59: 83.6 | DH59: 43.9 | DI59: 79.5 | DK59: 48.09473684 | DL59: 53.075 | DM59: 43.43 | DN59: 52.39 | DP59: 2015-02-18 | DQ59: 16.1 | DR59: 13 | DS59: 5 | DT59: 3 | DV59: 14.745 | DW59: 14.36 | DX59: 3.25 | DY59: 1.4 | EA59: 2015-02-18 | EB59: 16.1 | EC59: 16.7 | ED59: 22.3 | EE59: 3.7 | EG59: 14.745 | EH59: 9.975 | EI59: 29.485 | EJ59: 3.225 | EL59: Jake.Gardiner | EM59: 17.07039106 | EN59: 750 | EO59: 6.293258427 | EP59: 36.1698324 | ER59: 17.28706884 | ES59: 473.795 | ET59: 7.369855946 | EU59: 35.91825888 | EW59: 2015-02-18 | EX59: 16.1 | EY59: -51.1 | EZ59: -35.6 | FA59: -22.8 | FC59: 14.745 | FD59: -4.973684211 | FE59: -8.96 | FF59: -0.63
A60: 2015-02-20 | B60: 6 | C60: 9 | D60: 5 | E60: 20 | H60: 2015-02-20 | I60: 12.2 | J60: 0 | K60: 0 | N60: 14.51 | O60: 4.165 | P60: 8.675 | S60: 2015-02-20 | T60: 12.2 | U60: 43.4 | Y60: 14.51 | Z60: 50.71 | AA60: 47.74444444 | AD60: 2015-02-20 | AE60: 0 | AF60: 0 | AH60: 0 | AJ60: 2.34 | AK60: 0.5 | AL60: -5.205555556 | AM60: 0.675 | AO60: 2015-02-20 | AP60: 0 | AQ60: 0 | AR60: -8.3 | AS60: 0 | AU60: 0.5 | AV60: 1.3 | AW60: -8.88 | AX60: 2.11 | AZ60: 2015-02-20 | BA60: 0 | BB60: 100 | BF60: 8.675 | BG60: 93.415 | BK60: 2015-02-20 | BL60: 7.9 | BM60: 5 | BN60: 0 | BO60: 0 | BQ60: 13.835 | BR60: 7.01 | BS60: 0.75 | BT60: 0.55 | BV60: 2015-02-20 | BW60: 0 | BX60: 20.5 | BY60: 38.6 | BZ60: 24.5 | CA60: 12.2 | CC60: 9.67 | CD60: 25.425 | CE60: 57.885 | CF60: 29.975 | CG60: 14.52 | CI60: 2015-02-20 | CJ60: 0 | CK60: 0 | CL60: 0 | CM60: 0 | CO60: 0.455 | CP60: 1.89 | CQ60: 0.8647317554 | CR60: 3.446005161 | CT60: 2015-02-20 | CV60: 100 | CW60: 44.8 | CX60: 53.1 | CZ60: 47.74444444 | DA60: 55.315 | DB60: 43.595 | DC60: 52.475 | DE60: 2015-02-20 | DG60: 100 | DH60: 44.8 | DI60: 53.1 | DK60: 47.74444444 | DL60: 55.315 | DM60: 43.595 | DN60: 52.475 | DP60: 2015-02-20 | DQ60: 12.2 | DR60: 7.9 | DS60: 0 | DT60: 0 | DV60: 14.51 | DW60: 13.835 | DX60: 3.05 | DY60: 1.3 | EA60: 2015-02-20 | EB60: 12.2 | EC60: 0 | ED60: 24.5 | EE60: 0 | EG60: 14.51 | EH60: 8.675 | EI60: 29.345 | EJ60: 2.87 | EL60: Jacob.Trouba | EM60: 17.05448276 | EN60: 419.9 | EO60: 7.259310345 | EP60: 36.32137931 | ER60: 17.26689174 | ES60: 489.79 | ET60: 7.407142451 | EU60: 35.91638671 | EW60: 2015-02-20 | EX60: 12.2 | EZ60: -8.3 | FA60: -15.4 | FC60: 14.51 | FD60: -5.205555556 | FE60: -8.88 | FF60: -1.59
A61: 2015-02-22 | B61: 7 | C61: 9 | D61: 5 | E61: 21 | H61: 2015-02-22 | I61: 13.5 | J61: 33.3 | K61: 13.2 | N61: 14.52 | O61: 5.83 | P61: 9.335 | S61: 2015-02-22 | T61: 13.5 | U61: 44.4 | V61: 38.8 | Y61: 14.52 | Z61: 50.87 | AA61: 49.9 | AD61: 2015-02-22 | AE61: 2.8 | AF61: 1 | AG61: -16.6 | AH61: 4.4 | AJ61: 2.48 | AK61: 0.55 | AL61: -2.733333333 | AM61: 0.675 | AO61: 2015-02-22 | AP61: 1 | AQ61: 2 | AR61: -14.7 | AS61: 4.4 | AU61: 0.55 | AV61: 1.4 | AW61: -8.195 | AX61: 2.11 | AZ61: 2015-02-22 | BA61: 13.2 | BB61: 100 | BF61: 9.335 | BG61: 93.415 | BK61: 2015-02-22 | BL61: 10.2 | BM61: 7.6 | BN61: 0 | BO61: 0 | BQ61: 13.965 | BR61: 7.16 | BS61: 0.75 | BT61: 0.45 | BV61: 2015-02-22 | BW61: 12.6 | BX61: 22.7 | BY61: 45.3 | BZ61: 33.5 | CA61: 13.5 | CC61: 10.3 | CD61: 26.13 | CE61: 58.43 | CF61: 29.835 | CG61: 14.32 | CI61: 2015-02-22 | CJ61: 4.4 | CK61: 4.4 | CL61: 0 | CM61: 0 | CO61: 0.675 | CP61: 2.11 | CQ61: 0.8647317554 | CR61: 3.446005161 | CT61: 2015-02-22 | CU61: 38.8 | CV61: 55.4 | CW61: 48.6 | CX61: 63.3 | CZ61: 49.9 | DA61: 55.03 | DB61: 44.355 | DC61: 52.55 | DE61: 2015-02-22 | DF61: 38.8 | DG61: 55.4 | DH61: 48.6 | DI61: 63.3 | DK61: 49.9 | DL61: 55.03 | DM61: 44.355 | DN61: 52.55 | DP61: 2015-02-22 | DQ61: 13.5 | DR61: 10.2 | DS61: 3 | DT61: 2 | DV61: 14.52 | DW61: 13.965 | DX61: 3.1 | DY61: 1.4 | EA61: 2015-02-22 | EB61: 13.5 | EC61: 13.2 | ED61: 33.5 | EE61: 4.4 | EG61: 14.52 | EH61: 9.335 | EI61: 29.975 | EJ61: 3.09 | EL61: John.Carlson | EM61: 17.04855072 | EN61: 653.2 | EO61: 9.202898551 | EP61: 35.58550725 | ER61: 17.24899141 | ES61: 512.45 | ET61: 7.504131641 | EU61: 35.83040541 | EW61: 2015-02-22 | EX61: 13.5 | EY61: -16.6 | EZ61: -14.7 | FA61: -13.1 | FC61: 14.52 | FD61: -2.733333333 | FE61: -8.195 | FF61: -1.245
A62: 2015-02-24 | B62: 7 | C62: 9 | D62: 5 | E62: 21 | H62: 2015-02-24 | I62: 12.6 | J62: 0 | K62: 0 | N62: 14.32 | O62: 5.83 | P62: 9.335 | S62: 2015-02-24 | T62: 12.6 | U62: 60.5 | V62: 56.7 | Y62: 14.32 | Z62: 51.375 | AA62: 50.35555556 | AD62: 2015-02-24 | AE62: 2.7 | AF62: 2 | AG62: -18.6 | AH62: 0 | AJ62: 2.41 | AK62: 0.65 | AL62: -4.072222222 | AM62: 0.675 | AO62: 2015-02-24 | AP62: 2 | AQ62: 3 | AR62: -19.4 | AS62: 0 | AU62: 0.65 | AV62: 1.45 | AW62: -9.425 | AX62: 1.95 | AZ62: 2015-02-24 | BA62: 0 | BB62: 100 | BF62: 9.335 | BG62: 94.155 | BK62: 2015-02-24 | BL62: 13.8 | BM62: 4.5 | BN62: 3 | BO62: 0 | BQ62: 13.935 | BR62: 7.05 | BS62: 0.9 | BT62: 0.45 | BV62: 2015-02-24 | BW62: 13.1 | BX62: 21.5 | BY62: 65.9 | BZ62: 21.4 | CA62: 12.6 | CC62: 10.21 | CD62: 25.77 | CE62: 59.125 | CF62: 30.425 | CG62: 14.08 | CI62: 2015-02-24 | CJ62: 0 | CK62: 0 | CL62: 0 | CM62: 0 | CO62: 0.675 | CP62: 2.11 | CQ62: 0.8647317554 | CR62: 3.446005161 | CT62: 2015-02-24 | CU62: 56.7 | CV62: 75.3 | CW62: 39.3 | CX62: 58.7 | CZ62: 50.35555556 | DA62: 56.64 | DB62: 43.87 | DC62: 53.295 | DE62: 2015-02-24 | DF62: 56.7 | DG62: 75.3 | DH62: 39.3 | DI62: 58.7 | DK62: 50.35555556 | DL62: 56.64 | DM62: 43.87 | DN62: 53.295 | DP62: 2015-02-24 | DQ62: 12.6 | DR62: 13.8 | DS62: 4 | DT62: 3 | DV62: 14.32 | DW62: 13.935 | DX62: 3.05 | DY62: 1.45 | EA62: 2015-02-24 | EB62: 12.6 | EC62: 0 | ED62: 21.4 | EE62: 0 | EG62: 14.32 | EH62: 9.335 | EI62: 29.835 | EJ62: 3.09 | EL62: Daniel.Girardi | EM62: 17.04193548 | EN62: 300 | EO62: 9.362580645 | EP62: 34.88709677 | ER62: 17.23129827 | ES62: 486.205 | ET62: 7.643647228 | EU62: 35.71870174 | EW62: 2015-02-24 | EX62: 12.6 | EY62: -18.6 | EZ62: -19.4 | FA62: 4.3 | FC62: 14.32 | FD62: -4.072222222 | FE62: -9.425 | FF62: -1.525
A63: 2015-02-27 | B63: 7 | C63: 9 | D63: 5 | E63: 21 | H63: 2015-02-27 | I63: 14 | J63: 0 | K63: 0 | N63: 14.08 | O63: 5.83 | P63: 8.09 | S63: 2015-02-27 | T63: 14 | U63: 62.5 | V63: 43.9 | Y63: 14.08 | Z63: 51.99 | AA63: 49.17222222 | AD63: 2015-02-27 | AE63: 3.3 | AF63: 0 | AG63: 0 | AH63: 0 | AJ63: 2.29 | AK63: 0.55 | AL63: -6.305555556 | AM63: 0.93 | AO63: 2015-02-27 | AP63: 0 | AQ63: 1 | AR63: -8 | AS63: 0 | AU63: 0.55 | AV63: 1.4 | AW63: -10.32 | AX63: 2.205 | AZ63: 2015-02-27 | BA63: 0 | BB63: 100 | BF63: 8.09 | BG63: 94.155 | BK63: 2015-02-27 | BL63: 19.6 | BM63: 8.7 | BN63: 0 | BO63: 1 | BQ63: 13.995 | BR63: 7.085 | BS63: 0.8 | BT63: 0.45 | BV63: 2015-02-27 | BW63: 14.1 | BX63: 38.5 | BY63: 84 | BZ63: 37.4 | CA63: 14 | CC63: 10.005 | CD63: 25.96 | CE63: 60.395 | CF63: 30.11 | CG63: 14.02 | CI63: 2015-02-27 | CJ63: 0 | CK63: 0 | CL63: 0 | CM63: 0 | CO63: 0.675 | CP63: 1.95 | CQ63: 0.8647317554 | CR63: 2.488558352 | CT63: 2015-02-27 | CU63: 43.9 | CV63: 43.9 | CW63: 52.4 | CX63: 60.4 | CZ63: 49.17222222 | DA63: 57.585 | DB63: 43.86 | DC63: 54.18 | DE63: 2015-02-27 | DF63: 43.9 | DG63: 43.9 | DH63: 52.4 | DI63: 60.4 | DK63: 49.17222222 | DL63: 57.585 | DM63: 43.86 | DN63: 54.18 | DP63: 2015-02-27 | DQ63: 14 | DR63: 19.6 | DS63: 3 | DT63: 1 | DV63: 14.08 | DW63: 13.995 | DX63: 3 | DY63: 1.4 | EA63: 2015-02-27 | EB63: 14 | EC63: 0 | ED63: 37.4 | EE63: 0 | EG63: 14.08 | EH63: 8.09 | EI63: 30.425 | EJ63: 2.77 | EL63: Jake.McCabe | EM63: 17.00512821 | EN63: 150 | EO63: 6.770512821 | EP63: 34.95384615 | ER63: 17.21202448 | ES63: 428.96 | ET63: 7.556669513 | EU63: 35.67096713 | EW63: 2015-02-27 | EX63: 14 | EY63: 0 | EZ63: -8 | FA63: 4.6 | FC63: 14.08 | FD63: -6.305555556 | FE63: -10.32 | FF63: -1.96
A64: 2015-02-28 | B64: 8 | C64: 9 | D64: 5 | E64: 22 | H64: 2015-02-28 | I64: 11.8 | J64: 33.3 | K64: 15.9 | N64: 14.02 | O64: 7.495 | P64: 8.885 | S64: 2015-02-28 | T64: 11.8 | U64: 31.8 | V64: 48 | Y64: 14.02 | Z64: 50.435 | AA64: 47.95 | AD64: 2015-02-28 | AE64: 1.9 | AF64: 2 | AG64: -6.6 | AH64: 5.1 | AJ64: 2.155 | AK64: 0.65 | AL64: -6.35 | AM64: 1.17 | AO64: 2015-02-28 | AP64: 2 | AQ64: 2 | AR64: -22.3 | AS64: 5.1 | AU64: 0.65 | AV64: 1.5 | AW64: -10.31 | AX64: 2.445 | AZ64: 2015-02-28 | BA64: 15.9 | BB64: 91.7 | BF64: 8.885 | BG64: 93.74 | BK64: 2015-02-28 | BL64: 8.6 | BM64: 6.3 | BN64: 0 | BO64: 0 | BQ64: 13.635 | BR64: 6.985 | BS64: 0.8 | BT64: 0.6 | BV64: 2015-02-28 | BW64: 9.8 | BX64: 19.9 | BY64: 44 | BZ64: 32 | CA64: 11.8 | CC64: 9.425 | CD64: 25.23 | CE64: 58.95 | CF64: 30.825 | CG64: 13.9 | CI64: 2015-02-28 | CJ64: 5.1 | CK64: 5.1 | CL64: 0 | CM64: 0 | CO64: 0.93 | CP64: 2.205 | CQ64: 0.8647317554 | CR64: 2.488558352 | CT64: 2015-02-28 | CU64: 48 | CV64: 54.5 | CW64: 36.9 | CX64: 59.2 | CZ64: 47.95 | DA64: 56.52 | DB64: 43.21 | DC64: 53.525 | DE64: 2015-02-28 | DF64: 48 | DG64: 54.5 | DH64: 36.9 | DI64: 59.2 | DK64: 47.95 | DL64: 56.52 | DM64: 43.21 | DN64: 53.525 | DP64: 2015-02-28 | DQ64: 11.8 | DR64: 8.6 | DS64: 3 | DT64: 2 | DV64: 14.02 | DW64: 13.635 | DX64: 3.15 | DY64: 1.5 | EA64: 2015-02-28 | EB64: 11.8 | EC64: 15.9 | ED64: 32 | EE64: 5.1 | EG64: 14.02 | EH64: 8.885 | EI64: 30.11 | EJ64: 3.025 | EL64: Ryan.McDonagh | EM64: 16.97142857 | EN64: 478.3 | EO64: 10.22016129 | EP64: 34.76428571 | ER64: 17.19194627 | ES64: 419.96 | ET64: 7.594830862 | EU64: 35.67161066 | EW64: 2015-02-28 | EX64: 11.8 | EY64: -6.6 | EZ64: -22.3 | FA64: -24.5 | FC64: 14.02 | FD64: -6.35 | FE64: -10.31 | FF64: -2.875
A65: 2015-03-05 | B65: 9 | C65: 9 | D65: 5 | E65: 23 | H65: 2015-03-05 | I65: 12.4 | J65: 100 | K65: 15.1 | N65: 13.9 | O65: 12.495 | P65: 9.64 | S65: 2015-03-05 | T65: 12.4 | U65: 72.9 | V65: 64 | Y65: 13.9 | Z65: 52.25 | AA65: 48.79473684 | AD65: 2015-03-05 | AE65: 1.8 | AF65: 0 | AG65: -23.6 | AH65: 4.8 | AJ65: 2.245 | AK65: 0.65 | AL65: -7.257894737 | AM65: 0.93 | AO65: 2015-03-05 | AP65: 0 | AQ65: 3 | AR65: 13.8 | AS65: 4.8 | AU65: 0.65 | AV65: 1.65 | AW65: -6.395 | AX65: 1.965 | AZ65: 2015-03-05 | BA65: 15.1 | BB65: 100 | BF65: 9.64 | BG65: 93.74 | BK65: 2015-03-05 | BL65: 24.9 | BM65: 6.6 | BN65: 1 | BO65: 3 | BQ65: 14.525 | BR65: 7.095 | BS65: 0.85 | BT65: 0.6 | BV65: 2015-03-05 | BW65: 8.9 | BX65: 61.7 | BY65: 120.3 | BZ65: 31.9 | CA65: 12.4 | CC65: 9.87 | CD65: 28.315 | CE65: 63.535 | CF65: 28.185 | CG65: 13.91 | CI65: 2015-03-05 | CJ65: 4.8 | CK65: 4.8 | CL65: 0 | CM65: 0 | CO65: 1.17 | CP65: 2.445 | CQ65: 0.8647317554 | CR65: 2.488558352 | CT65: 2015-03-05 | CU65: 64 | CV65: 87.6 | CW65: 75.9 | CX65: 62.1 | CZ65: 48.79473684 | DA65: 58.24 | DB65: 47.005 | DC65: 53.405 | DE65: 2015-03-05 | DF65: 64 | DG65: 87.6 | DH65: 75.9 | DI65: 62.1 | DK65: 48.79473684 | DL65: 58.24 | DM65: 47.005 | DN65: 53.405 | DP65: 2015-03-05 | DQ65: 12.4 | DR65: 24.9 | DS65: 5 | DT65: 3 | DV65: 13.9 | DW65: 14.525 | DX65: 3.3 | DY65: 1.65 | EA65: 2015-03-05 | EB65: 12.4 | EC65: 15.1 | ED65: 31.9 | EE65: 4.8 | EG65: 13.9 | EH65: 9.64 | EI65: 30.825 | EJ65: 3.265 | EL65: Hampus.Lindholm | EM65: 16.92484076 | EN65: 483.3 | EO65: 7.773248408 | EP65: 35.5611465 | ER65: 17.16998141 | ES65: 417.71 | ET65: 7.646045007 | EU65: 35.65176786 | EW65: 2015-03-05 | EX65: 12.4 | EY65: -23.6 | EZ65: 13.8 | FA65: 9.9 | FC65: 13.9 | FD65: -7.257894737 | FE65: -6.395 | FF65: -1.68
A66: 2015-03-07 | B66: 9 | C66: 9 | D66: 5 | E66: 23 | H66: 2015-03-07 | I66: 12.7 | J66: 0 | K66: 0 | N66: 13.91 | O66: 10.83 | P66: 8.625 | S66: 2015-03-07 | T66: 12.7 | U66: 43.1 | V66: 40.9 | Y66: 13.91 | Z66: 50.56 | AA66: 46.79473684 | AD66: 2015-03-07 | AE66: 2.9 | AF66: 1 | AG66: -20.3 | AH66: 0 | AJ66: 2.2 | AK66: 0.6 | AL66: -9.231578947 | AM66: 0.93 | AO66: 2015-03-07 | AP66: 1 | AQ66: 2 | AR66: 12.9 | AS66: 0 | AU66: 0.6 | AV66: 1.55 | AW66: -6.655 | AX66: 1.965 | AZ66: 2015-03-07 | BA66: 0 | BB66: 100 | BF66: 8.625 | BG66: 94.625 | BK66: 2015-03-07 | BL66: 10.9 | BM66: 3.8 | BN66: 0 | BO66: 1 | BQ66: 13.81 | BR66: 6.545 | BS66: 0.8 | BT66: 0.5 | BV66: 2015-03-07 | BW66: 13.7 | BX66: 35.2 | BY66: 51.3 | BZ66: 17.9 | CA66: 12.7 | CC66: 9.635 | CD66: 27.255 | CE66: 60.08 | CF66: 27.35 | CG66: 13.74 | CI66: 2015-03-07 | CJ66: 0 | CK66: 0 | CL66: 0 | CM66: 0 | CO66: 0.93 | CP66: 1.965 | CQ66: 0.6247317554 | CR66: 2.488558352 | CT66: 2015-03-07 | CU66: 40.9 | CV66: 61.2 | CW66: 58.8 | CX66: 46 | CZ66: 46.79473684 | DA66: 58.215 | DB66: 46.59 | DC66: 53.25 | DE66: 2015-03-07 | DF66: 40.9 | DG66: 61.2 | DH66: 58.8 | DI66: 46 | DK66: 46.79473684 | DL66: 58.215 | DM66: 46.59 | DN66: 53.25 | DP66: 2015-03-07 | DQ66: 12.7 | DR66: 10.9 | DS66: 2 | DT66: 2 | DV66: 13.91 | DW66: 13.81 | DX66: 3.15 | DY66: 1.55 | EA66: 2015-03-07 | EB66: 12.7 | EC66: 0 | ED66: 17.9 | EE66: 0 | EG66: 13.91 | EH66: 8.625 | EI66: 28.185 | EJ66: 2.545 | EL66: Michael.Stone | EM66: 16.88525641 | EN66: 450 | EO66: 6.238064516 | EP66: 35.69679487 | ER66: 17.14678392 | ES66: 425.21 | ET66: 7.602194264 | EU66: 35.59347601 | EW66: 2015-03-07 | EX66: 12.7 | EY66: -20.3 | EZ66: 12.9 | FA66: -10.2 | FC66: 13.91 | FD66: -9.231578947 | FE66: -6.655 | FF66: -3.21
A67: 2015-03-08 | B67: 9 | C67: 9 | D67: 5 | E67: 23 | H67: 2015-03-08 | I67: 10.7 | J67: 0 | K67: 0 | N67: 13.74 | O67: 10.83 | P67: 8.14 | S67: 2015-03-08 | T67: 10.7 | U67: 23.2 | V67: 21.4 | Y67: 13.74 | Z67: 48.6 | AA67: 42.65789474 | AD67: 2015-03-08 | AE67: 2.1 | AF67: 2 | AG67: -27.5 | AH67: 0 | AJ67: 2.105 | AK67: 0.65 | AL67: -12.81052632 | AM67: 0.93 | AO67: 2015-03-08 | AP67: 2 | AQ67: 2 | AR67: -33.4 | AS67: 0 | AU67: 0.65 | AV67: 1.55 | AW67: -9.785 | AX67: 2.29 | AZ67: 2015-03-08 | BA67: 0 | BB67: 85.5 | BF67: 8.14 | BG67: 93.9 | BK67: 2015-03-08 | BL67: 6.9 | BM67: 4.8 | BN67: 1 | BO67: 0 | BQ67: 13.305 | BR67: 6.27 | BS67: 0.85 | BT67: 0.55 | BV67: 2015-03-08 | BW67: 11.7 | BX67: 16.9 | BY67: 38.5 | BZ67: 26.9 | CA67: 10.7 | CC67: 9.375 | CD67: 26.435 | CE67: 58.4 | CF67: 26.825 | CG67: 13.53 | CI67: 2015-03-08 | CJ67: 0 | CK67: 0 | CL67: 0 | CM67: 0 | CO67: 0.93 | CP67: 1.965 | CQ67: 0.6247317554 | CR67: 2.488558352 | CT67: 2015-03-08 | CU67: 21.4 | CV67: 48.9 | CW67: 19.3 | CX67: 52.7 | CZ67: 42.65789474 | DA67: 57.685 | DB67: 43.505 | DC67: 53.295 | DE67: 2015-03-08 | DF67: 21.4 | DG67: 48.9 | DH67: 19.3 | DI67: 52.7 | DK67: 42.65789474 | DL67: 57.685 | DM67: 43.505 | DN67: 53.295 | DP67: 2015-03-08 | DQ67: 10.7 | DR67: 6.9 | DS67: 2 | DT67: 2 | DV67: 13.74 | DW67: 13.305 | DX67: 3 | DY67: 1.55 | EA67: 2015-03-08 | EB67: 10.7 | EC67: 0 | ED67: 26.9 | EE67: 0 | EG67: 13.74 | EH67: 8.14 | EI67: 27.35 | EJ67: 2.335 | EL67: Calvin.De.Haan | EM67: 16.86911765 | EN67: 150 | EO67: 7.157037037 | EP67: 34.52647059 | ER67: 17.12293211 | ES67: 405.21 | ET67: 7.538860219 | EU67: 35.63421832 | EW67: 2015-03-08 | EX67: 10.7 | EY67: -27.5 | EZ67: -33.4 | FA67: -32.6 | FC67: 13.74 | FD67: -12.81052632 | FE67: -9.785 | FF67: -5.025
A68: 2015-03-10 | B68: 9 | C68: 10 | D68: 5 | E68: 24 | H68: 2015-03-10 | I68: 9.2 | J68: 0 | K68: 23.9 | N68: 13.53 | O68: 10.83 | P68: 9.335 | S68: 2015-03-10 | T68: 9.2 | U68: 43.1 | V68: 59.7 | Y68: 13.53 | Z68: 48.25 | AA68: 43.78421053 | AD68: 2015-03-10 | AE68: 2.8 | AF68: 1 | AG68: 39.9 | AH68: 0 | AJ68: 2.055 | AK68: 0.65 | AL68: -10.26842105 | AM68: 0.93 | AO68: 2015-03-10 | AP68: 1 | AQ68: 1 | AR68: 14.9 | AS68: 6.5 | AU68: 0.65 | AV68: 1.45 | AW68: -7.87 | AX68: 2.545 | AZ68: 2015-03-10 | BA68: 23.9 | BB68: 100 | BF68: 9.335 | BG68: 94.455 | BK68: 2015-03-10 | BL68: 8.3 | BM68: 4.2 | BN68: 1 | BO68: 1 | BQ68: 13 | BR68: 6.06 | BS68: 0.85 | BT68: 0.6 | BV68: 2015-03-10 | BW68: 18.4 | BX68: 32.3 | BY68: 54.1 | BZ68: 27.2 | CA68: 9.2 | CC68: 9.445 | CD68: 26.755 | CE68: 57.87 | CF68: 26.82 | CG68: 13.46 | CI68: 2015-03-10 | CJ68: 0 | CK68: 6.5 | CL68: 6.52173913 | CM68: 0 | CO68: 0.93 | CP68: 2.29 | CQ68: 0.9508187119 | CR68: 2.488558352 | CT68: 2015-03-10 | CU68: 59.7 | CV68: 19.8 | CW68: 51.8 | CX68: 36.9 | CZ68: 43.78421053 | DA68: 56.34 | DB68: 44.49 | DC68: 52.36 | DE68: 2015-03-10 | DF68: 59.7 | DG68: 19.8 | DH68: 51.8 | DI68: 36.9 | DK68: 43.78421053 | DL68: 56.34 | DM68: 44.49 | DN68: 52.36 | DP68: 2015-03-10 | DQ68: 9.2 | DR68: 8.3 | DS68: 2 | DT68: 1 | DV68: 13.53 | DW68: 13 | DX68: 2.85 | DY68: 1.45 | EA68: 2015-03-10 | EB68: 9.2 | EC68: 23.9 | ED68: 27.2 | EE68: 6.5 | EG68: 13.53 | EH68: 9.335 | EI68: 26.825 | EJ68: 2.66 | EL68: Tobias.Enstrom | EM68: 16.83664122 | EN68: 450 | EO68: 9.351908397 | EP68: 36.09160305 | ER68: 17.0974939 | ES68: 403.385 | ET68: 7.620482666 | EU68: 35.57955929 | EW68: 2015-03-10 | EX68: 9.2 | EY68: 39.9 | EZ68: 14.9 | FA68: 4 | FC68: 13.53 | FD68: -10.26842105 | FE68: -7.87 | FF68: -4.46
A69: 2015-03-12 | B69: 9 | C69: 10 | D69: 6 | E69: 25 | H69: 2015-03-12 | I69: 11.8 | J69: 0 | K69: 14.7 | N69: 13.46 | O69: 10.83 | P69: 10.07 | S69: 2015-03-12 | T69: 11.8 | U69: 54.4 | V69: 64.2 | Y69: 13.46 | Z69: 48.35 | AA69: 45.16315789 | AD69: 2015-03-12 | AE69: 4 | AF69: 1 | AG69: 26.7 | AH69: 0 | AJ69: 2.155 | AK69: 0.7 | AL69: -8.005263158 | AM69: 1.195 | AO69: 2015-03-12 | AP69: 1 | AQ69: 1 | AR69: 33.8 | AS69: 5.1 | AU69: 0.7 | AV69: 1.45 | AW69: -6.015 | AX69: 2.58 | AZ69: 2015-03-12 | BA69: 14.7 | BB69: 100 | BF69: 10.07 | BG69: 94.455 | BK69: 2015-03-12 | BL69: 11.8 | BM69: 6.8 | BN69: 0 | BO69: 1 | BQ69: 12.95 | BR69: 6.02 | BS69: 0.8 | BT69: 0.6 | BV69: 2015-03-12 | BW69: 20.3 | BX69: 34.7 | BY69: 60 | BZ69: 34.6 | CA69: 11.8 | CC69: 10.01 | CD69: 27.455 | CE69: 57.955 | CF69: 26.59 | CG69: 13.38 | CI69: 2015-03-12 | CJ69: 0 | CK69: 5.1 | CL69: 0 | CM69: 30.50847458 | CO69: 0.93 | CP69: 2.545 | CQ69: 0.9508187119 | CR69: 4.013982081 | CT69: 2015-03-12 | CU69: 64.2 | CV69: 37.5 | CW69: 67.9 | CX69: 34.1 | CZ69: 45.16315789 | DA69: 55.5 | DB69: 46.01 | DC69: 52.025 | DE69: 2015-03-12 | DF69: 64.2 | DG69: 37.5 | DH69: 67.9 | DI69: 34.1 | DK69: 45.16315789 | DL69: 55.5 | DM69: 46.01 | DN69: 52.025 | DP69: 2015-03-12 | DQ69: 11.8 | DR69: 11.8 | DS69: 2 | DT69: 1 | DV69: 13.46 | DW69: 12.95 | DX69: 2.85 | DY69: 1.45 | EA69: 2015-03-12 | EB69: 11.8 | EC69: 14.7 | ED69: 34.6 | EE69: 5.1 | EG69: 13.46 | EH69: 10.07 | EI69: 26.82 | EJ69: 2.915 | EL69: Kevin.Bieksa | EM69: 16.8351145 | EN69: 866.6 | EO69: 7.139534884 | EP69: 35.38015267 | ER69: 17.07391629 | ES69: 420.885 | ET69: 7.519883652 | EU69: 35.53798999 | EW69: 2015-03-12 | EX69: 11.8 | EY69: 26.7 | EZ69: 33.8 | FA69: 12.1 | FC69: 13.46 | FD69: -8.005263158 | FE69: -6.015 | FF69: -4.215
A70: 2015-03-14 | B70: 10 | C70: 10 | D70: 6 | E70: 26 | H70: 2015-03-14 | I70: 11.3 | J70: 33.3 | K70: 18.5 | N70: 13.38 | O70: 12.495 | P70: 10.295 | S70: 2015-03-14 | T70: 11.3 | U70: 62.7 | V70: 79.4 | Y70: 13.38 | Z70: 48.43 | AA70: 45.23157895 | AD70: 2015-03-14 | AE70: 3.3 | AF70: 3 | AG70: 33.4 | AH70: 5.3 | AJ70: 2.17 | AK70: 0.8 | AL70: -8.057894737 | AM70: 1.195 | AO70: 2015-03-14 | AP70: 3 | AQ70: 3 | AR70: 11.7 | AS70: 5.3 | AU70: 0.8 | AV70: 1.55 | AW70: -6.545 | AX70: 2.185 | AZ70: 2015-03-14 | BA70: 18.5 | BB70: 100 | BF70: 10.295 | BG70: 94.455 | BK70: 2015-03-14 | BL70: 12.1 | BM70: 5.4 | BN70: 0 | BO70: 0 | BQ70: 12.585 | BR70: 5.935 | BS70: 0.7 | BT70: 0.6 | BV70: 2015-03-14 | BW70: 17.3 | BX70: 22.6 | BY70: 63.7 | BZ70: 28.5 | CA70: 11.3 | CC70: 10.18 | CD70: 26.61 | CE70: 56.645 | CF70: 27.015 | CG70: 13.235 | CI70: 2015-03-14 | CJ70: 5.3 | CK70: 5.3 | CL70: 0 | CM70: 0 | CO70: 1.195 | CP70: 2.58 | CQ70: 0.7182605724 | CR70: 4.013982081 | CT70: 2015-03-14 | CU70: 79.4 | CV70: 46 | CW70: 59.3 | CX70: 47.7 | CZ70: 45.23157895 | DA70: 55.615 | DB70: 45.67 | DC70: 52.22 | DE70: 2015-03-14 | DF70: 79.4 | DG70: 46 | DH70: 59.3 | DI70: 47.7 | DK70: 45.23157895 | DL70: 55.615 | DM70: 45.67 | DN70: 52.22 | DP70: 2015-03-14 | DQ70: 11.3 | DR70: 12.1 | DS70: 3 | DT70: 3 | DV70: 13.38 | DW70: 12.585 | DX70: 2.75 | DY70: 1.55 | EA70: 2015-03-14 | EB70: 11.3 | EC70: 18.5 | ED70: 28.5 | EE70: 5.3 | EG70: 13.38 | EH70: 10.295 | EI70: 26.59 | EJ70: 2.95 | EL70: Andrei.Markov | EM70: 16.82394366 | EN70: 166.6 | EO70: 8.085211268 | EP70: 35.09929577 | ER70: 17.05193165 | ES70: 409.215 | ET70: 7.61962717 | EU70: 35.53311416 | EW70: 2015-03-14 | EX70: 11.3 | EY70: 33.4 | EZ70: 11.7 | FA70: 12.9 | FC70: 13.38 | FD70: -8.057894737 | FE70: -6.545 | FF70: -4.175
A71: 2015-03-15 | B71: 10 | C71: 10 | D71: 6 | E71: 26 | H71: 2015-03-15 | I71: 12.3 | J71: 0 | K71: 0 | N71: 13.235 | O71: 12.495 | P71: 8.865 | S71: 2015-03-15 | T71: 12.3 | U71: 48.6 | V71: 38.4 | Y71: 13.235 | Z71: 48.725 | AA71: 44.23157895 | AD71: 2015-03-15 | AE71: 1.7 | AF71: 1 | AG71: 2.2 | AH71: 0 | AJ71: 2.105 | AK71: 0.85 | AL71: -9.405263158 | AM71: 1.195 | AO71: 2015-03-15 | AP71: 1 | AQ71: 1 | AR71: -4 | AS71: 0 | AU71: 0.85 | AV71: 1.6 | AW71: -6.2 | AX71: 2.185 | AZ71: 2015-03-15 | BA71: 0 | BB71: 100 | BF71: 8.865 | BG71: 94.455 | BK71: 2015-03-15 | BL71: 14.3 | BM71: 7.4 | BN71: 0 | BO71: 2 | BQ71: 12.595 | BR71: 5.955 | BS71: 0.65 | BT71: 0.7 | BV71: 2015-03-15 | BW71: 8.1 | BX71: 23 | BY71: 69.6 | BZ71: 36.2 | CA71: 12.3 | CC71: 10 | CD71: 26.575 | CE71: 57.335 | CF71: 27.94 | CG71: 12.905 | CI71: 2015-03-15 | CJ71: 0 | CK71: 0 | CL71: 0 | CM71: 0 | CO71: 1.195 | CP71: 2.185 | CQ71: 0.5208921513 | CR71: 2.829771555 | CT71: 2015-03-15 | CU71: 38.4 | CV71: 36.1 | CW71: 30.1 | CX71: 34.1 | CZ71: 44.23157895 | DA71: 55.94 | DB71: 45.425 | DC71: 51.63 | DE71: 2015-03-15 | DF71: 38.4 | DG71: 36.1 | DH71: 30.1 | DI71: 34.1 | DK71: 44.23157895 | DL71: 55.94 | DM71: 45.425 | DN71: 51.63 | DP71: 2015-03-15 | DQ71: 12.3 | DR71: 14.3 | DS71: 2 | DT71: 1 | DV71: 13.235 | DW71: 12.595 | DX71: 2.65 | DY71: 1.6 | EA71: 2015-03-15 | EB71: 12.3 | EC71: 0 | ED71: 36.2 | EE71: 0 | EG71: 13.235 | EH71: 8.865 | EI71: 27.015 | EJ71: 2.555 | EL71: Aaron.Ekblad | EM71: 16.81751825 | EN71: 636.6 | EO71: 8.333576642 | EP71: 35.18613139 | ER71: 17.03054342 | ES71: 428.13 | ET71: 7.731400939 | EU71: 35.47810199 | EW71: 2015-03-15 | EX71: 12.3 | EY71: 2.2 | EZ71: -4 | FA71: 8.8 | FC71: 13.235 | FD71: -9.405263158 | FE71: -6.2 | FF71: -3.23
A72: 2015-03-17 | B72: 10 | C72: 10 | D72: 6 | E72: 26 | H72: 2015-03-17 | I72: 12.5 | J72: 0 | K72: 0 | N72: 12.905 | O72: 12.495 | P72: 8.865 | S72: 2015-03-17 | T72: 12.5 | U72: 75.9 | V72: 57.6 | Y72: 12.905 | Z72: 50.905 | AA72: 47.26315789 | AD72: 2015-03-17 | AE72: 2.6 | AF72: 1 | AG72: -21.3 | AH72: 0 | AJ72: 2.235 | AK72: 0.9 | AL72: -8.305263158 | AM72: 0.98 | AO72: 2015-03-17 | AP72: 1 | AQ72: 3 | AR72: -22.1 | AS72: 0 | AU72: 0.9 | AV72: 1.75 | AW72: -5.115 | AX72: 2.205 | AZ72: 2015-03-17 | BA72: 0 | BB72: 100 | BF72: 8.865 | BG72: 94.455 | BK72: 2015-03-17 | BL72: 19.1 | BM72: 7.7 | BN72: 1 | BO72: 2 | BQ72: 13.095 | BR72: 6.045 | BS72: 0.7 | BT72: 0.7 | BV72: 2015-03-17 | BW72: 12.5 | BX72: 25.5 | BY72: 91.8 | BZ72: 36.9 | CA72: 12.5 | CC72: 10.625 | CD72: 27.68 | CE72: 60.495 | CF72: 28.7 | CG72: 12.855 | CI72: 2015-03-17 | CJ72: 0 | CK72: 0 | CL72: 0 | CM72: 0 | CO72: 1.195 | CP72: 2.185 | CQ72: 0.5208921513 | CR72: 2.829771555 | CT72: 2015-03-17 | CU72: 57.6 | CV72: 78.9 | CW72: 58.1 | CX72: 80.2 | CZ72: 47.26315789 | DA72: 57.775 | DB72: 47.86 | DC72: 52.98 | DE72: 2015-03-17 | DF72: 57.6 | DG72: 78.9 | DH72: 58.1 | DI72: 80.2 | DK72: 47.26315789 | DL72: 57.775 | DM72: 47.86 | DN72: 52.98 | DP72: 2015-03-17 | DQ72: 12.5 | DR72: 19.1 | DS72: 5 | DT72: 3 | DV72: 12.905 | DW72: 13.095 | DX72: 2.85 | DY72: 1.75 | EA72: 2015-03-17 | EB72: 12.5 | EC72: 0 | ED72: 36.9 | EE72: 0 | EG72: 12.905 | EH72: 8.865 | EI72: 27.94 | EJ72: 2.555 | EL72: Willie.Mitchell | EM72: 16.80446429 | EN72: 133.3 | EO72: 8.305357143 | EP72: 35.02767857 | ER72: 17.00859131 | ES72: 421.465 | ET72: 7.756409056 | EU72: 35.50000287 | EW72: 2015-03-17 | EX72: 12.5 | EY72: -21.3 | EZ72: -22.1 | FA72: 8.9 | FC72: 12.905 | FD72: -8.305263158 | FE72: -5.115 | FF72: -1.78
A73: 2015-03-19 | B73: 10 | C73: 11 | D73: 6 | E73: 27 | H73: 2015-03-19 | I73: 12.9 | J73: 0 | K73: 25.6 | N73: 12.855 | O73: 9.995 | P73: 9.13 | S73: 2015-03-19 | T73: 12.9 | U73: 45.4 | V73: 67 | Y73: 12.855 | Z73: 50.325 | AA73: 47.25263158 | AD73: 2015-03-19 | AE73: 3.7 | AF73: 0 | AG73: 30.2 | AH73: 0 | AJ73: 2.315 | AK73: 0.9 | AL73: -8.3 | AM73: 0.98 | AO73: 2015-03-19 | AP73: 0 | AQ73: 0 | AR73: 4.9 | AS73: 4.7 | AU73: 0.9 | AV73: 1.7 | AW73: -5.75 | AX73: 2.205 | AZ73: 2015-03-19 | BA73: 25.6 | BB73: 82.3 | BF73: 9.13 | BG73: 95.19 | BK73: 2015-03-19 | BL73: 11.6 | BM73: 7.8 | BN73: 0 | BO73: 0 | BQ73: 13.085 | BR73: 6.19 | BS73: 0.65 | BT73: 0.7 | BV73: 2015-03-19 | BW73: 17.2 | BX73: 22.1 | BY73: 53.9 | BZ73: 36.4 | CA73: 12.9 | CC73: 11.04 | CD73: 27.92 | CE73: 60.645 | CF73: 29.535 | CG73: 12.895 | CI73: 2015-03-19 | CJ73: 0 | CK73: 4.7 | CL73: 4.651162791 | CM73: 0 | CO73: 0.98 | CP73: 2.205 | CQ73: 0.7534502909 | CR73: 2.829771555 | CT73: 2015-03-19 | CU73: 67 | CV73: 36.8 | CW73: 41.8 | CX73: 36.9 | CZ73: 47.25263158 | DA73: 57.765 | DB73: 47.975 | DC73: 53.73 | DE73: 2015-03-19 | DF73: 67 | DG73: 36.8 | DH73: 41.8 | DI73: 36.9 | DK73: 47.25263158 | DL73: 57.765 | DM73: 47.975 | DN73: 53.73 | DP73: 2015-03-19 | DQ73: 12.9 | DR73: 11.6 | DS73: 2 | DT73: 0 | DV73: 12.855 | DW73: 13.085 | DX73: 2.8 | DY73: 1.7 | EA73: 2015-03-19 | EB73: 12.9 | EC73: 25.6 | ED73: 36.4 | EE73: 9.3 | EG73: 12.855 | EH73: 9.13 | EI73: 28.7 | EJ73: 2.805 | EL73: Victor.Hedman | EM73: 16.76258993 | EN73: 783.3 | EO73: 10.59136691 | EP73: 35.76690647 | ER73: 16.98457265 | ES73: 445.63 | ET73: 7.923925162 | EU73: 35.44405564 | EW73: 2015-03-19 | EX73: 12.9 | EY73: 30.2 | EZ73: 4.9 | FA73: 3 | FC73: 12.855 | FD73: -8.3 | FE73: -5.75 | FF73: -2.7
A74: 2015-03-21 | B74: 10 | C74: 11 | D74: 6 | E74: 27 | H74: 2015-03-21 | I74: 15 | J74: 0 | K74: 0 | N74: 12.895 | O74: 9.995 | P74: 9.13 | S74: 2015-03-21 | T74: 15 | U74: 50.1 | V74: 79.8 | Y74: 12.895 | Z74: 51.29 | AA74: 50.77368421 | AD74: 2015-03-21 | AE74: 3.7 | AF74: 1 | AG74: 7.8 | AH74: 0 | AJ74: 2.46 | AK74: 0.95 | AL74: -5.210526316 | AM74: 0.98 | AO74: 2015-03-21 | AP74: 1 | AQ74: 2 | AR74: -16.5 | AS74: 0 | AU74: 0.95 | AV74: 1.7 | AW74: -5.805 | AX74: 2.01 | AZ74: 2015-03-21 | BA74: 0 | BB74: 100 | BF74: 9.13 | BG74: 95.19 | BK74: 2015-03-21 | BL74: 13.9 | BM74: 7.2 | BN74: 3 | BO74: 0 | BQ74: 13.44 | BR74: 6.41 | BS74: 0.75 | BT74: 0.8 | BV74: 2015-03-21 | BW74: 14.7 | BX74: 27.7 | BY74: 55.6 | BZ74: 28.7 | CA74: 15 | CC74: 11.6 | CD74: 28.1 | CE74: 61.99 | CF74: 28.75 | CG74: 12.94 | CI74: 2015-03-21 | CJ74: 0 | CK74: 0 | CL74: 0 | CM74: 0 | CO74: 0.98 | CP74: 2.205 | CQ74: 0.7534502909 | CR74: 2.829771555 | CT74: 2015-03-21 | CU74: 79.8 | CV74: 72 | CW74: 63.9 | CX74: 80.4 | CZ74: 50.77368421 | DA74: 58.175 | DB74: 49.16 | DC74: 54.97 | DE74: 2015-03-21 | DF74: 79.8 | DG74: 72 | DH74: 63.9 | DI74: 80.4 | DK74: 50.77368421 | DL74: 58.175 | DM74: 49.16 | DN74: 54.97 | DP74: 2015-03-21 | DQ74: 15 | DR74: 13.9 | DS74: 6 | DT74: 2 | DV74: 12.895 | DW74: 13.44 | DX74: 3 | DY74: 1.7 | EA74: 2015-03-21 | EB74: 15 | EC74: 0 | ED74: 28.7 | EE74: 0 | EG74: 12.895 | EH74: 9.13 | EI74: 29.535 | EJ74: 2.805 | EL74: Karl.Alzner | EM74: 16.71604938 | EN74: 433.3 | EO74: 7.60308642 | EP74: 34.88950617 | ER74: 16.95822724 | ES74: 453.13 | ET74: 7.892565399 | EU74: 35.32641373 | EW74: 2015-03-21 | EX74: 15 | EY74: 7.8 | EZ74: -16.5 | FA74: -4.1 | FC74: 12.895 | FD74: -5.210526316 | FE74: -5.805 | FF74: -1.885
A75: 2015-03-22 | B75: 10 | C75: 11 | D75: 6 | E75: 27 | H75: 2015-03-22 | I75: 16.3 | J75: 0 | K75: 0 | N75: 12.94 | O75: 9.995 | P75: 8.565 | S75: 2015-03-22 | T75: 16.3 | U75: 60.3 | V75: 31 | Y75: 12.94 | Z75: 51.475 | AA75: 49.42631579 | AD75: 2015-03-22 | AE75: 0.9 | AF75: 0 | AG75: -1.4 | AH75: 0 | AJ75: 2.37 | AK75: 0.9 | AL75: -5.636842105 | AM75: 0.98 | AO75: 2015-03-22 | AP75: 0 | AQ75: 5 | AR75: 29.3 | AS75: 0 | AU75: 0.9 | AV75: 1.85 | AW75: -4.285 | AX75: 1.795 | AZ75: 2015-03-22 | BA75: 0 | BB75: 64.8 | BF75: 8.565 | BG75: 93.43 | BK75: 2015-03-22 | BL75: 13.2 | BM75: 5.1 | BN75: 1 | BO75: 3 | BQ75: 13.095 | BR75: 6.225 | BS75: 0.75 | BT75: 0.8 | BV75: 2015-03-22 | BW75: 3.3 | BX75: 35 | BY75: 48.6 | BZ75: 18.6 | CA75: 16.3 | CC75: 11.235 | CD75: 28.1 | CE75: 60.525 | CF75: 28.825 | CG75: 12.61 | CI75: 2015-03-22 | CJ75: 0 | CK75: 0 | CL75: 0 | CM75: 0 | CO75: 0.98 | CP75: 2.01 | CQ75: 0.5586450961 | CR75: 2.829771555 | CT75: 2015-03-22 | CU75: 31 | CV75: 32.3 | CW75: 61.9 | CX75: 32.6 | CZ75: 49.42631579 | DA75: 57.295 | DB75: 49.57 | DC75: 53.86 | DE75: 2015-03-22 | DF75: 31 | DG75: 32.3 | DH75: 61.9 | DI75: 32.6 | DK75: 49.42631579 | DL75: 57.295 | DM75: 49.57 | DN75: 53.86 | DP75: 2015-03-22 | DQ75: 16.3 | DR75: 13.2 | DS75: 6 | DT75: 5 | DV75: 12.94 | DW75: 13.095 | DX75: 3.15 | DY75: 1.85 | EA75: 2015-03-22 | EB75: 16.3 | EC75: 0 | ED75: 18.6 | EE75: 0 | EG75: 12.94 | EH75: 8.565 | EI75: 28.75 | EJ75: 2.61 | EL75: Justin.Schultz | EM75: 16.70347222 | EN75: 328.3 | EO75: 9.096478873 | EP75: 34.10694444 | ER75: 16.93318346 | ES75: 446.635 | ET75: 8.017334995 | EU75: 35.29463044 | EW75: 2015-03-22 | EX75: 16.3 | EY75: -1.4 | EZ75: 29.3 | FA75: 11.8 | FC75: 12.94 | FD75: -5.636842105 | FE75: -4.285 | FF75: -1.475
A76: 2015-03-26 | B76: 10 | C76: 11 | D76: 6 | E76: 27 | H76: 2015-03-26 | I76: 7.2 | J76: 0 | K76: 0 | N76: 12.61 | O76: 9.995 | P76: 7.62 | S76: 2015-03-26 | T76: 7.2 | U76: 39.7 | V76: 18 | Y76: 12.61 | Z76: 51.1 | AA76: 48.80526316 | AD76: 2015-03-26 | AE76: 1.1 | AF76: 0 | AG76: -9.7 | AH76: 0 | AJ76: 2.375 | AK76: 0.9 | AL76: -4.542105263 | AM76: 1.425 | AO76: 2015-03-26 | AP76: 0 | AQ76: 1 | AR76: -17.5 | AS76: 0 | AU76: 0.9 | AV76: 1.85 | AW76: -5.4 | AX76: 2.24 | AZ76: 2015-03-26 | BA76: 0 | BB76: 84.7 | BF76: 7.62 | BG76: 92.665 | BK76: 2015-03-26 | BL76: 4.9 | BM76: 2.9 | BN76: 0 | BO76: 0 | BQ76: 12.805 | BR76: 6.105 | BS76: 0.75 | BT76: 0.85 | BV76: 2015-03-26 | BW76: 9 | BX76: 16.2 | BY76: 41.4 | BZ76: 24.5 | CA76: 7.2 | CC76: 11.47 | CD76: 27.95 | CE76: 60.28 | CF76: 30.12 | CG76: 12.705 | CI76: 2015-03-26 | CJ76: 0 | CK76: 0 | CL76: 0 | CM76: 0 | CO76: 0.98 | CP76: 1.795 | CQ76: 0.5586450961 | CR76: 1.525423729 | CT76: 2015-03-26 | CU76: 18 | CV76: 27.6 | CW76: 21.9 | CX76: 39.4 | CZ76: 48.80526316 | DA76: 55.66 | DB76: 48.15 | DC76: 53.555 | DE76: 2015-03-26 | DF76: 18 | DG76: 27.6 | DH76: 21.9 | DI76: 39.4 | DK76: 48.80526316 | DL76: 55.66 | DM76: 48.15 | DN76: 53.555 | DP76: 2015-03-26 | DQ76: 7.2 | DR76: 4.9 | DS76: 1 | DT76: 1 | DV76: 12.61 | DW76: 12.805 | DX76: 3.15 | DY76: 1.85 | EA76: 2015-03-26 | EB76: 7.2 | EC76: 0 | ED76: 24.5 | EE76: 0 | EG76: 12.61 | EH76: 7.62 | EI76: 28.825 | EJ76: 2.395 | EL76: Christopher.Tanev | EM76: 16.67302632 | EN76: 150 | EO76: 5.545394737 | EP76: 34.67039474 | ER76: 16.90701659 | ES76: 438.72 | ET76: 7.916180489 | EU76: 35.27808995 | EW76: 2015-03-26 | EX76: 7.2 | EY76: -9.7 | EZ76: -17.5 | FA76: -9.4 | FC76: 12.61 | FD76: -4.542105263 | FE76: -5.4 | FF76: -1.81
A77: 2015-03-28 | B77: 12 | C77: 11 | D77: 6 | E77: 29 | H77: 2015-03-28 | I77: 13.6 | J77: 100 | K77: 21.8 | N77: 12.705 | O77: 14.995 | P77: 8.71 | S77: 2015-03-28 | T77: 13.6 | U77: 64.1 | V77: 31.8 | Y77: 12.705 | Z77: 51.875 | AA77: 48.74210526 | AD77: 2015-03-28 | AE77: 2 | AF77: 1 | AG77: -22.7 | AH77: 8.9 | AJ77: 2.43 | AK77: 0.95 | AL77: -4.178947368 | AM77: 1.425 | AO77: 2015-03-28 | AP77: 1 | AQ77: 2 | AR77: 13.4 | AS77: 8.9 | AU77: 0.95 | AV77: 1.95 | AW77: -2.95 | AX77: 2.24 | AZ77: 2015-03-28 | BA77: 21.8 | BB77: 100 | BF77: 8.71 | BG77: 94.995 | BK77: 2015-03-28 | BL77: 18 | BM77: 9.2 | BN77: 0 | BO77: 1 | BQ77: 13.19 | BR77: 6.42 | BS77: 0.7 | BT77: 0.8 | BV77: 2015-03-28 | BW77: 8.7 | BX77: 42.1 | BY77: 79.9 | BZ77: 40.5 | CA77: 13.6 | CC77: 11.665 | CD77: 29.36 | CE77: 61.63 | CF77: 29.255 | CG77: 12.515 | CI77: 2015-03-28 | CJ77: 8.9 | CK77: 8.9 | CL77: 0 | CM77: 0 | CO77: 1.425 | CP77: 2.24 | CQ77: 0.5586450961 | CR77: 1.525423729 | CT77: 2015-03-28 | CU77: 31.8 | CV77: 54.5 | CW77: 61.2 | CX77: 47.8 | CZ77: 48.74210526 | DA77: 55.255 | DB77: 49.955 | DC77: 52.91 | DE77: 2015-03-28 | DF77: 31.8 | DG77: 54.5 | DH77: 61.2 | DI77: 47.8 | DK77: 48.74210526 | DL77: 55.255 | DM77: 49.955 | DN77: 52.91 | DP77: 2015-03-28 | DQ77: 13.6 | DR77: 18 | DS77: 3 | DT77: 2 | DV77: 12.705 | DW77: 13.19 | DX77: 3.2 | DY77: 1.95 | EA77: 2015-03-28 | EB77: 13.6 | EC77: 21.8 | ED77: 40.5 | EE77: 8.9 | EG77: 12.705 | EH77: 8.71 | EI77: 30.12 | EJ77: 2.84 | EL77: Roman.Polak | EM77: 16.65985401 | EN77: 383.3 | EO77: 6.030882353 | EP77: 35.23430657 | ER77: 16.88101704 | ES77: 424.55 | ET77: 7.893150963 | EU77: 35.189802 | EW77: 2015-03-28 | EX77: 13.6 | EY77: -22.7 | EZ77: 13.4 | FA77: 20.4 | FC77: 12.705 | FD77: -4.178947368 | FE77: -2.95 | FF77: -0.7
A78: 2015-03-29 | B78: 12 | C78: 11 | D78: 6 | E78: 29 | H78: 2015-03-29 | I78: 12.2 | J78: 0 | K78: 19.5 | N78: 12.515 | O78: 14.995 | P78: 9.245 | S78: 2015-03-29 | T78: 12.2 | U78: 33.6 | V78: 39 | Y78: 12.515 | Z78: 50.105 | AA78: 48.00526316 | AD78: 2015-03-29 | AE78: 1 | AF78: 0 | AG78: -21.9 | AH78: 0 | AJ78: 2.315 | AK78: 0.9 | AL78: -5.321052632 | AM78: 1.68 | AO78: 2015-03-29 | AP78: 0 | AQ78: 1 | AR78: -16.1 | AS78: 0 | AU78: 0.9 | AV78: 1.9 | AW78: -4.16 | AX78: 2.75 | AZ78: 2015-03-29 | BA78: 19.5 | BB78: 100 | BF78: 9.245 | BG78: 94.995 | BK78: 2015-03-29 | BL78: 7.8 | BM78: 5.1 | BN78: 1 | BO78: 0 | BQ78: 12.54 | BR78: 6.105 | BS78: 0.7 | BT78: 0.75 | BV78: 2015-03-29 | BW78: 4.9 | BX78: 15 | BY78: 38.3 | BZ78: 25.2 | CA78: 12.2 | CC78: 11.285 | CD78: 28.145 | CE78: 59.655 | CF78: 29.785 | CG78: 12.295 | CI78: 2015-03-29 | CJ78: 0 | CK78: 0 | CL78: 0 | CM78: 0 | CO78: 1.425 | CP78: 2.24 | CQ78: 0.5586450961 | CR78: 1.525423729 | CT78: 2015-03-29 | CU78: 39 | CV78: 61 | CW78: 34 | CX78: 50.1 | CZ78: 48.00526316 | DA78: 55.645 | DB78: 48.59 | DC78: 52.76 | DE78: 2015-03-29 | DF78: 39 | DG78: 61 | DH78: 34 | DI78: 50.1 | DK78: 48.00526316 | DL78: 55.645 | DM78: 48.59 | DN78: 52.76 | DP78: 2015-03-29 | DQ78: 12.2 | DR78: 7.8 | DS78: 1 | DT78: 1 | DV78: 12.515 | DW78: 12.54 | DX78: 3 | DY78: 1.9 | EA78: 2015-03-29 | EB78: 12.2 | EC78: 19.5 | ED78: 25.2 | EE78: 4.9 | EG78: 12.515 | EH78: 9.245 | EI78: 29.255 | EJ78: 2.9 | EL78: Johnny.Boychuk | EM78: 16.63873239 | EN78: 430 | EO78: 8.019014085 | EP78: 33.87676056 | ER78: 16.85712689 | ES78: 429.8 | ET78: 7.918944187 | EU78: 35.11690867 | EW78: 2015-03-29 | EX78: 12.2 | EY78: -21.9 | EZ78: -16.1 | FA78: -13 | FC78: 12.515 | FD78: -5.321052632 | FE78: -4.16 | FF78: -2.22
A79: 2015-03-31 | B79: 13 | C79: 12 | D79: 6 | E79: 31 | H79: 2015-03-31 | I79: 11.7 | J79: 50 | K79: 31.1 | N79: 12.295 | O79: 17.495 | P79: 9.965 | S79: 2015-03-31 | T79: 11.7 | U79: 46.2 | V79: 49.5 | Y79: 12.295 | Z79: 50.295 | AA79: 48.9 | AD79: 2015-03-31 | AE79: 2 | AF79: 0 | AG79: -17.5 | AH79: 5.1 | AJ79: 2.315 | AK79: 0.85 | AL79: -3.552631579 | AM79: 1.68 | AO79: 2015-03-31 | AP79: 0 | AQ79: 1 | AR79: -0.7 | AS79: 10.2 | AU79: 0.85 | AV79: 1.8 | AW79: -2.415 | AX79: 2.75 | AZ79: 2015-03-31 | BA79: 31.1 | BB79: 87.2 | BF79: 9.965 | BG79: 94.81 | BK79: 2015-03-31 | BL79: 10.3 | BM79: 6.4 | BN79: 1 | BO79: 0 | BQ79: 12.405 | BR79: 6.125 | BS79: 0.65 | BT79: 0.75 | BV79: 2015-03-31 | BW79: 10 | BX79: 34.1 | BY79: 52.7 | BZ79: 32.9 | CA79: 11.7 | CC79: 11.415 | CD79: 28.36 | CE79: 59.875 | CF79: 30.43 | CG79: 12.255 | CI79: 2015-03-31 | CJ79: 5.1 | CK79: 10.2 | CL79: 5.128205128 | CM79: 0 | CO79: 1.68 | CP79: 2.75 | CQ79: 0.8150553525 | CR79: 1.525423729 | CT79: 2015-03-31 | CU79: 49.5 | CV79: 67 | CW79: 62.4 | CX79: 63.2 | CZ79: 48.9 | DA79: 54.815 | DB79: 49.515 | DC79: 51.945 | DE79: 2015-03-31 | DF79: 49.5 | DG79: 67 | DH79: 62.4 | DI79: 63.2 | DK79: 48.9 | DL79: 54.815 | DM79: 49.515 | DN79: 51.945 | DP79: 2015-03-31 | DQ79: 11.7 | DR79: 10.3 | DS79: 3 | DT79: 1 | DV79: 12.295 | DW79: 12.405 | DX79: 2.9 | DY79: 1.8 | EA79: 2015-03-31 | EB79: 11.7 | EC79: 31.1 | ED79: 32.9 | EE79: 10.2 | EG79: 12.295 | EH79: 9.965 | EI79: 29.785 | EJ79: 3.225 | EL79: Dan.Hamhuis | EM79: 16.53846154 | EN79: 100 | EO79: 7.278632479 | EP79: 34.71196581 | ER79: 16.83053041 | ES79: 397.3 | ET79: 7.96821289 | EU79: 35.06568047 | EW79: 2015-03-31 | EX79: 11.7 | EY79: -17.5 | EZ79: -0.7 | FA79: -10.6 | FC79: 12.295 | FD79: -3.552631579 | FE79: -2.415 | FF79: -1.61
A80: 2015-04-02 | B80: 13 | C80: 12 | D80: 6 | E80: 31 | H80: 2015-04-02 | I80: 11.4 | J80: 0 | K80: 14.1 | N80: 12.255 | O80: 17.495 | P80: 10.67 | S80: 2015-04-02 | T80: 11.4 | U80: 42.7 | V80: 0 | Y80: 12.255 | Z80: 50.26 | AA80: 46.455 | AD80: 2015-04-02 | AE80: 0 | AF80: 0 | AG80: -26.9 | AH80: 0 | AJ80: 2.315 | AK80: 0.85 | AL80: -4.72 | AM80: 1.46 | AO80: 2015-04-02 | AP80: 0 | AQ80: 1 | AR80: -5.7 | AS80: 0 | AU80: 0.85 | AV80: 1.85 | AW80: -2.285 | AX80: 2.53 | AZ80: 2015-04-02 | BA80: 14.1 | BB80: 100 | BF80: 10.67 | BG80: 94.81 | BK80: 2015-04-02 | BL80: 8.4 | BM80: 7.1 | BN80: 0 | BO80: 0 | BQ80: 12.43 | BR80: 6.23 | BS80: 0.65 | BT80: 0.85 | BV80: 2015-04-02 | BW80: 0 | BX80: 10.7 | BY80: 44 | BZ80: 37.4 | CA80: 11.4 | CC80: 11.415 | CD80: 27.87 | CE80: 60.145 | CF80: 31.445 | CG80: 12.26 | CI80: 2015-04-02 | CJ80: 0 | CK80: 0 | CL80: 0 | CM80: 0 | CO80: 1.68 | CP80: 2.75 | CQ80: 0.8150553525 | CR80: 1.525423729 | CT80: 2015-04-02 | CU80: 0 | CV80: 26.9 | CW80: 22.8 | CX80: 28.5 | CZ80: 46.455 | DA80: 51.16 | DB80: 48.415 | DC80: 50.715 | DE80: 2015-04-02 | DF80: 0 | DG80: 26.9 | DH80: 22.8 | DI80: 28.5 | DK80: 46.455 | DL80: 51.16 | DM80: 48.415 | DN80: 50.715 | DP80: 2015-04-02 | DQ80: 11.4 | DR80: 8.4 | DS80: 2 | DT80: 1 | DV80: 12.255 | DW80: 12.43 | DX80: 3 | DY80: 1.85 | EA80: 2015-04-02 | EB80: 11.4 | EC80: 14.1 | ED80: 37.4 | EE80: 5.3 | EG80: 12.255 | EH80: 10.67 | EI80: 30.43 | EJ80: 3.49 | EL80: Danny.Dekeyser | EM80: 16.53248408 | EN80: 558.3 | EO80: 8.050955414 | EP80: 35.29681529 | ER80: 16.80443048 | ES80: 404.22 | ET80: 8.007795143 | EU80: 34.99405436 | EW80: 2015-04-02 | EX80: 11.4 | EY80: -26.9 | EZ80: -5.7 | FA80: 15 | FC80: 12.255 | FD80: -4.72 | FE80: -2.285 | FF80: -0.09
A81: 2015-04-04 | B81: 13 | C81: 12 | D81: 6 | E81: 31 | H81: 2015-04-04 | I81: 13.6 | J81: 0 | K81: 0 | N81: 12.26 | O81: 15.83 | P81: 10.01 | S81: 2015-04-04 | T81: 13.6 | U81: 62.5 | V81: 73.2 | Y81: 12.26 | Z81: 51.165 | AA81: 48.175 | AD81: 2015-04-04 | AE81: 5 | AF81: 0 | AG81: 17.2 | AH81: 0 | AJ81: 2.425 | AK81: 0.8 | AL81: -3.03 | AM81: 1.46 | AO81: 2015-04-04 | AP81: 0 | AQ81: 1 | AR81: -6.8 | AS81: 0 | AU81: 0.8 | AV81: 1.8 | AW81: -1.89 | AX81: 2.53 | AZ81: 2015-04-04 | BA81: 0 | BB81: 100 | BF81: 10.01 | BG81: 94.81 | BK81: 2015-04-04 | BL81: 16.2 | BM81: 12.2 | BN81: 0 | BO81: 2 | BQ81: 12.73 | BR81: 6.46 | BS81: 0.65 | BT81: 0.9 | BV81: 2015-04-04 | BW81: 22.3 | BX81: 46.9 | BY81: 71.4 | BZ81: 53.8 | CA81: 13.6 | CC81: 11.9 | CD81: 29.08 | CE81: 61.45 | CF81: 32.125 | CG81: 12.21 | CI81: 2015-04-04 | CJ81: 0 | CK81: 0 | CL81: 0 | CM81: 0 | CO81: 1.46 | CP81: 2.53 | CQ81: 0.8150553525 | CR81: 1.525423729 | CT81: 2015-04-04 | CU81: 73.2 | CV81: 56.1 | CW81: 64.6 | CX81: 71.4 | CZ81: 48.175 | DA81: 51.195 | DB81: 49.215 | DC81: 51.12 | DE81: 2015-04-04 | DF81: 73.2 | DG81: 56.1 | DH81: 64.6 | DI81: 71.4 | DK81: 48.175 | DL81: 51.195 | DM81: 49.215 | DN81: 51.12 | DP81: 2015-04-04 | DQ81: 13.6 | DR81: 16.2 | DS81: 2 | DT81: 1 | DV81: 12.26 | DW81: 12.73 | DX81: 2.95 | DY81: 1.8 | EA81: 2015-04-04 | EB81: 13.6 | EC81: 0 | ED81: 53.8 | EE81: 0 | EG81: 12.26 | EH81: 10.01 | EI81: 31.445 | EJ81: 3.27 | EL81: Brenden.Dillon | EM81: 16.51791045 | EN81: 83.3 | EO81: 6.879104478 | EP81: 34.15298507 | ER81: 16.77789847 | ES81: 375.725 | ET81: 7.89160544 | EU81: 35.01709448 | EW81: 2015-04-04 | EX81: 13.6 | EY81: 17.2 | EZ81: -6.8 | FA81: -3 | FC81: 12.26 | FD81: -3.03 | FE81: -1.89 | FF81: 0.415
A82: 2015-04-08 | B82: 13 | C82: 12 | D82: 6 | E82: 31 | H82: 2015-04-08 | I82: 11.6 | J82: 0 | K82: 0 | N82: 12.21 | O82: 15.83 | P82: 10.01 | S82: 2015-04-08 | T82: 11.6 | U82: 55.9 | V82: 80.5 | Y82: 12.21 | Z82: 50.935 | AA82: 49.365 | AD82: 2015-04-08 | AE82: 4.1 | AF82: 2 | AG82: 8.3 | AH82: 0 | AJ82: 2.495 | AK82: 0.8 | AL82: -1.685 | AM82: 1.46 | AO82: 2015-04-08 | AP82: 2 | AQ82: 4 | AR82: 14.1 | AS82: 0 | AU82: 0.8 | AV82: 1.85 | AW82: -0.215 | AX82: 2.53 | AZ82: 2015-04-08 | BA82: 0 | BB82: 68 | BF82: 10.01 | BG82: 93.21 | BK82: 2015-04-08 | BL82: 14.4 | BM82: 6.7 | BN82: 2 | BO82: 1 | BQ82: 12.76 | BR82: 6.57 | BS82: 0.6 | BT82: 0.85 | BV82: 2015-04-08 | BW82: 21.4 | BX82: 40.4 | BY82: 74.6 | BZ82: 35 | CA82: 11.6 | CC82: 12.315 | CD82: 30.025 | CE82: 61.885 | CF82: 32.1 | CG82: 12.15 | CI82: 2015-04-08 | CJ82: 0 | CK82: 0 | CL82: 0 | CM82: 0 | CO82: 1.46 | CP82: 2.53 | CQ82: 0.8150553525 | CR82: 1.525423729 | CT82: 2015-04-08 | CU82: 80.5 | CV82: 72.2 | CW82: 71.4 | CX82: 57.3 | CZ82: 49.365 | DA82: 51.04 | DB82: 50.82 | DC82: 51.05 | DE82: 2015-04-08 | DF82: 80.5 | DG82: 72.2 | DH82: 71.4 | DI82: 57.3 | DK82: 49.365 | DL82: 51.04 | DM82: 50.82 | DN82: 51.05 | DP82: 2015-04-08 | DQ82: 11.6 | DR82: 14.4 | DS82: 5 | DT82: 4 | DV82: 12.21 | DW82: 12.76 | DX82: 3 | DY82: 1.85 | EA82: 2015-04-08 | EB82: 11.6 | EC82: 0 | ED82: 35 | EE82: 0 | EG82: 12.21 | EH82: 10.01 | EI82: 32.125 | EJ82: 3.27 | EL82: Kyle.Quincey | EM82: 16.49411765 | EN82: 220 | EO82: 8.495798319 | EP82: 35.34789916 | ER82: 16.75050757 | ES82: 371.725 | ET82: 7.848266323 | EU82: 34.95771044 | EW82: 2015-04-08 | EX82: 11.6 | EY82: 8.3 | EZ82: 14.1 | FA82: 4 | FC82: 12.21 | FD82: -1.685 | FE82: -0.215 | FF82: 0.4
A83: 2015-04-09 | B83: 13 | C83: 12 | D83: 6 | E83: 31 | H83: 2015-04-09 | I83: 12.8 | J83: 0 | K83: 0 | N83: 12.15 | O83: 15.83 | P83: 10.01 | S83: 2015-04-09 | T83: 12.8 | U83: 59.8 | V83: 0 | Y83: 12.15 | Z83: 50.8 | AA83: 47.17 | AD83: 2015-04-09 | AE83: 0 | AF83: 0 | AG83: -82.1 | AH83: 0 | AJ83: 2.33 | AK83: 0.8 | AL83: -5.79 | AM83: 1.205 | AO83: 2015-04-09 | AP83: 0 | AQ83: 1 | AR83: 8.9 | AS83: 0 | AU83: 0.8 | AV83: 1.85 | AW83: 0.63 | AX83: 2.275 | AZ83: 2015-04-09 | BA83: 0 | BB83: 100 | BF83: 10.01 | BG83: 93.21 | BK83: 2015-04-09 | BL83: 14.1 | BM83: 7.9 | BN83: 1 | BO83: 0 | BQ83: 12.485 | BR83: 6.53 | BS83: 0.65 | BT83: 0.9 | BV83: 2015-04-09 | BW83: 0 | BX83: 14.7 | BY83: 66.4 | BZ83: 36.9 | CA83: 12.8 | CC83: 11.61 | CD83: 28.835 | CE83: 61.005 | CF83: 31.485 | CG83: 11.97 | CI83: 2015-04-09 | CJ83: 0 | CK83: 0 | CL83: 0 | CM83: 0 | CO83: 1.46 | CP83: 2.53 | CQ83: 0.8150553525 | CR83: 1.525423729 | CT83: 2015-04-09 | CU83: 0 | CV83: 82.1 | CW83: 61.3 | CX83: 52.4 | CZ83: 47.17 | DA83: 52.95 | DB83: 51.265 | DC83: 50.65 | DE83: 2015-04-09 | DF83: 0 | DG83: 82.1 | DH83: 61.3 | DI83: 52.4 | DK83: 47.17 | DL83: 52.95 | DM83: 51.265 | DN83: 50.65 | DP83: 2015-04-09 | DQ83: 12.8 | DR83: 14.1 | DS83: 2 | DT83: 1 | DV83: 12.15 | DW83: 12.485 | DX83: 2.95 | DY83: 1.85 | EA83: 2015-04-09 | EB83: 12.8 | EC83: 0 | ED83: 36.9 | EE83: 0 | EG83: 12.15 | EH83: 10.01 | EI83: 32.1 | EJ83: 3.27 | EL83: Kevin.Klein | EM83: 16.46015038 | EN83: 891.6 | EO83: 9.787878788 | EP83: 33.76616541 | ER83: 16.72325868 | ES83: 408.805 | ET83: 7.999134622 | EU83: 34.95867473 | EW83: 2015-04-09 | EX83: 12.8 | EY83: -82.1 | EZ83: 8.9 | FA83: 16.6 | FC83: 12.15 | FD83: -5.79 | FE83: 0.63 | FF83: 1
A84: 2015-04-11 | B84: 13 | C84: 12 | D84: 6 | E84: 31 | H84: 2015-04-11 | I84: 8.2 | J84: 0 | K84: 0 | N84: 11.97 | O84: 14.165 | P84: 9.215 | S84: 2015-04-11 | T84: 8.2 | U84: 41.3 | V84: 70.9 | Y84: 11.97 | Z84: 51.275 | AA84: 48.315 | AD84: 2015-04-11 | AE84: 1.9 | AF84: 1 | AG84: 3.1 | AH84: 0 | AJ84: 2.33 | AK84: 0.75 | AL84: -5.305 | AM84: 0.965 | AO84: 2015-04-11 | AP84: 1 | AQ84: 1 | AR84: -15.7 | AS84: 0 | AU84: 0.75 | AV84: 1.8 | AW84: 0.96 | AX84: 2.035 | AZ84: 2015-04-11 | BA84: 0 | BB84: 81.2 | BF84: 9.215 | BG84: 92.685 | BK84: 2015-04-11 | BL84: 5.3 | BM84: 2.7 | BN84: 0 | BO84: 1 | BQ84: 12.32 | BR84: 6.35 | BS84: 0.65 | BT84: 0.75 | BV84: 2015-04-11 | BW84: 13.8 | BX84: 27.1 | BY84: 38.6 | BZ84: 19.7 | CA84: 8.2 | CC84: 11.81 | CD84: 29.195 | CE84: 60.735 | CF84: 30.485 | CG84: 12.01 | CI84: 2015-04-11 | CJ84: 0 | CK84: 0 | CL84: 0 | CM84: 0 | CO84: 1.205 | CP84: 2.275 | CQ84: 0.8150553525 | CR84: 1.525423729 | CT84: 2015-04-11 | CU84: 70.9 | CV84: 67.8 | CW84: 46.1 | CX84: 61.8 | CZ84: 48.315 | DA84: 53.615 | DB84: 51.725 | DC84: 50.78 | DE84: 2015-04-11 | DF84: 70.9 | DG84: 67.8 | DH84: 46.1 | DI84: 61.8 | DK84: 48.315 | DL84: 53.615 | DM84: 51.725 | DN84: 50.78 | DP84: 2015-04-11 | DQ84: 8.2 | DR84: 5.3 | DS84: 2 | DT84: 1 | DV84: 11.97 | DW84: 12.32 | DX84: 2.9 | DY84: 1.8 | EA84: 2015-04-11 | EB84: 8.2 | EC84: 0 | ED84: 19.7 | EE84: 0 | EG84: 11.97 | EH84: 9.215 | EI84: 31.485 | EJ84: 3.015 | EL84: Dion.Phaneuf | EM84: 16.45285714 | EN84: 133.3 | EO84: 8.120714286 | EP84: 34.78357143 | ER84: 16.69733011 | ES84: 391.555 | ET84: 7.894162272 | EU84: 34.89685854 | EW84: 2015-04-11 | EX84: 8.2 | EY84: 3.1 | EZ84: -15.7 | FA84: -16.5 | FC84: 11.97 | FD84: -5.305 | FE84: 0.96 | FF84: 1.4
A85: 2015-10-07 | B85: 13 | C85: 12 | D85: 6 | E85: 31 | H85: 2015-10-07 | I85: 13.2 | J85: 0 | K85: 0 | N85: 12.01 | O85: 9.165 | P85: 8.46 | S85: 2015-10-07 | T85: 13.2 | U85: 22.8 | V85: 0 | Y85: 12.01 | Z85: 48.77 | AA85: 45.115 | AD85: 2015-10-07 | AE85: 0 | AF85: 0 | AG85: -56.1 | AH85: 0 | AJ85: 2.24 | AK85: 0.75 | AL85: -6.93 | AM85: 0.965 | AO85: 2015-10-07 | AP85: 0 | AQ85: 1 | AR85: -29.5 | AS85: 0 | AU85: 0.75 | AV85: 1.7 | AW85: -1.205 | AX85: 2.035 | AZ85: 2015-10-07 | BA85: 0 | BB85: 73.4 | BF85: 8.46 | BG85: 91.355 | BK85: 2015-10-07 | BL85: 4.5 | BM85: 2.6 | BN85: 0 | BO85: 0 | BQ85: 11.3 | BR85: 6.15 | BS85: 0.6 | BT85: 0.7 | BV85: 2015-10-07 | BW85: 0 | BX85: 4.2 | BY85: 20.6 | BZ85: 11.9 | CA85: 13.2 | CC85: 11.365 | CD85: 26.32 | CE85: 55.75 | CF85: 30.995 | CG85: 12.045 | CI85: 2015-10-07 | CJ85: 0 | CK85: 0 | CL85: 0 | CM85: 0 | CO85: 0.965 | CP85: 2.035 | CQ85: 0.8150553525 | CR85: 1.525423729 | CT85: 2015-10-07 | CU85: 0 | CV85: 56.1 | CW85: 12 | CX85: 41.5 | CZ85: 45.115 | DA85: 52.04 | DB85: 48.53 | DC85: 49.75 | DE85: 2015-10-07 | DF85: 0 | DG85: 56.1 | DH85: 12 | DI85: 41.5 | DK85: 45.115 | DL85: 52.04 | DM85: 48.53 | DN85: 49.75 | DP85: 2015-10-07 | DQ85: 13.2 | DR85: 4.5 | DS85: 1 | DT85: 1 | DV85: 12.01 | DW85: 11.3 | DX85: 2.7 | DY85: 1.7 | EA85: 2015-10-07 | EB85: 13.2 | EC85: 0 | ED85: 11.9 | EE85: 0 | EG85: 12.01 | EH85: 8.46 | EI85: 30.485 | EJ85: 2.775 | EL85: Nick.Holden | EM85: 16.44539007 | EN85: 400 | EO85: 8.184892086 | EP85: 34.3248227 | ER85: 16.67335758 | ES85: 387.39 | ET85: 7.914744455 | EU85: 34.83385787 | EW85: 2015-10-07 | EX85: 13.2 | EY85: -56.1 | EZ85: -29.5 | FA85: -20.4 | FC85: 12.01 | FD85: -6.93 | FE85: -1.205 | FF85: -0.115
A86: 2015-10-09 | B86: 13 | C86: 12 | D86: 6 | E86: 31 | H86: 2015-10-09 | I86: 13.4 | J86: 0 | K86: 0 | N86: 12.045 | O86: 9.165 | P86: 8.46 | S86: 2015-10-09 | T86: 13.4 | U86: 66.2 | V86: 33.6 | Y86: 12.045 | Z86: 49.925 | AA86: 44.75 | AD86: 2015-10-09 | AE86: 1.7 | AF86: 0 | AG86: -29.8 | AH86: 0 | AJ86: 2.18 | AK86: 0.7 | AL86: -7.405 | AM86: 0.965 | AO86: 2015-10-09 | AP86: 0 | AQ86: 1 | AR86: 9.3 | AS86: 0 | AU86: 0.7 | AV86: 1.65 | AW86: -1.385 | AX86: 2.035 | AZ86: 2015-10-09 | BA86: 0 | BB86: 100 | BF86: 8.46 | BG86: 91.355 | BK86: 2015-10-09 | BL86: 15.6 | BM86: 6.3 | BN86: 1 | BO86: 0 | BQ86: 11.535 | BR86: 6.275 | BS86: 0.65 | BT86: 0.7 | BV86: 2015-10-09 | BW86: 7.8 | BX86: 40.1 | BY86: 69.5 | BZ86: 28.1 | CA86: 13.4 | CC86: 11.07 | CD86: 26.565 | CE86: 56.66 | CF86: 30.19 | CG86: 12.02 | CI86: 2015-10-09 | CJ86: 0 | CK86: 0 | CL86: 0 | CM86: 0 | CO86: 0.965 | CP86: 2.035 | CQ86: 0.8150553525 | CR86: 1.525423729 | CT86: 2015-10-09 | CU86: 33.6 | CV86: 63.4 | CW86: 72.4 | CX86: 63.1 | CZ86: 44.75 | DA86: 52.15 | DB86: 49.21 | DC86: 50.605 | DE86: 2015-10-09 | DF86: 33.6 | DG86: 63.4 | DH86: 72.4 | DI86: 63.1 | DK86: 44.75 | DL86: 52.15 | DM86: 49.21 | DN86: 50.605 | DP86: 2015-10-09 | DQ86: 13.4 | DR86: 15.6 | DS86: 1 | DT86: 1 | DV86: 12.045 | DW86: 11.535 | DX86: 2.65 | DY86: 1.65 | EA86: 2015-10-09 | EB86: 13.4 | EC86: 0 | ED86: 28.1 | EE86: 0 | EG86: 12.045 | EH86: 8.46 | EI86: 30.995 | EJ86: 2.775 | EL86: Olli.Maatta | EM86: 16.43678161 | EN86: 350 | EO86: 9.914942529 | EP86: 34.43678161 | ER86: 16.65093384 | ES86: 382.39 | ET86: 8.098588356 | EU86: 34.80199513 | EW86: 2015-10-09 | EX86: 13.4 | EY86: -29.8 | EZ86: 9.3 | FA86: 8.9 | FC86: 12.045 | FD86: -7.405 | FE86: -1.385 | FF86: 0.84
A87: 2015-10-13 | B87: 13 | C87: 12 | D87: 6 | E87: 31 | H87: 2015-10-13 | I87: 10.2 | J87: 0 | K87: 0 | N87: 12.02 | O87: 9.165 | P87: 8.46 | S87: 2015-10-13 | T87: 10.2 | U87: 44.1 | V87: 0 | Y87: 12.02 | Z87: =AVERAGE(U68:U87) -> 50.97 | AA87: =AVERAGE(V68:V87) -> 43.68 | AB87: =AVERAGE(W69:W88) ->  | AD87: 2015-10-13 | AE87: 0 | AF87: 0 | AG87: -65.7 | AH87: 0 | AJ87: 2.075 | AK87: =AVERAGE(AF68:AF87) -> 0.6 | AL87: =AVERAGE(AG68:AG87) -> -9.315 | AM87: =AVERAGE(AH69:AH88) -> 0.965 | AO87: 2015-10-13 | AP87: 0 | AQ87: 1 | AR87: -45.2 | AS87: 0 | AU87: 0.6 | AV87: =AVERAGE(AQ68:AQ87) -> 1.6 | AW87: =AVERAGE(AR68:AR87) -> -1.975 | AX87: =AVERAGE(AS69:AS88) -> 1.71 | AZ87: 2015-10-13 | BA87: 0 | BB87: 100 | BF87: 8.46 | BG87: =AVERAGE(BB68:BB87) -> 92.08 | BH87: =AVERAGE(BC68:BC87) ->  | BI87: =AVERAGE(BD69:BD88) ->  | BK87: 2015-10-13 | BL87: 7.7 | BM87: 1.8 | BN87: 1 | BO87: 0 | BQ87: 11.575 | BR87: =AVERAGE(BM68:BM87) -> 6.125 | BS87: =AVERAGE(BN68:BN87) -> 0.65 | BT87: =AVERAGE(BO69:BO88) -> 0.7 | BV87: 2015-10-13 | BW87: 0 | BX87: 11.4 | BY87: 45.2 | BZ87: 10.8 | CA87: 10.2 | CC87: 10.485 | CD87: =AVERAGE(BX68:BX87) -> 26.29 | CE87: =AVERAGE(BY68:BY87) -> 56.995 | CF87: =AVERAGE(BZ69:BZ88) -> 30.235 | CG87: 12.31 | CI87: 2015-10-13 | CJ87: 0 | CK87: 0 | CL87: 0 | CM87: 0 | CO87: 0.965 | CP87: =AVERAGE(CK68:CK87) -> 2.035 | CQ87: =AVERAGE(CL68:CL87) -> 0.8150553525 | CR87: 1.525423729 | CT87: 2015-10-13 | CU87: 0 | CV87: 65.7 | CW87: 19.8 | CX87: 65 | CZ87: 43.68 | DA87: 52.99 | DB87: 49.235 | DC87: 51.22 | DE87: 2015-10-13 | DF87: 0 | DG87: 65.7 | DH87: 19.8 | DI87: 65 | DK87: 43.68 | DL87: =AVERAGE(DG68:DG87) -> 52.99 | DM87: =AVERAGE(DH68:DH87) -> 49.235 | DN87: =AVERAGE(DI68:DI87) -> 51.22 | DP87: 2015-10-13 | DQ87: 10.2 | DR87: 7.7 | DS87: 2 | DT87: 1 | DV87: 12.02 | DW87: =AVERAGE(DR68:DR87) -> 11.575 | DX87: =AVERAGE(DS68:DS87) -> 2.65 | DY87: =AVERAGE(DT68:DT87) -> 1.6 | EA87: 2015-10-13 | EB87: 10.2 | EC87: 0 | ED87: 10.8 | EE87: 0 | EG87: 12.02 | EH87: =AVERAGE(EC68:EC87) -> 8.46 | EI87: =AVERAGE(ED68:ED87) -> 30.19 | EJ87: =AVERAGE(EE68:EE87) -> 2.775 | EL87: Trevor.van.Riemsdyk | EM87: 16.37156863 | EN87: 200 | EO87: 6.19009901 | EP87: 33.88921569 | ER87: 16.62605639 | ES87: =AVERAGE(EN68:EN87) -> 384.89 | ET87: =AVERAGE(EO68:EO87) -> 8.050241455 | EU87: =AVERAGE(EP69:EP88) -> 34.72500757 | EW87: 2015-10-13 | EX87: 10.2 | EY87: -65.7 | EZ87: -45.2 | FA87: -18.5 | FC87: 12.02 | FD87: =AVERAGE(EY68:EY87) -> -9.315 | FE87: =AVERAGE(EZ68:EZ87) -> -1.975 | FF87: =AVERAGE(FA68:FA87) -> 1.545
A88: 2015-10-16 | B88: 13 | C88: 12 | D88: 6 | E88: 31 | H88: 2015-10-16 | I88: 15 | J88: 0 | K88: 0 | N88: =AVERAGE(I69:I88) -> 12.31 | O88: =AVERAGE(J69:J88) -> 9.165 | P88: =AVERAGE(K69:K88) -> 7.265 | Q88: =AVERAGE(L70:L89) ->  | S88: 2015-10-16 | T88: 15 | U88: 65.5 | V88: 100 | Y88: =AVERAGE(T69:T88) -> 12.31 | Z88: 52.09 | AA88: 45.695 | AD88: 2015-10-16 | AE88: 3.8 | AF88: 1 | AG88: 26.1 | AH88: 0 | AJ88: =AVERAGE(AE69:AE88) -> 2.125 | AK88: 0.6 | AL88: -10.005 | AM88: 0.965 | AO88: 2015-10-16 | AP88: 1 | AQ88: 3 | AR88: 30.8 | AS88: 0 | AU88: =AVERAGE(AP69:AP88) -> 0.6 | AV88: 1.7 | AW88: -1.18 | AX88: 1.455 | AZ88: 2015-10-16 | BA88: 0 | BB88: 100 | BF88: =AVERAGE(BA69:BA88) -> 7.265 | BG88: 92.08 | BK88: 2015-10-16 | BL88: 14 | BM88: 7 | BN88: 2 | BO88: 1 | BQ88: =AVERAGE(BL69:BL88) -> 11.86 | BR88: 6.265 | BS88: 0.7 | BT88: 0.75 | BV88: 2015-10-16 | BW88: 15.2 | BX88: 39 | BY88: 56 | BZ88: 28.1 | CA88: 15 | CC88: =AVERAGE(BW69:BW88) -> 10.325 | CD88: 26.625 | CE88: 57.09 | CF88: 31.35 | CG88: 12.36 | CI88: 2015-10-16 | CJ88: 0 | CK88: 0 | CL88: 0 | CM88: 0 | CO88: =AVERAGE(CJ69:CJ88) -> 0.965 | CP88: 1.71 | CQ88: 0.4889683959 | CR88: 1.525423729 | CT88: 2015-10-16 | CU88: 100 | CV88: 73.9 | CW88: 84 | CX88: 53.2 | CZ88: =AVERAGE(CU69:CU88) -> 45.695 | DA88: 55.695 | DB88: 50.845 | DC88: 52.035 | DE88: 2015-10-16 | DF88: 100 | DG88: 73.9 | DH88: 84 | DI88: 53.2 | DK88: =AVERAGE(DF69:DF88) -> 45.695 | DL88: 55.695 | DM88: 50.845 | DN88: 52.035 | DP88: 2015-10-16 | DQ88: 15 | DR88: 14 | DS88: 5 | DT88: 3 | DV88: =AVERAGE(DQ69:DQ88) -> 12.31 | DW88: 11.86 | DX88: 2.8 | DY88: 1.7 | EA88: 2015-10-16 | EB88: 15 | EC88: 0 | ED88: 28.1 | EE88: 0 | EG88: =AVERAGE(EB69:EB88) -> 12.31 | EH88: 7.265 | EI88: 30.235 | EJ88: 2.45 | EL88: Mark.Streit | EM88: 16.35740741 | EN88: 628.3 | EO88: 7.277777778 | EP88: 34.55185185 | ER88: =AVERAGE(EM69:EM88) -> 16.6020947 | ES88: 393.805 | ET88: 7.946534924 | EU88: 34.67569172 | EW88: 2015-10-16 | EX88: 15 | EY88: 26.1 | EZ88: 30.8 | FA88: 6.2 | FC88: =AVERAGE(EX69:EX88) -> 12.31 | FD88: -10.005 | FE88: -1.18 | FF88: 1.655
A89: 2015-10-18 | B89: 13 | C89: 12 | D89: 6 | E89: 31 | H89: 2015-10-18 | I89: 12.8 | J89: 0 | K89: 8.2 | N89: 12.36 | O89: 9.165 | P89: 6.94 | S89: 2015-10-18 | T89: 12.8 | U89: 71.3 | V89: 89 | Y89: 12.36 | Z89: 52.935 | AA89: 46.935 | AD89: 2015-10-18 | AE89: 7.3 | AF89: 2 | AG89: 22.9 | AH89: 0 | AJ89: 2.29 | AK89: 0.65 | AL89: -10.195 | AM89: 0.7 | AO89: 2015-10-18 | AP89: 2 | AQ89: 3 | AR89: 11 | AS89: 0 | AU89: 0.65 | AV89: 1.8 | AW89: -2.32 | AX89: 1.19 | AZ89: 2015-10-18 | BA89: 8.2 | BB89: 100 | BF89: 6.94 | BG89: 92.08 | BK89: 2015-10-18 | BL89: 23.4 | BM89: 12.2 | BN89: 0 | BO89: 2 | BQ89: 12.44 | BR89: 6.535 | BS89: 0.7 | BT89: 0.75 | BV89: 2015-10-18 | BW89: 34.1 | BX89: 68.3 | BY89: 109.6 | BZ89: 56.9 | CA89: 12.8 | CC89: 11.015 | CD89: 28.305 | CE89: 59.57 | CF89: 32.16 | CG89: 12.36 | CI89: 2015-10-18 | CJ89: 0 | CK89: 0 | CL89: 0 | CM89: 0 | CO89: 0.965 | CP89: 1.455 | CQ89: 0.4889683959 | CR89: 0 | CT89: 2015-10-18 | CU89: 89 | CV89: 66 | CW89: 83.1 | CX89: 72 | CZ89: 46.935 | DA89: 57.12 | DB89: 51.605 | DC89: 53.93 | DE89: 2015-10-18 | DF89: 89 | DG89: 66 | DH89: 83.1 | DI89: 72 | DK89: 46.935 | DL89: 57.12 | DM89: 51.605 | DN89: 53.93 | DP89: 2015-10-18 | DQ89: 12.8 | DR89: 23.4 | DS89: 4 | DT89: 3 | DV89: 12.36 | DW89: 12.44 | DX89: 2.9 | DY89: 1.8 | EA89: 2015-10-18 | EB89: 12.8 | EC89: 8.2 | ED89: 56.9 | EE89: 4.7 | EG89: 12.36 | EH89: 6.94 | EI89: 31.35 | EJ89: 2.43 | EL89: Dmitry.Kulikov | EM89: 16.35068493 | EN89: 250 | EO89: 8.871917808 | EP89: 34.39383562 | ER89: 16.57787322 | ES89: 362.975 | ET89: 8.03315407 | EU89: 34.63116 | EW89: 2015-10-18 | EX89: 12.8 | EY89: 22.9 | EZ89: 11 | FA89: -5.4 | FC89: 12.36 | FD89: -10.195 | FE89: -2.32 | FF89: 0.78
A90: 2015-10-22 | B90: 13 | C90: 12 | D90: 6 | E90: 31 | H90: 2015-10-22 | I90: 11.3 | J90: 0 | K90: 23.6 | N90: 12.36 | O90: 7.5 | P90: 7.195 | S90: 2015-10-22 | T90: 11.3 | U90: 64.9 | V90: 39.8 | Y90: 12.36 | Z90: 53.045 | AA90: 44.955 | AD90: 2015-10-22 | AE90: 3.1 | AF90: 0 | AG90: 13.2 | AH90: 0 | AJ90: 2.28 | AK90: 0.5 | AL90: -11.205 | AM90: 0.7 | AO90: 2015-10-22 | AP90: 0 | AQ90: 0 | AR90: 23.5 | AS90: 0 | AU90: 0.5 | AV90: 1.65 | AW90: -1.73 | AX90: 1.385 | AZ90: 2015-10-22 | BA90: 23.6 | BB90: 86.4 | BF90: 7.195 | BG90: 91.4 | BK90: 2015-10-22 | BL90: 17.9 | BM90: 8.5 | BN90: 0 | BO90: 0 | BQ90: 12.73 | BR90: 6.69 | BS90: 0.7 | BT90: 0.65 | BV90: 2015-10-22 | BW90: 16.4 | BX90: 48.9 | BY90: 94.6 | BZ90: 44.7 | CA90: 11.3 | CC90: 10.97 | CD90: 29.62 | CE90: 61.115 | CF90: 31.79 | CG90: 12.52 | CI90: 2015-10-22 | CJ90: 0 | CK90: 0 | CL90: 0 | CM90: 0 | CO90: 0.7 | CP90: 1.19 | CQ90: 0.4889683959 | CR90: 0 | CT90: 2015-10-22 | CU90: 39.8 | CV90: 26.6 | CW90: 61.7 | CX90: 38.3 | CZ90: 44.955 | DA90: 56.15 | DB90: 51.725 | DC90: 53.46 | DE90: 2015-10-22 | DF90: 39.8 | DG90: 26.6 | DH90: 61.7 | DI90: 38.3 | DK90: 44.955 | DL90: 56.15 | DM90: 51.725 | DN90: 53.46 | DP90: 2015-10-22 | DQ90: 11.3 | DR90: 17.9 | DS90: 0 | DT90: 0 | DV90: 12.36 | DW90: 12.73 | DX90: 2.75 | DY90: 1.65 | EA90: 2015-10-22 | EB90: 11.3 | EC90: 23.6 | ED90: 44.7 | EE90: 10.6 | EG90: 12.36 | EH90: 7.195 | EI90: 32.16 | EJ90: 2.695 | EL90: Kevin.Shattenkirk | EM90: 16.32440945 | EN90: 566.7 | EO90: 8.012598425 | EP90: 34.20866142 | ER90: 16.55289651 | ES90: 382.98 | ET90: 8.029523428 | EU90: 34.57116967 | EW90: 2015-10-22 | EX90: 11.3 | EY90: 13.2 | EZ90: 23.5 | FA90: 13.9 | FC90: 12.36 | FD90: -11.205 | FE90: -1.73 | FF90: 0.83
A91: 2015-10-23 | B91: 13 | C91: 13 | D91: 6 | E91: 32 | H91: 2015-10-23 | I91: 15.5 | J91: 0 | K91: 13.4 | N91: 12.52 | O91: 7.5 | P91: 7.865 | S91: 2015-10-23 | T91: 15.5 | U91: 46 | V91: 55.7 | Y91: 12.52 | Z91: 52.915 | AA91: 45.82 | AD91: 2015-10-23 | AE91: 3.7 | AF91: 1 | AG91: 27.7 | AH91: 0 | AJ91: 2.38 | AK91: 0.5 | AL91: -9.93 | AM91: 0.7 | AO91: 2015-10-23 | AP91: 1 | AQ91: 1 | AR91: 7.8 | AS91: 3.9 | AU91: 0.5 | AV91: 1.65 | AW91: -1.14 | AX91: 1.585 | AZ91: 2015-10-23 | BA91: 13.4 | BB91: 100 | BF91: 7.865 | BG91: 91.4 | BK91: 2015-10-23 | BL91: 15.6 | BM91: 7.4 | BN91: 0 | BO91: 0 | BQ91: 12.795 | BR91: 6.69 | BS91: 0.7 | BT91: 0.6 | BV91: 2015-10-23 | BW91: 14.3 | BX91: 35.3 | BY91: 60.3 | BZ91: 28.8 | CA91: 15.5 | CC91: 11.28 | CD91: 30.235 | CE91: 60.65 | CF91: 31.55 | CG91: 12.65 | CI91: 2015-10-23 | CJ91: 0 | CK91: 3.9 | CL91: 3.870967742 | CM91: 0 | CO91: 0.7 | CP91: 1.385 | CQ91: 0.682516783 | CR91: 0 | CT91: 2015-10-23 | CU91: 55.7 | CV91: 28.1 | CW91: 40.3 | CX91: 32.5 | CZ91: 45.82 | DA91: 55.75 | DB91: 52.235 | DC91: 53.38 | DE91: 2015-10-23 | DF91: 55.7 | DG91: 28.1 | DH91: 40.3 | DI91: 32.5 | DK91: 45.82 | DL91: 55.75 | DM91: 52.235 | DN91: 53.38 | DP91: 2015-10-23 | DQ91: 15.5 | DR91: 15.6 | DS91: 1 | DT91: 1 | DV91: 12.52 | DW91: 12.795 | DX91: 2.7 | DY91: 1.65 | EA91: 2015-10-23 | EB91: 15.5 | EC91: 13.4 | ED91: 28.8 | EE91: 3.9 | EG91: 12.52 | EH91: 7.865 | EI91: 31.79 | EJ91: 2.89 | EL91: Ben.Lovejoy | EM91: 16.24700855 | EN91: 249.9 | EO91: 6.675213675 | EP91: 33.98632479 | ER91: 16.52437102 | ES91: 363.645 | ET91: 7.94660528 | EU91: 34.54732542 | EW91: 2015-10-23 | EX91: 15.5 | EY91: 27.7 | EZ91: 7.8 | FA91: -1.1 | FC91: 12.52 | FD91: -9.93 | FE91: -1.14 | FF91: 0.335
A92: 2015-10-25 | B92: 13 | C92: 14 | D92: 6 | E92: 33 | H92: 2015-10-25 | I92: 15.1 | J92: 0 | K92: 12.4 | N92: 12.65 | O92: 7.5 | P92: 8.485 | S92: 2015-10-25 | T92: 15.1 | U92: 66.8 | V92: 73.6 | Y92: 12.65 | Z92: 52.46 | AA92: 46.62 | AD92: 2015-10-25 | AE92: 2.5 | AF92: 0 | AG92: 34.3 | AH92: 0 | AJ92: 2.375 | AK92: 0.45 | AL92: -7.15 | AM92: 0.895 | AO92: 2015-10-25 | AP92: 0 | AQ92: 0 | AR92: 14.3 | AS92: 4 | AU92: 0.45 | AV92: 1.5 | AW92: 0.68 | AX92: 1.545 | AZ92: 2015-10-25 | BA92: 12.4 | BB92: 100 | BF92: 8.485 | BG92: 91.4 | BK92: 2015-10-25 | BL92: 18 | BM92: 8.1 | BN92: 0 | BO92: 1 | BQ92: 12.74 | BR92: 6.71 | BS92: 0.65 | BT92: 0.6 | BV92: 2015-10-25 | BW92: 9.9 | BX92: 28.8 | BY92: 71.3 | BZ92: 32.1 | CA92: 15.1 | CC92: 11.15 | CD92: 30.4 | CE92: 59.625 | CF92: 31.84 | CG92: 12.77 | CI92: 2015-10-25 | CJ92: 0 | CK92: 4 | CL92: 3.973509934 | CM92: 0 | CO92: 0.7 | CP92: 1.585 | CQ92: 0.8811922797 | CR92: 0 | CT92: 2015-10-25 | CU92: 73.6 | CV92: 39.3 | CW92: 60.7 | CX92: 46.5 | CZ92: 46.62 | DA92: 53.77 | DB92: 52.365 | DC92: 51.695 | DE92: 2015-10-25 | DF92: 73.6 | DG92: 39.3 | DH92: 60.7 | DI92: 46.5 | DK92: 46.62 | DL92: 53.77 | DM92: 52.365 | DN92: 51.695 | DP92: 2015-10-25 | DQ92: 15.1 | DR92: 18 | DS92: 2 | DT92: 0 | DV92: 12.65 | DW92: 12.74 | DX92: 2.55 | DY92: 1.5 | EA92: 2015-10-25 | EB92: 15.1 | EC92: 12.4 | ED92: 32.1 | EE92: 4 | EG92: 12.65 | EH92: 8.485 | EI92: 31.55 | EJ92: 3.09 | EL92: Niklas.Kronwall | EM92: 16.24126984 | EN92: 550 | EO92: 7.380952381 | EP92: 34.55079365 | ER92: 16.4962113 | ES92: 384.48 | ET92: 7.900385041 | EU92: 34.45329687 | EW92: 2015-10-25 | EX92: 15.1 | EY92: 34.3 | EZ92: 14.3 | FA92: 12.5 | FC92: 12.65 | FD92: -7.15 | FE92: 0.68 | FF92: 0.515
A93: 2015-10-27 | B93: 14 | C93: 14 | D93: 6 | E93: 34 | H93: 2015-10-27 | I93: 15.3 | J93: 50 | K93: 18.6 | N93: 12.77 | O93: 10 | P93: 8.135 | S93: 2015-10-27 | T93: 15.3 | U93: 64.3 | V93: 40.7 | Y93: 12.77 | Z93: 53.405 | AA93: 45.305 | AD93: 2015-10-27 | AE93: 2 | AF93: 1 | AG93: -6.4 | AH93: 3.9 | AJ93: 2.29 | AK93: 0.5 | AL93: -8.98 | AM93: 0.895 | AO93: 2015-10-27 | AP93: 1 | AQ93: 2 | AR93: 10.5 | AS93: 3.9 | AU93: 0.5 | AV93: 1.6 | AW93: 0.96 | AX93: 1.545 | AZ93: 2015-10-27 | BA93: 18.6 | BB93: 100 | BF93: 8.135 | BG93: 92.285 | BK93: 2015-10-27 | BL93: 20.5 | BM93: 10.8 | BN93: 1 | BO93: 0 | BQ93: 13.185 | BR93: 6.86 | BS93: 0.7 | BT93: 0.6 | BV93: 2015-10-27 | BW93: 7.8 | BX93: 22.8 | BY93: 80.5 | BZ93: 42.2 | CA93: 15.3 | CC93: 10.68 | CD93: 30.435 | CE93: 60.955 | CF93: 30.65 | CG93: 12.62 | CI93: 2015-10-27 | CJ93: 3.9 | CK93: 3.9 | CL93: 0 | CM93: 0 | CO93: 0.895 | CP93: 1.545 | CQ93: 0.6486341402 | CR93: 0 | CT93: 2015-10-27 | CU93: 40.7 | CV93: 47.1 | CW93: 60.4 | CX93: 49.9 | CZ93: 45.305 | DA93: 54.285 | DB93: 53.295 | DC93: 52.345 | DE93: 2015-10-27 | DF93: 40.7 | DG93: 47.1 | DH93: 60.4 | DI93: 49.9 | DK93: 45.305 | DL93: 54.285 | DM93: 53.295 | DN93: 52.345 | DP93: 2015-10-27 | DQ93: 15.3 | DR93: 20.5 | DS93: 3 | DT93: 2 | DV93: 12.77 | DW93: 13.185 | DX93: 2.6 | DY93: 1.6 | EA93: 2015-10-27 | EB93: 15.3 | EC93: 18.6 | ED93: 42.2 | EE93: 7.8 | EG93: 12.77 | EH93: 8.135 | EI93: 31.84 | EJ93: 3.015 | EL93: Mattias.Ekholm | EM93: 16.23602484 | EN93: 441.6 | EO93: 9.471428571 | EP93: 33.8863354 | ER93: 16.46988304 | ES93: 367.395 | ET93: 7.844388125 | EU93: 34.40672697 | EW93: 2015-10-27 | EX93: 15.3 | EY93: -6.4 | EZ93: 10.5 | FA93: 9.7 | FC93: 12.77 | FD93: -8.98 | FE93: 0.96 | FF93: 0.85
A94: 2015-10-31 | B94: 14 | C94: 14 | D94: 6 | E94: 34 | H94: 2015-10-31 | I94: 12 | J94: 0 | K94: 0 | N94: 12.62 | O94: 10 | P94: 8.135 | S94: 2015-10-31 | T94: 12 | U94: 54.6 | V94: 21.6 | Y94: 12.62 | Z94: 53.63 | AA94: 42.395 | AD94: 2015-10-31 | AE94: 0.8 | AF94: 1 | AG94: -15.7 | AH94: 0 | AJ94: 2.145 | AK94: 0.5 | AL94: -10.155 | AM94: 0.895 | AO94: 2015-10-31 | AP94: 1 | AQ94: 1 | AR94: 1.3 | AS94: 0 | AU94: 0.5 | AV94: 1.55 | AW94: 1.85 | AX94: 1.545 | AZ94: 2015-10-31 | BA94: 0 | BB94: 100 | BF94: 8.135 | BG94: 92.285 | BK94: 2015-10-31 | BL94: 9.1 | BM94: 1 | BN94: 2 | BO94: 0 | BQ94: 12.945 | BR94: 6.55 | BS94: 0.65 | BT94: 0.55 | BV94: 2015-10-31 | BW94: 4.1 | BX94: 23.8 | BY94: 45.6 | BZ94: 4.9 | CA94: 12 | CC94: 10.15 | CD94: 30.24 | CE94: 60.455 | CF94: 30.8 | CG94: 12.56 | CI94: 2015-10-31 | CJ94: 0 | CK94: 0 | CL94: 0 | CM94: 0 | CO94: 0.895 | CP94: 1.545 | CQ94: 0.6486341402 | CR94: 0 | CT94: 2015-10-31 | CU94: 21.6 | CV94: 37.2 | CW94: 54 | CX94: 52.6 | CZ94: 42.395 | DA94: 52.545 | DB94: 52.8 | DC94: 50.955 | DE94: 2015-10-31 | DF94: 21.6 | DG94: 37.2 | DH94: 54 | DI94: 52.6 | DK94: 42.395 | DL94: 52.545 | DM94: 52.8 | DN94: 50.955 | DP94: 2015-10-31 | DQ94: 12 | DR94: 9.1 | DS94: 2 | DT94: 1 | DV94: 12.62 | DW94: 12.945 | DX94: 2.4 | DY94: 1.55 | EA94: 2015-10-31 | EB94: 12 | EC94: 0 | ED94: 4.9 | EE94: 0 | EG94: 12.62 | EH94: 8.135 | EI94: 30.65 | EJ94: 3.015 | EL94: Cam.Fowler | EM94: 16.23581081 | EN94: 366.6 | EO94: 7.142857143 | EP94: 33.95810811 | ER94: 16.44587112 | ES94: 364.06 | ET94: 7.821376661 | EU94: 34.38426707 | EW94: 2015-10-31 | EX94: 12 | EY94: -15.7 | EZ94: 1.3 | FA94: 7.1 | FC94: 12.62 | FD94: -10.155 | FE94: 1.85 | FF94: 1.41
A95: 2015-11-02 | B95: 14 | C95: 14 | D95: 6 | E95: 34 | H95: 2015-11-02 | I95: 15.1 | J95: 0 | K95: 0 | N95: 12.56 | O95: 10 | P95: 8.135 | S95: 2015-11-02 | T95: 15.1 | U95: 49.5 | V95: 56.2 | Y95: 12.56 | Z95: 53.09 | AA95: 43.655 | AD95: 2015-11-02 | AE95: 1.2 | AF95: 0 | AG95: 12.2 | AH95: 0 | AJ95: 2.16 | AK95: 0.5 | AL95: -9.475 | AM95: 0.895 | AO95: 2015-11-02 | AP95: 0 | AQ95: 3 | AR95: -3.6 | AS95: 0 | AU95: 0.5 | AV95: 1.45 | AW95: 0.205 | AX95: 1.545 | AZ95: 2015-11-02 | BA95: 0 | BB95: 100 | BF95: 8.135 | BG95: 94.045 | BK95: 2015-11-02 | BL95: 15.6 | BM95: 5.5 | BN95: 1 | BO95: 2 | BQ95: 13.065 | BR95: 6.57 | BS95: 0.65 | BT95: 0.6 | BV95: 2015-11-02 | BW95: 4.9 | BX95: 24 | BY95: 61.9 | BZ95: 21.6 | CA95: 15.1 | CC95: 10.23 | CD95: 29.69 | CE95: 61.12 | CF95: 30.765 | CG95: 12.87 | CI95: 2015-11-02 | CJ95: 0 | CK95: 0 | CL95: 0 | CM95: 0 | CO95: 0.895 | CP95: 1.545 | CQ95: 0.6486341402 | CR95: 0 | CT95: 2015-11-02 | CU95: 56.2 | CV95: 44 | CW95: 47.3 | CX95: 50.9 | CZ95: 43.655 | DA95: 53.13 | DB95: 52.07 | DC95: 51.87 | DE95: 2015-11-02 | DF95: 56.2 | DG95: 44 | DH95: 47.3 | DI95: 50.9 | DK95: 43.655 | DL95: 53.13 | DM95: 52.07 | DN95: 51.87 | DP95: 2015-11-02 | DQ95: 15.1 | DR95: 15.6 | DS95: 4 | DT95: 3 | DV95: 12.56 | DW95: 13.065 | DX95: 2.3 | DY95: 1.45 | EA95: 2015-11-02 | EB95: 15.1 | EC95: 0 | ED95: 21.6 | EE95: 0 | EG95: 12.56 | EH95: 8.135 | EI95: 30.8 | EJ95: 3.015 | EL95: Brad.Stuart | EM95: 16.23380282 | EN95: 175 | EO95: 7.765714286 | EP95: 33.65774648 | ER95: 16.42238765 | ES95: 356.395 | ET95: 7.754838431 | EU95: 34.30890523 | EW95: 2015-11-02 | EX95: 15.1 | EY95: 12.2 | EZ95: -3.6 | FA95: -3 | FC95: 12.56 | FD95: -9.475 | FE95: 0.205 | FF95: 0.67
A96: 2015-11-03 | B96: 14 | C96: 14 | D96: 6 | E96: 34 | H96: 2015-11-03 | I96: 13.4 | J96: 0 | K96: 0 | N96: 12.87 | O96: 10 | P96: 8.135 | S96: 2015-11-03 | T96: 13.4 | U96: 54.7 | V96: 63.6 | Y96: 12.87 | Z96: 53.84 | AA96: 45.935 | AD96: 2015-11-03 | AE96: 3.3 | AF96: 0 | AG96: 32.8 | AH96: 0 | AJ96: 2.27 | AK96: 0.5 | AL96: -7.35 | AM96: 0.45 | AO96: 2015-11-03 | AP96: 0 | AQ96: 1 | AR96: 23.2 | AS96: 0 | AU96: 0.5 | AV96: 1.45 | AW96: 2.24 | AX96: 1.1 | AZ96: 2015-11-03 | BA96: 0 | BB96: 100 | BF96: 8.135 | BG96: 94.81 | BK96: 2015-11-03 | BL96: 13.1 | BM96: 5.3 | BN96: 0 | BO96: 1 | BQ96: 13.475 | BR96: 6.69 | BS96: 0.65 | BT96: 0.6 | BV96: 2015-11-03 | BW96: 14.9 | BX96: 39.8 | BY96: 58.8 | BZ96: 23.8 | CA96: 13.4 | CC96: 10.525 | CD96: 30.87 | CE96: 61.99 | CF96: 30.725 | CG96: 12.805 | CI96: 2015-11-03 | CJ96: 0 | CK96: 0 | CL96: 0 | CM96: 0 | CO96: 0.895 | CP96: 1.545 | CQ96: 0.6486341402 | CR96: 0 | CT96: 2015-11-03 | CU96: 63.6 | CV96: 30.8 | CW96: 65.7 | CX96: 42.5 | CZ96: 45.935 | DA96: 53.29 | DB96: 54.26 | DC96: 52.025 | DE96: 2015-11-03 | DF96: 63.6 | DG96: 30.8 | DH96: 65.7 | DI96: 42.5 | DK96: 45.935 | DL96: 53.29 | DM96: 54.26 | DN96: 52.025 | DP96: 2015-11-03 | DQ96: 13.4 | DR96: 13.1 | DS96: 2 | DT96: 1 | DV96: 12.87 | DW96: 13.475 | DX96: 2.35 | DY96: 1.45 | EA96: 2015-11-03 | EB96: 13.4 | EC96: 0 | ED96: 23.8 | EE96: 0 | EG96: 12.87 | EH96: 8.135 | EI96: 30.765 | EJ96: 3.015 | EL96: Andrew.Ference | EM96: 16.23157895 | EN96: 233.3 | EO96: 7.449333333 | EP96: 33.16315789 | ER96: 16.40031528 | ES96: 360.56 | ET96: 7.850035361 | EU96: 34.23650808 | EW96: 2015-11-03 | EX96: 13.4 | EY96: 32.8 | EZ96: 23.2 | FA96: 5.9 | FC96: 12.87 | FD96: -7.35 | FE96: 2.24 | FF96: 1.435
A97: 2015-11-05 | B97: 14 | C97: 14 | D97: 6 | E97: 34 | H97: 2015-11-05 | I97: 12.3 | J97: 0 | K97: 0 | N97: 12.805 | O97: 5 | P97: 7.045 | S97: 2015-11-05 | T97: 12.3 | U97: 52.8 | V97: 19.4 | Y97: 12.805 | Z97: 53.275 | AA97: 45.315 | AD97: 2015-11-05 | AE97: 1.9 | AF97: 0 | AG97: -32.1 | AH97: 0 | AJ97: 2.265 | AK97: 0.45 | AL97: -7.82 | AM97: 0.64 | AO97: 2015-11-05 | AP97: 0 | AQ97: 3 | AR97: -7.5 | AS97: 0 | AU97: 0.45 | AV97: 1.5 | AW97: 1.195 | AX97: 1.29 | AZ97: 2015-11-05 | BA97: 0 | BB97: 89.6 | BF97: 7.045 | BG97: 94.29 | BK97: 2015-11-05 | BL97: 14.8 | BM97: 8.1 | BN97: 1 | BO97: 1 | BQ97: 13.315 | BR97: 6.635 | BS97: 0.7 | BT97: 0.65 | BV97: 2015-11-05 | BW97: 9.3 | BX97: 39.2 | BY97: 72.3 | BZ97: 39.7 | CA97: 12.3 | CC97: 10.555 | CD97: 30.725 | CE97: 61.61 | CF97: 31.23 | CG97: 12.98 | CI97: 2015-11-05 | CJ97: 0 | CK97: 0 | CL97: 0 | CM97: 0 | CO97: 0.45 | CP97: 1.1 | CQ97: 0.6486341402 | CR97: 0 | CT97: 2015-11-05 | CU97: 19.4 | CV97: 51.5 | CW97: 50.2 | CX97: 57.7 | CZ97: 45.315 | DA97: 53.14 | DB97: 53.71 | DC97: 52.52 | DE97: 2015-11-05 | DF97: 19.4 | DG97: 51.5 | DH97: 50.2 | DI97: 57.7 | DK97: 45.315 | DL97: 53.14 | DM97: 53.71 | DN97: 52.52 | DP97: 2015-11-05 | DQ97: 12.3 | DR97: 14.8 | DS97: 4 | DT97: 3 | DV97: 12.805 | DW97: 13.315 | DX97: 2.4 | DY97: 1.5 | EA97: 2015-11-05 | EB97: 12.3 | EC97: 0 | ED97: 39.7 | EE97: 0 | EG97: 12.805 | EH97: 7.045 | EI97: 30.725 | EJ97: 2.57 | EL97: Andrew.MacDonald | EM97: 16.19848485 | EN97: 100 | EO97: 7.192424242 | EP97: 33.78636364 | ER97: 16.37724682 | ES97: 346.395 | ET97: 7.908112456 | EU97: 34.19854126 | EW97: 2015-11-05 | EX97: 12.3 | EY97: -32.1 | EZ97: -7.5 | FA97: -5.3 | FC97: 12.805 | FD97: -7.82 | FE97: 1.195 | FF97: 0.15
A98: 2015-11-07 | B98: 15 | C98: 14 | D98: 6 | E98: 35 | H98: 2015-11-07 | I98: 15.7 | J98: 50 | K98: 21.7 | N98: 12.98 | O98: 7.5 | P98: 7.155 | S98: 2015-11-07 | T98: 15.7 | U98: 56.3 | V98: 65.1 | Y98: 12.98 | Z98: 54.41 | AA98: 46.62 | AD98: 2015-11-07 | AE98: 1.9 | AF98: 2 | AG98: -16.2 | AH98: 3.8 | AJ98: 2.31 | AK98: 0.55 | AL98: -7.535 | AM98: 0.385 | AO98: 2015-11-07 | AP98: 2 | AQ98: 2 | AR98: -20.4 | AS98: 3.8 | AU98: 0.55 | AV98: 1.55 | AW98: 0.98 | AX98: 0.78 | AZ98: 2015-11-07 | BA98: 21.7 | BB98: 73.4 | BF98: 7.155 | BG98: 92.96 | BK98: 2015-11-07 | BL98: 14.3 | BM98: 9.2 | BN98: 0 | BO98: 1 | BQ98: 13.64 | BR98: 6.84 | BS98: 0.65 | BT98: 0.65 | BV98: 2015-11-07 | BW98: 7.3 | BX98: 14.7 | BY98: 54.8 | BZ98: 35.3 | CA98: 15.7 | CC98: 10.675 | CD98: 30.71 | CE98: 62.435 | CF98: 31.675 | CG98: 13.03 | CI98: 2015-11-07 | CJ98: 3.8 | CK98: 3.8 | CL98: 0 | CM98: 0 | CO98: 0.64 | CP98: 1.29 | CQ98: 0.6486341402 | CR98: 0 | CT98: 2015-11-07 | CU98: 65.1 | CV98: 81.2 | CW98: 55.7 | CX98: 76.1 | CZ98: 46.62 | DA98: 54.15 | DB98: 54.795 | DC98: 53.82 | DE98: 2015-11-07 | DF98: 65.1 | DG98: 81.2 | DH98: 55.7 | DI98: 76.1 | DK98: 46.62 | DL98: 54.15 | DM98: 54.795 | DN98: 53.82 | DP98: 2015-11-07 | DQ98: 15.7 | DR98: 14.3 | DS98: 3 | DT98: 2 | DV98: 12.98 | DW98: 13.64 | DX98: 2.5 | DY98: 1.55 | EA98: 2015-11-07 | EB98: 15.7 | EC98: 21.7 | ED98: 35.3 | EE98: 7.7 | EG98: 12.98 | EH98: 7.155 | EI98: 31.23 | EJ98: 2.71 | EL98: Dougie.Hamilton | EM98: 16.19015152 | EN98: 324.9 | EO98: 7.038636364 | EP98: 33.11742424 | ER98: 16.35481777 | ES98: 341.14 | ET98: 7.85909357 | EU98: 34.15395174 | EW98: 2015-11-07 | EX98: 15.7 | EY98: -16.2 | EZ98: -20.4 | FA98: -8.4 | FC98: 12.98 | FD98: -7.535 | FE98: 0.98 | FF98: 0.38
A99: 2015-11-10 | B99: 15 | C99: 14 | D99: 6 | E99: 35 | H99: 2015-11-10 | I99: 12.7 | J99: 0 | K99: 0 | N99: 13.03 | O99: 5 | P99: 5.6 | S99: 2015-11-10 | T99: 12.7 | U99: 52.2 | V99: 0 | Y99: 13.03 | Z99: 54.71 | AA99: 44.145 | AD99: 2015-11-10 | AE99: 0 | AF99: 0 | AG99: -67.4 | AH99: 0 | AJ99: 2.21 | AK99: 0.55 | AL99: -10.03 | AM99: 0.63 | AO99: 2015-11-10 | AP99: 0 | AQ99: 0 | AR99: -18.6 | AS99: 0 | AU99: 0.55 | AV99: 1.5 | AW99: 0.085 | AX99: 1.025 | AZ99: 2015-11-10 | BA99: 0 | BB99: 75 | BF99: 5.6 | BG99: 92.35 | BK99: 2015-11-10 | BL99: 11.7 | BM99: 8.8 | BN99: 0 | BO99: 0 | BQ99: 13.71 | BR99: 6.96 | BS99: 0.6 | BT99: 0.65 | BV99: 2015-11-10 | BW99: 0 | BX99: 22.8 | BY99: 55.3 | BZ99: 41.8 | CA99: 12.7 | CC99: 10.175 | CD99: 30.145 | CE99: 62.565 | CF99: 31.555 | CG99: 13.075 | CI99: 2015-11-10 | CJ99: 0 | CK99: 0 | CL99: 0 | CM99: 0 | CO99: 0.385 | CP99: 0.78 | CQ99: 0.3922238838 | CR99: 0 | CT99: 2015-11-10 | CU99: 0 | CV99: 67.4 | CW99: 41.2 | CX99: 59.8 | CZ99: 44.145 | DA99: 54.17 | DB99: 53.735 | DC99: 53.65 | DE99: 2015-11-10 | DF99: 0 | DG99: 67.4 | DH99: 41.2 | DI99: 59.8 | DK99: 44.145 | DL99: 54.17 | DM99: 53.735 | DN99: 53.65 | DP99: 2015-11-10 | DQ99: 12.7 | DR99: 11.7 | DS99: 0 | DT99: 0 | DV99: 13.03 | DW99: 13.71 | DX99: 2.35 | DY99: 1.5 | EA99: 2015-11-10 | EB99: 12.7 | EC99: 0 | ED99: 41.8 | EE99: 0 | EG99: 13.03 | EH99: 5.6 | EI99: 31.675 | EJ99: 2.2 | EL99: Matt.Hunwick | EM99: 16.18859649 | EN99: 133.3 | EO99: 8.136842105 | EP99: 33.82017544 | ER99: 16.33732452 | ES99: 342.805 | ET99: 7.902004051 | EU99: 34.08545713 | EW99: 2015-11-10 | EX99: 12.7 | EY99: -67.4 | EZ99: -18.6 | FA99: -11.6 | FC99: 13.03 | FD99: -10.03 | FE99: 0.085 | FF99: 0.33
A100: 2015-11-12 | B100: 16 | C100: 14 | D100: 6 | E100: 36 | H100: 2015-11-12 | I100: 12.3 | J100: 50 | K100: 13.9 | N100: 13.075 | O100: 7.5 | P100: 5.59 | S100: 2015-11-12 | T100: 12.3 | U100: 38.9 | V100: 31.9 | Y100: 13.075 | Z100: 54.52 | AA100: 45.74 | AD100: 2015-11-12 | AE100: 1.9 | AF100: 1 | AG100: -12.6 | AH100: 4.9 | AJ100: 2.305 | AK100: 0.6 | AL100: -9.315 | AM100: 0.89 | AO100: 2015-11-12 | AP100: 1 | AQ100: 1 | AR100: -29.6 | AS100: 4.9 | AU100: 0.6 | AV100: 1.5 | AW100: -1.11 | AX100: 1.285 | AZ100: 2015-11-12 | BA100: 13.9 | BB100: 100 | BF100: 5.59 | BG100: 92.35 | BK100: 2015-11-12 | BL100: 9.8 | BM100: 7.2 | BN100: 0 | BO100: 0 | BQ100: 13.78 | BR100: 6.965 | BS100: 0.6 | BT100: 0.55 | BV100: 2015-11-12 | BW100: 9.3 | BX100: 13.7 | BY100: 48 | BZ100: 35 | CA100: 12.3 | CC100: 10.64 | CD100: 30.295 | CE100: 62.765 | CF100: 31.485 | CG100: 12.97 | CI100: 2015-11-12 | CJ100: 4.9 | CK100: 4.9 | CL100: 0 | CM100: 0 | CO100: 0.63 | CP100: 1.025 | CQ100: 0.3922238838 | CR100: 0 | CT100: 2015-11-12 | CU100: 31.9 | CV100: 44.5 | CW100: 22.4 | CX100: 52.1 | CZ100: 45.74 | DA100: 55.05 | DB100: 53.715 | DC100: 54.83 | DE100: 2015-11-12 | DF100: 31.9 | DG100: 44.5 | DH100: 22.4 | DI100: 52.1 | DK100: 45.74 | DL100: 55.05 | DM100: 53.715 | DN100: 54.83 | DP100: 2015-11-12 | DQ100: 12.3 | DR100: 9.8 | DS100: 2 | DT100: 1 | DV100: 13.075 | DW100: 13.78 | DX100: 2.35 | DY100: 1.5 | EA100: 2015-11-12 | EB100: 12.3 | EC100: 13.9 | ED100: 35 | EE100: 4.9 | EG100: 13.075 | EH100: 5.59 | EI100: 31.555 | EJ100: 2.18 | EL100: Colton.Parayko | EM100: 16.16153846 | EN100: 275 | EO100: 9.329487179 | EP100: 33.92692308 | ER100: 16.31877724 | ES100: 328.64 | ET100: 7.965930639 | EU100: 34.03912863 | EW100: 2015-11-12 | EX100: 12.3 | EY100: -12.6 | EZ100: -29.6 | FA100: -16.7 | FC100: 13.075 | FD100: -9.315 | FE100: -1.11 | FF100: -1.255
A101: 2015-11-14 | B101: 17 | C101: 14 | D101: 6 | E101: 37 | H101: 2015-11-14 | I101: 11.5 | J101: 33.3 | K101: 20 | N101: 12.97 | O101: 9.165 | P101: 6.59 | S101: 2015-11-14 | T101: 11.5 | U101: 67.8 | V101: 66.1 | Y101: 12.97 | Z101: 54.785 | AA101: 45.385 | AD101: 2015-11-14 | AE101: 4.3 | AF101: 2 | AG101: 20.3 | AH101: 5.2 | AJ101: 2.27 | AK101: 0.7 | AL101: -9.16 | AM101: 0.89 | AO101: 2015-11-14 | AP101: 2 | AQ101: 2 | AR101: 23.2 | AS101: 5.2 | AU101: 0.7 | AV101: 1.55 | AW101: 0.39 | AX101: 1.285 | AZ101: 2015-11-14 | BA101: 20 | BB101: 100 | BF101: 6.59 | BG101: 92.35 | BK101: 2015-11-14 | BL101: 16.3 | BM101: 10 | BN101: 0 | BO101: 0 | BQ101: 13.785 | BR101: 6.855 | BS101: 0.6 | BT101: 0.6 | BV101: 2015-11-14 | BW101: 22.4 | BX101: 58.9 | BY101: 85.4 | BZ101: 52.4 | CA101: 11.5 | CC101: 10.645 | CD101: 30.895 | CE101: 63.465 | CF101: 30.875 | CG101: 13.03 | CI101: 2015-11-14 | CJ101: 5.2 | CK101: 5.2 | CL101: 0 | CM101: 0 | CO101: 0.89 | CP101: 1.285 | CQ101: 0.3922238838 | CR101: 0 | CT101: 2015-11-14 | CU101: 66.1 | CV101: 45.7 | CW101: 64.5 | CX101: 41.3 | CZ101: 45.385 | DA101: 54.53 | DB101: 53.71 | DC101: 53.325 | DE101: 2015-11-14 | DF101: 66.1 | DG101: 45.7 | DH101: 64.5 | DI101: 41.3 | DK101: 45.385 | DL101: 54.53 | DM101: 53.71 | DN101: 53.325 | DP101: 2015-11-14 | DQ101: 11.5 | DR101: 16.3 | DS101: 3 | DT101: 2 | DV101: 12.97 | DW101: 13.785 | DX101: 2.4 | DY101: 1.55 | EA101: 2015-11-14 | EB101: 11.5 | EC101: 20 | ED101: 52.4 | EE101: 10.5 | EG101: 12.97 | EH101: 6.59 | EI101: 31.485 | EJ101: 2.705 | EL101: Lubomir.Visnovsky | EM101: 16.13018868 | EN101: 200 | EO101: 10.21132075 | EP101: 33.22641509 | ER101: 16.29939115 | ES101: 334.475 | ET101: 8.132541453 | EU101: 33.96501726 | EW101: 2015-11-14 | EX101: 11.5 | EY101: 20.3 | EZ101: 23.2 | FA101: 15.5 | FC101: 12.97 | FD101: -9.16 | FE101: 0.39 | FF101: -0.33
A102: 2015-11-17 | B102: 17 | C102: 14 | D102: 6 | E102: 37 | H102: 2015-11-17 | I102: 12.8 | J102: 0 | K102: 0 | N102: 13.03 | O102: 9.165 | P102: 6.59 | S102: 2015-11-17 | T102: 12.8 | U102: 53 | V102: 0 | Y102: 13.03 | Z102: 54.64 | AA102: 41.36 | AD102: 2015-11-17 | AE102: 0 | AF102: 0 | AG102: -53.1 | AH102: 0 | AJ102: 2.065 | AK102: 0.6 | AL102: -12.23 | AM102: 0.89 | AO102: 2015-11-17 | AP102: 0 | AQ102: 0 | AR102: -9 | AS102: 0 | AU102: 0.6 | AV102: 1.35 | AW102: -0.765 | AX102: 1.285 | AZ102: 2015-11-17 | BA102: 0 | BB102: 100 | BF102: 6.59 | BG102: 93.95 | BK102: 2015-11-17 | BL102: 9.1 | BM102: 4.9 | BN102: 0 | BO102: 2 | BQ102: 13.52 | BR102: 6.765 | BS102: 0.5 | BT102: 0.6 | BV102: 2015-11-17 | BW102: 0 | BX102: 18.1 | BY102: 42.9 | BZ102: 22.8 | CA102: 12.8 | CC102: 9.575 | CD102: 29.78 | CE102: 61.88 | CF102: 31.18 | CG102: 13.12 | CI102: 2015-11-17 | CJ102: 0 | CK102: 0 | CL102: 0 | CM102: 0 | CO102: 0.89 | CP102: 1.285 | CQ102: 0.3922238838 | CR102: 0 | CT102: 2015-11-17 | CU102: 0 | CV102: 53.1 | CW102: 48.9 | CX102: 57.9 | CZ102: 41.36 | DA102: 53.575 | DB102: 52.585 | DC102: 53.355 | DE102: 2015-11-17 | DF102: 0 | DG102: 53.1 | DH102: 48.9 | DI102: 57.9 | DK102: 41.36 | DL102: 53.575 | DM102: 52.585 | DN102: 53.355 | DP102: 2015-11-17 | DQ102: 12.8 | DR102: 9.1 | DS102: 2 | DT102: 0 | DV102: 13.03 | DW102: 13.52 | DX102: 2.25 | DY102: 1.35 | EA102: 2015-11-17 | EB102: 12.8 | EC102: 0 | ED102: 22.8 | EE102: 0 | EG102: 13.03 | EH102: 6.59 | EI102: 30.875 | EJ102: 2.705 | EL102: Brian.Dumoulin | EM102: 16.08208955 | EN102: 100 | EO102: 9.023880597 | EP102: 33.86567164 | ER102: 16.27878975 | ES102: 328.475 | ET102: 8.158945567 | EU102: 34.03129232 | EW102: 2015-11-17 | EX102: 12.8 | EY102: -53.1 | EZ102: -9 | FA102: -7.8 | FC102: 13.03 | FD102: -12.23 | FE102: -0.765 | FF102: -0.92
A103: 2015-11-20 | B103: 17 | C103: 14 | D103: 6 | E103: 37 | H103: 2015-11-20 | I103: 14.6 | J103: 0 | K103: 0 | N103: 13.12 | O103: 9.165 | P103: 6.59 | S103: 2015-11-20 | T103: 14.6 | U103: 60.4 | V103: 75.3 | Y103: 13.12 | Z103: 54.67 | AA103: 45.125 | AD103: 2015-11-20 | AE103: 6.1 | AF103: 1 | AG103: 20.7 | AH103: 0 | AJ103: 2.37 | AK103: 0.65 | AL103: -7.09 | AM103: 0.89 | AO103: 2015-11-20 | AP103: 1 | AQ103: 1 | AR103: 28.3 | AS103: 0 | AU103: 0.65 | AV103: 1.35 | AW103: 0.205 | AX103: 1.285 | AZ103: 2015-11-20 | BA103: 0 | BB103: 100 | BF103: 6.59 | BG103: 93.95 | BK103: 2015-11-20 | BL103: 16 | BM103: 10.5 | BN103: 0 | BO103: 0 | BQ103: 13.615 | BR103: 6.895 | BS103: 0.45 | BT103: 0.55 | BV103: 2015-11-20 | BW103: 25.1 | BX103: 42 | BY103: 65.8 | BZ103: 43 | CA103: 14.6 | CC103: 10.83 | CD103: 31.145 | CE103: 61.85 | CF103: 31.165 | CG103: 13.57 | CI103: 2015-11-20 | CJ103: 0 | CK103: 0 | CL103: 0 | CM103: 0 | CO103: 0.89 | CP103: 1.285 | CQ103: 0.3922238838 | CR103: 0 | CT103: 2015-11-20 | CU103: 75.3 | CV103: 54.6 | CW103: 76.7 | CX103: 48.4 | CZ103: 45.125 | DA103: 52.2 | DB103: 53.355 | DC103: 53.155 | DE103: 2015-11-20 | DF103: 75.3 | DG103: 54.6 | DH103: 76.7 | DI103: 48.4 | DK103: 45.125 | DL103: 52.2 | DM103: 53.355 | DN103: 53.155 | DP103: 2015-11-20 | DQ103: 14.6 | DR103: 16 | DS103: 1 | DT103: 1 | DV103: 13.12 | DW103: 13.615 | DX103: 2.2 | DY103: 1.35 | EA103: 2015-11-20 | EB103: 14.6 | EC103: 0 | ED103: 43 | EE103: 0 | EG103: 13.12 | EH103: 6.59 | EI103: 31.18 | EJ103: 2.705 | EL103: Chris.Phillips | EM103: 16.06666667 | EN103: 0 | EO103: 7.177777778 | EP103: 35.09166667 | ER103: 16.25911556 | ES103: 283.895 | ET103: 8.028440517 | EU103: 33.91907027 | EW103: 2015-11-20 | EX103: 14.6 | EY103: 20.7 | EZ103: 28.3 | FA103: 6.6 | FC103: 13.12 | FD103: -7.09 | FE103: 0.205 | FF103: -1.42
A104: 2015-11-22 | B104: 17 | C104: 14 | D104: 6 | E104: 37 | H104: 2015-11-22 | I104: 17.2 | J104: 0 | K104: 17.9 | N104: 13.57 | O104: 9.165 | P104: 7.485 | S104: 2015-11-22 | T104: 17.2 | U104: 47.1 | V104: 41.2 | Y104: 13.57 | Z104: 54.96 | AA104: 43.64 | AD104: 2015-11-22 | AE104: 2.6 | AF104: 2 | AG104: -26.6 | AH104: 0 | AJ104: 2.405 | AK104: 0.7 | AL104: -8.575 | AM104: 0.89 | AO104: 2015-11-22 | AP104: 2 | AQ104: 3 | AR104: -29.8 | AS104: 0 | AU104: 0.7 | AV104: 1.45 | AW104: -0.5 | AX104: 1.52 | AZ104: 2015-11-22 | BA104: 17.9 | BB104: 100 | BF104: 7.485 | BG104: 94.89 | BK104: 2015-11-22 | BL104: 15.1 | BM104: 5.6 | BN104: 3 | BO104: 0 | BQ104: 14.105 | BR104: 7.04 | BS104: 0.6 | BT104: 0.55 | BV104: 2015-11-22 | BW104: 9.1 | BX104: 27.6 | BY104: 52.5 | BZ104: 19.4 | CA104: 17.2 | CC104: 10.595 | CD104: 31.17 | CE104: 62.545 | CF104: 32.385 | CG104: 13.545 | CI104: 2015-11-22 | CJ104: 0 | CK104: 0 | CL104: 0 | CM104: 0 | CO104: 0.89 | CP104: 1.285 | CQ104: 0.3922238838 | CR104: 0 | CT104: 2015-11-22 | CU104: 41.2 | CV104: 67.8 | CW104: 54 | CX104: 83.8 | CZ104: 43.64 | DA104: 52.2 | DB104: 53.75 | DC104: 54.255 | DE104: 2015-11-22 | DF104: 41.2 | DG104: 67.8 | DH104: 54 | DI104: 83.8 | DK104: 43.64 | DL104: 52.2 | DM104: 53.75 | DN104: 54.255 | DP104: 2015-11-22 | DQ104: 17.2 | DR104: 15.1 | DS104: 4 | DT104: 3 | DV104: 13.57 | DW104: 14.105 | DX104: 2.3 | DY104: 1.45 | EA104: 2015-11-22 | EB104: 17.2 | EC104: 17.9 | ED104: 19.4 | EE104: 3.5 | EG104: 13.57 | EH104: 7.485 | EI104: 31.165 | EJ104: 2.88 | EL104: John-Michael.Liles | EM104: 16.03985507 | EN104: 316.6 | EO104: 7.586956522 | EP104: 32.53913043 | ER104: 16.23846546 | ES104: 293.06 | ET104: 8.001752628 | EU104: 33.85490461 | EW104: 2015-11-22 | EX104: 17.2 | EY104: -26.6 | EZ104: -29.8 | FA104: -18.7 | FC104: 13.57 | FD104: -8.575 | FE104: -0.5 | FF104: -1.53
A105: 2015-11-23 | B105: 17 | C105: 15 | D105: 6 | E105: 38 | H105: 2015-11-23 | I105: 12.7 | J105: 0 | K105: 13.1 | N105: 13.545 | O105: 9.165 | P105: 8.14 | S105: 2015-11-23 | T105: 12.7 | U105: 72.2 | Y105: 13.545 | Z105: 57.43 | AA105: 45.93684211 | AD105: 2015-11-23 | AE105: 0 | AF105: 0 | AH105: 0 | AJ105: 2.405 | AK105: 0.7 | AL105: -6.073684211 | AM105: 1.07 | AO105: 2015-11-23 | AP105: 0 | AQ105: 0 | AR105: -6.3 | AS105: 4.7 | AU105: 0.7 | AV105: 1.4 | AW105: 0.66 | AX105: 1.7 | AZ105: 2015-11-23 | BA105: 13.1 | BB105: 100 | BF105: 8.14 | BG105: 96.22 | BK105: 2015-11-23 | BL105: 14.2 | BM105: 7.7 | BN105: 0 | BO105: 0 | BQ105: 14.59 | BR105: 7.295 | BS105: 0.6 | BT105: 0.6 | BV105: 2015-11-23 | BW105: 0 | BX105: 15.5 | BY105: 67.2 | BZ105: 36.3 | CA105: 12.7 | CC105: 10.595 | CD105: 31.735 | CE105: 64.875 | CF105: 32.705 | CG105: 13.705 | CI105: 2015-11-23 | CJ105: 0 | CK105: 4.7 | CL105: 4.724409449 | CM105: 0 | CO105: 0.89 | CP105: 1.52 | CQ105: 0.6284443562 | CR105: 0 | CT105: 2015-11-23 | CV105: 67.9 | CW105: 54 | CX105: 60.3 | CZ105: 45.93684211 | DA105: 52.79 | DB105: 55.85 | DC105: 55.195 | DE105: 2015-11-23 | DG105: 67.9 | DH105: 54 | DI105: 60.3 | DK105: 45.93684211 | DL105: 52.79 | DM105: 55.85 | DN105: 55.195 | DP105: 2015-11-23 | DQ105: 12.7 | DR105: 14.2 | DS105: 0 | DT105: 0 | DV105: 13.545 | DW105: 14.59 | DX105: 2.25 | DY105: 1.4 | EA105: 2015-11-23 | EB105: 12.7 | EC105: 13.1 | ED105: 36.3 | EE105: 4.7 | EG105: 13.545 | EH105: 8.14 | EI105: 32.385 | EJ105: 3.115 | EL105: Torey.Krug | EM105: 16.03899371 | EN105: 608.2 | EO105: 8.507594937 | EP105: 33.04150943 | ER105: 16.21814564 | ES105: 303.47 | ET105: 8.017887771 | EU105: 33.80189764 | EW105: 2015-11-23 | EX105: 12.7 | EZ105: -6.3 | FA105: 20.1 | FC105: 13.545 | FD105: -6.073684211 | FE105: 0.66 | FF105: 0.495
A106: 2015-11-25 | B106: 18 | C106: 15 | D106: 6 | E106: 39 | H106: 2015-11-25 | I106: 16.6 | J106: 50 | K106: 10.5 | N106: 13.705 | O106: 11.665 | P106: 8.665 | S106: 2015-11-25 | T106: 16.6 | U106: 57.7 | V106: 87.9 | Y106: 13.705 | Z106: 57.005 | AA106: 48.79473684 | AD106: 2015-11-25 | AE106: 5.7 | AF106: 2 | AG106: 21.1 | AH106: 3.6 | AJ106: 2.605 | AK106: 0.8 | AL106: -3.394736842 | AM106: 1.07 | AO106: 2015-11-25 | AP106: 2 | AQ106: 2 | AR106: 12.9 | AS106: 3.6 | AU106: 0.8 | AV106: 1.45 | AW106: 0.84 | AX106: 1.875 | AZ106: 2015-11-25 | BA106: 10.5 | BB106: 100 | BF106: 8.665 | BG106: 96.22 | BK106: 2015-11-25 | BL106: 20.7 | BM106: 9.6 | BN106: 1 | BO106: 1 | BQ106: 14.845 | BR106: 7.46 | BS106: 0.6 | BT106: 0.75 | BV106: 2015-11-25 | BW106: 20.4 | BX106: 32.9 | BY106: 74.7 | BZ106: 34.5 | CA106: 16.6 | CC106: 11.225 | CD106: 31.375 | CE106: 65.135 | CF106: 34.265 | CG106: 14.05 | CI106: 2015-11-25 | CJ106: 3.6 | CK106: 3.6 | CL106: 0 | CM106: 0 | CO106: 1.07 | CP106: 1.7 | CQ106: 0.6284443562 | CR106: 0 | CT106: 2015-11-25 | CU106: 87.9 | CV106: 66.8 | CW106: 62.9 | CX106: 50 | CZ106: 48.79473684 | DA106: 52.96 | DB106: 55.375 | DC106: 54.54 | DE106: 2015-11-25 | DF106: 87.9 | DG106: 66.8 | DH106: 62.9 | DI106: 50 | DK106: 48.79473684 | DL106: 52.96 | DM106: 55.375 | DN106: 54.54 | DP106: 2015-11-25 | DQ106: 16.6 | DR106: 20.7 | DS106: 4 | DT106: 2 | DV106: 13.705 | DW106: 14.845 | DX106: 2.4 | DY106: 1.45 | EA106: 2015-11-25 | EB106: 16.6 | EC106: 10.5 | ED106: 34.5 | EE106: 3.6 | EG106: 13.705 | EH106: 8.665 | EI106: 32.705 | EJ106: 3.295 | EL106: Ryan.Ellis | EM106: 16.02846715 | EN106: 1028.3 | EO106: 9.922627737 | EP106: 33.37664234 | ER106: 16.19772992 | ES106: 337.385 | ET106: 8.018272031 | EU106: 33.76829321 | EW106: 2015-11-25 | EX106: 16.6 | EY106: 21.1 | EZ106: 12.9 | FA106: 6.1 | FC106: 13.705 | FD106: -3.394736842 | FE106: 0.84 | FF106: 0.355
A107: 2015-11-28 | B107: 18 | C107: 16 | D107: 6 | E107: 40 | H107: 2015-11-28 | I107: 17.1 | J107: 0 | K107: 8.4 | N107: 14.05 | O107: 11.665 | P107: 9.085 | S107: 2015-11-28 | T107: 17.1 | U107: 71.7 | V107: 66.4 | Y107: 14.05 | Z107: 58.385 | AA107: 52.28947368 | AD107: 2015-11-28 | AE107: 6.3 | AF107: 3 | AG107: 36 | AH107: 0 | AJ107: 2.92 | AK107: 0.95 | AL107: 1.957894737 | AM107: 1.07 | AO107: 2015-11-28 | AP107: 3 | AQ107: 4 | AR107: 26.2 | AS107: 3.5 | AU107: 0.95 | AV107: 1.6 | AW107: 4.41 | AX107: 1.875 | AZ107: 2015-11-28 | BA107: 8.4 | BB107: 81.9 | BF107: 9.085 | BG107: 95.315 | BK107: 2015-11-28 | BL107: 24 | BM107: 11.9 | BN107: 2 | BO107: 3 | BQ107: 15.66 | BR107: 7.965 | BS107: 0.65 | BT107: 0.7 | BV107: 2015-11-28 | BW107: 22.3 | BX107: 37 | BY107: 84.4 | BZ107: 42 | CA107: 17.1 | CC107: 12.34 | CD107: 32.655 | CE107: 67.095 | CF107: 35.325 | CG107: 13.99 | CI107: 2015-11-28 | CJ107: 0 | CK107: 3.5 | CL107: 3.50877193 | CM107: 0 | CO107: 1.07 | CP107: 1.875 | CQ107: 0.8038829527 | CR107: 0 | CT107: 2015-11-28 | CU107: 66.4 | CV107: 30.4 | CW107: 66.5 | CX107: 40.2 | CZ107: 52.28947368 | DA107: 51.195 | DB107: 57.71 | DC107: 53.3 | DE107: 2015-11-28 | DF107: 66.4 | DG107: 30.4 | DH107: 66.5 | DI107: 40.2 | DK107: 52.28947368 | DL107: 51.195 | DM107: 57.71 | DN107: 53.3 | DP107: 2015-11-28 | DQ107: 17.1 | DR107: 24 | DS107: 8 | DT107: 4 | DV107: 14.05 | DW107: 15.66 | DX107: 2.7 | DY107: 1.6 | EA107: 2015-11-28 | EB107: 17.1 | EC107: 8.4 | ED107: 42 | EE107: 3.5 | EG107: 14.05 | EH107: 9.085 | EI107: 34.265 | EJ107: 3.47 | EL107: Seth.Jones | EM107: 16.02762431 | EN107: 445 | EO107: 6.986740331 | EP107: 33.21712707 | ER107: 16.1805327 | ES107: 349.635 | ET107: 8.058104097 | EU107: 33.74668899 | EW107: 2015-11-28 | EX107: 17.1 | EY107: 36 | EZ107: 26.2 | FA107: 20.6 | FC107: 14.05 | FD107: 1.957894737 | FE107: 4.41 | FF107: 2.31
A108: 2015-12-01 | B108: 18 | C108: 16 | D108: 6 | E108: 40 | H108: 2015-12-01 | I108: 13.8 | J108: 0 | K108: 0 | N108: 13.99 | O108: 11.665 | P108: 9.085 | S108: 2015-12-01 | T108: 13.8 | U108: 63.5 | V108: 63.4 | Y108: 13.99 | Z108: 58.285 | AA108: 50.36315789 | AD108: 2015-12-01 | AE108: 1.9 | AF108: 0 | AG108: -1.7 | AH108: 0 | AJ108: 2.825 | AK108: 0.9 | AL108: 0.4947368421 | AM108: 1.325 | AO108: 2015-12-01 | AP108: 0 | AQ108: 1 | AR108: 3.5 | AS108: 0 | AU108: 0.9 | AV108: 1.5 | AW108: 3.045 | AX108: 2.13 | AZ108: 2015-12-01 | BA108: 0 | BB108: 100 | BF108: 9.085 | BG108: 95.315 | BK108: 2015-12-01 | BL108: 13.7 | BM108: 11.3 | BN108: 0 | BO108: 0 | BQ108: 15.645 | BR108: 8.18 | BS108: 0.55 | BT108: 0.6 | BV108: 2015-12-01 | BW108: 8.2 | BX108: 37 | BY108: 59.9 | BZ108: 49.3 | CA108: 13.8 | CC108: 11.99 | CD108: 32.555 | CE108: 67.29 | CF108: 34.53 | CG108: 13.945 | CI108: 2015-12-01 | CJ108: 0 | CK108: 0 | CL108: 0 | CM108: 0 | CO108: 1.07 | CP108: 1.875 | CQ108: 0.8038829527 | CR108: 0 | CT108: 2015-12-01 | CU108: 63.4 | CV108: 65.1 | CW108: 73.3 | CX108: 69.8 | CZ108: 50.36315789 | DA108: 50.755 | DB108: 57.175 | DC108: 54.13 | DE108: 2015-12-01 | DF108: 63.4 | DG108: 65.1 | DH108: 73.3 | DI108: 69.8 | DK108: 50.36315789 | DL108: 50.755 | DM108: 57.175 | DN108: 54.13 | DP108: 2015-12-01 | DQ108: 13.8 | DR108: 13.7 | DS108: 3 | DT108: 1 | DV108: 13.99 | DW108: 15.645 | DX108: 2.6 | DY108: 1.5 | EA108: 2015-12-01 | EB108: 13.8 | EC108: 0 | ED108: 49.3 | EE108: 0 | EG108: 13.99 | EH108: 9.085 | EI108: 35.325 | EJ108: 3.47 | EL108: Radko.Gudas | EM108: 15.96627907 | EN108: 45 | EO108: 5.403529412 | EP108: 34.11976744 | ER108: 16.16097629 | ES108: 320.47 | ET108: 7.964391679 | EU108: 33.67747135 | EW108: 2015-12-01 | EX108: 13.8 | EY108: -1.7 | EZ108: 3.5 | FA108: -9.1 | FC108: 13.99 | FD108: 0.4947368421 | FE108: 3.045 | FF108: 1.545
A109: 2015-12-05 | B109: 19 | C109: 16 | D109: 6 | E109: 41 | H109: 2015-12-05 | I109: 11.9 | J109: 33.3 | K109: 12.3 | N109: 13.945 | O109: 13.33 | P109: 9.29 | S109: 2015-12-05 | T109: 11.9 | U109: 65.5 | V109: 66.2 | Y109: 13.945 | Z109: 57.995 | AA109: 49.16315789 | AD109: 2015-12-05 | AE109: 2 | AF109: 1 | AG109: 16 | AH109: 5.1 | AJ109: 2.56 | AK109: 0.85 | AL109: 0.1315789474 | AM109: 1.57 | AO109: 2015-12-05 | AP109: 1 | AQ109: 3 | AR109: -8.5 | AS109: 5.1 | AU109: 0.85 | AV109: 1.5 | AW109: 2.07 | AX109: 2.375 | AZ109: 2015-12-05 | BA109: 12.3 | BB109: 57.8 | BF109: 9.29 | BG109: 93.205 | BK109: 2015-12-05 | BL109: 16.1 | BM109: 8.1 | BN109: 1 | BO109: 0 | BQ109: 15.28 | BR109: 7.975 | BS109: 0.6 | BT109: 0.65 | BV109: 2015-12-05 | BW109: 9.9 | BX109: 25.1 | BY109: 81.5 | BZ109: 41 | CA109: 11.9 | CC109: 10.78 | CD109: 30.395 | CE109: 65.885 | CF109: 34.565 | CG109: 13.995 | CI109: 2015-12-05 | CJ109: 5.1 | CK109: 5.1 | CL109: 0 | CM109: 0 | CO109: 1.325 | CP109: 2.13 | CQ109: 0.8038829527 | CR109: 0 | CT109: 2015-12-05 | CU109: 66.2 | CV109: 50.2 | CW109: 51.1 | CX109: 59.6 | CZ109: 49.16315789 | DA109: 49.965 | DB109: 55.575 | DC109: 53.51 | DE109: 2015-12-05 | DF109: 66.2 | DG109: 50.2 | DH109: 51.1 | DI109: 59.6 | DK109: 49.16315789 | DL109: 49.965 | DM109: 55.575 | DN109: 53.51 | DP109: 2015-12-05 | DQ109: 11.9 | DR109: 16.1 | DS109: 4 | DT109: 3 | DV109: 13.945 | DW109: 15.28 | DX109: 2.6 | DY109: 1.5 | EA109: 2015-12-05 | EB109: 11.9 | EC109: 12.3 | ED109: 41 | EE109: 5.1 | EG109: 13.945 | EH109: 9.29 | EI109: 34.53 | EJ109: 3.49 | EL109: Alec.Martinez | EM109: 15.96551724 | EN109: 441.6 | EO109: 7.952173913 | EP109: 33.00948276 | ER109: 16.1417179 | ES109: 330.05 | ET109: 7.918404484 | EU109: 33.67806101 | EW109: 2015-12-05 | EX109: 11.9 | EY109: 16 | EZ109: -8.5 | FA109: -1 | FC109: 13.945 | FD109: 0.1315789474 | FE109: 2.07 | FF109: 1.765
A110: 2015-12-06 | B110: 20 | C110: 16 | D110: 6 | E110: 42 | H110: 2015-12-06 | I110: 12.3 | J110: 100 | K110: 10.7 | N110: 13.995 | O110: 18.33 | P110: 8.645 | S110: 2015-12-06 | T110: 12.3 | U110: 74.6 | V110: 67.5 | Y110: 13.995 | Z110: 58.48 | AA110: 50.62105263 | AD110: 2015-12-06 | AE110: 4 | AF110: 1 | AG110: 38.6 | AH110: 4.9 | AJ110: 2.605 | AK110: 0.9 | AL110: 1.468421053 | AM110: 1.57 | AO110: 2015-12-06 | AP110: 1 | AQ110: 2 | AR110: 32.9 | AS110: 4.9 | AU110: 0.9 | AV110: 1.6 | AW110: 2.54 | AX110: 2.18 | AZ110: 2015-12-06 | BA110: 10.7 | BB110: 79.4 | BF110: 8.645 | BG110: 92.855 | BK110: 2015-12-06 | BL110: 19.5 | BM110: 9.3 | BN110: 1 | BO110: 1 | BQ110: 15.36 | BR110: 8.015 | BS110: 0.65 | BT110: 0.7 | BV110: 2015-12-06 | BW110: 19.6 | BX110: 45.1 | BY110: 94.8 | BZ110: 45.4 | CA110: 12.3 | CC110: 10.94 | CD110: 30.205 | CE110: 65.895 | CF110: 34.85 | CG110: 14.035 | CI110: 2015-12-06 | CJ110: 4.9 | CK110: 4.9 | CL110: 0 | CM110: 0 | CO110: 1.57 | CP110: 2.375 | CQ110: 0.8038829527 | CR110: 0 | CT110: 2015-12-06 | CU110: 67.5 | CV110: 28.8 | CW110: 70.3 | CX110: 37.3 | CZ110: 50.62105263 | DA110: 50.075 | DB110: 56.005 | DC110: 53.46 | DE110: 2015-12-06 | DF110: 67.5 | DG110: 28.8 | DH110: 70.3 | DI110: 37.3 | DK110: 50.62105263 | DL110: 50.075 | DM110: 56.005 | DN110: 53.46 | DP110: 2015-12-06 | DQ110: 12.3 | DR110: 19.5 | DS110: 3 | DT110: 2 | DV110: 13.995 | DW110: 15.36 | DX110: 2.75 | DY110: 1.6 | EA110: 2015-12-06 | EB110: 12.3 | EC110: 10.7 | ED110: 45.4 | EE110: 4.9 | EG110: 13.995 | EH110: 8.645 | EI110: 34.565 | EJ110: 3.205 | EL110: Eric.Brewer | EM110: 15.94090909 | EN110: 200 | EO110: 11.54772727 | EP110: 34.22045455 | ER110: 16.12254288 | ES110: 311.715 | ET110: 8.095160927 | EU110: 33.6745781 | EW110: 2015-12-06 | EX110: 12.3 | EY110: 38.6 | EZ110: 32.9 | FA110: 25.4 | FC110: 13.995 | FD110: 1.468421053 | FE110: 2.54 | FF110: 2.34
A111: 2015-12-08 | B111: 20 | C111: 16 | D111: 6 | E111: 42 | H111: 2015-12-08 | I111: 16.3 | J111: 0 | K111: 0 | N111: 14.035 | O111: 18.33 | P111: 7.975 | S111: 2015-12-08 | T111: 16.3 | U111: 57.6 | V111: 32.5 | Y111: 14.035 | Z111: 59.06 | AA111: 49.4 | AD111: 2015-12-08 | AE111: 3.1 | AF111: 0 | AG111: -16.8 | AH111: 0 | AJ111: 2.575 | AK111: 0.85 | AL111: -0.8736842105 | AM111: 1.57 | AO111: 2015-12-08 | AP111: 0 | AQ111: 2 | AR111: -3.4 | AS111: 0 | AU111: 0.85 | AV111: 1.65 | AW111: 1.98 | AX111: 1.98 | AZ111: 2015-12-08 | BA111: 0 | BB111: 100 | BF111: 7.975 | BG111: 92.855 | BK111: 2015-12-08 | BL111: 23.6 | BM111: 9.4 | BN111: 0 | BO111: 1 | BQ111: 15.76 | BR111: 8.115 | BS111: 0.65 | BT111: 0.65 | BV111: 2015-12-08 | BW111: 11.5 | BX111: 37.7 | BY111: 86.8 | BZ111: 34.5 | CA111: 16.3 | CC111: 10.8 | CD111: 30.325 | CE111: 67.22 | CF111: 34.56 | CG111: 14.04 | CI111: 2015-12-08 | CJ111: 0 | CK111: 0 | CL111: 0 | CM111: 0 | CO111: 1.57 | CP111: 2.18 | CQ111: 0.6103345656 | CR111: 0 | CT111: 2015-12-08 | CU111: 32.5 | CV111: 49.3 | CW111: 50.4 | CX111: 53.8 | CZ111: 49.4 | DA111: 51.135 | DB111: 56.51 | DC111: 54.525 | DE111: 2015-12-08 | DF111: 32.5 | DG111: 49.3 | DH111: 50.4 | DI111: 53.8 | DK111: 49.4 | DL111: 51.135 | DM111: 56.51 | DN111: 54.525 | DP111: 2015-12-08 | DQ111: 16.3 | DR111: 23.6 | DS111: 4 | DT111: 2 | DV111: 14.035 | DW111: 15.76 | DX111: 2.9 | DY111: 1.65 | EA111: 2015-12-08 | EB111: 16.3 | EC111: 0 | ED111: 34.5 | EE111: 0 | EG111: 14.035 | EH111: 7.975 | EI111: 34.85 | EJ111: 3.01 | EL111: Jonathan.Ericsson | EM111: 15.90681818 | EN111: 283.3 | EO111: 8.209848485 | EP111: 33.91666667 | ER111: 16.10553337 | ES111: 313.385 | ET111: 8.171892667 | EU111: 33.53849675 | EW111: 2015-12-08 | EX111: 16.3 | EY111: -16.8 | EZ111: -3.4 | FA111: -4.9 | FC111: 14.035 | FD111: -0.8736842105 | FE111: 1.98 | FF111: 2.15
A112: 2015-12-11 | B112: 20 | C112: 16 | D112: 6 | E112: 42 | H112: 2015-12-11 | I112: 15.2 | J112: 0 | K112: 0 | N112: 14.04 | O112: 18.33 | P112: 7.355 | S112: 2015-12-11 | T112: 15.2 | U112: 49.5 | V112: 32.6 | Y112: 14.04 | Z112: 58.195 | AA112: 47.24210526 | AD112: 2015-12-11 | AE112: 2.5 | AF112: 1 | AG112: -45.6 | AH112: 0 | AJ112: 2.575 | AK112: 0.9 | AL112: -5.078947368 | AM112: 1.375 | AO112: 2015-12-11 | AP112: 1 | AQ112: 1 | AR112: -19.9 | AS112: 0 | AU112: 0.9 | AV112: 1.7 | AW112: 0.27 | AX112: 1.785 | AZ112: 2015-12-11 | BA112: 0 | BB112: 100 | BF112: 7.355 | BG112: 92.855 | BK112: 2015-12-11 | BL112: 15.1 | BM112: 6.7 | BN112: 2 | BO112: 0 | BQ112: 15.615 | BR112: 8.045 | BS112: 0.75 | BT112: 0.7 | BV112: 2015-12-11 | BW112: 10 | BX112: 31.4 | BY112: 59.5 | BZ112: 26.3 | CA112: 15.2 | CC112: 10.805 | CD112: 30.455 | CE112: 66.63 | CF112: 33.95 | CG112: 14.275 | CI112: 2015-12-11 | CJ112: 0 | CK112: 0 | CL112: 0 | CM112: 0 | CO112: 1.57 | CP112: 1.98 | CQ112: 0.4116590689 | CR112: 0 | CT112: 2015-12-11 | CU112: 32.6 | CV112: 78.1 | CW112: 47 | CX112: 66.9 | CZ112: 47.24210526 | DA112: 53.075 | DB112: 55.825 | DC112: 55.545 | DE112: 2015-12-11 | DF112: 32.6 | DG112: 78.1 | DH112: 47 | DI112: 66.9 | DK112: 47.24210526 | DL112: 53.075 | DM112: 55.825 | DN112: 55.545 | DP112: 2015-12-11 | DQ112: 15.2 | DR112: 15.1 | DS112: 2 | DT112: 1 | DV112: 14.04 | DW112: 15.615 | DX112: 2.9 | DY112: 1.7 | EA112: 2015-12-11 | EB112: 15.2 | EC112: 0 | ED112: 26.3 | EE112: 0 | EG112: 14.04 | EH112: 7.355 | EI112: 34.56 | EJ112: 2.81 | EL112: Tyson.Strachan | EM112: 15.83125 | EN112: 0 | EO112: 6.65625 | EP112: 31.82916667 | ER112: 16.08503237 | ES112: 285.885 | ET112: 8.135657548 | EU112: 33.51543872 | EW112: 2015-12-11 | EX112: 15.2 | EY112: -45.6 | EZ112: -19.9 | FA112: -13.2 | FC112: 14.04 | FD112: -5.078947368 | FE112: 0.27 | FF112: 0.865
A113: 2015-12-12 | B113: 20 | C113: 16 | D113: 6 | E113: 42 | H113: 2015-12-12 | I113: 20 | J113: 0 | K113: 0 | N113: 14.275 | O113: 15.83 | P113: 6.425 | S113: 2015-12-12 | T113: 20 | U113: 59.2 | V113: 57.9 | Y113: 14.275 | Z113: 57.94 | AA113: 48.14736842 | AD113: 2015-12-12 | AE113: 5.3 | AF113: 0 | AG113: 19.4 | AH113: 0 | AJ113: 2.74 | AK113: 0.85 | AL113: -3.721052632 | AM113: 1.375 | AO113: 2015-12-12 | AP113: 0 | AQ113: 2 | AR113: 33.1 | AS113: 0 | AU113: 0.85 | AV113: 1.7 | AW113: 1.4 | AX113: 2.155 | AZ113: 2015-12-12 | BA113: 0 | BB113: 100 | BF113: 6.425 | BG113: 92.855 | BK113: 2015-12-12 | BL113: 19.8 | BM113: 10 | BN113: 1 | BO113: 1 | BQ113: 15.58 | BR113: 8.005 | BS113: 0.75 | BT113: 0.7 | BV113: 2015-12-12 | BW113: 15.7 | BX113: 37.6 | BY113: 59.4 | BZ113: 30 | CA113: 20 | CC113: 11.2 | CD113: 31.195 | CE113: 65.575 | CF113: 36.305 | CG113: 14.485 | CI113: 2015-12-12 | CJ113: 0 | CK113: 0 | CL113: 0 | CM113: 0 | CO113: 1.375 | CP113: 1.785 | CQ113: 0.4116590689 | CR113: 0 | CT113: 2015-12-12 | CU113: 57.9 | CV113: 38.4 | CW113: 68.2 | CX113: 35.1 | CZ113: 48.14736842 | DA113: 52.64 | DB113: 56.215 | DC113: 54.805 | DE113: 2015-12-12 | DF113: 57.9 | DG113: 38.4 | DH113: 68.2 | DI113: 35.1 | DK113: 48.14736842 | DL113: 52.64 | DM113: 56.215 | DN113: 54.805 | DP113: 2015-12-12 | DQ113: 20 | DR113: 19.8 | DS113: 4 | DT113: 2 | DV113: 14.275 | DW113: 15.58 | DX113: 2.95 | DY113: 1.7 | EA113: 2015-12-12 | EB113: 20 | EC113: 0 | ED113: 30 | EE113: 0 | EG113: 14.275 | EH113: 6.425 | EI113: 33.95 | EJ113: 2.42 | EL113: Anton.Stralman | EM113: 15.76363636 | EN113: 815 | EO113: 8.881118881 | EP113: 33.42517483 | ER113: 16.06141295 | ES113: 304.555 | ET113: 8.106142064 | EU113: 33.4228594 | EW113: 2015-12-12 | EX113: 20 | EY113: 19.4 | EZ113: 33.1 | FA113: 15.7 | FC113: 14.275 | FD113: -3.721052632 | FE113: 1.4 | FF113: 1.165
A114: 2015-12-14 | B114: 20 | C114: 17 | D114: 7 | E114: 44 | H114: 2015-12-14 | I114: 16.2 | J114: 0 | K114: 14.2 | N114: 14.485 | O114: 15.83 | P114: 7.135 | S114: 2015-12-14 | T114: 16.2 | U114: 79 | V114: 100 | Y114: 14.485 | Z114: 59.16 | AA114: 52.27368421 | AD114: 2015-12-14 | AE114: 2 | AF114: 1 | AG114: 78.7 | AH114: 0 | AJ114: 2.8 | AK114: 0.85 | AL114: 1.247368421 | AM114: 1.375 | AO114: 2015-12-14 | AP114: 1 | AQ114: 1 | AR114: 36.9 | AS114: 7.4 | AU114: 0.85 | AV114: 1.7 | AW114: 3.18 | AX114: 2.155 | AZ114: 2015-12-14 | BA114: 14.2 | BB114: 48.7 | BF114: 7.135 | BG114: 90.29 | BK114: 2015-12-14 | BL114: 21.5 | BM114: 14.1 | BN114: 2 | BO114: 0 | BQ114: 16.2 | BR114: 8.66 | BS114: 0.75 | BT114: 0.7 | BV114: 2015-12-14 | BW114: 7.5 | BX114: 43.7 | BY114: 79.7 | BZ114: 52 | CA114: 16.2 | CC114: 11.37 | CD114: 32.19 | CE114: 67.28 | CF114: 36.81 | CG114: 14.5 | CI114: 2015-12-14 | CJ114: 0 | CK114: 7.4 | CL114: 3.703703704 | CM114: 22.22222222 | CO114: 1.375 | CP114: 2.155 | CQ114: 0.5968442541 | CR114: 1.111111111 | CT114: 2015-12-14 | CU114: 100 | CV114: 21.3 | CW114: 85.4 | CX114: 48.6 | CZ114: 52.27368421 | DA114: 51.845 | DB114: 57.785 | DC114: 54.605 | DE114: 2015-12-14 | DF114: 100 | DG114: 21.3 | DH114: 85.4 | DI114: 48.6 | DK114: 52.27368421 | DL114: 51.845 | DM114: 57.785 | DN114: 54.605 | DP114: 2015-12-14 | DQ114: 16.2 | DR114: 21.5 | DS114: 3 | DT114: 1 | DV114: 14.485 | DW114: 16.2 | DX114: 3 | DY114: 1.7 | EA114: 2015-12-14 | EB114: 16.2 | EC114: 14.2 | ED114: 52 | EE114: 7.4 | EG114: 14.485 | EH114: 7.135 | EI114: 36.305 | EJ114: 2.79 | EL114: Dan.Boyle | EM114: 15.74710145 | EN114: 783.3 | EO114: 7.734057971 | EP114: 32.10652174 | ER114: 16.03697748 | ES114: 325.39 | ET114: 8.135702105 | EU114: 33.38086317 | EW114: 2015-12-14 | EX114: 16.2 | EY114: 78.7 | EZ114: 36.9 | FA114: 28 | FC114: 14.485 | FD114: 1.247368421 | FE114: 3.18 | FF114: 2.21
A115: 2015-12-17 | B115: 20 | C115: 17 | D115: 7 | E115: 44 | H115: 2015-12-17 | I115: 15.4 | J115: 0 | K115: 12.3 | N115: 14.5 | O115: 15.83 | P115: 7.75 | S115: 2015-12-17 | T115: 15.4 | U115: 43 | V115: 77.4 | Y115: 14.5 | Z115: 58.835 | AA115: 53.38947368 | AD115: 2015-12-17 | AE115: 6.2 | AF115: 2 | AG115: 52.1 | AH115: 0 | AJ115: 3.05 | AK115: 0.95 | AL115: 3.347368421 | AM115: 1.375 | AO115: 2015-12-17 | AP115: 2 | AQ115: 3 | AR115: 23.7 | AS115: 0 | AU115: 0.95 | AV115: 1.7 | AW115: 4.545 | AX115: 2.155 | AZ115: 2015-12-17 | BA115: 12.3 | BB115: 100 | BF115: 7.75 | BG115: 90.29 | BK115: 2015-12-17 | BL115: 12.1 | BM115: 8.1 | BN115: 0 | BO115: 2 | BQ115: 16.025 | BR115: 8.79 | BS115: 0.7 | BT115: 0.75 | BV115: 2015-12-17 | BW115: 24.1 | BX115: 31.5 | BY115: 47.1 | BZ115: 31.7 | CA115: 15.4 | CC115: 12.33 | CD115: 32.565 | CE115: 66.54 | CF115: 37.835 | CG115: 14.72 | CI115: 2015-12-17 | CJ115: 0 | CK115: 0 | CL115: 0 | CM115: 0 | CO115: 1.375 | CP115: 2.155 | CQ115: 0.5968442541 | CR115: 1.111111111 | CT115: 2015-12-17 | CU115: 77.4 | CV115: 25.2 | CW115: 68.4 | CX115: 44.7 | CZ115: 53.38947368 | DA115: 50.905 | DB115: 58.84 | DC115: 54.295 | DE115: 2015-12-17 | DF115: 77.4 | DG115: 25.2 | DH115: 68.4 | DI115: 44.7 | DK115: 53.38947368 | DL115: 50.905 | DM115: 58.84 | DN115: 54.295 | DP115: 2015-12-17 | DQ115: 15.4 | DR115: 12.1 | DS115: 4 | DT115: 3 | DV115: 14.5 | DW115: 16.025 | DX115: 3 | DY115: 1.7 | EA115: 2015-12-17 | EB115: 15.4 | EC115: 12.3 | ED115: 31.7 | EE115: 3.9 | EG115: 14.5 | EH115: 7.75 | EI115: 36.81 | EJ115: 2.985 | EL115: Evander.Kane | EM115: 15.71782178 | EN115: 635.8 | EO115: 5.698 | EP115: 32.81782178 | ER115: 16.01117843 | ES115: 348.43 | ET115: 8.032316391 | EU115: 33.35937194 | EW115: 2015-12-17 | EX115: 15.4 | EY115: 52.1 | EZ115: 23.7 | FA115: -0.9 | FC115: 14.5 | FD115: 3.347368421 | FE115: 4.545 | FF115: 2.315
A116: 2015-12-19 | B116: 20 | C116: 17 | D116: 7 | E116: 44 | H116: 2015-12-19 | I116: 17.8 | J116: 0 | K116: 0 | N116: 14.72 | O116: 15.83 | P116: 7.75 | S116: 2015-12-19 | T116: 17.8 | U116: 62.3 | V116: 37.7 | Y116: 14.72 | Z116: 59.215 | AA116: 52.02631579 | AD116: 2015-12-19 | AE116: 4 | AF116: 1 | AG116: -4.3 | AH116: 0 | AJ116: 3.085 | AK116: 1 | AL116: 1.394736842 | AM116: 1.375 | AO116: 2015-12-19 | AP116: 1 | AQ116: 4 | AR116: 12.4 | AS116: 0 | AU116: 1 | AV116: 1.85 | AW116: 4.005 | AX116: 2.155 | AZ116: 2015-12-19 | BA116: 0 | BB116: 60.6 | BF116: 7.75 | BG116: 88.32 | BK116: 2015-12-19 | BL116: 21.4 | BM116: 13.1 | BN116: 3 | BO116: 2 | BQ116: 16.44 | BR116: 9.18 | BS116: 0.85 | BT116: 0.7 | BV116: 2015-12-19 | BW116: 13.6 | BX116: 47.5 | BY116: 72.2 | BZ116: 44.3 | CA116: 17.8 | CC116: 12.265 | CD116: 32.95 | CE116: 67.21 | CF116: 37.155 | CG116: 14.86 | CI116: 2015-12-19 | CJ116: 0 | CK116: 0 | CL116: 0 | CM116: 0 | CO116: 1.375 | CP116: 2.155 | CQ116: 0.5968442541 | CR116: 1.111111111 | CT116: 2015-12-19 | CU116: 37.7 | CV116: 42 | CW116: 61.9 | CX116: 49.5 | CZ116: 52.02631579 | DA116: 51.465 | DB116: 58.65 | DC116: 54.645 | DE116: 2015-12-19 | DF116: 37.7 | DG116: 42 | DH116: 61.9 | DI116: 49.5 | DK116: 52.02631579 | DL116: 51.465 | DM116: 58.65 | DN116: 54.645 | DP116: 2015-12-19 | DQ116: 17.8 | DR116: 21.4 | DS116: 7 | DT116: 4 | DV116: 14.72 | DW116: 16.44 | DX116: 3.25 | DY116: 1.85 | EA116: 2015-12-19 | EB116: 17.8 | EC116: 0 | ED116: 44.3 | EE116: 0 | EG116: 14.72 | EH116: 7.75 | EI116: 37.835 | EJ116: 2.985 | EL116: Luca.Sbisa | EM116: 15.7 | EN116: 250 | EO116: 8.661538462 | EP116: 32.73333333 | ER116: 15.98459948 | ES116: 349.265 | ET116: 8.092926647 | EU116: 33.31225964 | EW116: 2015-12-19 | EX116: 17.8 | EY116: -4.3 | EZ116: 12.4 | FA116: 19.7 | FC116: 14.72 | FD116: 1.394736842 | FE116: 4.005 | FF116: 3.005
A117: 2015-12-22 | B117: 20 | C117: 17 | D117: 7 | E117: 44 | H117: 2015-12-22 | I117: 15.1 | J117: 0 | K117: 0 | N117: 14.86 | O117: 15.83 | P117: 7.75 | S117: 2015-12-22 | T117: 15.1 | U117: 53.4 | V117: 40 | Y117: 14.86 | Z117: 59.245 | AA117: 53.11052632 | AD117: 2015-12-22 | AE117: 2.5 | AF117: 0 | AG117: -29.7 | AH117: 0 | AJ117: 3.115 | AK117: 1 | AL117: 1.521052632 | AM117: 1.185 | AO117: 2015-12-22 | AP117: 0 | AQ117: 1 | AR117: -19.9 | AS117: 0 | AU117: 1 | AV117: 1.75 | AW117: 3.385 | AX117: 1.965 | AZ117: 2015-12-22 | BA117: 0 | BB117: 83.7 | BF117: 7.75 | BG117: 88.025 | BK117: 2015-12-22 | BL117: 13 | BM117: 6.6 | BN117: 1 | BO117: 0 | BQ117: 16.35 | BR117: 9.105 | BS117: 0.85 | BT117: 0.65 | BV117: 2015-12-22 | BW117: 9.9 | BX117: 24.6 | BY117: 51.7 | BZ117: 26.1 | CA117: 15.1 | CC117: 12.295 | CD117: 32.22 | CE117: 66.18 | CF117: 37.355 | CG117: 14.695 | CI117: 2015-12-22 | CJ117: 0 | CK117: 0 | CL117: 0 | CM117: 0 | CO117: 1.375 | CP117: 2.155 | CQ117: 0.5968442541 | CR117: 1.111111111 | CT117: 2015-12-22 | CU117: 40 | CV117: 69.8 | CW117: 44.4 | CX117: 64.3 | CZ117: 53.11052632 | DA117: 52.38 | DB117: 58.36 | DC117: 54.975 | DE117: 2015-12-22 | DF117: 40 | DG117: 69.8 | DH117: 44.4 | DI117: 64.3 | DK117: 53.11052632 | DL117: 52.38 | DM117: 58.36 | DN117: 54.975 | DP117: 2015-12-22 | DQ117: 15.1 | DR117: 13 | DS117: 3 | DT117: 1 | DV117: 14.86 | DW117: 16.35 | DX117: 3.2 | DY117: 1.75 | EA117: 2015-12-22 | EB117: 15.1 | EC117: 0 | ED117: 26.1 | EE117: 0 | EG117: 14.86 | EH117: 7.75 | EI117: 37.155 | EJ117: 2.985 | EL117: Marek.Zidlicky | EM117: 15.67794118 | EN117: 350 | EO117: 7.718382353 | EP117: 32.84411765 | ER117: 15.9585723 | ES117: 361.765 | ET117: 8.119224553 | EU117: 33.26151664 | EW117: 2015-12-22 | EX117: 15.1 | EY117: -29.7 | EZ117: -19.9 | FA117: -7.3 | FC117: 14.86 | FD117: 1.521052632 | FE117: 3.385 | FF117: 2.905
A118: 2015-12-26 | B118: 20 | C118: 17 | D118: 7 | E118: 44 | H118: 2015-12-26 | I118: 12.4 | J118: 0 | K118: 0 | N118: 14.695 | O118: 13.33 | P118: 6.665 | S118: 2015-12-26 | T118: 12.4 | U118: 48.8 | V118: 62.1 | Y118: 14.695 | Z118: 58.87 | AA118: 52.95263158 | AD118: 2015-12-26 | AE118: 3 | AF118: 1 | AG118: 11.9 | AH118: 0 | AJ118: 3.17 | AK118: 0.95 | AL118: 3 | AM118: 1.185 | AO118: 2015-12-26 | AP118: 1 | AQ118: 2 | AR118: -8.1 | AS118: 0 | AU118: 0.95 | AV118: 1.75 | AW118: 4 | AX118: 2.165 | AZ118: 2015-12-26 | BA118: 0 | BB118: 100 | BF118: 6.665 | BG118: 89.355 | BK118: 2015-12-26 | BL118: 11.3 | BM118: 8.1 | BN118: 0 | BO118: 0 | BQ118: 16.2 | BR118: 9.05 | BS118: 0.85 | BT118: 0.65 | BV118: 2015-12-26 | BW118: 14.3 | BX118: 24.2 | BY118: 55 | BZ118: 39.3 | CA118: 12.4 | CC118: 12.645 | CD118: 32.695 | CE118: 66.19 | CF118: 36.605 | CG118: 14.815 | CI118: 2015-12-26 | CJ118: 0 | CK118: 0 | CL118: 0 | CM118: 0 | CO118: 1.185 | CP118: 1.965 | CQ118: 0.5968442541 | CR118: 1.111111111 | CT118: 2015-12-26 | CU118: 62.1 | CV118: 50.2 | CW118: 57.3 | CX118: 65.5 | CZ118: 52.95263158 | DA118: 50.83 | DB118: 58.44 | DC118: 54.445 | DE118: 2015-12-26 | DF118: 62.1 | DG118: 50.2 | DH118: 57.3 | DI118: 65.5 | DK118: 52.95263158 | DL118: 50.83 | DM118: 58.44 | DN118: 54.445 | DP118: 2015-12-26 | DQ118: 12.4 | DR118: 11.3 | DS118: 2 | DT118: 2 | DV118: 14.695 | DW118: 16.2 | DX118: 3.15 | DY118: 1.75 | EA118: 2015-12-26 | EB118: 12.4 | EC118: 0 | ED118: 39.3 | EE118: 0 | EG118: 14.695 | EH118: 6.665 | EI118: 37.355 | EJ118: 2.6 | EL118: Alex.Biega | EM118: 15.65128205 | EN118: 100 | EO118: 6.938461538 | EP118: 32.1025641 | ER118: 15.93162883 | ES118: 350.52 | ET118: 8.114215811 | EU118: 33.18742751 | EW118: 2015-12-26 | EX118: 12.4 | EY118: 11.9 | EZ118: -8.1 | FA118: -3.6 | FC118: 14.695 | FD118: 3 | FE118: 4 | FF118: 3.145
A119: 2015-12-28 | B119: 20 | C119: 17 | D119: 8 | E119: 45 | H119: 2015-12-28 | I119: 15.1 | J119: 0 | K119: 44.6 | N119: 14.815 | O119: 13.33 | P119: 8.895 | S119: 2015-12-28 | T119: 15.1 | U119: 81.3 | V119: 77.6 | Y119: 14.815 | Z119: 60.325 | AA119: 57.03684211 | AD119: 2015-12-28 | AE119: 3.3 | AF119: 0 | AG119: 4.5 | AH119: 0 | AJ119: 3.335 | AK119: 0.95 | AL119: 6.784210526 | AM119: 0.94 | AO119: 2015-12-28 | AP119: 0 | AQ119: 0 | AR119: 4.4 | AS119: 4 | AU119: 0.95 | AV119: 1.75 | AW119: 5.15 | AX119: 1.92 | AZ119: 2015-12-28 | BA119: 44.6 | BB119: 100 | BF119: 8.895 | BG119: 90.605 | BK119: 2015-12-28 | BL119: 16 | BM119: 6.7 | BN119: 1 | BO119: 0 | BQ119: 16.415 | BR119: 8.945 | BS119: 0.9 | BT119: 0.65 | BV119: 2015-12-28 | BW119: 13 | BX119: 30.3 | BY119: 63.7 | BZ119: 26.8 | CA119: 15.1 | CC119: 13.295 | CD119: 33.07 | CE119: 66.61 | CF119: 37.21 | CG119: 14.835 | CI119: 2015-12-28 | CJ119: 0 | CK119: 4 | CL119: 0 | CM119: 23.8410596 | CO119: 1.185 | CP119: 2.165 | CQ119: 0.5968442541 | CR119: 2.303164091 | CT119: 2015-12-28 | CU119: 77.6 | CV119: 73.1 | CW119: 72.4 | CX119: 67.9 | CZ119: 57.03684211 | DA119: 51.115 | DB119: 60 | DC119: 54.85 | DE119: 2015-12-28 | DF119: 77.6 | DG119: 73.1 | DH119: 72.4 | DI119: 67.9 | DK119: 57.03684211 | DL119: 51.115 | DM119: 60 | DN119: 54.85 | DP119: 2015-12-28 | DQ119: 15.1 | DR119: 16 | DS119: 1 | DT119: 0 | DV119: 14.815 | DW119: 16.415 | DX119: 3.2 | DY119: 1.75 | EA119: 2015-12-28 | EB119: 15.1 | EC119: 44.6 | ED119: 26.8 | EE119: 11.9 | EG119: 14.815 | EH119: 8.895 | EI119: 36.605 | EJ119: 3.195 | EL119: Kevan.Miller | EM119: 15.64017857 | EN119: 416.6 | EO119: 10.9027027 | EP119: 32.33839286 | ER119: 15.90420793 | ES119: 364.685 | ET119: 8.252508841 | EU119: 33.12988135 | EW119: 2015-12-28 | EX119: 15.1 | EY119: 4.5 | EZ119: 4.4 | FA119: 15.8 | FC119: 14.815 | FD119: 6.784210526 | FE119: 5.15 | FF119: 4.515
A120: 2015-12-29 | B120: 20 | C120: 17 | D120: 8 | E120: 45 | H120: 2015-12-29 | I120: 12.7 | J120: 0 | K120: 10 | N120: 14.835 | O120: 10.83 | P120: 8.7 | S120: 2015-12-29 | T120: 12.7 | U120: 56.6 | V120: 45.7 | Y120: 14.835 | Z120: 61.21 | AA120: 57.76315789 | AD120: 2015-12-29 | AE120: 4.3 | AF120: 2 | AG120: 0.1 | AH120: 0 | AJ120: 3.455 | AK120: 1 | AL120: 7.452631579 | AM120: 0.875 | AO120: 2015-12-29 | AP120: 2 | AQ120: 2 | AR120: -12.4 | AS120: 0 | AU120: 1 | AV120: 1.8 | AW120: 6.01 | AX120: 1.855 | AZ120: 2015-12-29 | BA120: 10 | BB120: 100 | BF120: 8.7 | BG120: 90.605 | BK120: 2015-12-29 | BL120: 19.1 | BM120: 10 | BN120: 0 | BO120: 0 | BQ120: 16.88 | BR120: 9.085 | BS120: 0.9 | BT120: 0.7 | BV120: 2015-12-29 | BW120: 20.5 | BX120: 36.5 | BY120: 90.5 | BZ120: 47.1 | CA120: 12.7 | CC120: 13.855 | CD120: 34.21 | CE120: 68.735 | CF120: 35.89 | CG120: 15.03 | CI120: 2015-12-29 | CJ120: 0 | CK120: 0 | CL120: 0 | CM120: 0 | CO120: 0.94 | CP120: 1.92 | CQ120: 0.5968442541 | CR120: 2.303164091 | CT120: 2015-12-29 | CU120: 45.7 | CV120: 45.6 | CW120: 39.1 | CX120: 51.5 | CZ120: 57.76315789 | DA120: 51.17 | DB120: 60.835 | DC120: 54.82 | DE120: 2015-12-29 | DF120: 45.7 | DG120: 45.6 | DH120: 39.1 | DI120: 51.5 | DK120: 57.76315789 | DL120: 51.17 | DM120: 60.835 | DN120: 54.82 | DP120: 2015-12-29 | DQ120: 12.7 | DR120: 19.1 | DS120: 3 | DT120: 2 | DV120: 14.835 | DW120: 16.88 | DX120: 3.25 | DY120: 1.8 | EA120: 2015-12-29 | EB120: 12.7 | EC120: 10 | ED120: 47.1 | EE120: 4.7 | EG120: 14.835 | EH120: 8.7 | EI120: 37.21 | EJ120: 3.185 | EL120: Trevor.Daley | EM120: 15.63 | EN120: 528.2 | EO120: 7.698666667 | EP120: 32.776 | ER120: 15.87763101 | ES120: 377.345 | ET120: 8.170967816 | EU120: 33.11141184 | EW120: 2015-12-29 | EX120: 12.7 | EY120: 0.1 | EZ120: -12.4 | FA120: 0.5 | FC120: 14.835 | FD120: 7.452631579 | FE120: 6.01 | FF120: 5.375
A121: 2015-12-31 | B121: 21 | C121: 17 | D121: 8 | E121: 46 | H121: 2015-12-31 | I121: 15.4 | J121: 100 | K121: 15 | N121: 15.03 | O121: 14.165 | P121: 8.45 | S121: 2015-12-31 | T121: 15.4 | U121: 48.1 | V121: 41.5 | Y121: 15.03 | Z121: 60.225 | AA121: 56.46842105 | AD121: 2015-12-31 | AE121: 2.1 | AF121: 1 | AG121: -22 | AH121: 3.9 | AJ121: 3.345 | AK121: 0.95 | AL121: 5.226315789 | AM121: 0.875 | AO121: 2015-12-31 | AP121: 1 | AQ121: 1 | AR121: -22.7 | AS121: 3.9 | AU121: 0.95 | AV121: 1.75 | AW121: 3.715 | AX121: 1.855 | AZ121: 2015-12-31 | BA121: 15 | BB121: 88 | BF121: 8.45 | BG121: 90.005 | BK121: 2015-12-31 | BL121: 15.3 | BM121: 6.7 | BN121: 1 | BO121: 1 | BQ121: 16.83 | BR121: 8.92 | BS121: 0.95 | BT121: 0.6 | BV121: 2015-12-31 | BW121: 8.2 | BX121: 12.7 | BY121: 59.6 | BZ121: 26 | CA121: 15.4 | CC121: 13.145 | CD121: 31.9 | CE121: 67.445 | CF121: 36.3 | CG121: 15.2 | CI121: 2015-12-31 | CJ121: 3.9 | CK121: 3.9 | CL121: 0 | CM121: 0 | CO121: 0.875 | CP121: 1.855 | CQ121: 0.5968442541 | CR121: 2.303164091 | CT121: 2015-12-31 | CU121: 41.5 | CV121: 63.5 | CW121: 33.3 | CX121: 56 | CZ121: 56.46842105 | DA121: 52.06 | DB121: 59.275 | DC121: 55.555 | DE121: 2015-12-31 | DF121: 41.5 | DG121: 63.5 | DH121: 33.3 | DI121: 56 | DK121: 56.46842105 | DL121: 52.06 | DM121: 59.275 | DN121: 55.555 | DP121: 2015-12-31 | DQ121: 15.4 | DR121: 15.3 | DS121: 3 | DT121: 1 | DV121: 15.03 | DW121: 16.83 | DX121: 3.25 | DY121: 1.75 | EA121: 2015-12-31 | EB121: 15.4 | EC121: 15 | ED121: 26 | EE121: 3.9 | EG121: 15.03 | EH121: 8.45 | EI121: 35.89 | EJ121: 2.855 | EL121: Simon.Despres | EM121: 15.56528926 | EN121: 133.3 | EO121: 8.71092437 | EP121: 32.85702479 | ER121: 15.84938603 | ES121: 374.01 | ET121: 8.095947996 | EU121: 33.01560489 | EW121: 2015-12-31 | EX121: 15.4 | EY121: -22 | EZ121: -22.7 | FA121: -10.7 | FC121: 15.03 | FD121: 5.226315789 | FE121: 3.715 | FF121: 4.065
A122: 2016-01-02 | B122: 21 | C122: 17 | D122: 8 | E122: 46 | H122: 2016-01-02 | I122: 16.2 | J122: 0 | K122: 0 | N122: 15.2 | O122: 14.165 | P122: 8.45 | S122: 2016-01-02 | T122: 16.2 | U122: 65.9 | V122: 65.2 | Y122: 15.2 | Z122: 60.87 | AA122: 59.9 | AD122: 2016-01-02 | AE122: 1.6 | AF122: 1 | AG122: 43.4 | AH122: 0 | AJ122: 3.425 | AK122: 1 | AL122: 10.30526316 | AM122: 0.875 | AO122: 2016-01-02 | AP122: 1 | AQ122: 3 | AR122: 27.8 | AS122: 0 | AU122: 1 | AV122: 1.9 | AW122: 5.555 | AX122: 1.855 | AZ122: 2016-01-02 | BA122: 0 | BB122: 100 | BF122: 8.45 | BG122: 90.005 | BK122: 2016-01-02 | BL122: 17.6 | BM122: 8.4 | BN122: 2 | BO122: 0 | BQ122: 17.255 | BR122: 9.095 | BS122: 1.05 | BT122: 0.6 | BV122: 2016-01-02 | BW122: 5.9 | BX122: 32.1 | BY122: 65.2 | BZ122: 31 | CA122: 16.2 | CC122: 13.44 | CD122: 32.6 | CE122: 68.56 | CF122: 36.18 | CG122: 15.04 | CI122: 2016-01-02 | CJ122: 0 | CK122: 0 | CL122: 0 | CM122: 0 | CO122: 0.875 | CP122: 1.855 | CQ122: 0.5968442541 | CR122: 2.303164091 | CT122: 2016-01-02 | CU122: 65.2 | CV122: 21.9 | CW122: 82.2 | CX122: 54.4 | CZ122: 59.9 | DA122: 50.5 | DB122: 60.94 | DC122: 55.38 | DE122: 2016-01-02 | DF122: 65.2 | DG122: 21.9 | DH122: 82.2 | DI122: 54.4 | DK122: 59.9 | DL122: 50.5 | DM122: 60.94 | DN122: 55.38 | DP122: 2016-01-02 | DQ122: 16.2 | DR122: 17.6 | DS122: 3 | DT122: 3 | DV122: 15.2 | DW122: 17.255 | DX122: 3.3 | DY122: 1.9 | EA122: 2016-01-02 | EB122: 16.2 | EC122: 0 | ED122: 31 | EE122: 0 | EG122: 15.2 | EH122: 8.45 | EI122: 36.3 | EJ122: 2.855 | EL122: Adam.McQuaid | EM122: 15.54018692 | EN122: 100 | EO122: 6.009433962 | EP122: 31.94953271 | ER122: 15.8222909 | ES122: 374.01 | ET122: 7.945225665 | EU122: 32.8870779 | EW122: 2016-01-02 | EX122: 16.2 | EY122: 43.4 | EZ122: 27.8 | FA122: 16.8 | FC122: 15.2 | FD122: 10.30526316 | FE122: 5.555 | FF122: 5.295
A123: 2016-01-04 | B123: 21 | C123: 17 | D123: 8 | E123: 46 | H123: 2016-01-04 | I123: 11.4 | J123: 0 | K123: 0 | N123: 15.04 | O123: 14.165 | P123: 8.45 | S123: 2016-01-04 | T123: 11.4 | U123: 44.2 | V123: 35.5 | Y123: 15.04 | Z123: 60.06 | AA123: 57.80526316 | AD123: 2016-01-04 | AE123: 3.1 | AF123: 0 | AG123: -33.6 | AH123: 0 | AJ123: 3.275 | AK123: 0.95 | AL123: 7.447368421 | AM123: 0.875 | AO123: 2016-01-04 | AP123: 0 | AQ123: 0 | AR123: -9.9 | AS123: 0 | AU123: 0.95 | AV123: 1.85 | AW123: 3.645 | AX123: 1.855 | AZ123: 2016-01-04 | BA123: 0 | BB123: 88.8 | BF123: 8.45 | BG123: 89.445 | BK123: 2016-01-04 | BL123: 11.2 | BM123: 7.8 | BN123: 0 | BO123: 0 | BQ123: 17.015 | BR123: 8.96 | BS123: 1.05 | BT123: 0.6 | BV123: 2016-01-04 | BW123: 16.2 | BX123: 26.4 | BY123: 58.7 | BZ123: 40.6 | CA123: 11.4 | CC123: 12.995 | CD123: 31.82 | CE123: 68.205 | CF123: 36.7 | CG123: 14.795 | CI123: 2016-01-04 | CJ123: 0 | CK123: 0 | CL123: 0 | CM123: 0 | CO123: 0.875 | CP123: 1.855 | CQ123: 0.5968442541 | CR123: 2.303164091 | CT123: 2016-01-04 | CU123: 35.5 | CV123: 69.1 | CW123: 37.2 | CX123: 47.2 | CZ123: 57.80526316 | DA123: 51.225 | DB123: 58.965 | DC123: 55.32 | DE123: 2016-01-04 | DF123: 35.5 | DG123: 69.1 | DH123: 37.2 | DI123: 47.2 | DK123: 57.80526316 | DL123: 51.225 | DM123: 58.965 | DN123: 55.32 | DP123: 2016-01-04 | DQ123: 11.4 | DR123: 11.2 | DS123: 0 | DT123: 0 | DV123: 15.04 | DW123: 17.015 | DX123: 3.25 | DY123: 1.85 | EA123: 2016-01-04 | EB123: 11.4 | EC123: 0 | ED123: 40.6 | EE123: 0 | EG123: 15.04 | EH123: 8.45 | EI123: 36.18 | EJ123: 2.855 | EL123: Jason.Demers | EM123: 15.54014085 | EN123: 333.3 | EO123: 7.05106383 | EP123: 32.52112676 | ER123: 15.79596461 | ES123: 390.675 | ET123: 7.938889967 | EU123: 32.92552788 | EW123: 2016-01-04 | EX123: 11.4 | EY123: -33.6 | EZ123: -9.9 | FA123: -2.3 | FC123: 15.04 | FD123: 7.447368421 | FE123: 3.645 | FF123: 4.85
A124: 2016-01-07 | B124: 21 | C124: 17 | D124: 8 | E124: 46 | H124: 2016-01-07 | I124: 12.3 | J124: 0 | K124: 0 | N124: 14.795 | O124: 14.165 | P124: 7.555 | S124: 2016-01-07 | T124: 12.3 | U124: 86.3 | V124: 100 | Y124: 14.795 | Z124: 62.02 | AA124: 60.9 | AD124: 2016-01-07 | AE124: 1.8 | AF124: 1 | AG124: 21.1 | AH124: 0 | AJ124: 3.235 | AK124: 0.9 | AL124: 9.957894737 | AM124: 0.875 | AO124: 2016-01-07 | AP124: 1 | AQ124: 2 | AR124: 6.5 | AS124: 0 | AU124: 0.9 | AV124: 1.8 | AW124: 5.46 | AX124: 1.895 | AZ124: 2016-01-07 | BA124: 0 | BB124: 100 | BF124: 7.555 | BG124: 89.445 | BK124: 2016-01-07 | BL124: 12 | BM124: 6.1 | BN124: 0 | BO124: 0 | BQ124: 16.86 | BR124: 8.985 | BS124: 0.9 | BT124: 0.6 | BV124: 2016-01-07 | BW124: 8.9 | BX124: 22.6 | BY124: 58.4 | BZ124: 29.8 | CA124: 12.3 | CC124: 12.985 | CD124: 31.57 | CE124: 68.5 | CF124: 36.18 | CG124: 14.705 | CI124: 2016-01-07 | CJ124: 0 | CK124: 0 | CL124: 0 | CM124: 0 | CO124: 0.875 | CP124: 1.855 | CQ124: 0.5968442541 | CR124: 2.303164091 | CT124: 2016-01-07 | CU124: 100 | CV124: 78.9 | CW124: 71.3 | CX124: 64.9 | CZ124: 60.9 | DA124: 51.78 | DB124: 59.83 | DC124: 54.375 | DE124: 2016-01-07 | DF124: 100 | DG124: 78.9 | DH124: 71.3 | DI124: 64.9 | DK124: 60.9 | DL124: 51.78 | DM124: 59.83 | DN124: 54.375 | DP124: 2016-01-07 | DQ124: 12.3 | DR124: 12 | DS124: 2 | DT124: 2 | DV124: 14.795 | DW124: 16.86 | DX124: 3.15 | DY124: 1.8 | EA124: 2016-01-07 | EB124: 12.3 | EC124: 0 | ED124: 29.8 | EE124: 0 | EG124: 14.795 | EH124: 7.555 | EI124: 36.7 | EJ124: 2.68 | EL124: Matt.Carle | EM124: 15.50162602 | EN124: 350 | EO124: 8.426229508 | EP124: 33.30813008 | ER124: 15.76905316 | ES124: 392.345 | ET124: 7.980853617 | EU124: 32.89963946 | EW124: 2016-01-07 | EX124: 12.3 | EY124: 21.1 | EZ124: 6.5 | FA124: 22.2 | FC124: 14.795 | FD124: 9.957894737 | FE124: 5.46 | FF124: 6.895
A125: 2016-01-09 | B125: 21 | C125: 18 | D125: 8 | E125: 47 | H125: 2016-01-09 | I125: 10.9 | J125: 0 | K125: 21.2 | N125: 14.705 | O125: 14.165 | P125: 7.96 | S125: 2016-01-09 | T125: 10.9 | U125: 81.5 | V125: 100 | Y125: 14.705 | Z125: 62.485 | AA125: 62.855 | AD125: 2016-01-09 | AE125: 2.7 | AF125: 0 | AG125: 39.7 | AH125: 0 | AJ125: 3.37 | AK125: 0.9 | AL125: 11.445 | AM125: 0.695 | AO125: 2016-01-09 | AP125: 0 | AQ125: 0 | AR125: 41.4 | AS125: 5.5 | AU125: 0.9 | AV125: 1.8 | AW125: 7.845 | AX125: 1.935 | AZ125: 2016-01-09 | BA125: 21.2 | BB125: 100 | BF125: 7.96 | BG125: 89.445 | BK125: 2016-01-09 | BL125: 12.5 | BM125: 4.7 | BN125: 0 | BO125: 0 | BQ125: 16.775 | BR125: 8.835 | BS125: 0.9 | BT125: 0.6 | BV125: 2016-01-09 | BW125: 14.6 | BX125: 34.8 | BY125: 68.8 | BZ125: 25.9 | CA125: 10.9 | CC125: 13.715 | CD125: 32.535 | CE125: 68.58 | CF125: 36.485 | CG125: 14.55 | CI125: 2016-01-09 | CJ125: 0 | CK125: 5.5 | CL125: 5.504587156 | CM125: 0 | CO125: 0.875 | CP125: 1.895 | CQ125: 0.6358531395 | CR125: 2.303164091 | CT125: 2016-01-09 | CU125: 100 | CV125: 60.3 | CW125: 85.8 | CX125: 44.4 | CZ125: 62.855 | DA125: 51.4 | DB125: 61.42 | DC125: 53.58 | DE125: 2016-01-09 | DF125: 100 | DG125: 60.3 | DH125: 85.8 | DI125: 44.4 | DK125: 62.855 | DL125: 51.4 | DM125: 61.42 | DN125: 53.58 | DP125: 2016-01-09 | DQ125: 10.9 | DR125: 12.5 | DS125: 1 | DT125: 0 | DV125: 14.705 | DW125: 16.775 | DX125: 3.2 | DY125: 1.8 | EA125: 2016-01-09 | EB125: 10.9 | EC125: 21.2 | ED125: 25.9 | EE125: 5.5 | EG125: 14.705 | EH125: 7.96 | EI125: 36.18 | EJ125: 2.72 | EL125: Sami.Vatanen | EM125: 15.50143885 | EN125: 616.6 | EO125: 9.34379562 | EP125: 32.52374101 | ER125: 15.74217542 | ES125: 392.765 | ET125: 8.022663651 | EU125: 32.81424484 | EW125: 2016-01-09 | EX125: 10.9 | EY125: 39.7 | EZ125: 41.4 | FA125: 24.2 | FC125: 14.705 | FD125: 11.445 | FE125: 7.845 | FF125: 7.1
A126: 2016-01-11 | B126: 21 | C126: 18 | D126: 9 | E126: 48 | H126: 2016-01-11 | I126: 13.5 | J126: 0 | K126: 10.9 | N126: 14.55 | O126: 11.665 | P126: 7.98 | S126: 2016-01-11 | T126: 13.5 | U126: 59.8 | V126: 69.9 | Y126: 14.55 | Z126: 62.59 | AA126: 61.955 | AD126: 2016-01-11 | AE126: 4.8 | AF126: 1 | AG126: -0.7 | AH126: 0 | AJ126: 3.325 | AK126: 0.85 | AL126: 10.355 | AM126: 0.695 | AO126: 2016-01-11 | AP126: 1 | AQ126: 3 | AR126: 25.6 | AS126: 4.4 | AU126: 0.85 | AV126: 1.85 | AW126: 8.48 | AX126: 1.98 | AZ126: 2016-01-11 | BA126: 10.9 | BB126: 85.4 | BF126: 7.98 | BG126: 88.715 | BK126: 2016-01-11 | BL126: 19.8 | BM126: 9.1 | BN126: 2 | BO126: 1 | BQ126: 16.73 | BR126: 8.81 | BS126: 0.95 | BT126: 0.5 | BV126: 2016-01-11 | BW126: 21.2 | BX126: 45.5 | BY126: 87.8 | BZ126: 40.6 | CA126: 13.5 | CC126: 13.755 | CD126: 33.165 | CE126: 69.235 | CF126: 36.29 | CG126: 14.385 | CI126: 2016-01-11 | CJ126: 0 | CK126: 4.4 | CL126: 0 | CM126: 26.66666667 | CO126: 0.695 | CP126: 1.935 | CQ126: 0.6358531395 | CR126: 3.636497425 | CT126: 2016-01-11 | CU126: 69.9 | CV126: 70.6 | CW126: 72.4 | CX126: 46.8 | CZ126: 61.955 | DA126: 51.59 | DB126: 61.895 | DC126: 53.42 | DE126: 2016-01-11 | DF126: 69.9 | DG126: 70.6 | DH126: 72.4 | DI126: 46.8 | DK126: 61.955 | DL126: 51.59 | DM126: 61.895 | DN126: 53.42 | DP126: 2016-01-11 | DQ126: 13.5 | DR126: 19.8 | DS126: 3 | DT126: 3 | DV126: 14.55 | DW126: 16.73 | DX126: 3.15 | DY126: 1.85 | EA126: 2016-01-11 | EB126: 13.5 | EC126: 10.9 | ED126: 40.6 | EE126: 4.4 | EG126: 14.55 | EH126: 7.98 | EI126: 36.485 | EJ126: 2.76 | EL126: John.Tavares | EM126: 15.485625 | EN126: 1728.2 | EO126: 8.50375 | EP126: 31.66875 | ER126: 15.71503331 | ES126: 427.76 | ET126: 7.951719764 | EU126: 32.743907 | EW126: 2016-01-11 | EX126: 13.5 | EY126: -0.7 | EZ126: 25.6 | FA126: 6.3 | FC126: 14.55 | FD126: 10.355 | FE126: 8.48 | FF126: 7.11
A127: 2016-01-16 | B127: 21 | C127: 19 | D127: 9 | E127: 49 | H127: 2016-01-16 | I127: 13.8 | J127: 0 | K127: 11.4 | N127: 14.385 | O127: 11.665 | P127: 8.13 | S127: 2016-01-16 | T127: 13.8 | U127: 69.4 | V127: 78.9 | Y127: 14.385 | Z127: 62.475 | AA127: 62.58 | AD127: 2016-01-16 | AE127: 3.7 | AF127: 0 | AG127: 40.9 | AH127: 0 | AJ127: 3.195 | AK127: 0.7 | AL127: 10.6 | AM127: 0.695 | AO127: 2016-01-16 | AP127: 0 | AQ127: 4 | AR127: 46.3 | AS127: 4.4 | AU127: 0.7 | AV127: 1.85 | AW127: 9.485 | AX127: 2.165 | AZ127: 2016-01-16 | BA127: 11.4 | BB127: 76.8 | BF127: 8.13 | BG127: 88.46 | BK127: 2016-01-16 | BL127: 20.7 | BM127: 8.7 | BN127: 2 | BO127: 1 | BQ127: 16.565 | BR127: 8.65 | BS127: 0.95 | BT127: 0.5 | BV127: 2016-01-16 | BW127: 16.3 | BX127: 62.4 | BY127: 90.4 | BZ127: 38.1 | CA127: 13.8 | CC127: 13.455 | CD127: 34.435 | CE127: 69.535 | CF127: 35.755 | CG127: 14.5 | CI127: 2016-01-16 | CJ127: 0 | CK127: 4.4 | CL127: 4.347826087 | CM127: 0 | CO127: 0.695 | CP127: 1.98 | CQ127: 0.6778058473 | CR127: 3.636497425 | CT127: 2016-01-16 | CU127: 78.9 | CV127: 38 | CW127: 82.3 | CX127: 36 | CZ127: 62.58 | DA127: 51.97 | DB127: 62.685 | DC127: 53.21 | DE127: 2016-01-16 | DF127: 78.9 | DG127: 38 | DH127: 82.3 | DI127: 36 | DK127: 62.58 | DL127: 51.97 | DM127: 62.685 | DN127: 53.21 | DP127: 2016-01-16 | DQ127: 13.8 | DR127: 20.7 | DS127: 4 | DT127: 4 | DV127: 14.385 | DW127: 16.565 | DX127: 2.95 | DY127: 1.85 | EA127: 2016-01-16 | EB127: 13.8 | EC127: 11.4 | ED127: 38.1 | EE127: 4.4 | EG127: 14.385 | EH127: 8.13 | EI127: 36.29 | EJ127: 2.805 | EL127: Taylor.Hall | EM127: 15.47555556 | EN127: 1162.5 | EO127: 10.16940299 | EP127: 31.81037037 | ER127: 15.68742987 | ES127: 463.635 | ET127: 8.110852897 | EU127: 32.66813292 | EW127: 2016-01-16 | EX127: 13.8 | EY127: 40.9 | EZ127: 46.3 | FA127: 18.2 | FC127: 14.385 | FD127: 10.6 | FE127: 9.485 | FF127: 6.99
A128: 2016-01-17 | B128: 21 | C128: 19 | D128: 10 | E128: 50 | H128: 2016-01-17 | I128: 16.1 | J128: 0 | K128: 19.3 | N128: 14.5 | O128: 11.665 | P128: 9.095 | S128: 2016-01-17 | T128: 16.1 | U128: 62.1 | V128: 85.1 | Y128: 14.5 | Z128: 62.405 | AA128: 63.665 | AD128: 2016-01-17 | AE128: 5.3 | AF128: 2 | AG128: 42.3 | AH128: 0 | AJ128: 3.365 | AK128: 0.8 | AL128: 12.8 | AM128: 0.61 | AO128: 2016-01-17 | AP128: 2 | AQ128: 2 | AR128: 24 | AS128: 3.7 | AU128: 0.8 | AV128: 1.9 | AW128: 10.51 | AX128: 2.08 | AZ128: 2016-01-17 | BA128: 19.3 | BB128: 100 | BF128: 9.095 | BG128: 88.46 | BK128: 2016-01-17 | BL128: 17.6 | BM128: 10.4 | BN128: 1 | BO128: 0 | BQ128: 16.76 | BR128: 8.605 | BS128: 1 | BT128: 0.5 | BV128: 2016-01-17 | BW128: 19.9 | BX128: 27.8 | BY128: 65.6 | BZ128: 38.6 | CA128: 16.1 | CC128: 14.04 | CD128: 33.975 | CE128: 69.82 | CF128: 36.065 | CG128: 14.785 | CI128: 2016-01-17 | CJ128: 0 | CK128: 3.7 | CL128: 0 | CM128: 22.36024845 | CO128: 0.695 | CP128: 2.165 | CQ128: 0.6778058473 | CR128: 4.754509847 | CT128: 2016-01-17 | CU128: 85.1 | CV128: 42.8 | CW128: 66.7 | CX128: 42.7 | CZ128: 63.665 | DA128: 50.855 | DB128: 62.355 | DC128: 51.855 | DE128: 2016-01-17 | DF128: 85.1 | DG128: 42.8 | DH128: 66.7 | DI128: 42.7 | DK128: 63.665 | DL128: 50.855 | DM128: 62.355 | DN128: 51.855 | DP128: 2016-01-17 | DQ128: 16.1 | DR128: 17.6 | DS128: 3 | DT128: 2 | DV128: 14.5 | DW128: 16.76 | DX128: 2.95 | DY128: 1.9 | EA128: 2016-01-17 | EB128: 16.1 | EC128: 19.3 | ED128: 38.6 | EE128: 7.4 | EG128: 14.5 | EH128: 9.095 | EI128: 35.755 | EJ128: 3.175 | EL128: James.Wisniewski | EM128: 15.46571429 | EN128: 50 | EO128: 7.839130435 | EP128: 32.60428571 | ER128: 15.66240163 | ES128: 463.885 | ET128: 8.232632948 | EU128: 32.63945365 | EW128: 2016-01-17 | EX128: 16.1 | EY128: 42.3 | EZ128: 24 | FA128: 11.3 | FC128: 14.5 | FD128: 12.8 | FE128: 10.51 | FF128: 8.01
A129: 2016-01-19 | B129: 22 | C129: 19 | D129: 10 | E129: 51 | H129: 2016-01-19 | I129: 17.6 | J129: 33.3 | K129: 14.4 | N129: 14.785 | O129: 11.665 | P129: 9.2 | S129: 2016-01-19 | T129: 17.6 | U129: 63.6 | V129: 63.3 | Y129: 14.785 | Z129: 62.31 | AA129: 63.52 | AD129: 2016-01-19 | AE129: 5.3 | AF129: 0 | AG129: 17.7 | AH129: 3.4 | AJ129: 3.53 | AK129: 0.75 | AL129: 12.885 | AM129: 0.365 | AO129: 2016-01-19 | AP129: 0 | AQ129: 3 | AR129: 17.4 | AS129: 3.4 | AU129: 0.75 | AV129: 1.9 | AW129: 11.805 | AX129: 1.835 | AZ129: 2016-01-19 | BA129: 14.4 | BB129: 85.2 | BF129: 9.2 | BG129: 89.83 | BK129: 2016-01-19 | BL129: 22.1 | BM129: 13.9 | BN129: 0 | BO129: 0 | BQ129: 17.06 | BR129: 8.895 | BS129: 0.95 | BT129: 0.45 | BV129: 2016-01-19 | BW129: 18.2 | BX129: 38.2 | BY129: 75.2 | BZ129: 47.2 | CA129: 17.6 | CC129: 14.455 | CD129: 34.63 | CE129: 69.505 | CF129: 35.6 | CG129: 14.99 | CI129: 2016-01-19 | CJ129: 3.4 | CK129: 3.4 | CL129: 0 | CM129: 0 | CO129: 0.61 | CP129: 2.08 | CQ129: 0.6778058473 | CR129: 4.754509847 | CT129: 2016-01-19 | CU129: 63.3 | CV129: 45.6 | CW129: 61.7 | CX129: 44.3 | CZ129: 63.52 | DA129: 50.625 | DB129: 62.885 | DC129: 51.09 | DE129: 2016-01-19 | DF129: 63.3 | DG129: 45.6 | DH129: 61.7 | DI129: 44.3 | DK129: 63.52 | DL129: 50.625 | DM129: 62.885 | DN129: 51.09 | DP129: 2016-01-19 | DQ129: 17.6 | DR129: 22.1 | DS129: 3 | DT129: 3 | DV129: 14.785 | DW129: 17.06 | DX129: 2.9 | DY129: 1.9 | EA129: 2016-01-19 | EB129: 17.6 | EC129: 14.4 | ED129: 47.2 | EE129: 6.8 | EG129: 14.785 | EH129: 9.2 | EI129: 36.065 | EJ129: 3.26 | EL129: Tom.Gilbert | EM129: 15.45982906 | EN129: 250 | EO129: 7.159482759 | EP129: 32.43589744 | ER129: 15.63711722 | ES129: 454.305 | ET129: 8.19299839 | EU129: 32.5210861 | EW129: 2016-01-19 | EX129: 17.6 | EY129: 17.7 | EZ129: 17.4 | FA129: 23.8 | FC129: 14.785 | FD129: 12.885 | FE129: 11.805 | FF129: 9.25
A130: 2016-01-21 | B130: 22 | C130: 19 | D130: 10 | E130: 51 | H130: 2016-01-21 | I130: 16.4 | J130: 0 | K130: 0 | N130: 14.99 | O130: 6.665 | P130: 8.665 | S130: 2016-01-21 | T130: 16.4 | U130: 71.6 | V130: 51.1 | Y130: 14.99 | Z130: 62.16 | AA130: 62.7 | AD130: 2016-01-21 | AE130: 2.9 | AF130: 0 | AG130: 14.2 | AH130: 0 | AJ130: 3.475 | AK130: 0.7 | AL130: 11.665 | AM130: 0.365 | AO130: 2016-01-21 | AP130: 0 | AQ130: 5 | AR130: 26.7 | AS130: 0 | AU130: 0.7 | AV130: 2.05 | AW130: 11.495 | AX130: 1.835 | AZ130: 2016-01-21 | BA130: 0 | BB130: 80.5 | BF130: 8.665 | BG130: 89.885 | BK130: 2016-01-21 | BL130: 24.2 | BM130: 9.9 | BN130: 3 | BO130: 0 | BQ130: 17.295 | BR130: 8.925 | BS130: 1.05 | BT130: 0.4 | BV130: 2016-01-21 | BW130: 10.5 | BX130: 43.9 | BY130: 88.6 | BZ130: 36.1 | CA130: 16.4 | CC130: 14 | CD130: 34.57 | CE130: 69.195 | CF130: 34.375 | CG130: 14.72 | CI130: 2016-01-21 | CJ130: 0 | CK130: 0 | CL130: 0 | CM130: 0 | CO130: 0.365 | CP130: 1.835 | CQ130: 0.6778058473 | CR130: 4.754509847 | CT130: 2016-01-21 | CU130: 51.1 | CV130: 36.9 | CW130: 65.5 | CX130: 38.8 | CZ130: 62.7 | DA130: 51.03 | DB130: 62.645 | DC130: 51.165 | DE130: 2016-01-21 | DF130: 51.1 | DG130: 36.9 | DH130: 65.5 | DI130: 38.8 | DK130: 62.7 | DL130: 51.03 | DM130: 62.645 | DN130: 51.165 | DP130: 2016-01-21 | DQ130: 16.4 | DR130: 24.2 | DS130: 6 | DT130: 5 | DV130: 14.99 | DW130: 17.295 | DX130: 3.05 | DY130: 2.05 | EA130: 2016-01-21 | EB130: 16.4 | EC130: 0 | ED130: 36.1 | EE130: 0 | EG130: 14.99 | EH130: 8.665 | EI130: 35.6 | EJ130: 3.015 | EL130: Patrick.Kane | EM130: 15.45862069 | EN130: 1906.5 | EO130: 9.744137931 | EP130: 31.85310345 | ER130: 15.6130028 | ES130: 539.63 | ET130: 8.102818923 | EU130: 32.43780672 | EW130: 2016-01-21 | EX130: 16.4 | EY130: 14.2 | EZ130: 26.7 | FA130: 21.2 | FC130: 14.99 | FD130: 11.665 | FE130: 11.495 | FF130: 9.04
A131: 2016-01-23 | B131: 22 | C131: 19 | D131: 10 | E131: 51 | H131: 2016-01-23 | I131: 10.9 | J131: 0 | K131: 0 | N131: 14.72 | O131: 6.665 | P131: 8.665 | S131: 2016-01-23 | T131: 10.9 | U131: 57.7 | V131: 39.1 | Y131: 14.72 | Z131: 62.165 | AA131: 63.03 | AD131: 2016-01-23 | AE131: 1.9 | AF131: 1 | AG131: 11.5 | AH131: 0 | AJ131: 3.415 | AK131: 0.75 | AL131: 13.08 | AM131: 0.365 | AO131: 2016-01-23 | AP131: 1 | AQ131: 1 | AR131: -13.3 | AS131: 0 | AU131: 0.75 | AV131: 2 | AW131: 11 | AX131: 1.835 | AZ131: 2016-01-23 | BA131: 0 | BB131: 66.6 | BF131: 8.665 | BG131: 88.215 | BK131: 2016-01-23 | BL131: 7.7 | BM131: 1.8 | BN131: 0 | BO131: 0 | BQ131: 16.5 | BR131: 8.545 | BS131: 1.05 | BT131: 0.45 | BV131: 2016-01-23 | BW131: 10.2 | BX131: 20 | BY131: 42.6 | BZ131: 10 | CA131: 10.9 | CC131: 13.935 | CD131: 33.685 | CE131: 66.985 | CF131: 34.51 | CG131: 14.565 | CI131: 2016-01-23 | CJ131: 0 | CK131: 0 | CL131: 0 | CM131: 0 | CO131: 0.365 | CP131: 1.835 | CQ131: 0.6778058473 | CR131: 4.754509847 | CT131: 2016-01-23 | CU131: 39.1 | CV131: 27.6 | CW131: 42.9 | CX131: 56.2 | CZ131: 63.03 | DA131: 49.945 | DB131: 62.27 | DC131: 51.285 | DE131: 2016-01-23 | DF131: 39.1 | DG131: 27.6 | DH131: 42.9 | DI131: 56.2 | DK131: 63.03 | DL131: 49.945 | DM131: 62.27 | DN131: 51.285 | DP131: 2016-01-23 | DQ131: 10.9 | DR131: 7.7 | DS131: 1 | DT131: 1 | DV131: 14.72 | DW131: 16.5 | DX131: 2.9 | DY131: 2 | EA131: 2016-01-23 | EB131: 10.9 | EC131: 0 | ED131: 10 | EE131: 0 | EG131: 14.72 | EH131: 8.665 | EI131: 34.375 | EJ131: 3.015 | EL131: Erik.Gudbranson | EM131: 15.42589928 | EN131: 383.3 | EO131: 7.303597122 | EP131: 32.25107914 | ER131: 15.58895686 | ES131: 544.63 | ET131: 8.057506355 | EU131: 32.45311098 | EW131: 2016-01-23 | EX131: 10.9 | EY131: 11.5 | EZ131: -13.3 | FA131: -1.5 | FC131: 14.72 | FD131: 13.08 | FE131: 11 | FF131: 9.21
A132: 2016-01-27 | B132: 22 | C132: 19 | D132: 10 | E132: 51 | H132: 2016-01-27 | I132: 12.1 | J132: 0 | K132: 0 | N132: 14.565 | O132: 6.665 | P132: 8.665 | S132: 2016-01-27 | T132: 12.1 | U132: 67.5 | V132: 49.9 | Y132: 14.565 | Z132: 63.065 | AA132: 63.895 | AD132: 2016-01-27 | AE132: 2.9 | AF132: 2 | AG132: -23.6 | AH132: 0 | AJ132: 3.435 | AK132: 0.8 | AL132: 14.18 | AM132: 0.365 | AO132: 2016-01-27 | AP132: 2 | AQ132: 2 | AR132: -19.6 | AS132: 0 | AU132: 0.8 | AV132: 2.05 | AW132: 11.015 | AX132: 2.03 | AZ132: 2016-01-27 | BA132: 0 | BB132: 49.1 | BF132: 8.665 | BG132: 85.67 | BK132: 2016-01-27 | BL132: 12.2 | BM132: 5.8 | BN132: 1 | BO132: 1 | BQ132: 16.355 | BR132: 8.5 | BS132: 1 | BT132: 0.45 | BV132: 2016-01-27 | BW132: 14.3 | BX132: 23.6 | BY132: 60.7 | BZ132: 29 | CA132: 12.1 | CC132: 14.15 | CD132: 33.295 | CE132: 67.045 | CF132: 35.79 | CG132: 14.33 | CI132: 2016-01-27 | CJ132: 0 | CK132: 0 | CL132: 0 | CM132: 0 | CO132: 0.365 | CP132: 1.835 | CQ132: 0.6778058473 | CR132: 4.754509847 | CT132: 2016-01-27 | CU132: 49.9 | CV132: 73.6 | CW132: 54.4 | CX132: 74 | CZ132: 63.895 | DA132: 49.72 | DB132: 62.64 | DC132: 51.64 | DE132: 2016-01-27 | DF132: 49.9 | DG132: 73.6 | DH132: 54.4 | DI132: 74 | DK132: 63.895 | DL132: 49.72 | DM132: 62.64 | DN132: 51.64 | DP132: 2016-01-27 | DQ132: 12.1 | DR132: 12.2 | DS132: 3 | DT132: 2 | DV132: 14.565 | DW132: 16.355 | DX132: 2.95 | DY132: 2.05 | EA132: 2016-01-27 | EB132: 12.1 | EC132: 0 | ED132: 29 | EE132: 0 | EG132: 14.565 | EH132: 8.665 | EI132: 34.51 | EJ132: 3.015 | EL132: Alex.Ovechkin | EM132: 15.38776978 | EN132: 1512.7 | EO132: 9.367625899 | EP132: 32.1352518 | ER132: 15.56678285 | ES132: 620.265 | ET132: 8.19307515 | EU132: 32.42220107 | EW132: 2016-01-27 | EX132: 12.1 | EY132: -23.6 | EZ132: -19.6 | FA132: -2.6 | FC132: 14.565 | FD132: 14.18 | FE132: 11.015 | FF132: 9.74
A133: 2016-02-02 | B133: 22 | C133: 20 | D133: 10 | E133: 52 | H133: 2016-02-02 | I133: 15.3 | J133: 0 | K133: 14.1 | N133: 14.33 | O133: 6.665 | P133: 9.37 | S133: 2016-02-02 | T133: 15.3 | U133: 65.7 | V133: 69.8 | Y133: 14.33 | Z133: 63.39 | AA133: 64.49 | AD133: 2016-02-02 | AE133: 6.1 | AF133: 2 | AG133: 12.2 | AH133: 0 | AJ133: 3.475 | AK133: 0.9 | AL133: 13.82 | AM133: 0.365 | AO133: 2016-02-02 | AP133: 2 | AQ133: 2 | AR133: 13.2 | AS133: 3.9 | AU133: 0.9 | AV133: 2.05 | AW133: 10.02 | AX133: 1.66 | AZ133: 2016-02-02 | BA133: 14.1 | BB133: 81.8 | BF133: 9.37 | BG133: 84.76 | BK133: 2016-02-02 | BL133: 25.5 | BM133: 14.1 | BN133: 2 | BO133: 1 | BQ133: 16.64 | BR133: 8.705 | BS133: 1.05 | BT133: 0.5 | BV133: 2016-02-02 | BW133: 24 | BX133: 52.1 | BY133: 100.3 | BZ133: 55.6 | CA133: 15.3 | CC133: 14.565 | CD133: 34.02 | CE133: 69.09 | CF133: 34.805 | CG133: 14.305 | CI133: 2016-02-02 | CJ133: 0 | CK133: 3.9 | CL133: 3.921568627 | CM133: 0 | CO133: 0.365 | CP133: 2.03 | CQ133: 0.8738842787 | CR133: 4.754509847 | CT133: 2016-02-02 | CU133: 69.8 | CV133: 57.6 | CW133: 67.4 | CX133: 54.2 | CZ133: 64.49 | DA133: 50.68 | DB133: 62.6 | DC133: 52.595 | DE133: 2016-02-02 | DF133: 69.8 | DG133: 57.6 | DH133: 67.4 | DI133: 54.2 | DK133: 64.49 | DL133: 50.68 | DM133: 62.6 | DN133: 52.595 | DP133: 2016-02-02 | DQ133: 15.3 | DR133: 25.5 | DS133: 5 | DT133: 2 | DV133: 14.33 | DW133: 16.64 | DX133: 3 | DY133: 2.05 | EA133: 2016-02-02 | EB133: 15.3 | EC133: 14.1 | ED133: 55.6 | EE133: 7.9 | EG133: 14.33 | EH133: 9.37 | EI133: 35.79 | EJ133: 3.41 | EL133: Brendan.Smith | EM133: 15.37906977 | EN133: 383.3 | EO133: 7.763565891 | EP133: 32.80697674 | ER133: 15.54755452 | ES133: 598.68 | ET133: 8.1371975 | EU133: 32.43864664 | EW133: 2016-02-02 | EX133: 15.3 | EY133: 12.2 | EZ133: 13.2 | FA133: 9.2 | FC133: 14.33 | FD133: 13.82 | FE133: 10.02 | FF133: 9.415
A134: 2016-02-04 | B134: 22 | C134: 20 | D134: 10 | E134: 52 | H134: 2016-02-04 | I134: 15.7 | J134: 0 | K134: 11.8 | N134: 14.305 | O134: 6.665 | P134: 9.25 | S134: 2016-02-04 | T134: 15.7 | U134: 52.7 | V134: 73.8 | Y134: 14.305 | Z134: 62.075 | AA134: 63.18 | AD134: 2016-02-04 | AE134: 2.8 | AF134: 0 | AG134: 28 | AH134: 0 | AJ134: 3.515 | AK134: 0.85 | AL134: 11.285 | AM134: 0.555 | AO134: 2016-02-04 | AP134: 0 | AQ134: 3 | AR134: 20.3 | AS134: 0 | AU134: 0.85 | AV134: 2.15 | AW134: 9.19 | AX134: 2.04 | AZ134: 2016-02-04 | BA134: 11.8 | BB134: 100 | BF134: 9.25 | BG134: 87.325 | BK134: 2016-02-04 | BL134: 14.2 | BM134: 8.5 | BN134: 0 | BO134: 1 | BQ134: 16.275 | BR134: 8.425 | BS134: 0.95 | BT134: 0.45 | BV134: 2016-02-04 | BW134: 10.9 | BX134: 29.3 | BY134: 54.4 | BZ134: 32.3 | CA134: 15.7 | CC134: 14.735 | CD134: 33.3 | CE134: 67.825 | CF134: 36.575 | CG134: 14.33 | CI134: 2016-02-04 | CJ134: 0 | CK134: 0 | CL134: 0 | CM134: 0 | CO134: 0.365 | CP134: 1.66 | CQ134: 0.6886990935 | CR134: 3.643398736 | CT134: 2016-02-04 | CU134: 73.8 | CV134: 45.8 | CW134: 59.1 | CX134: 38.8 | CZ134: 63.18 | DA134: 51.905 | DB134: 61.285 | DC134: 52.105 | DE134: 2016-02-04 | DF134: 73.8 | DG134: 45.8 | DH134: 59.1 | DI134: 38.8 | DK134: 63.18 | DL134: 51.905 | DM134: 61.285 | DN134: 52.105 | DP134: 2016-02-04 | DQ134: 15.7 | DR134: 14.2 | DS134: 3 | DT134: 3 | DV134: 14.305 | DW134: 16.275 | DX134: 3 | DY134: 2.15 | EA134: 2016-02-04 | EB134: 15.7 | EC134: 11.8 | ED134: 32.3 | EE134: 3.8 | EG134: 14.305 | EH134: 9.25 | EI134: 34.805 | EJ134: 3.23 | EL134: Fedor.Tyutin | EM134: 15.34488189 | EN134: 233.3 | EO134: 7.695238095 | EP134: 32.43543307 | ER134: 15.52744354 | ES134: 571.18 | ET134: 8.135256507 | EU134: 32.3871017 | EW134: 2016-02-04 | EX134: 15.7 | EY134: 28 | EZ134: 20.3 | FA134: 13.4 | FC134: 14.305 | FD134: 11.285 | FE134: 9.19 | FF134: 8.685
A135: 2016-02-09 | B135: 23 | C135: 21 | D135: 10 | E135: 54 | H135: 2016-02-09 | I135: 15.9 | J135: 50 | K135: 11.3 | N135: 14.33 | O135: 9.165 | P135: 9.2 | S135: 2016-02-09 | T135: 15.9 | U135: 63.8 | V135: 62.9 | Y135: 14.33 | Z135: 63.115 | AA135: 62.455 | AD135: 2016-02-09 | AE135: 5.2 | AF135: 1 | AG135: -0.8 | AH135: 3.8 | AJ135: 3.465 | AK135: 0.8 | AL135: 8.64 | AM135: 0.78 | AO135: 2016-02-09 | AP135: 1 | AQ135: 3 | AR135: 3.1 | AS135: 7.6 | AU135: 0.8 | AV135: 2.15 | AW135: 8.16 | AX135: 2.265 | AZ135: 2016-02-09 | BA135: 11.3 | BB135: 100 | BF135: 9.2 | BG135: 87.325 | BK135: 2016-02-09 | BL135: 24.3 | BM135: 17.8 | BN135: 0 | BO135: 1 | BQ135: 16.885 | BR135: 8.91 | BS135: 0.95 | BT135: 0.4 | BV135: 2016-02-09 | BW135: 19.6 | BX135: 43.9 | BY135: 91.7 | BZ135: 67.1 | CA135: 15.9 | CC135: 14.51 | CD135: 33.92 | CE135: 70.055 | CF135: 35.395 | CG135: 14.11 | CI135: 2016-02-09 | CJ135: 3.8 | CK135: 7.6 | CL135: 3.773584906 | CM135: 0 | CO135: 0.555 | CP135: 2.04 | CQ135: 0.8773783388 | CR135: 3.643398736 | CT135: 2016-02-09 | CU135: 62.9 | CV135: 63.7 | CW135: 63.5 | CX135: 60.4 | CZ135: 62.455 | DA135: 53.83 | DB135: 61.04 | DC135: 52.89 | DE135: 2016-02-09 | DF135: 62.9 | DG135: 63.7 | DH135: 63.5 | DI135: 60.4 | DK135: 62.455 | DL135: 53.83 | DM135: 61.04 | DN135: 52.89 | DP135: 2016-02-09 | DQ135: 15.9 | DR135: 24.3 | DS135: 3 | DT135: 3 | DV135: 14.33 | DW135: 16.885 | DX135: 2.95 | DY135: 2.15 | EA135: 2016-02-09 | EB135: 15.9 | EC135: 11.3 | ED135: 67.1 | EE135: 7.6 | EG135: 14.33 | EH135: 9.2 | EI135: 36.575 | EJ135: 3.415 | EL135: Brayden.McNabb | EM135: 15.3 | EN135: 183.3 | EO135: 6.854615385 | EP135: 31.78692308 | ER135: 15.50655245 | ES135: 548.555 | ET135: 8.193087276 | EU135: 32.31515726 | EW135: 2016-02-09 | EX135: 15.9 | EY135: -0.8 | EZ135: 3.1 | FA135: 2.7 | FC135: 14.33 | FD135: 8.64 | FE135: 8.16 | FF135: 8.865
A136: 2016-02-11 | B136: 24 | C136: 21 | D136: 10 | E136: 55 | H136: 2016-02-11 | I136: 13.4 | J136: 100 | K136: 21.7 | N136: 14.11 | O136: 14.165 | P136: 10.285 | S136: 2016-02-11 | T136: 13.4 | U136: 54.9 | V136: 100 | Y136: 14.11 | Z136: 62.745 | AA136: 65.57 | AD136: 2016-02-11 | AE136: 1.9 | AF136: 1 | AG136: 55.1 | AH136: 4.5 | AJ136: 3.36 | AK136: 0.8 | AL136: 11.61 | AM136: 0.78 | AO136: 2016-02-11 | AP136: 1 | AQ136: 1 | AR136: 17.5 | AS136: 4.5 | AU136: 0.8 | AV136: 2 | AW136: 8.415 | AX136: 2.585 | AZ136: 2016-02-11 | BA136: 21.7 | BB136: 89.9 | BF136: 10.285 | BG136: 88.79 | BK136: 2016-02-11 | BL136: 17.6 | BM136: 4.6 | BN136: 0 | BO136: 1 | BQ136: 16.695 | BR136: 8.485 | BS136: 0.8 | BT136: 0.45 | BV136: 2016-02-11 | BW136: 8.4 | BX136: 29.2 | BY136: 79 | BZ136: 20.7 | CA136: 13.4 | CC136: 14.25 | CD136: 33.005 | CE136: 70.395 | CF136: 35.565 | CG136: 14.29 | CI136: 2016-02-11 | CJ136: 4.5 | CK136: 4.5 | CL136: 0 | CM136: 0 | CO136: 0.78 | CP136: 2.265 | CQ136: 0.8773783388 | CR136: 3.643398736 | CT136: 2016-02-11 | CU136: 100 | CV136: 44.9 | CW136: 60.9 | CX136: 43.4 | CZ136: 65.57 | DA136: 53.975 | DB136: 60.99 | DC136: 52.585 | DE136: 2016-02-11 | DF136: 100 | DG136: 44.9 | DH136: 60.9 | DI136: 43.4 | DK136: 65.57 | DL136: 53.975 | DM136: 60.99 | DN136: 52.585 | DP136: 2016-02-11 | DQ136: 13.4 | DR136: 17.6 | DS136: 2 | DT136: 1 | DV136: 14.11 | DW136: 16.695 | DX136: 2.7 | DY136: 2 | EA136: 2016-02-11 | EB136: 13.4 | EC136: 21.7 | ED136: 20.7 | EE136: 4.5 | EG136: 14.11 | EH136: 10.285 | EI136: 35.395 | EJ136: 3.64 | EL136: Thomas.Hickey | EM136: 15.3 | EN136: 333.3 | EO136: 8.343055556 | EP136: 31.29444444 | ER136: 15.48655245 | ES136: 552.72 | ET136: 8.17716313 | EU136: 32.29692084 | EW136: 2016-02-11 | EX136: 13.4 | EY136: 55.1 | EZ136: 17.5 | FA136: 5 | FC136: 14.11 | FD136: 11.61 | FE136: 8.415 | FF136: 8.13
A137: 2016-02-12 | B137: 24 | C137: 22 | D137: 11 | E137: 57 | H137: 2016-02-12 | I137: 18.7 | J137: 0 | K137: 21.7 | N137: 14.29 | O137: 14.165 | P137: 11.37 | S137: 2016-02-12 | T137: 18.7 | U137: 67 | V137: 81.3 | Y137: 14.29 | Z137: 63.425 | AA137: 67.635 | AD137: 2016-02-12 | AE137: 4.1 | AF137: 0 | AG137: 18.9 | AH137: 0 | AJ137: 3.44 | AK137: 0.8 | AL137: 14.04 | AM137: 0.78 | AO137: 2016-02-12 | AP137: 0 | AQ137: 0 | AR137: -10.7 | AS137: 6.4 | AU137: 0.8 | AV137: 1.95 | AW137: 8.875 | AX137: 2.585 | AZ137: 2016-02-12 | BA137: 21.7 | BB137: 100 | BF137: 11.37 | BG137: 89.605 | BK137: 2016-02-12 | BL137: 20.9 | BM137: 9.2 | BN137: 0 | BO137: 1 | BQ137: 17.09 | BR137: 8.615 | BS137: 0.75 | BT137: 0.5 | BV137: 2016-02-12 | BW137: 13.2 | BX137: 19.9 | BY137: 66.9 | BZ137: 29.5 | CA137: 18.7 | CC137: 14.415 | CD137: 32.77 | CE137: 71.155 | CF137: 35.19 | CG137: 14.485 | CI137: 2016-02-12 | CJ137: 0 | CK137: 6.4 | CL137: 3.20855615 | CM137: 19.2513369 | CO137: 0.78 | CP137: 2.585 | CQ137: 1.037806146 | CR137: 4.605965581 | CT137: 2016-02-12 | CU137: 81.3 | CV137: 62.4 | CW137: 47.4 | CX137: 58.1 | CZ137: 67.635 | DA137: 53.605 | DB137: 61.14 | DC137: 52.275 | DE137: 2016-02-12 | DF137: 81.3 | DG137: 62.4 | DH137: 47.4 | DI137: 58.1 | DK137: 67.635 | DL137: 53.605 | DM137: 61.14 | DN137: 52.275 | DP137: 2016-02-12 | DQ137: 18.7 | DR137: 20.9 | DS137: 1 | DT137: 0 | DV137: 14.29 | DW137: 17.09 | DX137: 2.6 | DY137: 1.95 | EA137: 2016-02-12 | EB137: 18.7 | EC137: 21.7 | ED137: 29.5 | EE137: 6.4 | EG137: 14.29 | EH137: 11.37 | EI137: 35.565 | EJ137: 3.96 | EL137: Andrej.Sustr | EM137: 15.28396947 | EN137: 200 | EO137: 10.09465649 | EP137: 32.47938931 | ER137: 15.46685386 | ES137: 545.22 | ET137: 8.295976837 | EU137: 32.28259264 | EW137: 2016-02-12 | EX137: 18.7 | EY137: 18.9 | EZ137: -10.7 | FA137: 4.9 | FC137: 14.29 | FD137: 14.04 | FE137: 8.875 | FF137: 8.74
A138: 2016-02-14 | B138: 24 | C138: 22 | D138: 11 | E138: 57 | H138: 2016-02-14 | I138: 16.3 | J138: 0 | K138: 0 | N138: 14.485 | O138: 14.165 | P138: 11.37 | S138: 2016-02-14 | T138: 16.3 | U138: 68.4 | V138: 51.9 | Y138: 14.485 | Z138: 64.405 | AA138: 67.125 | AD138: 2016-02-14 | AE138: 1.1 | AF138: 0 | AG138: 27 | AH138: 0 | AJ138: 3.345 | AK138: 0.75 | AL138: 14.795 | AM138: 0.78 | AO138: 2016-02-14 | AP138: 0 | AQ138: 1 | AR138: 30.3 | AS138: 0 | AU138: 0.75 | AV138: 1.9 | AW138: 10.795 | AX138: 2.385 | AZ138: 2016-02-14 | BA138: 0 | BB138: 100 | BF138: 11.37 | BG138: 89.605 | BK138: 2016-02-14 | BL138: 15.4 | BM138: 8.6 | BN138: 0 | BO138: 1 | BQ138: 17.295 | BR138: 8.64 | BS138: 0.75 | BT138: 0.55 | BV138: 2016-02-14 | BW138: 3.9 | BX138: 26 | BY138: 56.8 | BZ138: 31.8 | CA138: 16.3 | CC138: 13.895 | CD138: 32.86 | CE138: 71.245 | CF138: 35.35 | CG138: 14.455 | CI138: 2016-02-14 | CJ138: 0 | CK138: 0 | CL138: 0 | CM138: 0 | CO138: 0.78 | CP138: 2.585 | CQ138: 1.037806146 | CR138: 4.605965581 | CT138: 2016-02-14 | CU138: 51.9 | CV138: 24.8 | CW138: 77.5 | CX138: 47.2 | CZ138: 67.125 | DA138: 52.335 | DB138: 62.15 | DC138: 51.36 | DE138: 2016-02-14 | DF138: 51.9 | DG138: 24.8 | DH138: 77.5 | DI138: 47.2 | DK138: 67.125 | DL138: 52.335 | DM138: 62.15 | DN138: 51.36 | DP138: 2016-02-14 | DQ138: 16.3 | DR138: 15.4 | DS138: 2 | DT138: 1 | DV138: 14.485 | DW138: 17.295 | DX138: 2.6 | DY138: 1.9 | EA138: 2016-02-14 | EB138: 16.3 | EC138: 0 | ED138: 31.8 | EE138: 0 | EG138: 14.485 | EH138: 11.37 | EI138: 35.19 | EJ138: 3.96 | EL138: Dmitry.Orlov | EM138: 15.277 | EN138: 545 | EO138: 9.994 | EP138: 31.816 | ER138: 15.44813976 | ES138: 567.47 | ET138: 8.44875376 | EU138: 32.25474276 | EW138: 2016-02-14 | EX138: 16.3 | EY138: 27 | EZ138: 30.3 | FA138: 11.1 | FC138: 14.485 | FD138: 14.795 | FE138: 10.795 | FF138: 9.475
A139: 2016-02-16 | B139: 24 | C139: 22 | D139: 11 | E139: 57 | H139: 2016-02-16 | I139: 14.5 | J139: 0 | K139: 0 | N139: 14.455 | O139: 14.165 | P139: 9.14 | S139: 2016-02-16 | T139: 14.5 | U139: 70.7 | V139: 52.8 | Y139: 14.455 | Z139: 63.875 | AA139: 65.885 | AD139: 2016-02-16 | AE139: 2 | AF139: 2 | AG139: 6.7 | AH139: 0 | AJ139: 3.28 | AK139: 0.85 | AL139: 14.905 | AM139: 0.78 | AO139: 2016-02-16 | AP139: 2 | AQ139: 2 | AR139: 5.6 | AS139: 0 | AU139: 0.85 | AV139: 2 | AW139: 10.855 | AX139: 2.385 | AZ139: 2016-02-16 | BA139: 0 | BB139: 100 | BF139: 9.14 | BG139: 89.605 | BK139: 2016-02-16 | BL139: 17 | BM139: 7.2 | BN139: 2 | BO139: 1 | BQ139: 17.345 | BR139: 8.665 | BS139: 0.8 | BT139: 0.55 | BV139: 2016-02-16 | BW139: 8.4 | BX139: 23.5 | BY139: 70.3 | BZ139: 30 | CA139: 14.5 | CC139: 13.665 | CD139: 32.52 | CE139: 71.575 | CF139: 35.115 | CG139: 14.555 | CI139: 2016-02-16 | CJ139: 0 | CK139: 0 | CL139: 0 | CM139: 0 | CO139: 0.78 | CP139: 2.385 | CQ139: 1.037806146 | CR139: 3.413912601 | CT139: 2016-02-16 | CU139: 52.8 | CV139: 46.1 | CW139: 56.5 | CX139: 50.9 | CZ139: 65.885 | DA139: 50.985 | DB139: 61.355 | DC139: 50.51 | DE139: 2016-02-16 | DF139: 52.8 | DG139: 46.1 | DH139: 56.5 | DI139: 50.9 | DK139: 65.885 | DL139: 50.985 | DM139: 61.355 | DN139: 50.51 | DP139: 2016-02-16 | DQ139: 14.5 | DR139: 17 | DS139: 5 | DT139: 2 | DV139: 14.455 | DW139: 17.345 | DX139: 2.8 | DY139: 2 | EA139: 2016-02-16 | EB139: 14.5 | EC139: 0 | ED139: 30 | EE139: 0 | EG139: 14.455 | EH139: 9.14 | EI139: 35.35 | EJ139: 3.365 | EL139: Luke.Schenn | EM139: 15.2744186 | EN139: 408.3 | EO139: 8.28372093 | EP139: 31.78139535 | ER139: 15.42985176 | ES139: 567.055 | ET139: 8.317804672 | EU139: 32.20295496 | EW139: 2016-02-16 | EX139: 14.5 | EY139: 6.7 | EZ139: 5.6 | FA139: 12.9 | FC139: 14.455 | FD139: 14.905 | FE139: 10.855 | FF139: 9.33
A140: 2016-02-18 | B140: 24 | C140: 22 | D140: 11 | E140: 57 | H140: 2016-02-18 | I140: 14.7 | J140: 0 | K140: 0 | N140: 14.555 | O140: 14.165 | P140: 8.64 | S140: 2016-02-18 | T140: 14.7 | U140: 64.5 | V140: 67.5 | Y140: 14.555 | Z140: 64.27 | AA140: 66.975 | AD140: 2016-02-18 | AE140: 4.5 | AF140: 0 | AG140: -6.4 | AH140: 0 | AJ140: 3.29 | AK140: 0.75 | AL140: 14.58 | AM140: 0.585 | AO140: 2016-02-18 | AP140: 0 | AQ140: 0 | AR140: 24 | AS140: 0 | AU140: 0.75 | AV140: 1.9 | AW140: 12.675 | AX140: 2.19 | AZ140: 2016-02-18 | BA140: 0 | BB140: 100 | BF140: 8.64 | BG140: 89.605 | BK140: 2016-02-18 | BL140: 20.9 | BM140: 10.4 | BN140: 0 | BO140: 0 | BQ140: 17.435 | BR140: 8.685 | BS140: 0.8 | BT140: 0.55 | BV140: 2016-02-18 | BW140: 18.5 | BX140: 59.4 | BY140: 85.4 | BZ140: 42.4 | CA140: 14.7 | CC140: 13.565 | CD140: 33.665 | CE140: 71.32 | CF140: 35.41 | CG140: 14.52 | CI140: 2016-02-18 | CJ140: 0 | CK140: 0 | CL140: 0 | CM140: 0 | CO140: 0.78 | CP140: 2.385 | CQ140: 1.037806146 | CR140: 3.413912601 | CT140: 2016-02-18 | CU140: 67.5 | CV140: 73.9 | CW140: 66.2 | CX140: 42.2 | CZ140: 66.975 | DA140: 52.4 | DB140: 62.71 | DC140: 50.045 | DE140: 2016-02-18 | DF140: 67.5 | DG140: 73.9 | DH140: 66.2 | DI140: 42.2 | DK140: 66.975 | DL140: 52.4 | DM140: 62.71 | DN140: 50.045 | DP140: 2016-02-18 | DQ140: 14.7 | DR140: 20.9 | DS140: 0 | DT140: 0 | DV140: 14.555 | DW140: 17.435 | DX140: 2.65 | DY140: 1.9 | EA140: 2016-02-18 | EB140: 14.7 | EC140: 0 | ED140: 42.4 | EE140: 0 | EG140: 14.555 | EH140: 8.64 | EI140: 35.115 | EJ140: 3.13 | EL140: Nikita.Zadorov | EM140: 15.2695122 | EN140: 0 | EO140: 9.297530864 | EP140: 31.7402439 | ER140: 15.41182737 | ES140: 540.645 | ET140: 8.397747882 | EU140: 32.14252796 | EW140: 2016-02-18 | EX140: 14.7 | EY140: -6.4 | EZ140: 24 | FA140: 20.9 | FC140: 14.555 | FD140: 14.58 | FE140: 12.675 | FF140: 10.35
A141: 2016-02-20 | B141: 24 | C141: 22 | D141: 11 | E141: 57 | H141: 2016-02-20 | I141: 14.7 | J141: 0 | K141: 0 | N141: 14.52 | O141: 9.165 | P141: 7.89 | S141: 2016-02-20 | T141: 14.7 | U141: 57.9 | V141: 0 | Y141: 14.52 | Z141: 64.76 | AA141: 64.9 | AD141: 2016-02-20 | AE141: 0 | AF141: 0 | AG141: -18.1 | AH141: 0 | AJ141: 3.185 | AK141: 0.7 | AL141: 14.775 | AM141: 0.585 | AO141: 2016-02-20 | AP141: 0 | AQ141: 2 | AR141: 1.3 | AS141: 0 | AU141: 0.7 | AV141: 1.95 | AW141: 13.875 | AX141: 2.19 | AZ141: 2016-02-20 | BA141: 0 | BB141: 100 | BF141: 7.89 | BG141: 90.205 | BK141: 2016-02-20 | BL141: 16 | BM141: 7.8 | BN141: 1 | BO141: 1 | BQ141: 17.47 | BR141: 8.74 | BS141: 0.8 | BT141: 0.55 | BV141: 2016-02-20 | BW141: 0 | BX141: 12.5 | BY141: 65.5 | BZ141: 31.9 | CA141: 14.7 | CC141: 13.155 | CD141: 33.655 | CE141: 71.615 | CF141: 35.27 | CG141: 14.345 | CI141: 2016-02-20 | CJ141: 0 | CK141: 0 | CL141: 0 | CM141: 0 | CO141: 0.585 | CP141: 2.19 | CQ141: 1.037806146 | CR141: 3.413912601 | CT141: 2016-02-20 | CU141: 0 | CV141: 18.1 | CW141: 44.5 | CX141: 43.2 | CZ141: 64.9 | DA141: 50.13 | DB141: 63.27 | DC141: 49.405 | DE141: 2016-02-20 | DF141: 0 | DG141: 18.1 | DH141: 44.5 | DI141: 43.2 | DK141: 64.9 | DL141: 50.13 | DM141: 63.27 | DN141: 49.405 | DP141: 2016-02-20 | DQ141: 14.7 | DR141: 16 | DS141: 5 | DT141: 2 | DV141: 14.52 | DW141: 17.47 | DX141: 2.75 | DY141: 1.95 | EA141: 2016-02-20 | EB141: 14.7 | EC141: 0 | ED141: 31.9 | EE141: 0 | EG141: 14.52 | EH141: 7.89 | EI141: 35.41 | EJ141: 2.935 | EL141: Carl.Gunnarsson | EM141: 15.26818182 | EN141: 250 | EO141: 8.209923664 | EP141: 31.64848485 | ER141: 15.396972 | ES141: 546.48 | ET141: 8.372697846 | EU141: 32.15314656 | EW141: 2016-02-20 | EX141: 14.7 | EY141: -18.1 | EZ141: 1.3 | FA141: 2.6 | FC141: 14.52 | FD141: 14.775 | FE141: 13.875 | FF141: 11.015
A142: 2016-02-23 | B142: 24 | C142: 22 | D142: 11 | E142: 57 | H142: 2016-02-23 | I142: 12.7 | J142: 0 | K142: 0 | N142: 14.345 | O142: 9.165 | P142: 7.89 | S142: 2016-02-23 | T142: 12.7 | U142: 56 | V142: 72.5 | Y142: 14.345 | Z142: 64.265 | AA142: 65.265 | AD142: 2016-02-23 | AE142: 5 | AF142: 2 | AG142: -1.8 | AH142: 0 | AJ142: 3.355 | AK142: 0.75 | AL142: 12.515 | AM142: 0.585 | AO142: 2016-02-23 | AP142: 2 | AQ142: 3 | AR142: -7.2 | AS142: 0 | AU142: 0.75 | AV142: 1.95 | AW142: 12.125 | AX142: 2.19 | AZ142: 2016-02-23 | BA142: 0 | BB142: 100 | BF142: 7.89 | BG142: 90.205 | BK142: 2016-02-23 | BL142: 14.1 | BM142: 6 | BN142: 4 | BO142: 0 | BQ142: 17.295 | BR142: 8.62 | BS142: 0.9 | BT142: 0.55 | BV142: 2016-02-23 | BW142: 23.8 | BX142: 37.5 | BY142: 66.6 | BZ142: 28.2 | CA142: 12.7 | CC142: 14.05 | CD142: 33.925 | CE142: 71.685 | CF142: 34.33 | CG142: 14.595 | CI142: 2016-02-23 | CJ142: 0 | CK142: 0 | CL142: 0 | CM142: 0 | CO142: 0.585 | CP142: 2.19 | CQ142: 1.037806146 | CR142: 3.413912601 | CT142: 2016-02-23 | CU142: 72.5 | CV142: 74.4 | CW142: 51.1 | CX142: 58.2 | CZ142: 65.265 | DA142: 52.755 | DB142: 61.715 | DC142: 49.595 | DE142: 2016-02-23 | DF142: 72.5 | DG142: 74.4 | DH142: 51.1 | DI142: 58.2 | DK142: 65.265 | DL142: 52.755 | DM142: 61.715 | DN142: 49.595 | DP142: 2016-02-23 | DQ142: 12.7 | DR142: 14.1 | DS142: 4 | DT142: 3 | DV142: 14.345 | DW142: 17.295 | DX142: 2.8 | DY142: 1.95 | EA142: 2016-02-23 | EB142: 12.7 | EC142: 0 | ED142: 28.2 | EE142: 0 | EG142: 14.345 | EH142: 7.89 | EI142: 35.27 | EJ142: 2.935 | EL142: Mike.Green | EM142: 15.24489796 | EN142: 699.9 | EO142: 7.431972789 | EP142: 32.16190476 | ER142: 15.38220755 | ES142: 576.475 | ET142: 8.443824788 | EU142: 32.13580157 | EW142: 2016-02-23 | EX142: 12.7 | EY142: -1.8 | EZ142: -7.2 | FA142: -1.6 | FC142: 14.345 | FD142: 12.515 | FE142: 12.125 | FF142: 10.095
A143: 2016-02-25 | B143: 24 | C143: 22 | D143: 11 | E143: 57 | H143: 2016-02-25 | I143: 16.4 | J143: 0 | K143: 0 | N143: 14.595 | O143: 9.165 | P143: 7.89 | S143: 2016-02-25 | T143: 16.4 | U143: 57.3 | V143: 63.9 | Y143: 14.595 | Z143: 64.92 | AA143: 66.685 | AD143: 2016-02-25 | AE143: 3.5 | AF143: 3 | AG143: 13.1 | AH143: 0 | AJ143: 3.375 | AK143: 0.9 | AL143: 14.85 | AM143: 0.585 | AO143: 2016-02-25 | AP143: 3 | AQ143: 3 | AR143: -2.6 | AS143: 0 | AU143: 0.9 | AV143: 2.1 | AW143: 12.49 | AX143: 2.19 | AZ143: 2016-02-25 | BA143: 0 | BB143: 67.3 | BF143: 7.89 | BG143: 89.13 | BK143: 2016-02-25 | BL143: 13.1 | BM143: 5.9 | BN143: 2 | BO143: 0 | BQ143: 17.39 | BR143: 8.525 | BS143: 1 | BT143: 0.55 | BV143: 2016-02-25 | BW143: 12.7 | BX143: 27.2 | BY143: 47.9 | BZ143: 21.8 | CA143: 16.4 | CC143: 13.875 | CD143: 33.965 | CE143: 71.145 | CF143: 34.42 | CG143: 14.64 | CI143: 2016-02-25 | CJ143: 0 | CK143: 0 | CL143: 0 | CM143: 0 | CO143: 0.585 | CP143: 2.19 | CQ143: 1.037806146 | CR143: 3.413912601 | CT143: 2016-02-25 | CU143: 63.9 | CV143: 50.8 | CW143: 50.9 | CX143: 53.5 | CZ143: 66.685 | DA143: 51.84 | DB143: 62.4 | DC143: 49.91 | DE143: 2016-02-25 | DF143: 63.9 | DG143: 50.8 | DH143: 50.9 | DI143: 53.5 | DK143: 66.685 | DL143: 51.84 | DM143: 62.4 | DN143: 49.91 | DP143: 2016-02-25 | DQ143: 16.4 | DR143: 13.1 | DS143: 3 | DT143: 3 | DV143: 14.595 | DW143: 17.39 | DX143: 2.95 | DY143: 2.1 | EA143: 2016-02-25 | EB143: 16.4 | EC143: 0 | ED143: 21.8 | EE143: 0 | EG143: 14.595 | EH143: 7.89 | EI143: 34.33 | EJ143: 2.935 | EL143: Christian.Ehrhoff | EM143: 15.21340206 | EN143: 195 | EO143: 7.732631579 | EP143: 32.1742268 | ER143: 15.36587061 | ES143: 569.56 | ET143: 8.477903175 | EU143: 32.08638046 | EW143: 2016-02-25 | EX143: 16.4 | EY143: 13.1 | EZ143: -2.6 | FA143: -0.4 | FC143: 14.595 | FD143: 14.85 | FE143: 12.49 | FF143: 10.19
A144: 2016-02-28 | B144: 24 | C144: 22 | D144: 11 | E144: 57 | H144: 2016-02-28 | I144: 13.2 | J144: 0 | K144: 0 | N144: 14.64 | O144: 9.165 | P144: 7.89 | S144: 2016-02-28 | T144: 13.2 | U144: 66.9 | V144: 69.8 | Y144: 14.64 | Z144: 63.95 | AA144: 65.175 | AD144: 2016-02-28 | AE144: 2.1 | AF144: 0 | AG144: 20.7 | AH144: 0 | AJ144: 3.39 | AK144: 0.85 | AL144: 14.83 | AM144: 0.585 | AO144: 2016-02-28 | AP144: 0 | AQ144: 1 | AR144: 26.7 | AS144: 0 | AU144: 0.85 | AV144: 2.05 | AW144: 13.5 | AX144: 2.11 | AZ144: 2016-02-28 | BA144: 0 | BB144: 100 | BF144: 7.89 | BG144: 89.13 | BK144: 2016-02-28 | BL144: 14.1 | BM144: 7 | BN144: 1 | BO144: 0 | BQ144: 17.495 | BR144: 8.57 | BS144: 1.05 | BT144: 0.6 | BV144: 2016-02-28 | BW144: 9.6 | BX144: 24.1 | BY144: 63.7 | BZ144: 31.6 | CA144: 13.2 | CC144: 13.91 | CD144: 34.04 | CE144: 71.41 | CF144: 34.6 | CG144: 14.87 | CI144: 2016-02-28 | CJ144: 0 | CK144: 0 | CL144: 0 | CM144: 0 | CO144: 0.585 | CP144: 2.19 | CQ144: 1.037806146 | CR144: 3.413912601 | CT144: 2016-02-28 | CU144: 69.8 | CV144: 49.1 | CW144: 59.3 | CX144: 32.5 | CZ144: 65.175 | DA144: 50.35 | DB144: 61.8 | DC144: 48.29 | DE144: 2016-02-28 | DF144: 69.8 | DG144: 49.1 | DH144: 59.3 | DI144: 32.5 | DK144: 65.175 | DL144: 50.35 | DM144: 61.8 | DN144: 48.29 | DP144: 2016-02-28 | DQ144: 13.2 | DR144: 14.1 | DS144: 2 | DT144: 1 | DV144: 14.64 | DW144: 17.495 | DX144: 2.95 | DY144: 2.05 | EA144: 2016-02-28 | EB144: 13.2 | EC144: 0 | ED144: 31.6 | EE144: 0 | EG144: 14.64 | EH144: 7.89 | EI144: 34.42 | EJ144: 2.935 | EL144: Zbynek.Michalek | EM144: 15.19051095 | EN144: 350 | EO144: 8.202941176 | EP144: 32.31970803 | ER144: 15.35031486 | ES144: 569.56 | ET144: 8.466738759 | EU144: 32.00144341 | EW144: 2016-02-28 | EX144: 13.2 | EY144: 20.7 | EZ144: 26.7 | FA144: 27 | FC144: 14.64 | FD144: 14.83 | FE144: 13.5 | FF144: 10.43
A145: 2016-03-03 | B145: 24 | C145: 22 | D145: 12 | E145: 58 | H145: 2016-03-03 | I145: 15.5 | J145: 0 | K145: 13.1 | N145: 14.87 | O145: 9.165 | P145: 7.485 | S145: 2016-03-03 | T145: 15.5 | U145: 78.7 | V145: 79.7 | Y145: 14.87 | Z145: 63.81 | AA145: 64.16 | AD145: 2016-03-03 | AE145: 3.6 | AF145: 0 | AG145: 10.2 | AH145: 0 | AJ145: 3.435 | AK145: 0.85 | AL145: 13.355 | AM145: 0.585 | AO145: 2016-03-03 | AP145: 0 | AQ145: 0 | AR145: 25 | AS145: 3.9 | AU145: 0.85 | AV145: 2.05 | AW145: 12.68 | AX145: 1.89 | AZ145: 2016-03-03 | BA145: 13.1 | BB145: 100 | BF145: 7.485 | BG145: 89.13 | BK145: 2016-03-03 | BL145: 17.2 | BM145: 7.6 | BN145: 0 | BO145: 1 | BQ145: 17.73 | BR145: 8.715 | BS145: 1.05 | BT145: 0.6 | BV145: 2016-03-03 | BW145: 13.8 | BX145: 33.5 | BY145: 66.3 | BZ145: 29.5 | CA145: 15.5 | CC145: 13.87 | CD145: 33.975 | CE145: 71.285 | CF145: 34.16 | CG145: 14.975 | CI145: 2016-03-03 | CJ145: 0 | CK145: 3.9 | CL145: 0 | CM145: 23.22580645 | CO145: 0.585 | CP145: 2.11 | CQ145: 0.7625767885 | CR145: 4.575202923 | CT145: 2016-03-03 | CU145: 79.7 | CV145: 69.5 | CW145: 76 | CX145: 51 | CZ145: 64.16 | DA145: 50.81 | DB145: 61.31 | DC145: 48.62 | DE145: 2016-03-03 | DF145: 79.7 | DG145: 69.5 | DH145: 76 | DI145: 51 | DK145: 64.16 | DL145: 50.81 | DM145: 61.31 | DN145: 48.62 | DP145: 2016-03-03 | DQ145: 15.5 | DR145: 17.2 | DS145: 1 | DT145: 0 | DV145: 14.87 | DW145: 17.73 | DX145: 2.95 | DY145: 2.05 | EA145: 2016-03-03 | EB145: 15.5 | EC145: 13.1 | ED145: 29.5 | EE145: 3.9 | EG145: 14.87 | EH145: 7.485 | EI145: 34.6 | EJ145: 2.855 | EL145: Eric.Staal | EM145: 15.18357143 | EN145: 839.9 | EO145: 6.47 | EP145: 30.825 | ER145: 15.33442149 | ES145: 580.725 | ET145: 8.323048977 | EU145: 32.00700591 | EW145: 2016-03-03 | EX145: 15.5 | EY145: 10.2 | EZ145: 25 | FA145: 26.4 | FC145: 14.87 | FD145: 13.355 | FE145: 12.68 | FF145: 10.54
A146: 2016-03-05 | B146: 24 | C146: 22 | D146: 12 | E146: 58 | H146: 2016-03-05 | I146: 15.6 | J146: 0 | K146: 0 | N146: 14.975 | O146: 9.165 | P146: 6.94 | S146: 2016-03-05 | T146: 15.6 | U146: 72.9 | V146: 80.6 | Y146: 14.975 | Z146: 64.465 | AA146: 64.695 | AD146: 2016-03-05 | AE146: 4.7 | AF146: 1 | AG146: 38.9 | AH146: 0 | AJ146: 3.43 | AK146: 0.85 | AL146: 15.335 | AM146: 0.585 | AO146: 2016-03-05 | AP146: 1 | AQ146: 2 | AR146: 46.5 | AS146: 0 | AU146: 0.85 | AV146: 2 | AW146: 13.725 | AX146: 1.67 | AZ146: 2016-03-05 | BA146: 0 | BB146: 100 | BF146: 6.94 | BG146: 89.86 | BK146: 2016-03-05 | BL146: 16.5 | BM146: 8.3 | BN146: 0 | BO146: 1 | BQ146: 17.565 | BR146: 8.675 | BS146: 0.95 | BT146: 0.6 | BV146: 2016-03-05 | BW146: 18 | BX146: 32.5 | BY146: 63.4 | BZ146: 31.8 | CA146: 15.6 | CC146: 13.71 | CD146: 33.325 | CE146: 70.065 | CF146: 34.765 | CG146: 14.79 | CI146: 2016-03-05 | CJ146: 0 | CK146: 0 | CL146: 0 | CM146: 0 | CO146: 0.585 | CP146: 1.89 | CQ146: 0.7625767885 | CR146: 3.24186959 | CT146: 2016-03-05 | CU146: 80.6 | CV146: 41.7 | CW146: 79.5 | CX146: 33 | CZ146: 64.695 | DA146: 49.365 | DB146: 61.665 | DC146: 47.93 | DE146: 2016-03-05 | DF146: 80.6 | DG146: 41.7 | DH146: 79.5 | DI146: 33 | DK146: 64.695 | DL146: 49.365 | DM146: 61.665 | DN146: 47.93 | DP146: 2016-03-05 | DQ146: 15.6 | DR146: 16.5 | DS146: 3 | DT146: 2 | DV146: 14.975 | DW146: 17.565 | DX146: 2.95 | DY146: 2 | EA146: 2016-03-05 | EB146: 15.6 | EC146: 0 | ED146: 31.8 | EE146: 0 | EG146: 14.975 | EH146: 6.94 | EI146: 34.16 | EJ146: 2.635 | EL146: Cody.Ceci | EM146: 15.13354839 | EN146: 783.3 | EO146: 8.475974026 | EP146: 31.78 | ER146: 15.31681766 | ES146: 533.48 | ET146: 8.321660179 | EU146: 31.95674163 | EW146: 2016-03-05 | EX146: 15.6 | EY146: 38.9 | EZ146: 46.5 | FA146: 24.3 | FC146: 14.975 | FD146: 15.335 | FE146: 13.725 | FF146: 11.44
A147: 2016-03-07 | B147: 24 | C147: 22 | D147: 12 | E147: 58 | H147: 2016-03-07 | I147: 10.1 | J147: 0 | K147: 23.7 | N147: 14.79 | O147: 9.165 | P147: 7.555 | S147: 2016-03-07 | T147: 10.1 | U147: 42.8 | V147: 50.6 | Y147: 14.79 | Z147: 63.135 | AA147: 63.28 | AD147: 2016-03-07 | AE147: 2.9 | AF147: 0 | AG147: 8.8 | AH147: 0 | AJ147: 3.39 | AK147: 0.85 | AL147: 13.73 | AM147: 0.775 | AO147: 2016-03-07 | AP147: 0 | AQ147: 1 | AR147: 10.2 | AS147: 0 | AU147: 0.85 | AV147: 1.85 | AW147: 11.92 | AX147: 1.675 | AZ147: 2016-03-07 | BA147: 23.7 | BB147: 100 | BF147: 7.555 | BG147: 91.02 | BK147: 2016-03-07 | BL147: 11 | BM147: 8.4 | BN147: 0 | BO147: 1 | BQ147: 17.08 | BR147: 8.66 | BS147: 0.85 | BT147: 0.6 | BV147: 2016-03-07 | BW147: 17.4 | BX147: 45.9 | BY147: 65.6 | BZ147: 50.2 | CA147: 10.1 | CC147: 13.765 | CD147: 32.5 | CE147: 68.825 | CF147: 34.62 | CG147: 14.78 | CI147: 2016-03-07 | CJ147: 0 | CK147: 0 | CL147: 0 | CM147: 0 | CO147: 0.585 | CP147: 1.67 | CQ147: 0.5451854841 | CR147: 3.24186959 | CT147: 2016-03-07 | CU147: 50.6 | CV147: 41.8 | CW147: 53.7 | CX147: 43.5 | CZ147: 63.28 | DA147: 49.555 | DB147: 60.235 | DC147: 48.305 | DE147: 2016-03-07 | DF147: 50.6 | DG147: 41.8 | DH147: 53.7 | DI147: 43.5 | DK147: 63.28 | DL147: 49.555 | DM147: 60.235 | DN147: 48.305 | DP147: 2016-03-07 | DQ147: 10.1 | DR147: 11 | DS147: 1 | DT147: 1 | DV147: 14.79 | DW147: 17.08 | DX147: 2.8 | DY147: 1.85 | EA147: 2016-03-07 | EB147: 10.1 | EC147: 23.7 | ED147: 50.2 | EE147: 11.9 | EG147: 14.79 | EH147: 7.555 | EI147: 34.765 | EJ147: 3.01 | EL147: Michal.Rozsival | EM147: 15.10423729 | EN147: 50 | EO147: 7.755932203 | EP147: 30.80508475 | ER147: 15.29825175 | ES147: 477.855 | ET147: 8.20098664 | EU147: 31.90173568 | EW147: 2016-03-07 | EX147: 10.1 | EY147: 8.8 | EZ147: 10.2 | FA147: -18.3 | FC147: 14.79 | FD147: 13.73 | FE147: 11.92 | FF147: 9.615
A148: 2016-03-09 | B148: 25 | C148: 22 | D148: 12 | E148: 59 | H148: 2016-03-09 | I148: 15.9 | J148: 100 | K148: 10.5 | N148: 14.78 | O148: 14.165 | P148: 7.115 | S148: 2016-03-09 | T148: 15.9 | U148: 41.1 | V148: 38.9 | Y148: 14.78 | Z148: 62.085 | AA148: 60.97 | AD148: 2016-03-09 | AE148: 3.6 | AF148: 1 | AG148: 8.9 | AH148: 3.8 | AJ148: 3.305 | AK148: 0.8 | AL148: 12.06 | AM148: 0.605 | AO148: 2016-03-09 | AP148: 1 | AQ148: 2 | AR148: -12.6 | AS148: 3.8 | AU148: 0.8 | AV148: 1.85 | AW148: 10.09 | AX148: 1.735 | AZ148: 2016-03-09 | BA148: 10.5 | BB148: 89.1 | BF148: 7.115 | BG148: 90.475 | BK148: 2016-03-09 | BL148: 12.9 | BM148: 9.5 | BN148: 1 | BO148: 0 | BQ148: 16.845 | BR148: 8.615 | BS148: 0.85 | BT148: 0.6 | BV148: 2016-03-09 | BW148: 13.7 | BX148: 24.6 | BY148: 48.8 | BZ148: 35.7 | CA148: 15.9 | CC148: 13.455 | CD148: 32.34 | CE148: 67.985 | CF148: 32.915 | CG148: 14.56 | CI148: 2016-03-09 | CJ148: 3.8 | CK148: 3.8 | CL148: 0 | CM148: 0 | CO148: 0.775 | CP148: 1.675 | CQ148: 0.5451854841 | CR148: 2.123857168 | CT148: 2016-03-09 | CU148: 38.9 | CV148: 30 | CW148: 36.9 | CX148: 49.5 | CZ148: 60.97 | DA148: 48.915 | DB148: 58.745 | DC148: 48.645 | DE148: 2016-03-09 | DF148: 38.9 | DG148: 30 | DH148: 36.9 | DI148: 49.5 | DK148: 60.97 | DL148: 48.915 | DM148: 58.745 | DN148: 48.645 | DP148: 2016-03-09 | DQ148: 15.9 | DR148: 12.9 | DS148: 2 | DT148: 2 | DV148: 14.78 | DW148: 16.845 | DX148: 2.75 | DY148: 1.85 | EA148: 2016-03-09 | EB148: 15.9 | EC148: 10.5 | ED148: 35.7 | EE148: 3.8 | EG148: 14.78 | EH148: 7.115 | EI148: 34.62 | EJ148: 2.83 | EL148: Mark.Barberio | EM148: 15.1 | EN148: 33.3 | EO148: 6.469444444 | EP148: 31.50416667 | ER148: 15.27996603 | ES148: 477.02 | ET148: 8.13250234 | EU148: 31.82369081 | EW148: 2016-03-09 | EX148: 15.9 | EY148: 8.9 | EZ148: -12.6 | FA148: -9.8 | FC148: 14.78 | FD148: 12.06 | FE148: 10.09 | FF148: 8.56
A149: 2016-03-12 | B149: 25 | C149: 23 | D149: 12 | E149: 60 | H149: 2016-03-12 | I149: 13.2 | J149: 0 | K149: 34.9 | N149: 14.56 | O149: 12.5 | P149: 8.14 | S149: 2016-03-12 | T149: 13.2 | U149: 46.6 | V149: 38.8 | Y149: 14.56 | Z149: 61.235 | AA149: 59.745 | AD149: 2016-03-12 | AE149: 1.9 | AF149: 0 | AG149: -10.9 | AH149: 0 | AJ149: 3.135 | AK149: 0.8 | AL149: 10.63 | AM149: 0.795 | AO149: 2016-03-12 | AP149: 0 | AQ149: 1 | AR149: 4.2 | AS149: 4.6 | AU149: 0.8 | AV149: 1.75 | AW149: 9.43 | AX149: 1.925 | AZ149: 2016-03-12 | BA149: 34.9 | BB149: 100 | BF149: 8.14 | BG149: 91.215 | BK149: 2016-03-12 | BL149: 9.3 | BM149: 2.9 | BN149: 1 | BO149: 0 | BQ149: 16.205 | BR149: 8.065 | BS149: 0.9 | BT149: 0.6 | BV149: 2016-03-12 | BW149: 8.6 | BX149: 34.7 | BY149: 42.3 | BZ149: 13.1 | CA149: 13.2 | CC149: 12.975 | CD149: 32.165 | CE149: 66.34 | CF149: 32.905 | CG149: 14.525 | CI149: 2016-03-12 | CJ149: 0 | CK149: 4.6 | CL149: 4.545454545 | CM149: 0 | CO149: 0.605 | CP149: 1.735 | CQ149: 0.7724582114 | CR149: 2.123857168 | CT149: 2016-03-12 | CU149: 38.8 | CV149: 49.6 | CW149: 60.4 | CX149: 56.3 | CZ149: 59.745 | DA149: 49.115 | DB149: 58.68 | DC149: 49.245 | DE149: 2016-03-12 | DF149: 38.8 | DG149: 49.6 | DH149: 60.4 | DI149: 56.3 | DK149: 59.745 | DL149: 49.115 | DM149: 58.68 | DN149: 49.245 | DP149: 2016-03-12 | DQ149: 13.2 | DR149: 9.3 | DS149: 1 | DT149: 1 | DV149: 14.56 | DW149: 16.205 | DX149: 2.65 | DY149: 1.75 | EA149: 2016-03-12 | EB149: 13.2 | EC149: 34.9 | ED149: 13.1 | EE149: 4.6 | EG149: 14.56 | EH149: 8.14 | EI149: 32.915 | EJ149: 2.72 | EL149: Nikita.Nikitin | EM149: 15.06607143 | EN149: 33.3 | EO149: 5.823214286 | EP149: 30.875 | ER149: 15.26027815 | ES149: 466.185 | ET149: 8.065688917 | EU149: 31.77358666 | EW149: 2016-03-12 | EX149: 13.2 | EY149: -10.9 | EZ149: 4.2 | FA149: -8.5 | FC149: 14.56 | FD149: 10.63 | FE149: 9.43 | FF149: 6.945
A150: 2016-03-14 | B150: 26 | C150: 23 | D150: 12 | E150: 61 | H150: 2016-03-14 | I150: 15.7 | J150: 100 | K150: 21.3 | N150: 14.525 | O150: 17.5 | P150: 9.205 | S150: 2016-03-14 | T150: 15.7 | U150: 65.7 | V150: 83 | Y150: 14.525 | Z150: 60.94 | AA150: 61.34 | AD150: 2016-03-14 | AE150: 4.5 | AF150: 2 | AG150: 23.1 | AH150: 3.8 | AJ150: 3.215 | AK150: 0.9 | AL150: 11.075 | AM150: 0.795 | AO150: 2016-03-14 | AP150: 2 | AQ150: 3 | AR150: 39.2 | AS150: 3.8 | AU150: 0.9 | AV150: 1.65 | AW150: 10.055 | AX150: 2.1 | AZ150: 2016-03-14 | BA150: 21.3 | BB150: 100 | BF150: 9.205 | BG150: 92.19 | BK150: 2016-03-14 | BL150: 18.3 | BM150: 9.4 | BN150: 2 | BO150: 0 | BQ150: 15.91 | BR150: 8.04 | BS150: 0.85 | BT150: 0.6 | BV150: 2016-03-14 | BW150: 17.1 | BX150: 34.6 | BY150: 69.8 | BZ150: 35.9 | CA150: 15.7 | CC150: 13.305 | CD150: 31.7 | CE150: 65.4 | CF150: 33.53 | CG150: 14.84 | CI150: 2016-03-14 | CJ150: 3.8 | CK150: 3.8 | CL150: 0 | CM150: 0 | CO150: 0.795 | CP150: 1.925 | CQ150: 0.7724582114 | CR150: 2.123857168 | CT150: 2016-03-14 | CU150: 83 | CV150: 59.9 | CW150: 76.8 | CX150: 37.6 | CZ150: 61.34 | DA150: 50.265 | DB150: 59.245 | DC150: 49.185 | DE150: 2016-03-14 | DF150: 83 | DG150: 59.9 | DH150: 76.8 | DI150: 37.6 | DK150: 61.34 | DL150: 50.265 | DM150: 59.245 | DN150: 49.185 | DP150: 2016-03-14 | DQ150: 15.7 | DR150: 18.3 | DS150: 3 | DT150: 3 | DV150: 14.525 | DW150: 15.91 | DX150: 2.5 | DY150: 1.65 | EA150: 2016-03-14 | EB150: 15.7 | EC150: 21.3 | ED150: 35.9 | EE150: 7.6 | EG150: 14.525 | EH150: 9.205 | EI150: 32.905 | EJ150: 3.1 | EL150: Brett.Bellemore | EM150: 15.05102041 | EN150: 200 | EO150: 8.457142857 | EP150: 30.85102041 | ER150: 15.23989814 | ES150: 380.86 | ET150: 8.001339163 | EU150: 31.7257827 | EW150: 2016-03-14 | EX150: 15.7 | EY150: 23.1 | EZ150: 39.2 | FA150: 18.5 | FC150: 14.525 | FD150: 11.075 | FE150: 10.055 | FF150: 6.81
A151: 2016-03-15 | B151: 26 | C151: 24 | D151: 12 | E151: 62 | H151: 2016-03-15 | I151: 17.2 | J151: 0 | K151: 31 | N151: 14.84 | O151: 17.5 | P151: 10.755 | Q151: =AVERAGE(L133:L152) ->  | S151: 2016-03-15 | T151: 17.2 | U151: 49.1 | V151: 100 | Y151: 14.84 | Z151: =AVERAGE(U132:U151) -> 60.51 | AA151: =AVERAGE(V132:V151) -> 64.385 | AB151: =AVERAGE(W133:W152) ->  | AD151: 2016-03-15 | AE151: 3 | AF151: 0 | AG151: 34 | AH151: 0 | AJ151: 3.27 | AK151: =AVERAGE(AF132:AF151) -> 0.85 | AL151: =AVERAGE(AG132:AG151) -> 12.2 | AM151: =AVERAGE(AH133:AH152) -> 0.795 | AO151: 2016-03-15 | AP151: 0 | AQ151: 1 | AR151: 29.5 | AS151: 3.5 | AU151: 0.85 | AV151: =AVERAGE(AQ132:AQ151) -> 1.65 | AW151: =AVERAGE(AR132:AR151) -> 12.195 | AX151: =AVERAGE(AS133:AS152) -> 2.28 | AZ151: 2016-03-15 | BA151: 31 | BB151: 100 | BF151: 10.755 | BG151: =AVERAGE(BB132:BB151) -> 93.86 | BH151: =AVERAGE(BC132:BC151) ->  | BI151: =AVERAGE(BD133:BD152) ->  | BK151: 2016-03-15 | BL151: 10.2 | BM151: 6.5 | BN151: 0 | BO151: 0 | BQ151: 16.035 | BR151: =AVERAGE(BM132:BM151) -> 8.275 | BS151: =AVERAGE(BN132:BN151) -> 0.85 | BT151: =AVERAGE(BO133:BO152) -> 0.55 | BV151: 2016-03-15 | BW151: 10.4 | BX151: 24.5 | BY151: 35.5 | BZ151: 22.5 | CA151: 17.2 | CC151: 13.315 | CD151: =AVERAGE(BX132:BX151) -> 31.925 | CE151: =AVERAGE(BY132:BY151) -> 65.045 | CF151: =AVERAGE(BZ133:BZ152) -> 33.925 | CG151: =AVERAGE(CA133:CA152) -> 15.07 | CI151: 2016-03-15 | CJ151: 0 | CK151: 3.5 | CL151: 3.488372093 | CM151: 0 | CO151: 0.795 | CP151: =AVERAGE(CK132:CK151) -> 2.1 | CQ151: =AVERAGE(CL132:CL151) -> 0.9468768161 | CR151: 2.123857168 | CT151: 2016-03-15 | CU151: 100 | CV151: 66 | CW151: 72.8 | CX151: 43.3 | CZ151: 64.385 | DA151: 52.185 | DB151: 60.74 | DC151: =AVERAGE(CX132:CX151) -> 48.54 | DE151: 2016-03-15 | DF151: 100 | DG151: 66 | DH151: 72.8 | DI151: 43.3 | DK151: 64.385 | DL151: 52.185 | DM151: 60.74 | DN151: =AVERAGE(DI132:DI151) -> 48.54 | DP151: 2016-03-15 | DQ151: 17.2 | DR151: 10.2 | DS151: 2 | DT151: 1 | DV151: 14.84 | DW151: 16.035 | DX151: 2.55 | DY151: =AVERAGE(DT132:DT151) -> 1.65 | EA151: 2016-03-15 | EB151: 17.2 | EC151: 31 | ED151: 22.5 | EE151: 7 | EG151: 14.84 | EH151: 10.755 | EI151: 33.53 | EJ151: =AVERAGE(EE132:EE151) -> 3.45 | EL151: Alex.Petrovic | EM151: 15.03125 | EN151: 100 | EO151: 7.98875 | EP151: 31.295 | ER151: 15.22016567 | ES151: =AVERAGE(EN132:EN151) -> 366.695 | ET151: =AVERAGE(EO132:EO151) -> 8.035596807 | EU151: =AVERAGE(EP133:EP152) -> 31.70902011 | EW151: 2016-03-15 | EX151: 17.2 | EY151: 34 | EZ151: 29.5 | FA151: -6.8 | FC151: 14.84 | FD151: 12.2 | FE151: 12.195 | FF151: =AVERAGE(FA132:FA151) -> 6.545
A152: 2016-03-17 | B152: 26 | C152: 25 | D152: 12 | E152: 63 | H152: 2016-03-17 | I152: 16.7 | J152: 0 | K152: 9.7 | N152: =AVERAGE(I133:I152) -> 15.07 | O152: =AVERAGE(J133:J152) -> 17.5 | P152: =AVERAGE(K133:K152) -> 11.24 | S152: 2016-03-17 | T152: 16.7 | U152: 60.7 | V152: 76.6 | Y152: =AVERAGE(T133:T152) -> 15.07 | Z152: 60.17 | AA152: 65.72 | AD152: 2016-03-17 | AE152: 3.6 | AF152: 0 | AG152: 22.1 | AH152: 0 | AJ152: =AVERAGE(AE133:AE152) -> 3.305 | AK152: 0.75 | AL152: 14.485 | AM152: 0.795 | AO152: 2016-03-17 | AP152: 0 | AQ152: 0 | AR152: 6.3 | AS152: 3.6 | AU152: =AVERAGE(AP133:AP152) -> 0.75 | AV152: 1.55 | AW152: 13.49 | AX152: 2.085 | AZ152: 2016-03-17 | BA152: 9.7 | BB152: 100 | BF152: =AVERAGE(BA133:BA152) -> 11.24 | BG152: 96.405 | BK152: 2016-03-17 | BL152: 14.3 | BM152: 10.3 | BN152: 0 | BO152: 0 | BQ152: =AVERAGE(BL133:BL152) -> 16.14 | BR152: 8.5 | BS152: 0.8 | BT152: 0.5 | BV152: 2016-03-17 | BW152: 12.8 | BX152: 29.2 | BY152: 51.4 | BZ152: 36.9 | CA152: 16.7 | CC152: =AVERAGE(BW133:BW152) -> 13.24 | CD152: 32.205 | CE152: 64.58 | CF152: 32.765 | CG152: 14.94 | CI152: 2016-03-17 | CJ152: 0 | CK152: 3.6 | CL152: 3.592814371 | CM152: 0 | CO152: =AVERAGE(CJ133:CJ152) -> 0.795 | CP152: 2.28 | CQ152: 1.126517535 | CR152: 2.123857168 | CT152: 2016-03-17 | CU152: 76.6 | CV152: 54.5 | CW152: 63.3 | CX152: 57 | CZ152: =AVERAGE(CU133:CU152) -> 65.72 | DA152: 51.23 | DB152: 61.185 | DC152: 47.69 | DE152: 2016-03-17 | DF152: 76.6 | DG152: 54.5 | DH152: 63.3 | DI152: 57 | DK152: =AVERAGE(DF133:DF152) -> 65.72 | DL152: =AVERAGE(DG133:DG152) -> 51.23 | DM152: =AVERAGE(DH133:DH152) -> 61.185 | DN152: 47.69 | DP152: 2016-03-17 | DQ152: 16.7 | DR152: 14.3 | DS152: 1 | DT152: 0 | DV152: =AVERAGE(DQ133:DQ152) -> 15.07 | DW152: =AVERAGE(DR133:DR152) -> 16.14 | DX152: =AVERAGE(DS133:DS152) -> 2.45 | DY152: 1.55 | EA152: 2016-03-17 | EB152: 16.7 | EC152: 9.7 | ED152: 36.9 | EE152: 3.6 | EG152: =AVERAGE(EB133:EB152) -> 15.07 | EH152: =AVERAGE(EC133:EC152) -> 11.24 | EI152: =AVERAGE(ED133:ED152) -> 33.925 | EJ152: 3.63 | EL152: Pavel.Datsyuk | EM152: 15.02477064 | EN152: 881.5 | EO152: 8.18440367 | EP152: 31.8 | ER152: =AVERAGE(EM133:EM152) -> 15.20201571 | ES152: 335.135 | ET152: 7.976435695 | EU152: 31.65860085 | EW152: 2016-03-17 | EX152: 16.7 | EY152: 22.1 | EZ152: 6.3 | FA152: 5.1 | FC152: =AVERAGE(EX133:EX152) -> 15.07 | FD152: =AVERAGE(EY133:EY152) -> 14.485 | FE152: =AVERAGE(EZ133:EZ152) -> 13.49 | FF152: 6.93
A153: 2016-03-19 | B153: 26 | C153: 25 | D153: 12 | E153: 63 | H153: 2016-03-19 | I153: 12.7 | J153: 0 | K153: 14.6 | N153: 14.94 | O153: 17.5 | P153: 11.265 | S153: 2016-03-19 | T153: 12.7 | U153: 55.4 | V153: 56.9 | Y153: 14.94 | Z153: 59.655 | AA153: 65.075 | AD153: 2016-03-19 | AE153: 1.1 | AF153: 0 | AG153: -1.8 | AH153: 0 | AJ153: 3.055 | AK153: 0.65 | AL153: 13.785 | AM153: 0.795 | AO153: 2016-03-19 | AP153: 0 | AQ153: 0 | AR153: -11.8 | AS153: 0 | AU153: 0.65 | AV153: 1.45 | AW153: 12.24 | AX153: 2.085 | AZ153: 2016-03-19 | BA153: 14.6 | BB153: 64.8 | BF153: 11.265 | BG153: 95.555 | BK153: 2016-03-19 | BL153: 12.5 | BM153: 6.9 | BN153: 0 | BO153: 0 | BQ153: 15.49 | BR153: 8.14 | BS153: 0.7 | BT153: 0.5 | BV153: 2016-03-19 | BW153: 5.2 | BX153: 19.5 | BY153: 59 | BZ153: 32.4 | CA153: 12.7 | CC153: 12.3 | CD153: 30.575 | CE153: 62.515 | CF153: 32.4 | CG153: 14.86 | CI153: 2016-03-19 | CJ153: 0 | CK153: 0 | CL153: 0 | CM153: 0 | CO153: 0.795 | CP153: 2.085 | CQ153: 0.9304391033 | CR153: 2.123857168 | CT153: 2016-03-19 | CU153: 56.9 | CV153: 58.6 | CW153: 46.4 | CX153: 58.2 | CZ153: 65.075 | DA153: 51.28 | DB153: 60.135 | DC153: 47.89 | DE153: 2016-03-19 | DF153: 56.9 | DG153: 58.6 | DH153: 46.4 | DI153: 58.2 | DK153: 65.075 | DL153: 51.28 | DM153: 60.135 | DN153: 47.89 | DP153: 2016-03-19 | DQ153: 12.7 | DR153: 12.5 | DS153: 0 | DT153: 0 | DV153: 14.94 | DW153: 15.49 | DX153: 2.2 | DY153: 1.45 | EA153: 2016-03-19 | EB153: 12.7 | EC153: 14.6 | ED153: 32.4 | EE153: 4.7 | EG153: 14.94 | EH153: 11.265 | EI153: 32.765 | EJ153: 3.47 | EL153: Jason.Garrison | EM153: 14.98380282 | EN153: 433.2 | EO153: 9.158156028 | EP153: 31.79859155 | ER153: 15.18225237 | ES153: 337.63 | ET153: 8.046165202 | EU153: 31.58945215 | EW153: 2016-03-19 | EX153: 12.7 | EY153: -1.8 | EZ153: -11.8 | FA153: 1.3 | FC153: 14.94 | FD153: 13.785 | FE153: 12.24 | FF153: 6.535
A154: 2016-03-21 | B154: 26 | C154: 25 | D154: 12 | E154: 63 | H154: 2016-03-21 | I154: 14.1 | J154: 0 | K154: 0 | N154: 14.86 | O154: 17.5 | P154: 10.675 | S154: 2016-03-21 | T154: 14.1 | U154: 55.5 | V154: 36.3 | Y154: 14.86 | Z154: 59.795 | AA154: 63.2 | AD154: 2016-03-21 | AE154: 1.1 | AF154: 0 | AG154: 5.8 | AH154: 0 | AJ154: 2.97 | AK154: 0.65 | AL154: 12.675 | AM154: 0.605 | AO154: 2016-03-21 | AP154: 0 | AQ154: 0 | AR154: -21.7 | AS154: 0 | AU154: 0.65 | AV154: 1.3 | AW154: 10.14 | AX154: 1.705 | AZ154: 2016-03-21 | BA154: 0 | BB154: 90.4 | BF154: 10.675 | BG154: 95.075 | BK154: 2016-03-21 | BL154: 15.7 | BM154: 5.9 | BN154: 0 | BO154: 1 | BQ154: 15.565 | BR154: 8.01 | BS154: 0.7 | BT154: 0.45 | BV154: 2016-03-21 | BW154: 4.9 | BX154: 9.4 | BY154: 66.9 | BZ154: 25 | CA154: 14.1 | CC154: 12 | CD154: 29.58 | CE154: 63.14 | CF154: 30.27 | CG154: 14.905 | CI154: 2016-03-21 | CJ154: 0 | CK154: 0 | CL154: 0 | CM154: 0 | CO154: 0.795 | CP154: 2.085 | CQ154: 0.9304391033 | CR154: 2.123857168 | CT154: 2016-03-21 | CU154: 36.3 | CV154: 30.5 | CW154: 17 | CX154: 38.7 | CZ154: 63.2 | DA154: 50.515 | DB154: 58.03 | DC154: 47.885 | DE154: 2016-03-21 | DF154: 36.3 | DG154: 30.5 | DH154: 17 | DI154: 38.7 | DK154: 63.2 | DL154: 50.515 | DM154: 58.03 | DN154: 47.885 | DP154: 2016-03-21 | DQ154: 14.1 | DR154: 15.7 | DS154: 1 | DT154: 0 | DV154: 14.86 | DW154: 15.565 | DX154: 2.1 | DY154: 1.3 | EA154: 2016-03-21 | EB154: 14.1 | EC154: 0 | ED154: 25 | EE154: 0 | EG154: 14.86 | EH154: 10.675 | EI154: 32.4 | EJ154: 3.28 | EL154: Andre.Benoit | EM154: 14.97868852 | EN154: 0 | EO154: 8 | EP154: 31.05245902 | ER154: 15.1639427 | ES154: 325.965 | ET154: 8.061403297 | EU154: 31.57242081 | EW154: 2016-03-21 | EX154: 14.1 | EY154: 5.8 | EZ154: -21.7 | FA154: 3.2 | FC154: 14.86 | FD154: 12.675 | FE154: 10.14 | FF154: 6.025
A155: 2016-03-22 | B155: 26 | C155: 25 | D155: 12 | E155: 63 | H155: 2016-03-22 | I155: 16.8 | J155: 0 | K155: 0 | N155: 14.905 | O155: 15 | P155: 10.11 | S155: 2016-03-22 | T155: 16.8 | U155: 74.1 | V155: 100 | Y155: 14.905 | Z155: 60.31 | AA155: 65.055 | AD155: 2016-03-22 | AE155: 3.2 | AF155: 0 | AG155: 31.3 | AH155: 0 | AJ155: 2.87 | AK155: 0.6 | AL155: 14.28 | AM155: 0.38 | AO155: 2016-03-22 | AP155: 0 | AQ155: 0 | AR155: 17.7 | AS155: 0 | AU155: 0.6 | AV155: 1.15 | AW155: 10.87 | AX155: 1.48 | AZ155: 2016-03-22 | BA155: 0 | BB155: 100 | BF155: 10.11 | BG155: 95.075 | BK155: 2016-03-22 | BL155: 17.6 | BM155: 6.9 | BN155: 0 | BO155: 0 | BQ155: 15.23 | BR155: 7.465 | BS155: 0.7 | BT155: 0.45 | BV155: 2016-03-22 | BW155: 11.3 | BX155: 17.7 | BY155: 63.1 | BZ155: 24.5 | CA155: 16.8 | CC155: 11.585 | CD155: 28.27 | CE155: 61.71 | CF155: 30.99 | CG155: 14.975 | CI155: 2016-03-22 | CJ155: 0 | CK155: 0 | CL155: 0 | CM155: 0 | CO155: 0.605 | CP155: 1.705 | CQ155: 0.741759858 | CR155: 2.123857168 | CT155: 2016-03-22 | CU155: 100 | CV155: 68.7 | CW155: 83.4 | CX155: 65.7 | CZ155: 65.055 | DA155: 50.765 | DB155: 59.025 | DC155: 48.15 | DE155: 2016-03-22 | DF155: 100 | DG155: 68.7 | DH155: 83.4 | DI155: 65.7 | DK155: 65.055 | DL155: 50.765 | DM155: 59.025 | DN155: 48.15 | DP155: 2016-03-22 | DQ155: 16.8 | DR155: 17.6 | DS155: 0 | DT155: 0 | DV155: 14.905 | DW155: 15.23 | DX155: 1.95 | DY155: 1.15 | EA155: 2016-03-22 | EB155: 16.8 | EC155: 0 | ED155: 24.5 | EE155: 0 | EG155: 14.905 | EH155: 10.11 | EI155: 30.27 | EJ155: 2.9 | EL155: Patrick.Wiercioch | EM155: 14.93888889 | EN155: 100 | EO155: 7.975925926 | EP155: 31.4462963 | ER155: 15.14588714 | ES155: 321.8 | ET155: 8.117468824 | EU155: 31.58062451 | EW155: 2016-03-22 | EX155: 16.8 | EY155: 31.3 | EZ155: 17.7 | FA155: 12.7 | FC155: 14.905 | FD155: 14.28 | FE155: 10.87 | FF155: 6.525
A156: 2016-03-24 | B156: 26 | C156: 25 | D156: 12 | E156: 63 | H156: 2016-03-24 | I156: 14.8 | J156: 0 | K156: 0 | N156: 14.975 | O156: 10 | P156: 9.025 | S156: 2016-03-24 | T156: 14.8 | U156: 54.1 | V156: 52 | Y156: 14.975 | Z156: 60.27 | AA156: 62.655 | AD156: 2016-03-24 | AE156: 3.1 | AF156: 1 | AG156: -31.1 | AH156: 0 | AJ156: 2.93 | AK156: 0.6 | AL156: 9.97 | AM156: 0.38 | AO156: 2016-03-24 | AP156: 1 | AQ156: 1 | AR156: -23.9 | AS156: 0 | AU156: 0.6 | AV156: 1.15 | AW156: 8.8 | AX156: 1.88 | AZ156: 2016-03-24 | BA156: 0 | BB156: 75.3 | BF156: 9.025 | BG156: 94.345 | BK156: 2016-03-24 | BL156: 17.9 | BM156: 8.7 | BN156: 0 | BO156: 1 | BQ156: 15.245 | BR156: 7.67 | BS156: 0.7 | BT156: 0.4 | BV156: 2016-03-24 | BW156: 12.6 | BX156: 36.1 | BY156: 72.6 | BZ156: 35.1 | CA156: 14.8 | CC156: 11.795 | CD156: 28.615 | CE156: 61.39 | CF156: 32.165 | CG156: 14.665 | CI156: 2016-03-24 | CJ156: 0 | CK156: 0 | CL156: 0 | CM156: 0 | CO156: 0.38 | CP156: 1.48 | CQ156: 0.741759858 | CR156: 2.123857168 | CT156: 2016-03-24 | CU156: 52 | CV156: 83.2 | CW156: 54.5 | CX156: 78.4 | CZ156: 62.655 | DA156: 52.68 | DB156: 58.705 | DC156: 49.9 | DE156: 2016-03-24 | DF156: 52 | DG156: 83.2 | DH156: 54.5 | DI156: 78.4 | DK156: 62.655 | DL156: 52.68 | DM156: 58.705 | DN156: 49.9 | DP156: 2016-03-24 | DQ156: 14.8 | DR156: 17.9 | DS156: 2 | DT156: 1 | DV156: 14.975 | DW156: 15.245 | DX156: 1.95 | DY156: 1.15 | EA156: 2016-03-24 | EB156: 14.8 | EC156: 0 | ED156: 35.1 | EE156: 0 | EG156: 14.975 | EH156: 9.025 | EI156: 30.99 | EJ156: 2.675 | EL156: Sidney.Crosby | EM156: 14.92740741 | EN156: 1053.3 | EO156: 7.957037037 | EP156: 31.45851852 | ER156: 15.12725751 | ES156: 357.8 | ET156: 8.098167898 | EU156: 31.47753291 | EW156: 2016-03-24 | EX156: 14.8 | EY156: -31.1 | EZ156: -23.9 | FA156: -11.3 | FC156: 14.975 | FD156: 9.97 | FE156: 8.8 | FF156: 5.71
A157: 2016-03-26 | B157: 26 | C157: 27 | D157: 13 | E157: 66 | H157: 2016-03-26 | I157: 12.5 | J157: 0 | K157: 27.2 | N157: 14.665 | O157: 10 | P157: 9.3 | S157: 2016-03-26 | T157: 12.5 | U157: 70 | V157: 64.8 | Y157: 14.665 | Z157: 60.42 | AA157: 61.83 | AD157: 2016-03-26 | AE157: 7.2 | AF157: 3 | AG157: 10.6 | AH157: 0 | AJ157: 3.085 | AK157: 0.75 | AL157: 9.555 | AM157: 0.38 | AO157: 2016-03-26 | AP157: 3 | AQ157: 3 | AR157: 6.6 | AS157: 14.4 | AU157: 0.75 | AV157: 1.3 | AW157: 9.665 | AX157: 2.085 | AZ157: 2016-03-26 | BA157: 27.2 | BB157: 87.4 | BF157: 9.3 | BG157: 93.715 | BK157: 2016-03-26 | BL157: 22.7 | BM157: 11 | BN157: 2 | BO157: 0 | BQ157: 15.335 | BR157: 7.76 | BS157: 0.8 | BT157: 0.5 | BV157: 2016-03-26 | BW157: 34.7 | BX157: 59.7 | BY157: 108.9 | BZ157: 53 | CA157: 12.5 | CC157: 12.87 | CD157: 30.605 | CE157: 63.49 | CF157: 32.35 | CG157: 14.59 | CI157: 2016-03-26 | CJ157: 0 | CK157: 14.4 | CL157: 9.6 | CM157: 28.8 | CO157: 0.38 | CP157: 1.88 | CQ157: 1.06133205 | CR157: 2.601290323 | CT157: 2016-03-26 | CU157: 64.8 | CV157: 54.3 | CW157: 63.8 | CX157: 57.2 | CZ157: 61.83 | DA157: 52.275 | DB157: 59.525 | DC157: 49.855 | DE157: 2016-03-26 | DF157: 64.8 | DG157: 54.3 | DH157: 63.8 | DI157: 57.2 | DK157: 61.83 | DL157: 52.275 | DM157: 59.525 | DN157: 49.855 | DP157: 2016-03-26 | DQ157: 12.5 | DR157: 22.7 | DS157: 4 | DT157: 3 | DV157: 14.665 | DW157: 15.335 | DX157: 2.1 | DY157: 1.3 | EA157: 2016-03-26 | EB157: 12.5 | EC157: 27.2 | ED157: 53 | EE157: 14.4 | EG157: 14.665 | EH157: 9.3 | EI157: 32.165 | EJ157: 3.075 | EL157: Ryan.Nugent-Hopkins | EM157: 14.92061069 | EN157: 1344.9 | EO157: 9.571755725 | EP157: 30.41755725 | ER157: 15.10908957 | ES157: 415.045 | ET157: 8.07202286 | EU157: 31.46346368 | EW157: 2016-03-26 | EX157: 12.5 | EY157: 10.6 | EZ157: 6.6 | FA157: 10.7 | FC157: 14.665 | FD157: 9.555 | FE157: 9.665 | FF157: 6
A158: 2016-03-28 | B158: 26 | C158: 28 | D158: 13 | E158: 67 | H158: 2016-03-28 | I158: 14.8 | J158: 0 | K158: 11.4 | N158: 14.59 | O158: 10 | P158: 9.87 | S158: 2016-03-28 | T158: 14.8 | U158: 56.1 | V158: 46.3 | Y158: 14.59 | Z158: 59.805 | AA158: 61.55 | AD158: 2016-03-28 | AE158: 4.1 | AF158: 0 | AG158: -8.1 | AH158: 0 | AJ158: 3.235 | AK158: 0.75 | AL158: 7.8 | AM158: 0.38 | AO158: 2016-03-28 | AP158: 0 | AQ158: 2 | AR158: -2.8 | AS158: 4.1 | AU158: 0.75 | AV158: 1.35 | AW158: 8.01 | AX158: 2.28 | AZ158: 2016-03-28 | BA158: 11.4 | BB158: 87.4 | BF158: 9.87 | BG158: 93.085 | BK158: 2016-03-28 | BL158: 20.7 | BM158: 8.8 | BN158: 1 | BO158: 3 | BQ158: 15.6 | BR158: 7.77 | BS158: 0.85 | BT158: 0.5 | BV158: 2016-03-28 | BW158: 16.6 | BX158: 47.2 | BY158: 84 | BZ158: 35.5 | CA158: 14.8 | CC158: 13.505 | CD158: 31.665 | CE158: 64.85 | CF158: 32.955 | CG158: 14.645 | CI158: 2016-03-28 | CJ158: 0 | CK158: 4.1 | CL158: 4.054054054 | CM158: 0 | CO158: 0.38 | CP158: 2.085 | CQ158: 1.264034753 | CR158: 2.601290323 | CT158: 2016-03-28 | CU158: 46.3 | CV158: 54.4 | CW158: 54.8 | CX158: 57.6 | CZ158: 61.55 | DA158: 53.755 | DB158: 58.39 | DC158: 50.375 | DE158: 2016-03-28 | DF158: 46.3 | DG158: 54.4 | DH158: 54.8 | DI158: 57.6 | DK158: 61.55 | DL158: 53.755 | DM158: 58.39 | DN158: 50.375 | DP158: 2016-03-28 | DQ158: 14.8 | DR158: 20.7 | DS158: 4 | DT158: 2 | DV158: 14.59 | DW158: 15.6 | DX158: 2.2 | DY158: 1.35 | EA158: 2016-03-28 | EB158: 14.8 | EC158: 11.4 | ED158: 35.5 | EE158: 4.1 | EG158: 14.59 | EH158: 9.87 | EI158: 32.35 | EJ158: 3.28 | EL158: Braydon.Coburn | EM158: 14.91057692 | EN158: 83.3 | EO158: 9.095192308 | EP158: 31.53461538 | ER158: 15.09076842 | ES158: 391.96 | ET158: 8.027082476 | EU158: 31.42795247 | EW158: 2016-03-28 | EX158: 14.8 | EY158: -8.1 | EZ158: -2.8 | FA158: -1.6 | FC158: 14.59 | FD158: 7.8 | FE158: 8.01 | FF158: 5.365
A159: 2016-03-31 | B159: 26 | C159: 29 | D159: 13 | E159: 68 | H159: 2016-03-31 | I159: 15.6 | J159: 0 | K159: 9.2 | N159: 14.645 | O159: 10 | P159: 10.33 | S159: 2016-03-31 | T159: 15.6 | U159: 66.2 | V159: 69.8 | Y159: 14.645 | Z159: 59.58 | AA159: 62.4 | AD159: 2016-03-31 | AE159: 4.7 | AF159: 0 | AG159: 19.3 | AH159: 0 | AJ159: 3.37 | AK159: 0.65 | AL159: 8.43 | AM159: 0.38 | AO159: 2016-03-31 | AP159: 0 | AQ159: 2 | AR159: 0.5 | AS159: 3.9 | AU159: 0.65 | AV159: 1.35 | AW159: 7.755 | AX159: 2.28 | AZ159: 2016-03-31 | BA159: 9.2 | BB159: 100 | BF159: 10.33 | BG159: 93.085 | BK159: 2016-03-31 | BL159: 24.7 | BM159: 10.9 | BN159: 2 | BO159: 1 | BQ159: 15.985 | BR159: 7.955 | BS159: 0.85 | BT159: 0.6 | BV159: 2016-03-31 | BW159: 18.2 | BX159: 45.9 | BY159: 95.4 | BZ159: 42.1 | CA159: 15.6 | CC159: 13.995 | CD159: 32.785 | CE159: 66.105 | CF159: 31.76 | CG159: 14.745 | CI159: 2016-03-31 | CJ159: 0 | CK159: 3.9 | CL159: 3.846153846 | CM159: 0 | CO159: 0.38 | CP159: 2.28 | CQ159: 1.456342445 | CR159: 2.601290323 | CT159: 2016-03-31 | CU159: 69.8 | CV159: 50.5 | CW159: 63.6 | CX159: 63.2 | CZ159: 62.4 | DA159: 53.975 | DB159: 58.745 | DC159: 50.99 | DE159: 2016-03-31 | DF159: 69.8 | DG159: 50.5 | DH159: 63.6 | DI159: 63.2 | DK159: 62.4 | DL159: 53.975 | DM159: 58.745 | DN159: 50.99 | DP159: 2016-03-31 | DQ159: 15.6 | DR159: 24.7 | DS159: 3 | DT159: 2 | DV159: 14.645 | DW159: 15.985 | DX159: 2.1 | DY159: 1.35 | EA159: 2016-03-31 | EB159: 15.6 | EC159: 9.2 | ED159: 42.1 | EE159: 3.9 | EG159: 14.645 | EH159: 10.33 | EI159: 32.955 | EJ159: 3.475 | EL159: Nate.Schmidt | EM159: 14.88738739 | EN159: 150 | EO159: 7.086486486 | EP159: 31.07117117 | ER159: 15.07141686 | ES159: 379.045 | ET159: 7.967220753 | EU159: 31.38410694 | EW159: 2016-03-31 | EX159: 15.6 | EY159: 19.3 | EZ159: 0.5 | FA159: 3.9 | FC159: 14.645 | FD159: 8.43 | FE159: 7.755 | FF159: 4.915
A160: 2016-04-02 | B160: 26 | C160: 29 | D160: 13 | E160: 68 | H160: 2016-04-02 | I160: 16.7 | J160: 0 | K160: 0 | N160: 14.745 | O160: 10 | P160: 10.33 | Q160: =AVERAGE(L142:L160) ->  | S160: 2016-04-02 | T160: 16.7 | U160: 51 | V160: 0 | Y160: 14.745 | Z160: 58.905 | AA160: 59.025 | AB160: =AVERAGE(W142:W160) ->  | AD160: 2016-04-02 | AE160: 0 | AF160: 0 | AG160: -28.5 | AH160: 0 | AJ160: 3.145 | AK160: 0.65 | AL160: 7.325 | AM160: =AVERAGE(AH142:AH160) -> 0.4 | AO160: 2016-04-02 | AP160: 0 | AQ160: 2 | AR160: 1.7 | AS160: 0 | AU160: 0.65 | AV160: 1.45 | AW160: 6.64 | AX160: =AVERAGE(AS142:AS160) -> 2.4 | AZ160: 2016-04-02 | BA160: 0 | BB160: 91.8 | BF160: 10.33 | BG160: 92.675 | BI160: =AVERAGE(BD142:BD160) ->  | BK160: 2016-04-02 | BL160: 17.5 | BM160: 5.2 | BN160: 1 | BO160: 2 | BQ160: 15.815 | BR160: 7.695 | BS160: 0.9 | BT160: =AVERAGE(BO142:BO160) -> 0.5789473684 | BV160: 2016-04-02 | BW160: 0 | BX160: 23.3 | BY160: 63 | BZ160: 18.5 | CA160: 16.7 | CC160: 13.07 | CD160: 30.98 | CE160: 64.985 | CF160: =AVERAGE(BZ142:BZ160) -> 31.75263158 | CG160: =AVERAGE(CA142:CA160) -> 14.74736842 | CI160: 2016-04-02 | CJ160: 0 | CK160: 0 | CL160: 0 | CM160: 0 | CO160: 0.38 | CP160: 2.28 | CQ160: 1.456342445 | CR160: 2.601290323 | CT160: 2016-04-02 | CU160: 0 | CV160: 28.5 | CW160: 41.5 | CX160: 39.8 | CZ160: 59.025 | DA160: 51.705 | DB160: 57.51 | DC160: 50.87 | DE160: 2016-04-02 | DF160: 0 | DG160: 28.5 | DH160: 41.5 | DI160: 39.8 | DK160: 59.025 | DL160: 51.705 | DM160: 57.51 | DN160: 50.87 | DP160: 2016-04-02 | DQ160: 16.7 | DR160: 17.5 | DS160: 4 | DT160: 2 | DV160: 14.745 | DW160: 15.815 | DX160: 2.3 | DY160: 1.45 | EA160: 2016-04-02 | EB160: 16.7 | EC160: 0 | ED160: 18.5 | EE160: 0 | EG160: 14.745 | EH160: 10.33 | EI160: 31.76 | EJ160: 3.475 | EL160: Andrej.Meszaros | EM160: 14.85 | EN160: 416.7 | EO160: 8.815254237 | EP160: 30.86333333 | ER160: 15.05044125 | ES160: 399.88 | ET160: 7.943106922 | EU160: =AVERAGE(EP142:EP160) -> 31.37019231 | EW160: 2016-04-02 | EX160: 16.7 | EY160: -28.5 | EZ160: 1.7 | FA160: 9.6 | FC160: 14.745 | FD160: 7.325 | FE160: 6.64 | FF160: 4.35
A161: 2016-04-04 | B161: 26 | C161: 29 | D161: 13 | E161: 68 | H161: 2016-04-04 | I161: 14.7 | J161: 0 | K161: 9.2 | S161: 2016-04-04 | T161: 14.7 | U161: 58 | V161: 62 | AD161: 2016-04-04 | AE161: 6 | AF161: 2 | AG161: 13.9 | AH161: 0 | AO161: 2016-04-04 | AP161: 2 | AQ161: 3 | AR161: -4.2 | AS161: 0 | AZ161: 2016-04-04 | BA161: 9.2 | BB161: 100 | BK161: 2016-04-04 | BL161: 20.8 | BM161: 10.9 | BN161: 2 | BO161: 2 | BV161: 2016-04-04 | BW161: 24.7 | BX161: 46 | BY161: 84.9 | BZ161: 44.3 | CA161: 14.7 | CI161: 2016-04-04 | CJ161: 0 | CK161: 0 | CL161: 0 | CM161: 0 | CT161: 2016-04-04 | CU161: 62 | CV161: 48.1 | CW161: 62.1 | CX161: 66.2 | DE161: 2016-04-04 | DF161: 62 | DG161: 48.1 | DH161: 62.1 | DI161: 66.2 | DP161: 2016-04-04 | DQ161: 14.7 | DR161: 20.8 | DS161: 5 | DT161: 3 | EA161: 2016-04-04 | EB161: 14.7 | EC161: 9.2 | ED161: 44.3 | EE161: 4.1 | EL161: Nicklas.Backstrom | EM161: 14.80822785 | EN161: 1499.9 | EO161: 8.313375796 | EP161: 30.98607595 | EW161: 2016-04-04 | EX161: 14.7 | EY161: 13.9 | EZ161: -4.2 | FA161: -10.5
A162: 2016-04-05 | B162: 28 | C162: 29 | D162: 13 | E162: 70 | H162: 2016-04-05 | I162: 15.2 | J162: 100 | K162: 21.3 | S162: 2016-04-05 | T162: 15.2 | U162: 61.3 | V162: 100 | AD162: 2016-04-05 | AE162: 3.2 | AF162: 1 | AG162: 47.7 | AH162: 7.9 | AO162: 2016-04-05 | AP162: 1 | AQ162: 3 | AR162: 10.3 | AS162: 7.9 | AZ162: 2016-04-05 | BA162: 21.3 | BB162: 83.8 | BK162: 2016-04-05 | BL162: 19.1 | BM162: 9.4 | BN162: 2 | BO162: 1 | BV162: 2016-04-05 | BW162: 12.4 | BX162: 41 | BY162: 75.2 | BZ162: 36.9 | CA162: 15.2 | CI162: 2016-04-05 | CJ162: 7.9 | CK162: 7.9 | CL162: 0 | CM162: 0 | CT162: 2016-04-05 | CU162: 100 | CV162: 52.3 | CW162: 60.9 | CX162: 50.6 | DE162: 2016-04-05 | DF162: 100 | DG162: 52.3 | DH162: 60.9 | DI162: 50.6 | DP162: 2016-04-05 | DQ162: 15.2 | DR162: 19.1 | DS162: 5 | DT162: 3 | EA162: 2016-04-05 | EB162: 15.2 | EC162: 21.3 | ED162: 36.9 | EE162: 7.9 | EL162: Sergei.Gonchar | EM162: 14.78958333 | EN162: 100 | EO162: 6.55106383 | EP162: 30.74791667 | EW162: 2016-04-05 | EX162: 15.2 | EY162: 47.7 | EZ162: 10.3 | FA162: 4.2
A163: 2016-04-07 | B163: 29 | C163: 29 | D163: 13 | E163: 71 | H163: 2016-04-07 | I163: 11.7 | J163: 100 | K163: 20 | S163: 2016-04-07 | T163: 11.7 | U163: 67.8 | V163: 100 | AD163: 2016-04-07 | AE163: 3.8 | AF163: 1 | AG163: 38.3 | AH163: 5.1 | AO163: 2016-04-07 | AP163: 1 | AQ163: 1 | AR163: 4.1 | AS163: 5.1 | AZ163: 2016-04-07 | BA163: 20 | BB163: 100 | BK163: 2016-04-07 | BL163: 9.9 | BM163: 5 | BN163: 0 | BO163: 0 | BV163: 2016-04-07 | BW163: 19.2 | BX163: 29.2 | BY163: 50.6 | BZ163: 25.6 | CA163: 11.7 | CI163: 2016-04-07 | CJ163: 5.1 | CK163: 5.1 | CL163: 0 | CM163: 0 | CT163: 2016-04-07 | CU163: 100 | CV163: 61.7 | CW163: 59.1 | CX163: 55 | DE163: 2016-04-07 | DF163: 100 | DG163: 61.7 | DH163: 59.1 | DI163: 55 | DP163: 2016-04-07 | DQ163: 11.7 | DR163: 9.9 | DS163: 1 | DT163: 1 | EA163: 2016-04-07 | EB163: 11.7 | EC163: 20 | ED163: 25.6 | EE163: 5.1 | EL163: Nick.Schultz | EM163: 14.77701863 | EN163: 300 | EO163: 6.755900621 | EP163: 31.16149068 | EW163: 2016-04-07 | EX163: 11.7 | EY163: 38.3 | EZ163: 4.1 | FA163: -0.1
A164: 2016-04-09 | B164: 29 | C164: 30 | D164: 13 | E164: 72 | H164: 2016-04-09 | I164: 16.8 | J164: 0 | K164: 19.8 | S164: 2016-04-09 | T164: 16.8 | U164: 61.8 | V164: 71.4 | AD164: 2016-04-09 | AE164: 4.5 | AF164: 0 | AG164: 20.3 | AH164: 0 | AO164: 2016-04-09 | AP164: 0 | AQ164: 3 | AR164: 15.8 | AS164: 3.6 | AZ164: 2016-04-09 | BA164: 19.8 | BB164: 74.9 | BK164: 2016-04-09 | BL164: 15.2 | BM164: 5 | BN164: 0 | BO164: 2 | BV164: 2016-04-09 | BW164: 16.2 | BX164: 30.8 | BY164: 54.1 | BZ164: 18 | CA164: 16.8 | CI164: 2016-04-09 | CJ164: 0 | CK164: 3.6 | CL164: 3.571428571 | CM164: 0 | CT164: 2016-04-09 | CU164: 71.4 | CV164: 51 | CW164: 69.9 | CX164: 54.1 | DE164: 2016-04-09 | DF164: 71.4 | DG164: 51 | DH164: 69.9 | DI164: 54.1 | DP164: 2016-04-09 | DQ164: 16.8 | DR164: 15.2 | DS164: 3 | DT164: 3 | EA164: 2016-04-09 | EB164: 16.8 | EC164: 19.8 | ED164: 18 | EE164: 3.6 | EL164: Jordan.Eberle | EM164: 14.77466667 | EN164: 1672.3 | EO164: 9.004 | EP164: 30.12 | EW164: 2016-04-09 | EX164: 16.8 | EY164: 20.3 | EZ164: 15.8 | FA164: 5.6
A165: 2016-04-10 | B165: 29 | C165: 31 | D165: 13 | E165: 73 | H165: 2016-04-10 | I165: 27.5 | J165: 0 | K165: 18 | S165: 2016-04-10 | T165: 27.5 | U165: 98.9 | V165: 86 | AD165: 2016-04-10 | AE165: 5.2 | AF165: 1 | AG165: 0.4 | AH165: 0 | AO165: 2016-04-10 | AP165: 1 | AQ165: 2 | AR165: 4.6 | AS165: 3.9 | AZ165: 2016-04-10 | BA165: 36 | BB165: 187.5 | BK165: 2016-04-10 | BL165: 25.4 | BM165: 6.3 | BN165: 1 | BO165: 2 | BV165: 2016-04-10 | BW165: 22.9 | BX165: 66 | BY165: 111.7 | BZ165: 28 | CA165: 27.5 | CI165: 2016-04-10 | CJ165: 0 | CK165: 3.9 | CL165: 2.181818182 | CM165: 0 | CT165: 2016-04-10 | CU165: 86 | CV165: 85.6 | CW165: 93.2 | CX165: 88.6 | DE165: 2016-04-10 | DF165: 86 | DG165: 85.6 | DH165: 93.2 | DI165: 88.6 | DP165: 2016-04-10 | DQ165: 27.5 | DR165: 25.4 | DS165: 4 | DT165: 2 | EA165: 2016-04-10 | EB165: 27.5 | EC165: 36 | ED165: 28 | EE165: 3.9 | EL165: Mike.Weber | EM165: 14.7426087 | EN165: 150 | EO165: 5.466956522 | EP165: 30.35565217 | EW165: 2016-04-10 | EX165: 27.5 | EY165: 0.2 | EZ165: 2.3 | FA165: 2.1
EL166: Jack.Eichel | EM166: 14.7244898 | EN166: 816.6 | EO166: 8.168367347 | EP166: 30.29489796
EL167: Matt.Duchene | EM167: 14.72356688 | EN167: 1884.7 | EO167: 10.2433121 | EP167: 30.79936306
EL168: Martin.Marincin | EM168: 14.72095238 | EN168: 100 | EO168: 6.451428571 | EP168: 30.30285714
EL169: James.Neal | EM169: 14.68918919 | EN169: 1393 | EO169: 9.335135135 | EP169: 30.54256757
EL170: Shayne.Gostisbehere | EM170: 14.67014925 | EN170: 358.3 | EO170: 8.834848485 | EP170: 31.46268657
EL171: Henrik.Zetterberg | EM171: 14.65759494 | EN171: 861.5 | EO171: 7.146835443 | EP171: 31.3056962
EL172: Noah.Hanifin | EM172: 14.655 | EN172: 133.3 | EO172: 9.471666667 | EP172: 29.83
EL173: Tim.Gleason | EM173: 14.65 | EN173: 50 | EO173: 6.866666667 | EP173: 29.77916667
EL174: Artemi.Panarin | EM174: 14.64754098 | EN174: 524.9 | EO174: 9.126229508 | EP174: 30.0852459
EL175: Yannick.Weber | EM175: 14.63727273 | EN175: 283.3 | EO175: 7.896363636 | EP175: 30.54909091
EL176: Mark.Scheifele | EM176: 14.61776316 | EN176: 1573.2 | EO176: 10.01059603 | EP176: 31.24934211
EL177: Tyler.Seguin | EM177: 14.59300699 | EN177: 1527.8 | EO177: 9.991549296 | EP177: 30.6979021
EL178: Mark.Pysyk | EM178: 14.59180328 | EN178: 200 | EO178: 9.16557377 | EP178: 30.1442623
EL179: Claude.Giroux | EM179: 14.53734177 | EN179: 1036.5 | EO179: 7.278481013 | EP179: 30.74810127
EL180: Andrew.Campbell | EM180: 14.52121212 | EN180: 0 | EO180: 5.03030303 | EP180: 29.99090909
EL181: Nicklas.Grossmann | EM181: 14.5168 | EN181: 616.7 | EO181: 8.496 | EP181: 30.8784
EL182: Ryan.O'Reilly | EM182: 14.51045752 | EN182: 1028.3 | EO182: 8.860784314 | EP182: 29.90718954
EL183: Steven.Stamkos | EM183: 14.46289308 | EN183: 1805.7 | EO183: 9.816352201 | EP183: 30.78930818
EL184: Zach.Parise | EM184: 14.43125 | EN184: 1255.9 | EO184: 8.370833333 | EP184: 29.83472222
EL185: Carlo.Colaiacovo | EM185: 14.42794118 | EN185: 200 | EO185: 5.827941176 | EP185: 29.52205882
EL186: Joe.Pavelski | EM186: 14.41197183 | EN186: 1834.8 | EO186: 9.821126761 | EP186: 29.68521127
EL187: Kyle.Turris | EM187: 14.4115942 | EN187: 1291.6 | EO187: 8.710218978 | EP187: 30.40144928
EL188: Clayton.Stoner | EM188: 14.41101695 | EN188: 100 | EO188: 7.517241379 | EP188: 30.03474576
EL189: Ian.Cole | EM189: 14.41056338 | EN189: 283.3 | EO189: 6.969014085 | EP189: 30.27816901
EL190: Kyle.Okposo | EM190: 14.40935252 | EN190: 813.3 | EO190: 7.958273381 | EP190: 29.40791367
EL191: Nazem.Kadri | EM191: 14.40923077 | EN191: 993.3 | EO191: 7.3 | EP191: 30.56769231
EL192: Stuart.Percy | EM192: 14.38181818 | EN192: 0 | EO192: 4.554545455 | EP192: 30.65454545
EL193: Rob.Scuderi | EM193: 14.34315068 | EN193: 100 | EO193: 7.273793103 | EP193: 30.30205479
EL194: Sean.Monahan | EM194: 14.33540373 | EN194: 1619.8 | EO194: 8.934161491 | EP194: 29.42298137
EL195: Mike.Ribeiro | EM195: 14.32638037 | EN195: 1225 | EO195: 9.145398773 | EP195: 29.81717791
EL196: Johnny.Gaudreau | EM196: 14.31392405 | EN196: 1364.9 | EO196: 10.2 | EP196: 29.33924051
EL197: Stephane.Robidas | EM197: 14.31153846 | EN197: 50 | EO197: 9.263461538 | EP197: 30.41153846
EL198: Mats.Zuccarello | EM198: 14.29661017 | EN198: 2283.3 | EO198: 11.18011364 | EP198: 29.34689266
EL199: David.Krejci | EM199: 14.28487395 | EN199: 1058.3 | EO199: 9.696638655 | EP199: 29.44621849
EL200: Joe.Morrow | EM200: 14.28181818 | EN200: 150 | EO200: 8.423636364 | EP200: 29.60545455
EL201: Ryan.Getzlaf | EM201: 14.27792208 | EN201: 918.2 | EO201: 8.527272727 | EP201: 29.8538961
... 429 more rows

Sheet Charts
